Workbook

Sheet Index
A1: Index and File Details
B3: Index | H3: File Details
B5: Inputs | D5: Scenario Calculations | F5: Outputs | I5: Model | J5: TransGrid CAPEX Accumulation Model (CAM)
I6: Client | J6: TransGrid
B7: Notes & Assumptions | D7: Scenario Weighted | F7: Output_Single_Scenario | I7: Author | J7: Evans & Peck Pty Ltd.
I8: Revision | J8: v3.10
B9: Input_Fixed | D9: Calc_Scenario_Capex | F9: Future_Capex | I9: Status | J9: Final
B11: Input_Risk & Expenditure Profile | F11: Future_Capex_Esc
H12: Instructions
B13: Input_Projects_Committed | F13: WGTD AVG DATE_Future_Capex_Esc
I14: Input Sheets
B15: Input_Programs_Committed | F15: Committed Capex | I15: Fill in any cells marked as input cells as seen on the right => | K15: user input
I16: Cells not marked as inputs should not be modified.
B17: Input_Projects_Future | F17: Committed_Capex_Esc
I18: Output Sheets
B19: Input_Programs_Future | F19: TOTAL_Capex_Esc | I19: Output costs can be toggled between real and nominal. This is controlled in the "Input Fixed" sheet.
F21: WGTD AVG DATE_TOTAL_Capex_Esc
H22: Disclaimer
H24: IMPORTANT NOTICE & DISCLAIMER This CAM Model has been prepared exclusively for and on behalf of TransGrid Pty Ltd, and is subject to and issued in accordance with the agreement between TransGrid and Evans & Peck Pty Ltd dated on or about 13 December (“Agreement”). Except as set out in the Agreement, we accept no liability or responsibility whatsoever and howsoever arising in respect of any use of or reliance upon this Model by any third party. This Model, including the information contained therein, is confidential and private. The model must not be disclosed to any person or entity except with our prior written consent or as otherwise permitted in accordance the Agreement.

Sheet Notes & Assumptions
A1: Assumptions & Notes
D3: User inputs in cells coloured like this
C4: * | D4: 1. Inputs are in $. Outputs are $.
C5: * | D5: 2. For Excel calculation reference reasons, financial years are recorded in CAM as tax years (eg. 2011/12 is shown as 2012, 2014/15 is shown as 2015)
C6: * | D6: 3. Escalation is treated as follows:
D7: a. CPI escalation and Commodity escalation are treated separately.
D8: b. Escalation escalates costs from one financial year to the next: for example 2014 escalation multiplies $2012-13 to get $2013-14.
D9: c. Escalation is applied to Project Component percentages (commodities - land, labour etc)
C10: * | D10: 4. "Scenario" spreadsheets reflect only scenario-dependent future projects, and exclude future programs, committed projects, and committed program expenditures (since these are independent of scenarios). "Output" spreadsheets include both project and program data.
C11: * | D11: 5. "Output Single Scenario" calculations record zero values for projects which are outside of the required scenario and date range. These zero-value Projects can be filtered out entirely by setting the filter arrow in column B to "Yes".
C12: * | D12: 6. The CAM has risk capability for future projects and programs. Committed projects and programs do not have risk capability included.
C13: * | D13: 7. Both versions of the CAM are based on "scenario weighted-estimates", with scenario weighting applied after the expenditure was calculated for each individual project.
C14: * | D14: 8. Project Components (commodities) are provided as a proportion of the total project, with the ratio of expenditure assumed to occur equally over each year of the expenditure S-curve (e.g. $0.5m Copper, $0.5m Steel, $5m Land and $4m Labour for a total project cost of $10m), with this ratio assumed to be consistent for each year of project expenditure.
C15: * | D15: 9. "As commissioned" project costs represent the full cost of the project in the commissioning year of that project (i.e. it is the sum of the escalated "as incurred" project costs).
... 15 more rows

Sheet Input_Fixed
A1: FIXED INPUTS
E3: CPI Calculations
A4: Output Reporting Fomat and Year | E4: Financial Year: | F4: 2009 | G4: 2010 | H4: 2011 | I4: 2012 | J4: 2013 | K4: 2014 | L4: 2015 | M4: 2016 | N4: 2017 | O4: 2018 | P4: 2019 | Q4: 2020 | R4: 2021 | S4: 2022 | T4: 2023 | U4: 2024
A5: Real | B5: Nominal or Real Reporting (select from drop-down box) | E5: CPI Index Date | F5: 2009-03-01 | G5: 2010-03-01 | H5: 2011-03-01 | I5: 2012-03-01
A6: 2014 | B6: If Real, this is the Financial Year that results are reported in. Not used for Nominal calculations. | E6: Value (ABS - 8 cities) | F6: 166.2 | G6: 171 | H6: 176.7 | I6: 179.5
E7: CPI (Actual, %) | G7: =IF(G6>0, G6/F6-100%, 0) -> 0.02888086643 | H7: =IF(H6>0, H6/G6-100%, 0) -> 0.03333333333 | I7: 0.01584606678 | J7: 0 | K7: 0 | L7: 0 | M7: 0 | N7: 0 | O7: 0 | P7: 0 | Q7: 0 | R7: 0 | S7: 0 | T7: 0 | U7: 0
A8: =IF(Real_or_Nom="Real", "Real $" & Report_Year, "$ Nominal") -> Real $2014 | E8: Forecast CPI | J8: 0.02502502503 | K8: 0.029296875 | L8: 0.0275 | M8: 0.025 | N8: 0.025 | O8: 0.025 | P8: 0.025 | Q8: 0.025 | R8: 0.025 | S8: 0.025 | T8: 0.025 | U8: 0.025
E9: CPI (forecast + actual) | G9: =G8+G7 -> 0.02888086643 | H9: 0.03333333333 | I9: =I8+I7 -> 0.01584606678 | J9: =J8+J7 -> 0.02502502503 | K9: 0.029296875 | L9: 0.0275 | M9: 0.025 | N9: 0.025 | O9: 0.025 | P9: 0.025 | Q9: 0.025 | R9: 0.025 | S9: 0.025 | T9: 0.025 | U9: 0.025
A10: Risk Results | E10: Cumulative CPI | F10: 1 | G10: =F10*(1+G9) -> 1.028880866 | H10: =G10*(1+H9) -> 1.063176895 | I10: 1.080024067 | J10: 1.107051697 | K10: 1.139484852 | L10: 1.170820685 | M10: 1.200091202 | N10: 1.230093482 | O10: 1.26084582 | P10: 1.292366965 | Q10: 1.324676139 | R10: 1.357793043 | S10: 1.391737869 | T10: 1.426531315 | U10: 1.462194598
A11: Risk Inactive | B11: Please select if risk results are to be included (Active) or excluded (Inactive). | E11: ="Cumulative CPI to Report Year " & Report_Year -> Cumulative CPI to Report Year 2014 | F11: =HLOOKUP(Report_Year, $F$4:$U$10, 7, FALSE) -> 1.139484852 | G11: =$F$11/G10 -> 1.107499312 | H11: =$F$11/H10 -> 1.071773528 | I11: =$F$11/I10 -> 1.055055055 | J11: =$F$11/J10 -> 1.029296875 | K11: 1 | L11: 0.9732360097 | M11: 0.9494985461 | N11: 0.926340045 | O11: 0.9037463853 | P11: 0.8817037906 | Q11: 0.8601988201 | R11: 0.839218361 | S11: 0.8187496205 | T11: 0.7987801176 | U11: 0.7792976757
A13: Scenarios | E13: Annual Escalation (Real Commodity escalation, no CPI escalation )
A14: Scenario | B14: Weighting | C14: Description | E14: =E4 -> Financial Year: | F14: =B88 -> CPI Only | G14: =B89 -> EGW Wages | H14: =$B90 -> Wages General | I14: =$B91 -> Not Used | J14: =$B92 -> Copper | K14: =$B93 -> Aluminium | L14: =$B94 -> Steel | M14: =$B95 -> Oil | N14: =$B96 -> Construction | O14: =$B97 -> Not Used | P14: =$B98 -> Property - Res. | Q14: =$B99 -> Property - Ind. | R14: =$B100 -> Property - Rural | S14: =$B101 -> Property - Agr.
A15: 1 | B15: 1 | C15: Main Scenario | E15: 2010 | F15: 0 | G15: 0 | H15: 0 | I15: 0 | J15: 0 | K15: 0 | L15: 0 | M15: 0 | N15: 0 | O15: 0 | P15: 0 | Q15: 0 | R15: 0 | S15: 0 | U15: Drop-down Box Lists
... 16 more rows

Sheet Input Risk & Exp Profile
A1: Risk Profiles
A3: =Input_Fixed!A11 -> Risk Inactive | F3: BetaGeneral Distribution
H4: Pert Distribution | L4: Working Values Only | N4: Working for @Risk
A5: Risk Profile | B5: Risk Expenditure Category | C5: Risk Factor | D5: Basis Project(s) | E5: Risk Distribution | F5: Alpha | G5: Beta | H5: Minimum | I5: Maximum | J5: Most Likely | K5: Risk Output (Mean) | L5: Betageneral (Mean) Values Only | M5: Pert (Mean) Values Only | N5: Betageneral (Mean) @Risk formula | O5: Betageneral funtion @Risk formula | P5: Pert (Mean) @Risk formula | Q5: Pert Function @Risk formula
A6: A | B6: 500kV new route | E6: Betageneral | F6: 2.9172 | G6: 10.229 | H6: 0.93955 | I6: 1.46249 | J6: 1 | K6: =IF(Input_Fixed!$A$11="Risk Inactive", 100%,IF(E6="Betageneral",L6,IF(E6="Pert",M6, 100%))) -> 1 | L6: 1.055592702 | M6: 1.067006667 | N6: =RiskMean(O6) ->  | O6: =RiskBetaGeneral(F6,G6,H6,I6) ->  | P6: =RiskMean(Q6) ->  | Q6: =RiskPert(H6,J6,I6) -> 
A7: B | B7: 330kV new route | E7: Betageneral | F7: 3.104 | G7: 8.3871 | H7: 0.9204 | I7: 1.40084 | J7: 1 | K7: =IF(Input_Fixed!$A$11="Risk Inactive", 100%,IF(E7="Betageneral",L7,IF(E7="Pert",M7, 100%))) -> 1 | L7: 1.050177459 | M7: 1.05354
A8: C | B8: 330kV existing route | E8: Betageneral | F8: 3.1795 | G8: 6.2828 | H8: 0.87546 | I8: 1.37928 | J8: 1 | K8: =IF(Input_Fixed!$A$11="Risk Inactive", 100%,IF(E8="Betageneral",L8,IF(E8="Pert",M8, 100%))) -> 1 | L8: 1.044752423 | M8: 1.042456667
A9: D | B9: 132kV new route | E9: Betageneral | F9: 3.1568 | G9: 9.3626 | H9: 0.90376 | I9: 1.37936 | J9: 1 | K9: =IF(Input_Fixed!$A$11="Risk Inactive", 100%,IF(E9="Betageneral",L9,IF(E9="Pert",M9, 100%))) -> 1 | L9: 1.023683805 | M9: 1.047186667
A10: E | B10: 132kV existing route | E10: Betageneral | F10: 3.1869 | G10: 5.4648 | H10: 0.91205 | I10: 1.20284 | J10: 1 | K10: =IF(Input_Fixed!$A$11="Risk Inactive", 100%,IF(E10="Betageneral",L10,IF(E10="Pert",M10, 100%))) -> 1 | L10: 1.019164053 | M10: 1.019148333
A11: F | B11: Greenfields substation | E11: Betageneral | F11: 4.5104 | G11: 8.1802 | H11: 0.90355 | I11: 1.32601 | J11: 1 | K11: =IF(Input_Fixed!$A$11="Risk Inactive", 100%,IF(E11="Betageneral",L11,IF(E11="Pert",M11, 100%))) -> 1 | L11: 1.053697636 | M11: 1.03826
A12: G | B12: Brownfields substation | E12: Betageneral | F12: 3.4615 | G12: 6.1387 | H12: 0.92775 | I12: 1.31643 | J12: 1 | K12: =IF(Input_Fixed!$A$11="Risk Inactive", 100%,IF(E12="Betageneral",L12,IF(E12="Pert",M12, 100%))) -> 1 | L12: 1.067894562 | M12: 1.040696667
A13: H | B13: Cable project | E13: Betageneral | F13: 13.548 | G13: 14.381 | H13: 0.89932 | I13: 1.16015 | J13: 1 | K13: =IF(Input_Fixed!$A$11="Risk Inactive", 100%,IF(E13="Betageneral",L13,IF(E13="Pert",M13, 100%))) -> 1 | L13: 1.025845291 | M13: 1.009911667
A14: I | B14: SCADA Communications | E14: Betageneral | F14: 2.8487 | G14: 5.1018 | H14: 0.91704 | I14: 1.25106 | J14: 1 | K14: =IF(Input_Fixed!$A$11="Risk Inactive", 100%,IF(E14="Betageneral",L14,IF(E14="Pert",M14, 100%))) -> 1 | L14: 1.036720872 | M14: 1.028016667
A15: J | B15: SCADA Installation | E15: Betageneral | F15: 8.4336 | G15: 18.503 | H15: 0.91454 | I15: 1.30817 | J15: 1 | K15: =IF(Input_Fixed!$A$11="Risk Inactive", 100%,IF(E15="Betageneral",L15,IF(E15="Pert",M15, 100%))) -> 1 | L15: 1.037781908 | M15: 1.037118333
A16: K | B16: Land | E16: Betageneral | F16: 10.922 | G16: 24.453 | H16: 0.88144 | I16: 1.43342 | J16: 1 | K16: =IF(Input_Fixed!$A$11="Risk Inactive", 100%,IF(E16="Betageneral",L16,IF(E16="Pert",M16, 100%))) -> 1 | L16: 1.051863337 | M16: 1.052476667
A17: L | B17: Easements | E17: Pert | H17: 1 | I17: 1 | J17: 1 | K17: =IF(Input_Fixed!$A$11="Risk Inactive", 100%,IF(E17="Betageneral",L17,IF(E17="Pert",M17, 100%))) -> 1 | M17: 1
A18: M | B18: Telecommunications | E18: Pert | H18: 1 | I18: 1 | J18: 1 | K18: =IF(Input_Fixed!$A$11="Risk Inactive", 100%,IF(E18="Betageneral",L18,IF(E18="Pert",M18, 100%))) -> 1 | M18: 1
A19: N | E19: None | K19: =IF(Input_Fixed!$A$11="Risk Inactive", 100%,IF(E19="Betageneral",L19,IF(E19="Pert",M19, 100%))) -> 1 | M19: 0
A20: O | E20: None | K20: =IF(Input_Fixed!$A$11="Risk Inactive", 100%,IF(E20="Betageneral",L20,IF(E20="Pert",M20, 100%))) -> 1 | M20: 0
A21: P | E21: None | K21: =IF(Input_Fixed!$A$11="Risk Inactive", 100%,IF(E21="Betageneral",L21,IF(E21="Pert",M21, 100%))) -> 1 | M21: 0
A22: Q | E22: None | K22: =IF(Input_Fixed!$A$11="Risk Inactive", 100%,IF(E22="Betageneral",L22,IF(E22="Pert",M22, 100%))) -> 1 | M22: 0
A23: R | E23: None | K23: =IF(Input_Fixed!$A$11="Risk Inactive", 100%,IF(E23="Betageneral",L23,IF(E23="Pert",M23, 100%))) -> 1 | M23: 0
A24: S | E24: None | K24: =IF(Input_Fixed!$A$11="Risk Inactive", 100%,IF(E24="Betageneral",L24,IF(E24="Pert",M24, 100%))) -> 1 | M24: 0
A25: T | E25: None | K25: =IF(Input_Fixed!$A$11="Risk Inactive", 100%,IF(E25="Betageneral",L25,IF(E25="Pert",M25, 100%))) -> 1 | M25: 0
A26: U | E26: None | K26: =IF(Input_Fixed!$A$11="Risk Inactive", 100%,IF(E26="Betageneral",L26,IF(E26="Pert",M26, 100%))) -> 1 | M26: 0
A27: V | E27: None | K27: =IF(Input_Fixed!$A$11="Risk Inactive", 100%,IF(E27="Betageneral",L27,IF(E27="Pert",M27, 100%))) -> 1 | M27: 0
A28: W | E28: None | K28: =IF(Input_Fixed!$A$11="Risk Inactive", 100%,IF(E28="Betageneral",L28,IF(E28="Pert",M28, 100%))) -> 1 | M28: 0
A29: X | E29: None | K29: =IF(Input_Fixed!$A$11="Risk Inactive", 100%,IF(E29="Betageneral",L29,IF(E29="Pert",M29, 100%))) -> 1 | M29: 0
A30: Y | B30: Zero Risk | E30: Pert | H30: 1 | I30: 1 | J30: 1 | K30: =IF(Input_Fixed!$A$11="Risk Inactive", 100%,IF(E30="Betageneral",L30,IF(E30="Pert",M30, 100%))) -> 1 | M30: 1
A31: Z | B31: Zero Risk | E31: Pert | H31: 1 | I31: 1 | J31: 1 | K31: =IF(Input_Fixed!$A$11="Risk Inactive", 100%,IF(E31="Betageneral",L31,IF(E31="Pert",M31, 100%))) -> 1 | M31: 1

Sheet Input_Prog_Commit
A1: Input_Committed_Programs | BO1: =SUM(BO5:BO705) -> -6.377376849e-08 | BP1: =SUM(BP5:BP705) -> -4.074536264e-10 | BQ1: =SUM(BQ5:BQ705) -> 0
J2: =SUM(J5:J360) -> 82278859.28 | K2: =SUM(K5:K360) -> 66977009.03 | L2: 86189100.76 | M2: 104379315.5 | N2: 115015387.3 | O2: 49375664.74 | P2: 44854632.72 | Q2: 35595296.76 | R2: 31667359.22 | S2: 31230092.51 | BP2: Error Checking | DH2: Escalation to provide: | DK2: =Input_Fixed!$A$8 -> Real $2014 | EP2: =Input_Prog_Future!EO2 -> Annual Expenditure (Commodity Escalated and Risked) AER Template Output
B3: 1 | G3: 1 | I3: Capex Expenditure by Year | Y3: Capex by Regulatory Asset Class | AX3: Capex by Component ($) | BO3: Cashflow | BP3: RAC | BQ3: Component | BR3: Capex by Regulatory Asset Class (%) - Calculated | CQ3: Capex by Component (%) | DH3: =Input_Proj_Commit!$DI$3 -> Cumulative CPI % - for Real reporting CPI esc. from Estimate Year to Reporting Year; for Nominal reporting CPI esc. is from Estimate Year to Expenditure Year. | DX3: =Input_Proj_Commit!$DY$3 -> Cumulative Commodity Escalation % from Estimate Year to Expenditure Year (no CPI)
A4: Program Grouping | B4: Program No. | C4: Program Name | D4: Program Category | F4: Estimate ($M) | G4: Effective Estimate Year | I4: 2009 | J4: 2010 | K4: 2011 | L4: 2012 | M4: 2013 | N4: 2014 | O4: 2015 | P4: 2016 | Q4: 2017 | R4: 2018 | S4: 2019 | T4: 2020 | U4: 2021 | V4: 2022 | W4: 2023 | X4: 2024 | Y4: =Input_Proj_Future!S4 -> Reg Asset Class 1 TL | Z4: =Input_Proj_Future!T4 -> Reg Asset Class 2 Subs | AA4: =Input_Proj_Future!U4 -> Reg Asset Class 3 Sec Sys | AB4: =Input_Proj_Future!V4 -> Reg Asset Class 4 Comms | AC4: =Input_Proj_Future!W4 -> Reg Asset Class 5 Land | AD4: =Input_Proj_Future!X4 -> Reg Asset Class 6 Cables | AE4: =Input_Proj_Future!Y4 -> Reg Asset Class 7 TL Life Ext | AF4: =Input_Proj_Future!Z4 -> Reg Asset Class 8 MV & MP | AG4: =Input_Proj_Future!AA4 -> Reg Asset Class 9 Bus. IT | AH4: =Input_Proj_Future!AB4 -> Reg Asset Class 10 Not Used | AI4: =Input_Proj_Future!AC4 -> Reg Asset Class 11 Not Used | AJ4: =Input_Proj_Future!AD4 -> Reg Asset Class 12 Not Used | AK4: =Input_Proj_Future!AE4 -> Reg Asset Class 13 Not Used | AL4: =Input_Proj_Future!AF4 -> Reg Asset Class 14 Not Used | AM4: =Input_Proj_Future!AG4 -> Reg Asset Class 15 Not Used | AN4: =Input_Proj_Future!AH4 -> Reg Asset Class 16 Not Used | AO4: =Input_Proj_Future!AI4 -> Reg Asset Class 17 Not Used | AP4: =Input_Proj_Future!AJ4 -> Reg Asset Class 18 Not Used | AQ4: =Input_Proj_Future!AK4 -> Reg Asset Class 19 Not Used | AR4: =Input_Proj_Future!AL4 -> Reg Asset Class 20 Not Used | AS4: =Input_Proj_Future!AM4 -> Reg Asset Class 21 Not Used | AT4: =Input_Proj_Future!AN4 -> Reg Asset Class 22 Not Used | AU4: =Input_Proj_Future!AO4 -> Reg Asset Class 23 Not Used | AV4: =Input_Proj_Future!AP4 -> Reg Asset Class 24 Not Used | AW4: =Input_Proj_Future!AQ4 -> Reg Asset Class 25 Not Used | AX4: =Input_Proj_Future!AR4 -> CPI Only | AY4: =Input_Proj_Future!AS4 -> EGW Wages | AZ4: =Input_Proj_Future!AT4 -> Wages General | BA4: =Input_Proj_Future!AU4 -> Not Used | BB4: =Input_Proj_Future!AV4 -> Copper | BC4: =Input_Proj_Future!AW4 -> Aluminium | BD4: =Input_Proj_Future!AX4 -> Steel | BE4: =Input_Proj_Future!AY4 -> Oil | BF4: =Input_Proj_Future!AZ4 -> Construction | BG4: =Input_Proj_Future!BA4 -> Not Used | BH4: =Input_Proj_Future!BB4 -> Property - Res. | BI4: =Input_Proj_Future!BC4 -> Property - Ind. | BJ4: =Input_Proj_Future!BD4 -> Property - Rural | BK4: =Input_Proj_Future!BE4 -> Property - Agr. | BL4: Network Growth | BN4: Network/ Non-Network | BO4: Variance from Estimate | BP4: Variance from Estimate | BQ4: Variance from Estimate | BR4: =Y4 -> Reg Asset Class 1 TL | BS4: Reg Asset Class 2 Subs | BT4: Reg Asset Class 3 Sec Sys | BU4: Reg Asset Class 4 Comms | BV4: Reg Asset Class 5 Land | BW4: Reg Asset Class 6 Cables | BX4: Reg Asset Class 7 TL Life Ext | BY4: Reg Asset Class 8 MV & MP | BZ4: Reg Asset Class 9 Bus. IT | CA4: Reg Asset Class 10 Not Used | CB4: Reg Asset Class 11 Not Used | CC4: Reg Asset Class 12 Not Used | CD4: Reg Asset Class 13 Not Used | CE4: Reg Asset Class 14 Not Used | CF4: Reg Asset Class 15 Not Used | CG4: Reg Asset Class 16 Not Used | CH4: Reg Asset Class 17 Not Used | CI4: Reg Asset Class 18 Not Used | CJ4: =AQ4 -> Reg Asset Class 19 Not Used | CK4: =AR4 -> Reg Asset Class 20 Not Used | CL4: =AS4 -> Reg Asset Class 21 Not Used | CM4: =AT4 -> Reg Asset Class 22 Not Used | CN4: =AU4 -> Reg Asset Class 23 Not Used | CO4: =AV4 -> Reg Asset Class 24 Not Used | CP4: =AW4 -> Reg Asset Class 25 Not Used | CQ4: =AX4 -> CPI Only | CR4: EGW Wages | CS4: Wages General | CT4: Not Used | CU4: Copper | CV4: Aluminium | CW4: Steel | CX4: Oil | CY4: Construction | CZ4: Not Used | DA4: Property - Res. | DB4: Property - Ind. | DC4: Property - Rural | DD4: Property - Agr. | DE4: Cum CPI to Estimate Year | DF4: Cum CPI to Report Year 2014 | DH4: =Input_Proj_Future!FE4 -> 2009 | DI4: =Input_Proj_Future!FF4 -> 2010 | DJ4: =Input_Proj_Future!FG4 -> 2011 | DK4: =Input_Proj_Future!FH4 -> 2012 | DL4: =Input_Proj_Future!FI4 -> 2013 | DM4: =Input_Proj_Future!FJ4 -> 2014 | DN4: =Input_Proj_Future!FK4 -> 2015 | DO4: =Input_Proj_Future!FL4 -> 2016 | DP4: =Input_Proj_Future!FM4 -> 2017 | DQ4: =Input_Proj_Future!FN4 -> 2018 | DR4: =Input_Proj_Future!FO4 -> 2019 | DS4: =Input_Proj_Future!FP4 -> 2020 | DT4: =Input_Proj_Future!FQ4 -> 2021 | DU4: =Input_Proj_Future!FR4 -> 2022 | DV4: =Input_Proj_Future!FS4 -> 2023 | DW4: =Input_Proj_Future!FT4 -> 2024 | DX4: =Input_Proj_Future!FE4 -> 2009 | DY4: =Input_Proj_Future!FF4 -> 2010 | DZ4: =Input_Proj_Future!FG4 -> 2011 | EA4: =Input_Proj_Future!FH4 -> 2012 | EB4: =Input_Proj_Future!FI4 -> 2013 | EC4: =Input_Proj_Future!FJ4 -> 2014 | ED4: =Input_Proj_Future!FK4 -> 2015 | EE4: =Input_Proj_Future!FL4 -> 2016 | EF4: =Input_Proj_Future!FM4 -> 2017 | EG4: =Input_Proj_Future!FN4 -> 2018 | EH4: =Input_Proj_Future!FO4 -> 2019 | EI4: =Input_Proj_Future!FP4 -> 2020 | EJ4: =Input_Proj_Future!FQ4 -> 2021 | EK4: =Input_Proj_Future!FR4 -> 2022 | EL4: =Input_Proj_Future!FS4 -> 2023 | EM4: =Input_Proj_Future!FT4 -> 2024 | EP4: 2010 | EQ4: 2011 | ER4: 2012 | ES4: 2013 | ET4: 2014 | EU4: 2015 | EV4: 2016 | EW4: 2017 | EX4: 2018 | EY4: 2019
A5: Communications | B5: 6716 | C5: Establishment of Gigabit Ethernet CDN Network | D5: PS Facilities | F5: 1451.017232 | G5: 2013 | H5: C | I5: 1451.948694 | J5: -0.9314622605 | K5: 0 | L5: 0 | M5: 0 | N5: 0 | O5: 0 | P5: 0 | Q5: 0 | R5: 0 | S5: 0 | T5: 0 | U5: 0 | V5: 0 | W5: 0 | X5: 0 | Y5: 0 | Z5: 0 | AA5: 0 | AB5: 1451.017232 | AC5: 0 | AD5: 0 | AE5: 0 | AF5: 0 | AG5: 0 | AH5: 0 | AI5: 0 | AJ5: 0 | AK5: 0 | AL5: 0 | AM5: 0 | AN5: 0 | AO5: 0 | AP5: 0 | AQ5: 0 | AR5: 0 | AS5: 0 | AT5: 0 | AU5: 0 | AV5: 0 | AW5: 0 | AX5: 1451.017232 | AY5: 0 | AZ5: 0 | BA5: 0 | BB5: 0 | BC5: 0 | BD5: 0 | BE5: 0 | BF5: 0 | BG5: 0 | BH5: 0 | BI5: 0 | BJ5: 0 | BK5: 0 | BL5: 0 | BN5: =IF(D5="", "", VLOOKUP(D5,Input_Fixed!$A$105:$C$116,3,FALSE)) -> Non-Network | BO5: =SUM(I5:X5)-F5 -> 0 | BP5: =SUM(Y5:AW5)-F5 -> 0 | BQ5: =SUM(AX5:BK5)-F5 -> 0 | BR5: =IF(SUM($Y5:$AW5)=0, 0, Y5/SUM($Y5:$AW5)) -> 0 | BS5: 0 | BT5: 0 | BU5: 1 | BV5: 0 | BW5: 0 | BX5: 0 | BY5: 0 | BZ5: 0 | CA5: 0 | CB5: 0 | CC5: 0 | CD5: 0 | CE5: 0 | CF5: 0 | CG5: 0 | CH5: 0 | CI5: 0 | CJ5: 0 | CK5: 0 | CL5: 0 | CM5: 0 | CN5: 0 | CO5: 0 | CP5: 0 | CQ5: =IF(SUM($AX5:$BK5)=0, 0, AX5/SUM($AX5:$BK5)) -> 1 | CR5: 0 | CS5: 0 | CT5: 0 | CU5: 0 | CV5: 0 | CW5: 0 | CX5: 0 | CY5: 0 | CZ5: 0 | DA5: =IF(SUM($AX5:$BK5)=0, 0, BH5/SUM($AX5:$BK5)) -> 0 | DB5: 0 | DC5: 0 | DD5: 0 | DE5: =IF(G5<>"", HLOOKUP($G5,EscCPI,7), 100%) -> 1.107051697 | DF5: =IF(G5<>"",HLOOKUP($G5,EscCPI,8),100%) -> 1.029296875 | DH5: =IF(Real_or_Nom="Nominal", Input_Fixed!F$10/$DE5, $DF5) -> 1.029296875 | DI5: =IF(Real_or_Nom="Nominal", Input_Fixed!G$10/$DE5, $DF5) -> 1.029296875 | DJ5: =IF(Real_or_Nom="Nominal", Input_Fixed!H$10/$DE5, $DF5) -> 1.029296875 | DK5: =IF(Real_or_Nom="Nominal", Input_Fixed!I$10/$DE5, $DF5) -> 1.029296875 | DL5: =IF(Real_or_Nom="Nominal", Input_Fixed!J$10/$DE5, $DF5) -> 1.029296875 | DM5: =IF(Real_or_Nom="Nominal", Input_Fixed!K$10/$DE5, $DF5) -> 1.029296875 | DN5: =IF(Real_or_Nom="Nominal", Input_Fixed!L$10/$DE5, $DF5) -> 1.029296875 | DO5: =IF(Real_or_Nom="Nominal", Input_Fixed!M$10/$DE5, $DF5) -> 1.029296875 | DP5: =IF(Real_or_Nom="Nominal", Input_Fixed!N$10/$DE5, $DF5) -> 1.029296875 | DQ5: =IF(Real_or_Nom="Nominal", Input_Fixed!O$10/$DE5, $DF5) -> 1.029296875 | DR5: =IF(Real_or_Nom="Nominal", Input_Fixed!P$10/$DE5, $DF5) -> 1.029296875 | DS5: =IF(Real_or_Nom="Nominal", Input_Fixed!Q$10/$DE5, $DF5) -> 1.029296875 | DT5: =IF(Real_or_Nom="Nominal", Input_Fixed!R$10/$DE5, $DF5) -> 1.029296875 | DU5: =IF(Real_or_Nom="Nominal", Input_Fixed!S$10/$DE5, $DF5) -> 1.029296875 | DV5: =IF(Real_or_Nom="Nominal", Input_Fixed!T$10/$DE5, $DF5) -> 1.029296875 | DW5: =IF(Real_or_Nom="Nominal", Input_Fixed!U$10/$DE5, $DF5) -> 1.029296875 | DX5: =IF(AND(DX$4>=$G5, $G5<>""), SUMPRODUCT((Year = DX$4) * ($CQ5:$DD5) * (EscCum)) / SUMPRODUCT((Year = $G5) * ($CQ5:$DD5) * (EscCum)), 100%) -> 1 | DY5: 1 | DZ5: 1 | EA5: 1 | EB5: 1 | EC5: 1 | ED5: 1 | EE5: 1 | EF5: 1 | EG5: 1 | EH5: 1 | EI5: 1 | EJ5: 1 | EK5: 1 | EL5: 1 | EM5: 1 | EP5: =J5 * DI5 * DY5 -> -0.9587511939 | EQ5: =K5 * DJ5 * DZ5 -> 0 | ER5: =L5 * DK5 * EA5 -> 0 | ES5: =M5 * DL5 * EB5 -> 0 | ET5: =N5 * DM5 * EC5 -> 0 | EU5: =O5 * DN5 * ED5 -> 0 | EV5: =P5 * DO5 * EE5 -> 0 | EW5: =Q5 * DP5 * EF5 -> 0 | EX5: =R5 * DQ5 * EG5 -> 0 | EY5: =S5 * DR5 * EH5 -> 0
A6: Non HV Buildings & Civil Work | B6: 5161 | C6: Building Improvements | D6: PS Facilities | F6: 17239943.61 | G6: 2013 | H6: C | J6: 3086017.593 | K6: 3644494.662 | L6: 5282894.724 | M6: 5226536.631 | Y6: 0 | Z6: 17239943.61 | AA6: 0 | AB6: 0 | AC6: 0 | AD6: 0 | AE6: 0 | AF6: 0 | AG6: 0 | AX6: 17239943.61 | BL6: 0.25 | BN6: =IF(D6="", "", VLOOKUP(D6,Input_Fixed!$A$105:$C$116,3,FALSE)) -> Non-Network | BO6: 0 | BP6: =SUM(Y6:AW6)-F6 -> 0 | BQ6: =SUM(AX6:BK6)-F6 -> 0 | BR6: =IF(SUM($Y6:$AW6)=0, 0, Y6/SUM($Y6:$AW6)) -> 0 | BS6: =IF(SUM($Y6:$AW6)=0, 0, Z6/SUM($Y6:$AW6)) -> 1 | BT6: =IF(SUM($Y6:$AW6)=0, 0, AA6/SUM($Y6:$AW6)) -> 0 | BU6: =IF(SUM($Y6:$AW6)=0, 0, AB6/SUM($Y6:$AW6)) -> 0 | BV6: =IF(SUM($Y6:$AW6)=0, 0, AC6/SUM($Y6:$AW6)) -> 0 | BW6: =IF(SUM($Y6:$AW6)=0, 0, AD6/SUM($Y6:$AW6)) -> 0 | BX6: =IF(SUM($Y6:$AW6)=0, 0, AE6/SUM($Y6:$AW6)) -> 0 | BY6: =IF(SUM($Y6:$AW6)=0, 0, AF6/SUM($Y6:$AW6)) -> 0 | BZ6: =IF(SUM($Y6:$AW6)=0, 0, AG6/SUM($Y6:$AW6)) -> 0 | CA6: =IF(SUM($Y6:$AW6)=0, 0, AH6/SUM($Y6:$AW6)) -> 0 | CB6: =IF(SUM($Y6:$AW6)=0, 0, AI6/SUM($Y6:$AW6)) -> 0 | CC6: =IF(SUM($Y6:$AW6)=0, 0, AJ6/SUM($Y6:$AW6)) -> 0 | CD6: =IF(SUM($Y6:$AW6)=0, 0, AK6/SUM($Y6:$AW6)) -> 0 | CE6: =IF(SUM($Y6:$AW6)=0, 0, AL6/SUM($Y6:$AW6)) -> 0 | CF6: =IF(SUM($Y6:$AW6)=0, 0, AM6/SUM($Y6:$AW6)) -> 0 | CG6: =IF(SUM($Y6:$AW6)=0, 0, AN6/SUM($Y6:$AW6)) -> 0 | CH6: =IF(SUM($Y6:$AW6)=0, 0, AO6/SUM($Y6:$AW6)) -> 0 | CI6: =IF(SUM($Y6:$AW6)=0, 0, AP6/SUM($Y6:$AW6)) -> 0 | CJ6: =IF(SUM($Y6:$AW6)=0, 0, AQ6/SUM($Y6:$AW6)) -> 0 | CK6: =IF(SUM($Y6:$AW6)=0, 0, AR6/SUM($Y6:$AW6)) -> 0 | CL6: =IF(SUM($Y6:$AW6)=0, 0, AS6/SUM($Y6:$AW6)) -> 0 | CM6: =IF(SUM($Y6:$AW6)=0, 0, AT6/SUM($Y6:$AW6)) -> 0 | CN6: =IF(SUM($Y6:$AW6)=0, 0, AU6/SUM($Y6:$AW6)) -> 0 | CO6: =IF(SUM($Y6:$AW6)=0, 0, AV6/SUM($Y6:$AW6)) -> 0 | CP6: =IF(SUM($Y6:$AW6)=0, 0, AW6/SUM($Y6:$AW6)) -> 0 | CQ6: =IF(SUM($AX6:$BK6)=0, 0, AX6/SUM($AX6:$BK6)) -> 1 | CR6: =IF(SUM($AX6:$BK6)=0, 0, AY6/SUM($AX6:$BK6)) -> 0 | CS6: =IF(SUM($AX6:$BK6)=0, 0, AZ6/SUM($AX6:$BK6)) -> 0 | CT6: =IF(SUM($AX6:$BK6)=0, 0, BA6/SUM($AX6:$BK6)) -> 0 | CU6: =IF(SUM($AX6:$BK6)=0, 0, BB6/SUM($AX6:$BK6)) -> 0 | CV6: =IF(SUM($AX6:$BK6)=0, 0, BC6/SUM($AX6:$BK6)) -> 0 | CW6: =IF(SUM($AX6:$BK6)=0, 0, BD6/SUM($AX6:$BK6)) -> 0 | CX6: =IF(SUM($AX6:$BK6)=0, 0, BE6/SUM($AX6:$BK6)) -> 0 | CY6: =IF(SUM($AX6:$BK6)=0, 0, BF6/SUM($AX6:$BK6)) -> 0 | CZ6: =IF(SUM($AX6:$BK6)=0, 0, BG6/SUM($AX6:$BK6)) -> 0 | DA6: =IF(SUM($AX6:$BK6)=0, 0, BH6/SUM($AX6:$BK6)) -> 0 | DB6: =IF(SUM($AX6:$BK6)=0, 0, BI6/SUM($AX6:$BK6)) -> 0 | DC6: =IF(SUM($AX6:$BK6)=0, 0, BJ6/SUM($AX6:$BK6)) -> 0 | DD6: =IF(SUM($AX6:$BK6)=0, 0, BK6/SUM($AX6:$BK6)) -> 0 | DE6: 1.107051697 | DF6: 1.029296875 | DH6: =IF(Real_or_Nom="Nominal", Input_Fixed!F$10/$DE6, $DF6) -> 1.029296875 | DI6: =IF(Real_or_Nom="Nominal", Input_Fixed!G$10/$DE6, $DF6) -> 1.029296875 | DJ6: =IF(Real_or_Nom="Nominal", Input_Fixed!H$10/$DE6, $DF6) -> 1.029296875 | DK6: =IF(Real_or_Nom="Nominal", Input_Fixed!I$10/$DE6, $DF6) -> 1.029296875 | DL6: =IF(Real_or_Nom="Nominal", Input_Fixed!J$10/$DE6, $DF6) -> 1.029296875 | DM6: =IF(Real_or_Nom="Nominal", Input_Fixed!K$10/$DE6, $DF6) -> 1.029296875 | DN6: =IF(Real_or_Nom="Nominal", Input_Fixed!L$10/$DE6, $DF6) -> 1.029296875 | DO6: =IF(Real_or_Nom="Nominal", Input_Fixed!M$10/$DE6, $DF6) -> 1.029296875 | DP6: =IF(Real_or_Nom="Nominal", Input_Fixed!N$10/$DE6, $DF6) -> 1.029296875 | DQ6: =IF(Real_or_Nom="Nominal", Input_Fixed!O$10/$DE6, $DF6) -> 1.029296875 | DR6: =IF(Real_or_Nom="Nominal", Input_Fixed!P$10/$DE6, $DF6) -> 1.029296875 | DS6: =IF(Real_or_Nom="Nominal", Input_Fixed!Q$10/$DE6, $DF6) -> 1.029296875 | DT6: =IF(Real_or_Nom="Nominal", Input_Fixed!R$10/$DE6, $DF6) -> 1.029296875 | DU6: =IF(Real_or_Nom="Nominal", Input_Fixed!S$10/$DE6, $DF6) -> 1.029296875 | DV6: =IF(Real_or_Nom="Nominal", Input_Fixed!T$10/$DE6, $DF6) -> 1.029296875 | DW6: =IF(Real_or_Nom="Nominal", Input_Fixed!U$10/$DE6, $DF6) -> 1.029296875 | DX6: 1 | DY6: 1 | DZ6: 1 | EA6: 1 | EB6: 1 | EC6: 1 | ED6: 1 | EE6: 1 | EF6: 1 | EG6: 1 | EH6: 1 | EI6: 1 | EJ6: 1 | EK6: 1 | EL6: 1 | EM6: 1 | EP6: 3176428.264 | EQ6: 3751266.967 | ER6: 5437667.03 | ES6: 5379657.821 | ET6: 0 | EU6: 0 | EV6: 0 | EW6: 0 | EX6: 0 | EY6: 0
A7: Non HV Buildings & Civil Work | B7: 5976 | C7: HO Refurbishment | D7: PS Facilities | F7: -1445502.533 | G7: 2013 | H7: C | J7: -1446786.628 | K7: 1284.09482 | L7: 0 | M7: 0 | Y7: 0 | Z7: -1445502.533 | AA7: 0 | AB7: 0 | AC7: 0 | AD7: 0 | AE7: 0 | AF7: 0 | AG7: 0 | AX7: -1445502.533 | BL7: 1 | BN7: =IF(D7="", "", VLOOKUP(D7,Input_Fixed!$A$105:$C$116,3,FALSE)) -> Non-Network | BO7: =SUM(I7:X7)-F7 -> 0 | BP7: =SUM(Y7:AW7)-F7 -> 0 | BQ7: =SUM(AX7:BK7)-F7 -> 0 | BR7: =IF(SUM($Y7:$AW7)=0, 0, Y7/SUM($Y7:$AW7)) -> 0 | BS7: =IF(SUM($Y7:$AW7)=0, 0, Z7/SUM($Y7:$AW7)) -> 1 | BT7: =IF(SUM($Y7:$AW7)=0, 0, AA7/SUM($Y7:$AW7)) -> 0 | BU7: =IF(SUM($Y7:$AW7)=0, 0, AB7/SUM($Y7:$AW7)) -> 0 | BV7: =IF(SUM($Y7:$AW7)=0, 0, AC7/SUM($Y7:$AW7)) -> 0 | BW7: =IF(SUM($Y7:$AW7)=0, 0, AD7/SUM($Y7:$AW7)) -> 0 | BX7: =IF(SUM($Y7:$AW7)=0, 0, AE7/SUM($Y7:$AW7)) -> 0 | BY7: =IF(SUM($Y7:$AW7)=0, 0, AF7/SUM($Y7:$AW7)) -> 0 | BZ7: =IF(SUM($Y7:$AW7)=0, 0, AG7/SUM($Y7:$AW7)) -> 0 | CA7: =IF(SUM($Y7:$AW7)=0, 0, AH7/SUM($Y7:$AW7)) -> 0 | CB7: =IF(SUM($Y7:$AW7)=0, 0, AI7/SUM($Y7:$AW7)) -> 0 | CC7: =IF(SUM($Y7:$AW7)=0, 0, AJ7/SUM($Y7:$AW7)) -> 0 | CD7: =IF(SUM($Y7:$AW7)=0, 0, AK7/SUM($Y7:$AW7)) -> 0 | CE7: =IF(SUM($Y7:$AW7)=0, 0, AL7/SUM($Y7:$AW7)) -> 0 | CF7: =IF(SUM($Y7:$AW7)=0, 0, AM7/SUM($Y7:$AW7)) -> 0 | CG7: =IF(SUM($Y7:$AW7)=0, 0, AN7/SUM($Y7:$AW7)) -> 0 | CH7: =IF(SUM($Y7:$AW7)=0, 0, AO7/SUM($Y7:$AW7)) -> 0 | CI7: =IF(SUM($Y7:$AW7)=0, 0, AP7/SUM($Y7:$AW7)) -> 0 | CJ7: =IF(SUM($Y7:$AW7)=0, 0, AQ7/SUM($Y7:$AW7)) -> 0 | CK7: =IF(SUM($Y7:$AW7)=0, 0, AR7/SUM($Y7:$AW7)) -> 0 | CL7: =IF(SUM($Y7:$AW7)=0, 0, AS7/SUM($Y7:$AW7)) -> 0 | CM7: =IF(SUM($Y7:$AW7)=0, 0, AT7/SUM($Y7:$AW7)) -> 0 | CN7: =IF(SUM($Y7:$AW7)=0, 0, AU7/SUM($Y7:$AW7)) -> 0 | CO7: =IF(SUM($Y7:$AW7)=0, 0, AV7/SUM($Y7:$AW7)) -> 0 | CP7: =IF(SUM($Y7:$AW7)=0, 0, AW7/SUM($Y7:$AW7)) -> 0 | CQ7: 1 | CR7: 0 | CS7: 0 | CT7: 0 | CU7: 0 | CV7: 0 | CW7: 0 | CX7: 0 | CY7: 0 | CZ7: 0 | DA7: 0 | DB7: 0 | DC7: 0 | DD7: 0 | DE7: 1.107051697 | DF7: 1.029296875 | DH7: =IF(Real_or_Nom="Nominal", Input_Fixed!F$10/$DE7, $DF7) -> 1.029296875 | DI7: =IF(Real_or_Nom="Nominal", Input_Fixed!G$10/$DE7, $DF7) -> 1.029296875 | DJ7: =IF(Real_or_Nom="Nominal", Input_Fixed!H$10/$DE7, $DF7) -> 1.029296875 | DK7: =IF(Real_or_Nom="Nominal", Input_Fixed!I$10/$DE7, $DF7) -> 1.029296875 | DL7: =IF(Real_or_Nom="Nominal", Input_Fixed!J$10/$DE7, $DF7) -> 1.029296875 | DM7: =IF(Real_or_Nom="Nominal", Input_Fixed!K$10/$DE7, $DF7) -> 1.029296875 | DN7: =IF(Real_or_Nom="Nominal", Input_Fixed!L$10/$DE7, $DF7) -> 1.029296875 | DO7: =IF(Real_or_Nom="Nominal", Input_Fixed!M$10/$DE7, $DF7) -> 1.029296875 | DP7: =IF(Real_or_Nom="Nominal", Input_Fixed!N$10/$DE7, $DF7) -> 1.029296875 | DQ7: =IF(Real_or_Nom="Nominal", Input_Fixed!O$10/$DE7, $DF7) -> 1.029296875 | DR7: =IF(Real_or_Nom="Nominal", Input_Fixed!P$10/$DE7, $DF7) -> 1.029296875 | DS7: =IF(Real_or_Nom="Nominal", Input_Fixed!Q$10/$DE7, $DF7) -> 1.029296875 | DT7: =IF(Real_or_Nom="Nominal", Input_Fixed!R$10/$DE7, $DF7) -> 1.029296875 | DU7: =IF(Real_or_Nom="Nominal", Input_Fixed!S$10/$DE7, $DF7) -> 1.029296875 | DV7: =IF(Real_or_Nom="Nominal", Input_Fixed!T$10/$DE7, $DF7) -> 1.029296875 | DW7: =IF(Real_or_Nom="Nominal", Input_Fixed!U$10/$DE7, $DF7) -> 1.029296875 | DX7: 1 | DY7: 1 | DZ7: 1 | EA7: 1 | EB7: 1 | EC7: 1 | ED7: 1 | EE7: 1 | EF7: 1 | EG7: 1 | EH7: 1 | EI7: 1 | EJ7: 1 | EK7: 1 | EL7: 1 | EM7: 1 | EP7: -1489172.955 | EQ7: 1321.714785 | ER7: 0 | ES7: 0 | ET7: 0 | EU7: 0 | EV7: 0 | EW7: 0 | EX7: 0 | EY7: 0
A8: Non HV Buildings & Civil Work | B8: 5989 | C8: Sydney West Warehouse Extension | D8: PS Facilities | F8: 223728.1797 | G8: 2013 | H8: C | J8: 102063.2783 | K8: 121664.9013 | L8: 0 | M8: 0 | Y8: 0 | Z8: 223728.1797 | AA8: 0 | AB8: 0 | AC8: 0 | AD8: 0 | AE8: 0 | AF8: 0 | AG8: 0 | AX8: 223728.1797 | BL8: 0 | BN8: =IF(D8="", "", VLOOKUP(D8,Input_Fixed!$A$105:$C$116,3,FALSE)) -> Non-Network | BO8: 0 | BP8: 0 | BQ8: 0 | BR8: 0 | BS8: 1 | BT8: 0 | BU8: 0 | BV8: 0 | BW8: 0 | BX8: 0 | BY8: 0 | BZ8: 0 | CA8: 0 | CB8: 0 | CC8: 0 | CD8: 0 | CE8: 0 | CF8: 0 | CG8: 0 | CH8: 0 | CI8: 0 | CJ8: 0 | CK8: 0 | CL8: 0 | CM8: 0 | CN8: 0 | CO8: 0 | CP8: 0 | CQ8: 1 | CR8: 0 | CS8: 0 | CT8: 0 | CU8: 0 | CV8: 0 | CW8: 0 | CX8: 0 | CY8: 0 | CZ8: 0 | DA8: 0 | DB8: 0 | DC8: 0 | DD8: 0 | DE8: 1.107051697 | DF8: 1.029296875 | DH8: =IF(Real_or_Nom="Nominal", Input_Fixed!F$10/$DE8, $DF8) -> 1.029296875 | DI8: =IF(Real_or_Nom="Nominal", Input_Fixed!G$10/$DE8, $DF8) -> 1.029296875 | DJ8: =IF(Real_or_Nom="Nominal", Input_Fixed!H$10/$DE8, $DF8) -> 1.029296875 | DK8: =IF(Real_or_Nom="Nominal", Input_Fixed!I$10/$DE8, $DF8) -> 1.029296875 | DL8: =IF(Real_or_Nom="Nominal", Input_Fixed!J$10/$DE8, $DF8) -> 1.029296875 | DM8: =IF(Real_or_Nom="Nominal", Input_Fixed!K$10/$DE8, $DF8) -> 1.029296875 | DN8: =IF(Real_or_Nom="Nominal", Input_Fixed!L$10/$DE8, $DF8) -> 1.029296875 | DO8: =IF(Real_or_Nom="Nominal", Input_Fixed!M$10/$DE8, $DF8) -> 1.029296875 | DP8: =IF(Real_or_Nom="Nominal", Input_Fixed!N$10/$DE8, $DF8) -> 1.029296875 | DQ8: =IF(Real_or_Nom="Nominal", Input_Fixed!O$10/$DE8, $DF8) -> 1.029296875 | DR8: =IF(Real_or_Nom="Nominal", Input_Fixed!P$10/$DE8, $DF8) -> 1.029296875 | DS8: =IF(Real_or_Nom="Nominal", Input_Fixed!Q$10/$DE8, $DF8) -> 1.029296875 | DT8: =IF(Real_or_Nom="Nominal", Input_Fixed!R$10/$DE8, $DF8) -> 1.029296875 | DU8: =IF(Real_or_Nom="Nominal", Input_Fixed!S$10/$DE8, $DF8) -> 1.029296875 | DV8: =IF(Real_or_Nom="Nominal", Input_Fixed!T$10/$DE8, $DF8) -> 1.029296875 | DW8: =IF(Real_or_Nom="Nominal", Input_Fixed!U$10/$DE8, $DF8) -> 1.029296875 | DX8: 1 | DY8: 1 | DZ8: 1 | EA8: 1 | EB8: 1 | EC8: 1 | ED8: 1 | EE8: 1 | EF8: 1 | EG8: 1 | EH8: 1 | EI8: 1 | EJ8: 1 | EK8: 1 | EL8: 1 | EM8: 1 | EP8: 105053.4134 | EQ8: 125229.3027 | ER8: 0 | ES8: 0 | ET8: 0 | EU8: 0 | EV8: 0 | EW8: 0 | EX8: 0 | EY8: 0
A9: Non HV Buildings & Civil Work | B9: 7332 | C9: Strategic Accomodation | D9: PS Facilities | F9: 7376782.177 | G9: 2013 | H9: C | I9: 0 | J9: 0 | K9: 481753.2862 | L9: 6895028.891 | M9: 0 | N9: 0 | O9: 0 | P9: 0 | Q9: 0 | R9: 0 | S9: 0 | T9: 0 | U9: 0 | V9: 0 | W9: 0 | X9: 0 | Y9: 343320.2671 | Z9: 5493124.273 | AA9: 171660.1335 | AB9: 171660.1335 | AC9: 1197017.37 | AD9: 0 | AE9: 0 | AF9: 0 | AG9: 0 | AH9: 0 | AI9: 0 | AJ9: 0 | AK9: 0 | AL9: 0 | AM9: 0 | AN9: 0 | AO9: 0 | AP9: 0 | AQ9: 0 | AR9: 0 | AS9: 0 | AT9: 0 | AU9: 0 | AV9: 0 | AW9: 0 | AX9: 7376782.177 | AY9: 0 | AZ9: 0 | BA9: 0 | BB9: 0 | BC9: 0 | BD9: 0 | BE9: 0 | BF9: 0 | BG9: 0 | BH9: 0 | BI9: 0 | BJ9: 0 | BK9: 0 | BL9: 0 | BN9: =IF(D9="", "", VLOOKUP(D9,Input_Fixed!$A$105:$C$116,3,FALSE)) -> Non-Network | BO9: 0 | BP9: 0 | BQ9: 0 | BR9: 0.04654065402 | BS9: 0.7446504643 | BT9: 0.02327032701 | BU9: 0.02327032701 | BV9: 0.1622682277 | BW9: 0 | BX9: 0 | BY9: 0 | BZ9: 0 | CA9: 0 | CB9: 0 | CC9: 0 | CD9: 0 | CE9: 0 | CF9: 0 | CG9: 0 | CH9: 0 | CI9: 0 | CJ9: 0 | CK9: 0 | CL9: 0 | CM9: 0 | CN9: 0 | CO9: 0 | CP9: 0 | CQ9: 1 | CR9: 0 | CS9: 0 | CT9: 0 | CU9: 0 | CV9: 0 | CW9: 0 | CX9: 0 | CY9: 0 | CZ9: 0 | DA9: 0 | DB9: 0 | DC9: 0 | DD9: 0 | DE9: 1.107051697 | DF9: 1.029296875 | DH9: =IF(Real_or_Nom="Nominal", Input_Fixed!F$10/$DE9, $DF9) -> 1.029296875 | DI9: =IF(Real_or_Nom="Nominal", Input_Fixed!G$10/$DE9, $DF9) -> 1.029296875 | DJ9: =IF(Real_or_Nom="Nominal", Input_Fixed!H$10/$DE9, $DF9) -> 1.029296875 | DK9: =IF(Real_or_Nom="Nominal", Input_Fixed!I$10/$DE9, $DF9) -> 1.029296875 | DL9: =IF(Real_or_Nom="Nominal", Input_Fixed!J$10/$DE9, $DF9) -> 1.029296875 | DM9: =IF(Real_or_Nom="Nominal", Input_Fixed!K$10/$DE9, $DF9) -> 1.029296875 | DN9: =IF(Real_or_Nom="Nominal", Input_Fixed!L$10/$DE9, $DF9) -> 1.029296875 | DO9: =IF(Real_or_Nom="Nominal", Input_Fixed!M$10/$DE9, $DF9) -> 1.029296875 | DP9: =IF(Real_or_Nom="Nominal", Input_Fixed!N$10/$DE9, $DF9) -> 1.029296875 | DQ9: =IF(Real_or_Nom="Nominal", Input_Fixed!O$10/$DE9, $DF9) -> 1.029296875 | DR9: =IF(Real_or_Nom="Nominal", Input_Fixed!P$10/$DE9, $DF9) -> 1.029296875 | DS9: =IF(Real_or_Nom="Nominal", Input_Fixed!Q$10/$DE9, $DF9) -> 1.029296875 | DT9: =IF(Real_or_Nom="Nominal", Input_Fixed!R$10/$DE9, $DF9) -> 1.029296875 | DU9: =IF(Real_or_Nom="Nominal", Input_Fixed!S$10/$DE9, $DF9) -> 1.029296875 | DV9: =IF(Real_or_Nom="Nominal", Input_Fixed!T$10/$DE9, $DF9) -> 1.029296875 | DW9: =IF(Real_or_Nom="Nominal", Input_Fixed!U$10/$DE9, $DF9) -> 1.029296875 | DX9: 1 | DY9: 1 | DZ9: 1 | EA9: 1 | EB9: 1 | EC9: 1 | ED9: 1 | EE9: 1 | EF9: 1 | EG9: 1 | EH9: 1 | EI9: 1 | EJ9: 1 | EK9: 1 | EL9: 1 | EM9: 1 | EP9: 0 | EQ9: 495867.152 | ER9: 7097031.691 | ES9: 0 | ET9: 0 | EU9: 0 | EV9: 0 | EW9: 0 | EX9: 0 | EY9: 0
A10: Non HV Buildings & Civil Work | B10: 7332 | C10: Strategic Accomodation | D10: PS Facilities | F10: 62101472.21 | G10: 2014 | H10: C | N10: 37683457.21 | O10: 8612015 | P10: 10973300 | Q10: 4832700 | Z10: 62101472.21 | AX10: 62101472.21 | BL10: 0 | BN10: =IF(D10="", "", VLOOKUP(D10,Input_Fixed!$A$105:$C$116,3,FALSE)) -> Non-Network | BO10: 0 | BP10: 0 | BQ10: 0 | BR10: 0 | BS10: 1 | BT10: 0 | BU10: 0 | BV10: 0 | BW10: 0 | BX10: 0 | BY10: 0 | BZ10: 0 | CA10: 0 | CB10: 0 | CC10: 0 | CD10: 0 | CE10: 0 | CF10: 0 | CG10: 0 | CH10: 0 | CI10: 0 | CJ10: 0 | CK10: 0 | CL10: 0 | CM10: 0 | CN10: 0 | CO10: 0 | CP10: 0 | CQ10: 1 | CR10: 0 | CS10: 0 | CT10: 0 | CU10: 0 | CV10: 0 | CW10: 0 | CX10: 0 | CY10: 0 | CZ10: 0 | DA10: 0 | DB10: 0 | DC10: 0 | DD10: 0 | DE10: 1.139484852 | DF10: 1 | DH10: =IF(Real_or_Nom="Nominal", Input_Fixed!F$10/$DE10, $DF10) -> 1 | DI10: =IF(Real_or_Nom="Nominal", Input_Fixed!G$10/$DE10, $DF10) -> 1 | DJ10: =IF(Real_or_Nom="Nominal", Input_Fixed!H$10/$DE10, $DF10) -> 1 | DK10: =IF(Real_or_Nom="Nominal", Input_Fixed!I$10/$DE10, $DF10) -> 1 | DL10: =IF(Real_or_Nom="Nominal", Input_Fixed!J$10/$DE10, $DF10) -> 1 | DM10: =IF(Real_or_Nom="Nominal", Input_Fixed!K$10/$DE10, $DF10) -> 1 | DN10: =IF(Real_or_Nom="Nominal", Input_Fixed!L$10/$DE10, $DF10) -> 1 | DO10: =IF(Real_or_Nom="Nominal", Input_Fixed!M$10/$DE10, $DF10) -> 1 | DP10: =IF(Real_or_Nom="Nominal", Input_Fixed!N$10/$DE10, $DF10) -> 1 | DQ10: =IF(Real_or_Nom="Nominal", Input_Fixed!O$10/$DE10, $DF10) -> 1 | DR10: =IF(Real_or_Nom="Nominal", Input_Fixed!P$10/$DE10, $DF10) -> 1 | DS10: =IF(Real_or_Nom="Nominal", Input_Fixed!Q$10/$DE10, $DF10) -> 1 | DT10: =IF(Real_or_Nom="Nominal", Input_Fixed!R$10/$DE10, $DF10) -> 1 | DU10: =IF(Real_or_Nom="Nominal", Input_Fixed!S$10/$DE10, $DF10) -> 1 | DV10: =IF(Real_or_Nom="Nominal", Input_Fixed!T$10/$DE10, $DF10) -> 1 | DW10: =IF(Real_or_Nom="Nominal", Input_Fixed!U$10/$DE10, $DF10) -> 1 | DX10: 1 | DY10: 1 | DZ10: 1 | EA10: 1 | EB10: 1 | EC10: 1 | ED10: 1 | EE10: 1 | EF10: 1 | EG10: 1 | EH10: 1 | EI10: 1 | EJ10: 1 | EK10: 1 | EL10: 1 | EM10: 1 | EP10: 0 | EQ10: 0 | ER10: 0 | ES10: 0 | ET10: 37683457.21 | EU10: 8612015 | EV10: 10973300 | EW10: 4832700 | EX10: 0 | EY10: 0
A11: Non HV Buildings & Civil Work | B11: 7332 | C11: Strategic Accomodation | D11: PS Facilities | F11: 15370970.15 | G11: 2013 | H11: C | J11: 0 | K11: 0 | L11: 0 | M11: 15370970.15 | Y11: 0 | Z11: 15370970.15 | AA11: 0 | AB11: 0 | AC11: 0 | AD11: 0 | AE11: 0 | AF11: 0 | AG11: 0 | AX11: 15370970.15 | BL11: 0 | BN11: =IF(D11="", "", VLOOKUP(D11,Input_Fixed!$A$105:$C$116,3,FALSE)) -> Non-Network | BO11: 0 | BP11: 0 | BQ11: 0 | BR11: 0 | BS11: 1 | BT11: 0 | BU11: 0 | BV11: 0 | BW11: 0 | BX11: 0 | BY11: 0 | BZ11: 0 | CA11: 0 | CB11: 0 | CC11: 0 | CD11: 0 | CE11: 0 | CF11: 0 | CG11: 0 | CH11: 0 | CI11: 0 | CJ11: 0 | CK11: 0 | CL11: 0 | CM11: 0 | CN11: 0 | CO11: 0 | CP11: 0 | CQ11: 1 | CR11: 0 | CS11: 0 | CT11: 0 | CU11: 0 | CV11: 0 | CW11: 0 | CX11: 0 | CY11: 0 | CZ11: 0 | DA11: 0 | DB11: 0 | DC11: 0 | DD11: 0 | DE11: 1.107051697 | DF11: 1.029296875 | DH11: =IF(Real_or_Nom="Nominal", Input_Fixed!F$10/$DE11, $DF11) -> 1.029296875 | DI11: =IF(Real_or_Nom="Nominal", Input_Fixed!G$10/$DE11, $DF11) -> 1.029296875 | DJ11: =IF(Real_or_Nom="Nominal", Input_Fixed!H$10/$DE11, $DF11) -> 1.029296875 | DK11: =IF(Real_or_Nom="Nominal", Input_Fixed!I$10/$DE11, $DF11) -> 1.029296875 | DL11: =IF(Real_or_Nom="Nominal", Input_Fixed!J$10/$DE11, $DF11) -> 1.029296875 | DM11: =IF(Real_or_Nom="Nominal", Input_Fixed!K$10/$DE11, $DF11) -> 1.029296875 | DN11: =IF(Real_or_Nom="Nominal", Input_Fixed!L$10/$DE11, $DF11) -> 1.029296875 | DO11: =IF(Real_or_Nom="Nominal", Input_Fixed!M$10/$DE11, $DF11) -> 1.029296875 | DP11: =IF(Real_or_Nom="Nominal", Input_Fixed!N$10/$DE11, $DF11) -> 1.029296875 | DQ11: =IF(Real_or_Nom="Nominal", Input_Fixed!O$10/$DE11, $DF11) -> 1.029296875 | DR11: =IF(Real_or_Nom="Nominal", Input_Fixed!P$10/$DE11, $DF11) -> 1.029296875 | DS11: =IF(Real_or_Nom="Nominal", Input_Fixed!Q$10/$DE11, $DF11) -> 1.029296875 | DT11: =IF(Real_or_Nom="Nominal", Input_Fixed!R$10/$DE11, $DF11) -> 1.029296875 | DU11: =IF(Real_or_Nom="Nominal", Input_Fixed!S$10/$DE11, $DF11) -> 1.029296875 | DV11: =IF(Real_or_Nom="Nominal", Input_Fixed!T$10/$DE11, $DF11) -> 1.029296875 | DW11: =IF(Real_or_Nom="Nominal", Input_Fixed!U$10/$DE11, $DF11) -> 1.029296875 | DX11: 1 | DY11: 1 | DZ11: 1 | EA11: 1 | EB11: 1 | EC11: 1 | ED11: 1 | EE11: 1 | EF11: 1 | EG11: 1 | EH11: 1 | EI11: 1 | EJ11: 1 | EK11: 1 | EL11: 1 | EM11: 1 | EP11: 0 | EQ11: 0 | ER11: 0 | ES11: 15821291.54 | ET11: 0 | EU11: 0 | EV11: 0 | EW11: 0 | EX11: 0 | EY11: 0
A12: Non HV Buildings & Civil Work | B12: 7517 | C12: Newcastle Mezzanine Floor | D12: PS Facilities | F12: 36711.25634 | G12: 2013 | H12: C | J12: 0 | K12: 36711.25634 | L12: 0 | M12: 0 | Y12: 0 | Z12: 36711.25634 | AA12: 0 | AB12: 0 | AC12: 0 | AD12: 0 | AE12: 0 | AF12: 0 | AG12: 0 | AX12: 36711.25634 | BL12: 0 | BN12: =IF(D12="", "", VLOOKUP(D12,Input_Fixed!$A$105:$C$116,3,FALSE)) -> Non-Network | BO12: 0 | BP12: 0 | BQ12: 0 | BR12: 0 | BS12: 1 | BT12: 0 | BU12: 0 | BV12: 0 | BW12: 0 | BX12: 0 | BY12: 0 | BZ12: 0 | CA12: 0 | CB12: 0 | CC12: 0 | CD12: 0 | CE12: 0 | CF12: 0 | CG12: 0 | CH12: 0 | CI12: 0 | CJ12: 0 | CK12: 0 | CL12: 0 | CM12: 0 | CN12: 0 | CO12: 0 | CP12: 0 | CQ12: 1 | CR12: 0 | CS12: 0 | CT12: 0 | CU12: 0 | CV12: 0 | CW12: 0 | CX12: 0 | CY12: 0 | CZ12: 0 | DA12: 0 | DB12: 0 | DC12: 0 | DD12: 0 | DE12: 1.107051697 | DF12: 1.029296875 | DH12: =IF(Real_or_Nom="Nominal", Input_Fixed!F$10/$DE12, $DF12) -> 1.029296875 | DI12: =IF(Real_or_Nom="Nominal", Input_Fixed!G$10/$DE12, $DF12) -> 1.029296875 | DJ12: =IF(Real_or_Nom="Nominal", Input_Fixed!H$10/$DE12, $DF12) -> 1.029296875 | DK12: =IF(Real_or_Nom="Nominal", Input_Fixed!I$10/$DE12, $DF12) -> 1.029296875 | DL12: =IF(Real_or_Nom="Nominal", Input_Fixed!J$10/$DE12, $DF12) -> 1.029296875 | DM12: =IF(Real_or_Nom="Nominal", Input_Fixed!K$10/$DE12, $DF12) -> 1.029296875 | DN12: =IF(Real_or_Nom="Nominal", Input_Fixed!L$10/$DE12, $DF12) -> 1.029296875 | DO12: =IF(Real_or_Nom="Nominal", Input_Fixed!M$10/$DE12, $DF12) -> 1.029296875 | DP12: =IF(Real_or_Nom="Nominal", Input_Fixed!N$10/$DE12, $DF12) -> 1.029296875 | DQ12: =IF(Real_or_Nom="Nominal", Input_Fixed!O$10/$DE12, $DF12) -> 1.029296875 | DR12: =IF(Real_or_Nom="Nominal", Input_Fixed!P$10/$DE12, $DF12) -> 1.029296875 | DS12: =IF(Real_or_Nom="Nominal", Input_Fixed!Q$10/$DE12, $DF12) -> 1.029296875 | DT12: =IF(Real_or_Nom="Nominal", Input_Fixed!R$10/$DE12, $DF12) -> 1.029296875 | DU12: =IF(Real_or_Nom="Nominal", Input_Fixed!S$10/$DE12, $DF12) -> 1.029296875 | DV12: =IF(Real_or_Nom="Nominal", Input_Fixed!T$10/$DE12, $DF12) -> 1.029296875 | DW12: =IF(Real_or_Nom="Nominal", Input_Fixed!U$10/$DE12, $DF12) -> 1.029296875 | DX12: 1 | DY12: 1 | DZ12: 1 | EA12: 1 | EB12: 1 | EC12: 1 | ED12: 1 | EE12: 1 | EF12: 1 | EG12: 1 | EH12: 1 | EI12: 1 | EJ12: 1 | EK12: 1 | EL12: 1 | EM12: 1 | EP12: 0 | EQ12: 37786.78143 | ER12: 0 | ES12: 0 | ET12: 0 | EU12: 0 | EV12: 0 | EW12: 0 | EX12: 0 | EY12: 0
A13: Non HV Buildings & Civil Work | B13: 8050 | C13: Haymarket Blast Wall | D13: PS Facilities | F13: 54078 | G13: 2014 | H13: C | N13: 54078 | Z13: 54078 | AX13: 54078 | BL13: 0 | BN13: =IF(D13="", "", VLOOKUP(D13,Input_Fixed!$A$105:$C$116,3,FALSE)) -> Non-Network | BO13: 0 | BP13: 0 | BQ13: 0 | BR13: 0 | BS13: 1 | BT13: 0 | BU13: 0 | BV13: 0 | BW13: 0 | BX13: 0 | BY13: 0 | BZ13: 0 | CA13: 0 | CB13: 0 | CC13: 0 | CD13: 0 | CE13: 0 | CF13: 0 | CG13: 0 | CH13: 0 | CI13: 0 | CJ13: 0 | CK13: 0 | CL13: 0 | CM13: 0 | CN13: 0 | CO13: 0 | CP13: 0 | CQ13: 1 | CR13: 0 | CS13: 0 | CT13: 0 | CU13: 0 | CV13: 0 | CW13: 0 | CX13: 0 | CY13: 0 | CZ13: 0 | DA13: 0 | DB13: 0 | DC13: 0 | DD13: 0 | DE13: 1.139484852 | DF13: 1 | DH13: =IF(Real_or_Nom="Nominal", Input_Fixed!F$10/$DE13, $DF13) -> 1 | DI13: =IF(Real_or_Nom="Nominal", Input_Fixed!G$10/$DE13, $DF13) -> 1 | DJ13: =IF(Real_or_Nom="Nominal", Input_Fixed!H$10/$DE13, $DF13) -> 1 | DK13: =IF(Real_or_Nom="Nominal", Input_Fixed!I$10/$DE13, $DF13) -> 1 | DL13: =IF(Real_or_Nom="Nominal", Input_Fixed!J$10/$DE13, $DF13) -> 1 | DM13: =IF(Real_or_Nom="Nominal", Input_Fixed!K$10/$DE13, $DF13) -> 1 | DN13: =IF(Real_or_Nom="Nominal", Input_Fixed!L$10/$DE13, $DF13) -> 1 | DO13: =IF(Real_or_Nom="Nominal", Input_Fixed!M$10/$DE13, $DF13) -> 1 | DP13: =IF(Real_or_Nom="Nominal", Input_Fixed!N$10/$DE13, $DF13) -> 1 | DQ13: =IF(Real_or_Nom="Nominal", Input_Fixed!O$10/$DE13, $DF13) -> 1 | DR13: =IF(Real_or_Nom="Nominal", Input_Fixed!P$10/$DE13, $DF13) -> 1 | DS13: =IF(Real_or_Nom="Nominal", Input_Fixed!Q$10/$DE13, $DF13) -> 1 | DT13: =IF(Real_or_Nom="Nominal", Input_Fixed!R$10/$DE13, $DF13) -> 1 | DU13: =IF(Real_or_Nom="Nominal", Input_Fixed!S$10/$DE13, $DF13) -> 1 | DV13: =IF(Real_or_Nom="Nominal", Input_Fixed!T$10/$DE13, $DF13) -> 1 | DW13: =IF(Real_or_Nom="Nominal", Input_Fixed!U$10/$DE13, $DF13) -> 1 | DX13: 1 | DY13: 1 | DZ13: 1 | EA13: 1 | EB13: 1 | EC13: 1 | ED13: 1 | EE13: 1 | EF13: 1 | EG13: 1 | EH13: 1 | EI13: 1 | EJ13: 1 | EK13: 1 | EL13: 1 | EM13: 1 | EP13: 0 | EQ13: 0 | ER13: 0 | ES13: 0 | ET13: 54078 | EU13: 0 | EV13: 0 | EW13: 0 | EX13: 0 | EY13: 0
A14: Information Technology | B14: 6420 | C14: Video Conferencing & Collaboration | D14: PS Information Technology | F14: 1531617.977 | G14: 2013 | H14: C | I14: 1010874.664 | J14: 520743.3125 | K14: 0 | L14: 0 | M14: 0 | N14: 0 | O14: 0 | P14: 0 | Q14: 0 | R14: 0 | S14: 0 | T14: 0 | U14: 0 | V14: 0 | W14: 0 | X14: 0 | Y14: 0 | Z14: 0 | AA14: 0 | AB14: 1531617.977 | AC14: 0 | AD14: 0 | AE14: 0 | AF14: 0 | AG14: 0 | AH14: 0 | AI14: 0 | AJ14: 0 | AK14: 0 | AL14: 0 | AM14: 0 | AN14: 0 | AO14: 0 | AP14: 0 | AQ14: 0 | AR14: 0 | AS14: 0 | AT14: 0 | AU14: 0 | AV14: 0 | AW14: 0 | AX14: 1531617.977 | AY14: 0 | AZ14: 0 | BA14: 0 | BB14: 0 | BC14: 0 | BD14: 0 | BE14: 0 | BF14: 0 | BG14: 0 | BH14: 0 | BI14: 0 | BJ14: 0 | BK14: 0 | BL14: 1 | BN14: =IF(D14="", "", VLOOKUP(D14,Input_Fixed!$A$105:$C$116,3,FALSE)) -> Non-Network | BO14: 6.053596735e-09 | BP14: 0 | BQ14: 0 | BR14: 0 | BS14: 0 | BT14: 0 | BU14: 1 | BV14: 0 | BW14: 0 | BX14: 0 | BY14: 0 | BZ14: 0 | CA14: 0 | CB14: 0 | CC14: 0 | CD14: 0 | CE14: 0 | CF14: 0 | CG14: 0 | CH14: 0 | CI14: 0 | CJ14: 0 | CK14: 0 | CL14: 0 | CM14: 0 | CN14: 0 | CO14: 0 | CP14: 0 | CQ14: 1 | CR14: 0 | CS14: 0 | CT14: 0 | CU14: 0 | CV14: 0 | CW14: 0 | CX14: 0 | CY14: 0 | CZ14: 0 | DA14: 0 | DB14: 0 | DC14: 0 | DD14: 0 | DE14: 1.107051697 | DF14: 1.029296875 | DH14: =IF(Real_or_Nom="Nominal", Input_Fixed!F$10/$DE14, $DF14) -> 1.029296875 | DI14: =IF(Real_or_Nom="Nominal", Input_Fixed!G$10/$DE14, $DF14) -> 1.029296875 | DJ14: =IF(Real_or_Nom="Nominal", Input_Fixed!H$10/$DE14, $DF14) -> 1.029296875 | DK14: =IF(Real_or_Nom="Nominal", Input_Fixed!I$10/$DE14, $DF14) -> 1.029296875 | DL14: =IF(Real_or_Nom="Nominal", Input_Fixed!J$10/$DE14, $DF14) -> 1.029296875 | DM14: =IF(Real_or_Nom="Nominal", Input_Fixed!K$10/$DE14, $DF14) -> 1.029296875 | DN14: =IF(Real_or_Nom="Nominal", Input_Fixed!L$10/$DE14, $DF14) -> 1.029296875 | DO14: =IF(Real_or_Nom="Nominal", Input_Fixed!M$10/$DE14, $DF14) -> 1.029296875 | DP14: =IF(Real_or_Nom="Nominal", Input_Fixed!N$10/$DE14, $DF14) -> 1.029296875 | DQ14: =IF(Real_or_Nom="Nominal", Input_Fixed!O$10/$DE14, $DF14) -> 1.029296875 | DR14: =IF(Real_or_Nom="Nominal", Input_Fixed!P$10/$DE14, $DF14) -> 1.029296875 | DS14: =IF(Real_or_Nom="Nominal", Input_Fixed!Q$10/$DE14, $DF14) -> 1.029296875 | DT14: =IF(Real_or_Nom="Nominal", Input_Fixed!R$10/$DE14, $DF14) -> 1.029296875 | DU14: =IF(Real_or_Nom="Nominal", Input_Fixed!S$10/$DE14, $DF14) -> 1.029296875 | DV14: =IF(Real_or_Nom="Nominal", Input_Fixed!T$10/$DE14, $DF14) -> 1.029296875 | DW14: =IF(Real_or_Nom="Nominal", Input_Fixed!U$10/$DE14, $DF14) -> 1.029296875 | DX14: 1 | DY14: 1 | DZ14: 1 | EA14: 1 | EB14: 1 | EC14: 1 | ED14: 1 | EE14: 1 | EF14: 1 | EG14: 1 | EH14: 1 | EI14: 1 | EJ14: 1 | EK14: 1 | EL14: 1 | EM14: 1 | EP14: 535999.4642 | EQ14: 0 | ER14: 0 | ES14: 0 | ET14: 0 | EU14: 0 | EV14: 0 | EW14: 0 | EX14: 0 | EY14: 0
A15: Information Technology | B15: ICT Applications | C15: Capital Program Delivery | D15: PS Information Technology | F15: 3591760.765 | G15: 2013 | H15: C | J15: 2672971.221 | K15: 895263.7212 | L15: 23525.82312 | M15: 0 | Y15: 0 | Z15: 0 | AA15: 0 | AB15: 0 | AC15: 0 | AD15: 0 | AE15: 0 | AF15: 0 | AG15: 3591760.765 | AX15: 3591760.765 | BL15: 0 | BN15: =IF(D15="", "", VLOOKUP(D15,Input_Fixed!$A$105:$C$116,3,FALSE)) -> Non-Network | BO15: 0 | BP15: 0 | BQ15: 0 | BR15: 0 | BS15: 0 | BT15: 0 | BU15: 0 | BV15: 0 | BW15: 0 | BX15: 0 | BY15: 0 | BZ15: 1 | CA15: 0 | CB15: 0 | CC15: 0 | CD15: 0 | CE15: 0 | CF15: 0 | CG15: 0 | CH15: 0 | CI15: 0 | CJ15: 0 | CK15: 0 | CL15: 0 | CM15: 0 | CN15: 0 | CO15: 0 | CP15: 0 | CQ15: 1 | CR15: 0 | CS15: 0 | CT15: 0 | CU15: 0 | CV15: 0 | CW15: 0 | CX15: 0 | CY15: 0 | CZ15: 0 | DA15: 0 | DB15: 0 | DC15: 0 | DD15: 0 | DE15: 1.107051697 | DF15: 1.029296875 | DH15: =IF(Real_or_Nom="Nominal", Input_Fixed!F$10/$DE15, $DF15) -> 1.029296875 | DI15: =IF(Real_or_Nom="Nominal", Input_Fixed!G$10/$DE15, $DF15) -> 1.029296875 | DJ15: =IF(Real_or_Nom="Nominal", Input_Fixed!H$10/$DE15, $DF15) -> 1.029296875 | DK15: =IF(Real_or_Nom="Nominal", Input_Fixed!I$10/$DE15, $DF15) -> 1.029296875 | DL15: =IF(Real_or_Nom="Nominal", Input_Fixed!J$10/$DE15, $DF15) -> 1.029296875 | DM15: =IF(Real_or_Nom="Nominal", Input_Fixed!K$10/$DE15, $DF15) -> 1.029296875 | DN15: =IF(Real_or_Nom="Nominal", Input_Fixed!L$10/$DE15, $DF15) -> 1.029296875 | DO15: =IF(Real_or_Nom="Nominal", Input_Fixed!M$10/$DE15, $DF15) -> 1.029296875 | DP15: =IF(Real_or_Nom="Nominal", Input_Fixed!N$10/$DE15, $DF15) -> 1.029296875 | DQ15: =IF(Real_or_Nom="Nominal", Input_Fixed!O$10/$DE15, $DF15) -> 1.029296875 | DR15: =IF(Real_or_Nom="Nominal", Input_Fixed!P$10/$DE15, $DF15) -> 1.029296875 | DS15: =IF(Real_or_Nom="Nominal", Input_Fixed!Q$10/$DE15, $DF15) -> 1.029296875 | DT15: =IF(Real_or_Nom="Nominal", Input_Fixed!R$10/$DE15, $DF15) -> 1.029296875 | DU15: =IF(Real_or_Nom="Nominal", Input_Fixed!S$10/$DE15, $DF15) -> 1.029296875 | DV15: =IF(Real_or_Nom="Nominal", Input_Fixed!T$10/$DE15, $DF15) -> 1.029296875 | DW15: =IF(Real_or_Nom="Nominal", Input_Fixed!U$10/$DE15, $DF15) -> 1.029296875 | DX15: =IF(AND(DX$4>=$G15, $G15<>""), SUMPRODUCT((Year = DX$4) * ($CQ15:$DD15) * (EscCum)) / SUMPRODUCT((Year = $G15) * ($CQ15:$DD15) * (EscCum)), 100%) -> 1 | DY15: 1 | DZ15: 1 | EA15: 1 | EB15: 1 | EC15: 1 | ED15: 1 | EE15: 1 | EF15: 1 | EG15: 1 | EH15: 1 | EI15: 1 | EJ15: 1 | EK15: 1 | EL15: 1 | EM15: 1 | EP15: 2751280.924 | EQ15: 921492.1505 | ER15: 24215.05622 | ES15: 0 | ET15: 0 | EU15: 0 | EV15: 0 | EW15: 0 | EX15: 0 | EY15: 0
... 18 more rows

Sheet Input_Proj_Commit
A1: Input_Committed_Projects | BP1: =SUM(BP5:BP705) -> 5.056567061e-07 | BQ1: =SUM(BQ5:BQ705) -> 1937930.926 | BR1: =SUM(BR5:BR705) -> -57537407.81 | EP1: =SUM(EP5:EP600) -> 944088124.1 | EQ1: 359108679.1 | ER1: 319745587.7 | ES1: 283979337.4 | ET1: =SUM(ET5:ET600) -> 387203422.3 | EU1: 416942130.6 | EV1: 202663388.4 | EW1: 134429359 | EX1: 20620269.7 | EY1: 24457979.42 | EZ1: 27181739.81 | FB1: =SUM(FB5:FB600) -> 0 | FC1: 0 | FD1: 0 | FE1: 0 | FF1: 0 | FG1: 523883329.9 | FH1: 190549729 | FI1: 126242566.2 | FJ1: 23794403.95 | FK1: 58707019.73
I2: Sub-Totals | J2: =SUM(J5:J600) -> 917216545.6 | K2: =SUM(K5:K600) -> 348887369.4 | L2: 310644669.7 | M2: 275896434.1 | N2: 376182452 | O2: 405074707.5 | P2: 196894980.7 | Q2: 130603096.4 | R2: 20033355 | S2: 23761832 | T2: 26408066 | U2: 0 | V2: 411000 | W2: 2055000 | X2: 0 | Y2: 0 | BQ2: Error Checking | DI2: Escalation to provide: | DL2: =Input_Fixed!$A$8 -> Real $2014 | EP2: =Input_Prog_Future!EO2 -> Annual Expenditure (Commodity Escalated and Risked) AER Template Output | FB2: As Commissioned Expenditure (CPI escalated for nominal case, and Commodity escalated) | FM2: Annual Expenditure (Commodity Escalated and Risked) AER Template Output
J3: Capex Expenditure by Year | Z3: Capex by Regulatory Asset Class | AY3: Capex by Component ($) | BP3: Cashflow | BQ3: RAC | BR3: Component | BS3: Capex by Regulatory Asset Class (%) - Calculated | CR3: Capex by Component (%) | DI3: Cumulative CPI % - for Real reporting CPI esc. from Estimate Year to Reporting Year; for Nominal reporting CPI esc. is from Estimate Year to Expenditure Year. | DY3: ="Cumulative Commodity Escalation % from Estimate Year to Expenditure Year (no CPI)" -> Cumulative Commodity Escalation % from Estimate Year to Expenditure Year (no CPI)
A4: Project Grouping | B4: Project No. | C4: Project Name | D4: Project Description | E4: Project Category | F4: Comm Date | G4: Estimate ($M) | H4: Effective Estimate Year | I4: Committed / Future | J4: 2009 | K4: 2010 | L4: 2011 | M4: 2012 | N4: 2013 | O4: 2014 | P4: 2015 | Q4: 2016 | R4: 2017 | S4: 2018 | T4: 2019 | U4: 2020 | V4: 2021 | W4: 2022 | X4: 2023 | Y4: 2024 | Z4: =Input_Proj_Future!S4 -> Reg Asset Class 1 TL | AA4: =Input_Proj_Future!T4 -> Reg Asset Class 2 Subs | AB4: =Input_Proj_Future!U4 -> Reg Asset Class 3 Sec Sys | AC4: =Input_Proj_Future!V4 -> Reg Asset Class 4 Comms | AD4: =Input_Proj_Future!W4 -> Reg Asset Class 5 Land | AE4: =Input_Proj_Future!X4 -> Reg Asset Class 6 Cables | AF4: =Input_Proj_Future!Y4 -> Reg Asset Class 7 TL Life Ext | AG4: =Input_Proj_Future!Z4 -> Reg Asset Class 8 MV & MP | AH4: =Input_Proj_Future!AA4 -> Reg Asset Class 9 Bus. IT | AI4: =Input_Proj_Future!AB4 -> Reg Asset Class 10 Not Used | AJ4: =Input_Proj_Future!AC4 -> Reg Asset Class 11 Not Used | AK4: =Input_Proj_Future!AD4 -> Reg Asset Class 12 Not Used | AL4: =Input_Proj_Future!AE4 -> Reg Asset Class 13 Not Used | AM4: =Input_Proj_Future!AF4 -> Reg Asset Class 14 Not Used | AN4: =Input_Proj_Future!AG4 -> Reg Asset Class 15 Not Used | AO4: =Input_Proj_Future!AH4 -> Reg Asset Class 16 Not Used | AP4: =Input_Proj_Future!AI4 -> Reg Asset Class 17 Not Used | AQ4: =Input_Proj_Future!AJ4 -> Reg Asset Class 18 Not Used | AR4: =Input_Proj_Future!AK4 -> Reg Asset Class 19 Not Used | AS4: =Input_Proj_Future!AL4 -> Reg Asset Class 20 Not Used | AT4: =Input_Proj_Future!AM4 -> Reg Asset Class 21 Not Used | AU4: =Input_Proj_Future!AN4 -> Reg Asset Class 22 Not Used | AV4: =Input_Proj_Future!AO4 -> Reg Asset Class 23 Not Used | AW4: =Input_Proj_Future!AP4 -> Reg Asset Class 24 Not Used | AX4: =Input_Proj_Future!AQ4 -> Reg Asset Class 25 Not Used | AY4: =Input_Proj_Future!AR4 -> CPI Only | AZ4: =Input_Proj_Future!AS4 -> EGW Wages | BA4: =Input_Proj_Future!AT4 -> Wages General | BB4: =Input_Proj_Future!AU4 -> Not Used | BC4: =Input_Proj_Future!AV4 -> Copper | BD4: =Input_Proj_Future!AW4 -> Aluminium | BE4: =Input_Proj_Future!AX4 -> Steel | BF4: =Input_Proj_Future!AY4 -> Oil | BG4: =Input_Proj_Future!AZ4 -> Construction | BH4: =Input_Proj_Future!BA4 -> Not Used | BI4: =Input_Proj_Future!BB4 -> Property - Res. | BJ4: =Input_Proj_Future!BC4 -> Property - Ind. | BK4: =Input_Proj_Future!BD4 -> Property - Rural | BL4: =Input_Proj_Future!BE4 -> Property - Agr. | BM4: Network Growth | BN4: Mini CAM | BO4: Network/ Non-Network | BP4: Variance from Estimate | BQ4: Variance from Estimate | BR4: Variance from Estimate | BS4: =Z4 -> Reg Asset Class 1 TL | BT4: Reg Asset Class 2 Subs | BU4: Reg Asset Class 3 Sec Sys | BV4: Reg Asset Class 4 Comms | BW4: Reg Asset Class 5 Land | BX4: Reg Asset Class 6 Cables | BY4: Reg Asset Class 7 TL Life Ext | BZ4: Reg Asset Class 8 MV & MP | CA4: Reg Asset Class 9 Bus. IT | CB4: Reg Asset Class 10 Not Used | CC4: Reg Asset Class 11 Not Used | CD4: Reg Asset Class 12 Not Used | CE4: Reg Asset Class 13 Not Used | CF4: Reg Asset Class 14 Not Used | CG4: Reg Asset Class 15 Not Used | CH4: Reg Asset Class 16 Not Used | CI4: Reg Asset Class 17 Not Used | CJ4: Reg Asset Class 18 Not Used | CK4: Reg Asset Class 19 Not Used | CL4: Reg Asset Class 20 Not Used | CM4: Reg Asset Class 21 Not Used | CN4: Reg Asset Class 22 Not Used | CO4: Reg Asset Class 23 Not Used | CP4: Reg Asset Class 24 Not Used | CQ4: Reg Asset Class 25 Not Used | CR4: =Input_Fixed!F14 -> CPI Only | CS4: =Input_Fixed!G14 -> EGW Wages | CT4: =Input_Fixed!H14 -> Wages General | CU4: =Input_Fixed!I14 -> Not Used | CV4: =Input_Fixed!J14 -> Copper | CW4: =Input_Fixed!K14 -> Aluminium | CX4: =Input_Fixed!L14 -> Steel | CY4: =Input_Fixed!M14 -> Oil | CZ4: =Input_Fixed!N14 -> Construction | DA4: =Input_Fixed!O14 -> Not Used | DB4: =Input_Fixed!P14 -> Property - Res. | DC4: =Input_Fixed!Q14 -> Property - Ind. | DD4: =Input_Fixed!R14 -> Property - Rural | DE4: =Input_Fixed!S14 -> Property - Agr. | DF4: Cum CPI to Estimate Year | DG4: Cum CPI to Report Year 2014 | DH4: Cum CPI at Comm. Year | DI4: =Input_Proj_Future!FE4 -> 2009 | DJ4: =Input_Proj_Future!FF4 -> 2010 | DK4: =Input_Proj_Future!FG4 -> 2011 | DL4: =Input_Proj_Future!FH4 -> 2012 | DM4: =Input_Proj_Future!FI4 -> 2013 | DN4: =Input_Proj_Future!FJ4 -> 2014 | DO4: =Input_Proj_Future!FK4 -> 2015 | DP4: =Input_Proj_Future!FL4 -> 2016 | DQ4: =Input_Proj_Future!FM4 -> 2017 | DR4: =Input_Proj_Future!FN4 -> 2018 | DS4: =Input_Proj_Future!FO4 -> 2019 | DT4: =Input_Proj_Future!FP4 -> 2020 | DU4: =Input_Proj_Future!FQ4 -> 2021 | DV4: =Input_Proj_Future!FR4 -> 2022 | DW4: =Input_Proj_Future!FS4 -> 2023 | DX4: =Input_Proj_Future!FT4 -> 2024 | DY4: =Input_Proj_Future!FE4 -> 2009 | DZ4: =Input_Proj_Future!FF4 -> 2010 | EA4: =Input_Proj_Future!FG4 -> 2011 | EB4: =Input_Proj_Future!FH4 -> 2012 | EC4: =Input_Proj_Future!FI4 -> 2013 | ED4: =Input_Proj_Future!FJ4 -> 2014 | EE4: =Input_Proj_Future!FK4 -> 2015 | EF4: =Input_Proj_Future!FL4 -> 2016 | EG4: =Input_Proj_Future!FM4 -> 2017 | EH4: =Input_Proj_Future!FN4 -> 2018 | EI4: =Input_Proj_Future!FO4 -> 2019 | EJ4: =Input_Proj_Future!FP4 -> 2020 | EK4: =Input_Proj_Future!FQ4 -> 2021 | EL4: =Input_Proj_Future!FR4 -> 2022 | EM4: =Input_Proj_Future!FS4 -> 2023 | EN4: =Input_Proj_Future!FT4 -> 2024 | EP4: 2009 | EQ4: 2010 | ER4: 2011 | ES4: 2012 | ET4: 2013 | EU4: 2014 | EV4: 2015 | EW4: 2016 | EX4: 2017 | EY4: 2018 | EZ4: 2019 | FB4: 2010 | FC4: 2011 | FD4: 2012 | FE4: 2013 | FF4: 2014 | FG4: 2015 | FH4: 2016 | FI4: 2017 | FJ4: 2018 | FK4: 2019 | FM4: 2020 | FN4: =FM4+1 -> 2021 | FO4: =FN4+1 -> 2022 | FP4: 2023 | FQ4: 2024
A5: Cable Minor Projects | B5: 6370 | C5: 42 Cable Tunnel Life Extension | E5: PS Augmentation | F5: 2011 | G5: 64575.38548 | H5: 2013 | I5: C | J5: 0 | K5: 30698.13821 | L5: 33877.24728 | M5: 0 | N5: 0 | O5: 0 | P5: 0 | Q5: 0 | R5: 0 | S5: 0 | T5: 0 | U5: 0 | V5: 0 | W5: 0 | X5: 0 | Y5: 0 | Z5: 64575.38548 | AA5: 0 | AB5: 0 | AC5: 0 | AD5: 0 | AE5: 0 | AF5: 0 | AG5: 0 | AH5: 0 | AI5: 0 | AJ5: 0 | AK5: 0 | AL5: 0 | AM5: 0 | AN5: 0 | AO5: 0 | AP5: 0 | AQ5: 0 | AR5: 0 | AS5: 0 | AT5: 0 | AU5: 0 | AV5: 0 | AW5: 0 | AX5: 0 | AY5: 64575.38548 | AZ5: 0 | BA5: 0 | BB5: 0 | BC5: 0 | BD5: 0 | BE5: 0 | BF5: 0 | BG5: 0 | BH5: 0 | BI5: 0 | BJ5: 0 | BK5: 0 | BL5: 0 | BM5: 0 | BN5: - | BO5: =IF(E5="", "", VLOOKUP(E5,Input_Fixed!$A$105:$C$116,3,FALSE)) -> Network | BP5: =SUM(J5:Y5)-G5 -> 0 | BQ5: =SUM(Z5:AX5)-G5 -> 0 | BR5: =G5-SUM(AY5:BL5) -> 0 | BS5: =IF(SUM($Z5:$AX5)=0, 0, Z5/SUM($Z5:$AX5)) -> 1 | BT5: 0 | BU5: 0 | BV5: 0 | BW5: 0 | BX5: 0 | BY5: 0 | BZ5: 0 | CA5: 0 | CB5: 0 | CC5: 0 | CD5: 0 | CE5: 0 | CF5: 0 | CG5: 0 | CH5: 0 | CI5: 0 | CJ5: 0 | CK5: 0 | CL5: 0 | CM5: 0 | CN5: 0 | CO5: 0 | CP5: 0 | CQ5: 0 | CR5: =IF(SUM($AY5:$BL5)=0, 0, AY5/SUM($AY5:$BL5)) -> 1 | CS5: 0 | CT5: 0 | CU5: 0 | CV5: 0 | CW5: 0 | CX5: 0 | CY5: 0 | CZ5: 0 | DA5: 0 | DB5: 0 | DC5: 0 | DD5: 0 | DE5: 0 | DF5: =IF(H5<>"", HLOOKUP($H5,EscCPI,7), 100%) -> 1.107051697 | DG5: =IF(H5<>"", HLOOKUP($H5,EscCPI,8), 100%) -> 1.029296875 | DH5: =IF(F5>0, HLOOKUP($F5,EscCPI,7), 0) -> 1.063176895 | DI5: =IF(Real_or_Nom="Nominal", Input_Fixed!F$10/$DF5, $DG5) -> 1.029296875 | DJ5: =IF(Real_or_Nom="Nominal", Input_Fixed!G$10/$DF5, $DG5) -> 1.029296875 | DK5: =IF(Real_or_Nom="Nominal", Input_Fixed!H$10/$DF5, $DG5) -> 1.029296875 | DL5: =IF(Real_or_Nom="Nominal", Input_Fixed!I$10/$DF5, $DG5) -> 1.029296875 | DM5: =IF(Real_or_Nom="Nominal", Input_Fixed!J$10/$DF5, $DG5) -> 1.029296875 | DN5: =IF(Real_or_Nom="Nominal", Input_Fixed!K$10/$DF5, $DG5) -> 1.029296875 | DO5: =IF(Real_or_Nom="Nominal", Input_Fixed!L$10/$DF5, $DG5) -> 1.029296875 | DP5: =IF(Real_or_Nom="Nominal", Input_Fixed!M$10/$DF5, $DG5) -> 1.029296875 | DQ5: =IF(Real_or_Nom="Nominal", Input_Fixed!N$10/$DF5, $DG5) -> 1.029296875 | DR5: =IF(Real_or_Nom="Nominal", Input_Fixed!O$10/$DF5, $DG5) -> 1.029296875 | DS5: =IF(Real_or_Nom="Nominal", Input_Fixed!P$10/$DF5, $DG5) -> 1.029296875 | DT5: =IF(Real_or_Nom="Nominal", Input_Fixed!Q$10/$DF5, $DG5) -> 1.029296875 | DU5: =IF(Real_or_Nom="Nominal", Input_Fixed!R$10/$DF5, $DG5) -> 1.029296875 | DV5: =IF(Real_or_Nom="Nominal", Input_Fixed!S$10/$DF5, $DG5) -> 1.029296875 | DW5: =IF(Real_or_Nom="Nominal", Input_Fixed!T$10/$DF5, $DG5) -> 1.029296875 | DX5: =IF(Real_or_Nom="Nominal", Input_Fixed!U$10/$DF5, $DG5) -> 1.029296875 | DY5: =IF(AND(DY$4>=$H5, $H5<>""), SUMPRODUCT((Year = DY$4) * ($CR5:$DE5) * (EscCum)) / SUMPRODUCT((Year = $H5) * ($CR5:$DE5) * (EscCum)), 100%) -> 1 | DZ5: 1 | EA5: 1 | EB5: 1 | EC5: 1 | ED5: 1 | EE5: 1 | EF5: 1 | EG5: 1 | EH5: 1 | EI5: 1 | EJ5: 1 | EK5: 1 | EL5: 1 | EM5: 1 | EN5: 1 | EP5: =J5 * DI5 * DY5 -> 0 | EQ5: 31597.49773 | ER5: =L5 * DK5 * EA5 -> 34869.74475 | ES5: =M5 * DL5 * EB5 -> 0 | ET5: =N5 * DM5 * EC5 -> 0 | EU5: =O5 * DN5 * ED5 -> 0 | EV5: =P5 * DO5 * EE5 -> 0 | EW5: =Q5 * DP5 * EF5 -> 0 | EX5: =R5 * DQ5 * EG5 -> 0 | EY5: =S5 * DR5 * EH5 -> 0 | EZ5: =T5 * DS5 * EI5 -> 0 | FB5: =IF(AND(FB$4=$F5, Real_or_Nom="Nominal"),SUMPRODUCT($EP5:$EZ5, 1/Input_Fixed!$F$10:$P$10)*$DH5, 0) -> 0 | FC5: =IF(AND(FC$4=$F5, Real_or_Nom="Nominal"),SUMPRODUCT($EQ5:$EZ5, 1/Input_Fixed!$G$10:$P$10)*$DH5, 0) -> 0 | FD5: =IF(AND(FD$4=$F5, Real_or_Nom="Nominal"),SUMPRODUCT($EQ5:$EZ5, 1/Input_Fixed!$G$10:$P$10)*$DH5, 0) -> 0 | FE5: =IF(AND(FE$4=$F5, Real_or_Nom="Nominal"),SUMPRODUCT($EQ5:$EZ5, 1/Input_Fixed!$G$10:$P$10)*$DH5, 0) -> 0 | FF5: =IF(AND(FF$4=$F5, Real_or_Nom="Nominal"),SUMPRODUCT($EQ5:$EZ5, 1/Input_Fixed!$G$10:$P$10)*$DH5, 0) -> 0 | FG5: =IF(AND(FG$4=$F5, Real_or_Nom="Real"),SUM($EQ5:$EZ5), 0) -> 0 | FH5: 0 | FI5: 0 | FJ5: 0 | FK5: =IF(AND(FK$4=$F5, Real_or_Nom="Real"),SUM($EQ5:$EZ5), 0) -> 0 | FM5: =U5 * DT5 * EJ5 -> 0 | FN5: =V5 * DU5 * EK5 -> 0 | FO5: 0 | FP5: 0 | FQ5: 0
A6: Capacitor Bank | B6: 5657 | C6: Muswellbrook No.1 132kV Capacitor Bank Detuning | E6: PS Augmentation | F6: 2010 | G6: 421465.395 | H6: 2013 | I6: C | J6: 421545.7971 | K6: -80.40212876 | L6: 0 | M6: 0 | N6: 0 | O6: 0 | P6: 0 | Q6: 0 | R6: 0 | S6: 0 | T6: 0 | U6: 0 | V6: 0 | W6: 0 | X6: 0 | Y6: 0 | Z6: 0 | AA6: 421465.395 | AB6: 0 | AC6: 0 | AD6: 0 | AE6: 0 | AF6: 0 | AG6: 0 | AH6: 0 | AI6: 0 | AJ6: 0 | AK6: 0 | AL6: 0 | AM6: 0 | AN6: 0 | AO6: 0 | AP6: 0 | AQ6: 0 | AR6: 0 | AS6: 0 | AT6: 0 | AU6: 0 | AV6: 0 | AW6: 0 | AX6: 0 | AY6: 421465.395 | AZ6: 0 | BA6: 0 | BB6: 0 | BC6: 0 | BD6: 0 | BE6: 0 | BF6: 0 | BG6: 0 | BH6: 0 | BI6: 0 | BJ6: 0 | BK6: 0 | BL6: 0 | BM6: 0 | BN6: - | BO6: =IF(E6="", "", VLOOKUP(E6,Input_Fixed!$A$105:$C$116,3,FALSE)) -> Network | BP6: =SUM(J6:Y6)-G6 -> 0 | BQ6: =SUM(Z6:AX6)-G6 -> 0 | BR6: =G6-SUM(AY6:BL6) -> 0 | BS6: =IF(SUM($Z6:$AX6)=0, 0, Z6/SUM($Z6:$AX6)) -> 0 | BT6: =IF(SUM($Z6:$AX6)=0, 0, AA6/SUM($Z6:$AX6)) -> 1 | BU6: =IF(SUM($Z6:$AX6)=0, 0, AB6/SUM($Z6:$AX6)) -> 0 | BV6: =IF(SUM($Z6:$AX6)=0, 0, AC6/SUM($Z6:$AX6)) -> 0 | BW6: =IF(SUM($Z6:$AX6)=0, 0, AD6/SUM($Z6:$AX6)) -> 0 | BX6: =IF(SUM($Z6:$AX6)=0, 0, AE6/SUM($Z6:$AX6)) -> 0 | BY6: =IF(SUM($Z6:$AX6)=0, 0, AF6/SUM($Z6:$AX6)) -> 0 | BZ6: =IF(SUM($Z6:$AX6)=0, 0, AG6/SUM($Z6:$AX6)) -> 0 | CA6: =IF(SUM($Z6:$AX6)=0, 0, AH6/SUM($Z6:$AX6)) -> 0 | CB6: =IF(SUM($Z6:$AX6)=0, 0, AI6/SUM($Z6:$AX6)) -> 0 | CC6: =IF(SUM($Z6:$AX6)=0, 0, AJ6/SUM($Z6:$AX6)) -> 0 | CD6: =IF(SUM($Z6:$AX6)=0, 0, AK6/SUM($Z6:$AX6)) -> 0 | CE6: =IF(SUM($Z6:$AX6)=0, 0, AL6/SUM($Z6:$AX6)) -> 0 | CF6: =IF(SUM($Z6:$AX6)=0, 0, AM6/SUM($Z6:$AX6)) -> 0 | CG6: =IF(SUM($Z6:$AX6)=0, 0, AN6/SUM($Z6:$AX6)) -> 0 | CH6: =IF(SUM($Z6:$AX6)=0, 0, AO6/SUM($Z6:$AX6)) -> 0 | CI6: =IF(SUM($Z6:$AX6)=0, 0, AP6/SUM($Z6:$AX6)) -> 0 | CJ6: =IF(SUM($Z6:$AX6)=0, 0, AQ6/SUM($Z6:$AX6)) -> 0 | CK6: =IF(SUM($Z6:$AX6)=0, 0, AR6/SUM($Z6:$AX6)) -> 0 | CL6: =IF(SUM($Z6:$AX6)=0, 0, AS6/SUM($Z6:$AX6)) -> 0 | CM6: =IF(SUM($Z6:$AX6)=0, 0, AT6/SUM($Z6:$AX6)) -> 0 | CN6: =IF(SUM($Z6:$AX6)=0, 0, AU6/SUM($Z6:$AX6)) -> 0 | CO6: =IF(SUM($Z6:$AX6)=0, 0, AV6/SUM($Z6:$AX6)) -> 0 | CP6: =IF(SUM($Z6:$AX6)=0, 0, AW6/SUM($Z6:$AX6)) -> 0 | CQ6: =IF(SUM($Z6:$AX6)=0, 0, AX6/SUM($Z6:$AX6)) -> 0 | CR6: =IF(SUM($AY6:$BL6)=0, 0, AY6/SUM($AY6:$BL6)) -> 1 | CS6: =IF(SUM($AY6:$BL6)=0, 0, AZ6/SUM($AY6:$BL6)) -> 0 | CT6: =IF(SUM($AY6:$BL6)=0, 0, BA6/SUM($AY6:$BL6)) -> 0 | CU6: =IF(SUM($AY6:$BL6)=0, 0, BB6/SUM($AY6:$BL6)) -> 0 | CV6: =IF(SUM($AY6:$BL6)=0, 0, BC6/SUM($AY6:$BL6)) -> 0 | CW6: =IF(SUM($AY6:$BL6)=0, 0, BD6/SUM($AY6:$BL6)) -> 0 | CX6: =IF(SUM($AY6:$BL6)=0, 0, BE6/SUM($AY6:$BL6)) -> 0 | CY6: =IF(SUM($AY6:$BL6)=0, 0, BF6/SUM($AY6:$BL6)) -> 0 | CZ6: =IF(SUM($AY6:$BL6)=0, 0, BG6/SUM($AY6:$BL6)) -> 0 | DA6: =IF(SUM($AY6:$BL6)=0, 0, BH6/SUM($AY6:$BL6)) -> 0 | DB6: =IF(SUM($AY6:$BL6)=0, 0, BI6/SUM($AY6:$BL6)) -> 0 | DC6: =IF(SUM($AY6:$BL6)=0, 0, BJ6/SUM($AY6:$BL6)) -> 0 | DD6: =IF(SUM($AY6:$BL6)=0, 0, BK6/SUM($AY6:$BL6)) -> 0 | DE6: =IF(SUM($AY6:$BL6)=0, 0, BL6/SUM($AY6:$BL6)) -> 0 | DF6: =IF(H6<>"", HLOOKUP($H6,EscCPI,7), 100%) -> 1.107051697 | DG6: =IF(H6<>"", HLOOKUP($H6,EscCPI,8), 100%) -> 1.029296875 | DH6: =IF(F6>0, HLOOKUP($F6,EscCPI,7), 0) -> 1.028880866 | DI6: =IF(Real_or_Nom="Nominal", Input_Fixed!F$10/$DF6, $DG6) -> 1.029296875 | DJ6: =IF(Real_or_Nom="Nominal", Input_Fixed!G$10/$DF6, $DG6) -> 1.029296875 | DK6: =IF(Real_or_Nom="Nominal", Input_Fixed!H$10/$DF6, $DG6) -> 1.029296875 | DL6: =IF(Real_or_Nom="Nominal", Input_Fixed!I$10/$DF6, $DG6) -> 1.029296875 | DM6: =IF(Real_or_Nom="Nominal", Input_Fixed!J$10/$DF6, $DG6) -> 1.029296875 | DN6: =IF(Real_or_Nom="Nominal", Input_Fixed!K$10/$DF6, $DG6) -> 1.029296875 | DO6: =IF(Real_or_Nom="Nominal", Input_Fixed!L$10/$DF6, $DG6) -> 1.029296875 | DP6: =IF(Real_or_Nom="Nominal", Input_Fixed!M$10/$DF6, $DG6) -> 1.029296875 | DQ6: =IF(Real_or_Nom="Nominal", Input_Fixed!N$10/$DF6, $DG6) -> 1.029296875 | DR6: =IF(Real_or_Nom="Nominal", Input_Fixed!O$10/$DF6, $DG6) -> 1.029296875 | DS6: =IF(Real_or_Nom="Nominal", Input_Fixed!P$10/$DF6, $DG6) -> 1.029296875 | DT6: =IF(Real_or_Nom="Nominal", Input_Fixed!Q$10/$DF6, $DG6) -> 1.029296875 | DU6: =IF(Real_or_Nom="Nominal", Input_Fixed!R$10/$DF6, $DG6) -> 1.029296875 | DV6: =IF(Real_or_Nom="Nominal", Input_Fixed!S$10/$DF6, $DG6) -> 1.029296875 | DW6: =IF(Real_or_Nom="Nominal", Input_Fixed!T$10/$DF6, $DG6) -> 1.029296875 | DX6: =IF(Real_or_Nom="Nominal", Input_Fixed!U$10/$DF6, $DG6) -> 1.029296875 | DY6: 1 | DZ6: 1 | EA6: 1 | EB6: 1 | EC6: 1 | ED6: 1 | EE6: 1 | EF6: 1 | EG6: 1 | EH6: 1 | EI6: 1 | EJ6: 1 | EK6: 1 | EL6: 1 | EM6: 1 | EN6: 1 | EP6: 433895.7717 | EQ6: =K6 * DJ6 * DZ6 -> -82.75765987 | ER6: =L6 * DK6 * EA6 -> 0 | ES6: =M6 * DL6 * EB6 -> 0 | ET6: =N6 * DM6 * EC6 -> 0 | EU6: =O6 * DN6 * ED6 -> 0 | EV6: =P6 * DO6 * EE6 -> 0 | EW6: =Q6 * DP6 * EF6 -> 0 | EX6: =R6 * DQ6 * EG6 -> 0 | EY6: =S6 * DR6 * EH6 -> 0 | EZ6: =T6 * DS6 * EI6 -> 0 | FB6: =IF(AND(FB$4=$F6, Real_or_Nom="Nominal"),SUMPRODUCT($EP6:$EZ6, 1/Input_Fixed!$G$10:$P$10)*$DH6, 0) -> 0 | FC6: =IF(AND(FC$4=$F6, Real_or_Nom="Nominal"),SUMPRODUCT($EQ6:$EZ6, 1/Input_Fixed!$G$10:$P$10)*$DH6, 0) -> 0 | FD6: =IF(AND(FD$4=$F6, Real_or_Nom="Nominal"),SUMPRODUCT($EQ6:$EZ6, 1/Input_Fixed!$G$10:$P$10)*$DH6, 0) -> 0 | FE6: =IF(AND(FE$4=$F6, Real_or_Nom="Nominal"),SUMPRODUCT($EQ6:$EZ6, 1/Input_Fixed!$G$10:$P$10)*$DH6, 0) -> 0 | FF6: =IF(AND(FF$4=$F6, Real_or_Nom="Nominal"),SUMPRODUCT($EQ6:$EZ6, 1/Input_Fixed!$G$10:$P$10)*$DH6, 0) -> 0 | FG6: 0 | FH6: 0 | FI6: 0 | FJ6: 0 | FK6: 0 | FM6: =U6 * DT6 * EJ6 -> 0 | FN6: =V6 * DU6 * EK6 -> 0 | FO6: =W6 * DV6 * EL6 -> 0 | FP6: =X6 * DW6 * EM6 -> 0 | FQ6: =Y6 * DX6 * EN6 -> 0
A7: Capacitor Bank | B7: 6234 | C7: Capacitor Banks | E7: PS Augmentation | F7: 2010 | G7: -0.2146624869 | H7: 2013 | I7: C | J7: -7.115951053 | K7: 6.901288566 | L7: 0 | M7: 0 | N7: 0 | O7: 0 | P7: 0 | Q7: 0 | R7: 0 | S7: 0 | T7: 0 | U7: 0 | V7: 0 | W7: 0 | X7: 0 | Y7: 0 | Z7: 0 | AA7: -0.2146624869 | AB7: 0 | AC7: 0 | AD7: 0 | AE7: 0 | AF7: 0 | AG7: 0 | AH7: 0 | AI7: 0 | AJ7: 0 | AK7: 0 | AL7: 0 | AM7: 0 | AN7: 0 | AO7: 0 | AP7: 0 | AQ7: 0 | AR7: 0 | AS7: 0 | AT7: 0 | AU7: 0 | AV7: 0 | AW7: 0 | AX7: 0 | AY7: -0.2146624869 | AZ7: 0 | BA7: 0 | BB7: 0 | BC7: 0 | BD7: 0 | BE7: 0 | BF7: 0 | BG7: 0 | BH7: 0 | BI7: 0 | BJ7: 0 | BK7: 0 | BL7: 0 | BM7: 0 | BN7: - | BO7: =IF(E7="", "", VLOOKUP(E7,Input_Fixed!$A$105:$C$116,3,FALSE)) -> Network | BP7: 3.386180225e-15 | BQ7: 0 | BR7: 0 | BS7: 0 | BT7: 1 | BU7: 0 | BV7: 0 | BW7: 0 | BX7: 0 | BY7: 0 | BZ7: 0 | CA7: 0 | CB7: 0 | CC7: 0 | CD7: 0 | CE7: 0 | CF7: 0 | CG7: 0 | CH7: 0 | CI7: 0 | CJ7: 0 | CK7: 0 | CL7: 0 | CM7: 0 | CN7: 0 | CO7: 0 | CP7: 0 | CQ7: 0 | CR7: 1 | CS7: 0 | CT7: 0 | CU7: 0 | CV7: 0 | CW7: 0 | CX7: 0 | CY7: 0 | CZ7: 0 | DA7: 0 | DB7: 0 | DC7: 0 | DD7: 0 | DE7: 0 | DF7: 1.107051697 | DG7: 1.029296875 | DH7: 1.028880866 | DI7: =IF(Real_or_Nom="Nominal", Input_Fixed!F$10/$DF7, $DG7) -> 1.029296875 | DJ7: =IF(Real_or_Nom="Nominal", Input_Fixed!G$10/$DF7, $DG7) -> 1.029296875 | DK7: =IF(Real_or_Nom="Nominal", Input_Fixed!H$10/$DF7, $DG7) -> 1.029296875 | DL7: =IF(Real_or_Nom="Nominal", Input_Fixed!I$10/$DF7, $DG7) -> 1.029296875 | DM7: =IF(Real_or_Nom="Nominal", Input_Fixed!J$10/$DF7, $DG7) -> 1.029296875 | DN7: =IF(Real_or_Nom="Nominal", Input_Fixed!K$10/$DF7, $DG7) -> 1.029296875 | DO7: =IF(Real_or_Nom="Nominal", Input_Fixed!L$10/$DF7, $DG7) -> 1.029296875 | DP7: =IF(Real_or_Nom="Nominal", Input_Fixed!M$10/$DF7, $DG7) -> 1.029296875 | DQ7: =IF(Real_or_Nom="Nominal", Input_Fixed!N$10/$DF7, $DG7) -> 1.029296875 | DR7: =IF(Real_or_Nom="Nominal", Input_Fixed!O$10/$DF7, $DG7) -> 1.029296875 | DS7: =IF(Real_or_Nom="Nominal", Input_Fixed!P$10/$DF7, $DG7) -> 1.029296875 | DT7: =IF(Real_or_Nom="Nominal", Input_Fixed!Q$10/$DF7, $DG7) -> 1.029296875 | DU7: =IF(Real_or_Nom="Nominal", Input_Fixed!R$10/$DF7, $DG7) -> 1.029296875 | DV7: =IF(Real_or_Nom="Nominal", Input_Fixed!S$10/$DF7, $DG7) -> 1.029296875 | DW7: =IF(Real_or_Nom="Nominal", Input_Fixed!T$10/$DF7, $DG7) -> 1.029296875 | DX7: =IF(Real_or_Nom="Nominal", Input_Fixed!U$10/$DF7, $DG7) -> 1.029296875 | DY7: 1 | DZ7: 1 | EA7: 1 | EB7: 1 | EC7: 1 | ED7: 1 | EE7: 1 | EF7: 1 | EG7: 1 | EH7: 1 | EI7: 1 | EJ7: 1 | EK7: 1 | EL7: 1 | EM7: 1 | EN7: 1 | EP7: -7.324426182 | EQ7: 7.103474755 | ER7: 0 | ES7: 0 | ET7: 0 | EU7: 0 | EV7: 0 | EW7: 0 | EX7: 0 | EY7: 0 | EZ7: 0 | FB7: =IF(AND(FB$4=$F7, Real_or_Nom="Nominal"),SUMPRODUCT($EP7:$EZ7, 1/Input_Fixed!$F$10:$P$10)*$DH7, 0) -> 0 | FC7: =IF(AND(FC$4=$F7, Real_or_Nom="Nominal"),SUMPRODUCT($EQ7:$EZ7, 1/Input_Fixed!$G$10:$P$10)*$DH7, 0) -> 0 | FD7: =IF(AND(FD$4=$F7, Real_or_Nom="Nominal"),SUMPRODUCT($EQ7:$EZ7, 1/Input_Fixed!$G$10:$P$10)*$DH7, 0) -> 0 | FE7: =IF(AND(FE$4=$F7, Real_or_Nom="Nominal"),SUMPRODUCT($EQ7:$EZ7, 1/Input_Fixed!$G$10:$P$10)*$DH7, 0) -> 0 | FF7: =IF(AND(FF$4=$F7, Real_or_Nom="Nominal"),SUMPRODUCT($EQ7:$EZ7, 1/Input_Fixed!$G$10:$P$10)*$DH7, 0) -> 0 | FG7: 0 | FH7: 0 | FI7: 0 | FJ7: 0 | FK7: 0 | FM7: 0 | FN7: 0 | FO7: 0 | FP7: 0 | FQ7: 0
A8: Capacitor Bank | B8: 6192 | C8: Beryl 66kV Capacitor Bank | E8: PS Augmentation | F8: 2011 | G8: -6.029316138 | H8: 2013 | I8: C | J8: -199.8687295 | K8: 193.8394134 | L8: 0 | M8: 0 | N8: 0 | O8: 0 | P8: 0 | Q8: 0 | R8: 0 | S8: 0 | T8: 0 | U8: 0 | V8: 0 | W8: 0 | X8: 0 | Y8: 0 | Z8: 0 | AA8: -6.029316138 | AB8: 0 | AC8: 0 | AD8: 0 | AE8: 0 | AF8: 0 | AG8: 0 | AH8: 0 | AI8: 0 | AJ8: 0 | AK8: 0 | AL8: 0 | AM8: 0 | AN8: 0 | AO8: 0 | AP8: 0 | AQ8: 0 | AR8: 0 | AS8: 0 | AT8: 0 | AU8: 0 | AV8: 0 | AW8: 0 | AX8: 0 | AY8: -6.029316138 | AZ8: 0 | BA8: 0 | BB8: 0 | BC8: 0 | BD8: 0 | BE8: 0 | BF8: 0 | BG8: 0 | BH8: 0 | BI8: 0 | BJ8: 0 | BK8: 0 | BL8: 0 | BM8: 1 | BN8: - | BO8: =IF(E8="", "", VLOOKUP(E8,Input_Fixed!$A$105:$C$116,3,FALSE)) -> Network | BP8: 3.4283687e-13 | BQ8: 0 | BR8: 0 | BS8: 0 | BT8: 1 | BU8: 0 | BV8: 0 | BW8: 0 | BX8: 0 | BY8: 0 | BZ8: 0 | CA8: 0 | CB8: 0 | CC8: 0 | CD8: 0 | CE8: 0 | CF8: 0 | CG8: 0 | CH8: 0 | CI8: 0 | CJ8: 0 | CK8: 0 | CL8: 0 | CM8: 0 | CN8: 0 | CO8: 0 | CP8: 0 | CQ8: 0 | CR8: 1 | CS8: 0 | CT8: 0 | CU8: 0 | CV8: 0 | CW8: 0 | CX8: 0 | CY8: 0 | CZ8: 0 | DA8: 0 | DB8: 0 | DC8: 0 | DD8: 0 | DE8: 0 | DF8: 1.107051697 | DG8: 1.029296875 | DH8: 1.063176895 | DI8: =IF(Real_or_Nom="Nominal", Input_Fixed!F$10/$DF8, $DG8) -> 1.029296875 | DJ8: =IF(Real_or_Nom="Nominal", Input_Fixed!G$10/$DF8, $DG8) -> 1.029296875 | DK8: =IF(Real_or_Nom="Nominal", Input_Fixed!H$10/$DF8, $DG8) -> 1.029296875 | DL8: =IF(Real_or_Nom="Nominal", Input_Fixed!I$10/$DF8, $DG8) -> 1.029296875 | DM8: =IF(Real_or_Nom="Nominal", Input_Fixed!J$10/$DF8, $DG8) -> 1.029296875 | DN8: =IF(Real_or_Nom="Nominal", Input_Fixed!K$10/$DF8, $DG8) -> 1.029296875 | DO8: =IF(Real_or_Nom="Nominal", Input_Fixed!L$10/$DF8, $DG8) -> 1.029296875 | DP8: =IF(Real_or_Nom="Nominal", Input_Fixed!M$10/$DF8, $DG8) -> 1.029296875 | DQ8: =IF(Real_or_Nom="Nominal", Input_Fixed!N$10/$DF8, $DG8) -> 1.029296875 | DR8: =IF(Real_or_Nom="Nominal", Input_Fixed!O$10/$DF8, $DG8) -> 1.029296875 | DS8: =IF(Real_or_Nom="Nominal", Input_Fixed!P$10/$DF8, $DG8) -> 1.029296875 | DT8: =IF(Real_or_Nom="Nominal", Input_Fixed!Q$10/$DF8, $DG8) -> 1.029296875 | DU8: =IF(Real_or_Nom="Nominal", Input_Fixed!R$10/$DF8, $DG8) -> 1.029296875 | DV8: =IF(Real_or_Nom="Nominal", Input_Fixed!S$10/$DF8, $DG8) -> 1.029296875 | DW8: =IF(Real_or_Nom="Nominal", Input_Fixed!T$10/$DF8, $DG8) -> 1.029296875 | DX8: =IF(Real_or_Nom="Nominal", Input_Fixed!U$10/$DF8, $DG8) -> 1.029296875 | DY8: 1 | DZ8: 1 | EA8: 1 | EB8: 1 | EC8: 1 | ED8: 1 | EE8: 1 | EF8: 1 | EG8: 1 | EH8: 1 | EI8: 1 | EJ8: 1 | EK8: 1 | EL8: 1 | EM8: 1 | EN8: 1 | EP8: -205.7242587 | EQ8: 199.5183024 | ER8: 0 | ES8: 0 | ET8: 0 | EU8: 0 | EV8: 0 | EW8: 0 | EX8: 0 | EY8: 0 | EZ8: 0 | FB8: =IF(AND(FB$4=$F8, Real_or_Nom="Nominal"),SUMPRODUCT($EP8:$EZ8, 1/Input_Fixed!$F$10:$P$10)*$DH8, 0) -> 0 | FC8: =IF(AND(FC$4=$F8, Real_or_Nom="Nominal"),SUMPRODUCT($EQ8:$EZ8, 1/Input_Fixed!$G$10:$P$10)*$DH8, 0) -> 0 | FD8: =IF(AND(FD$4=$F8, Real_or_Nom="Nominal"),SUMPRODUCT($EQ8:$EZ8, 1/Input_Fixed!$G$10:$P$10)*$DH8, 0) -> 0 | FE8: =IF(AND(FE$4=$F8, Real_or_Nom="Nominal"),SUMPRODUCT($EQ8:$EZ8, 1/Input_Fixed!$G$10:$P$10)*$DH8, 0) -> 0 | FF8: =IF(AND(FF$4=$F8, Real_or_Nom="Nominal"),SUMPRODUCT($EQ8:$EZ8, 1/Input_Fixed!$G$10:$P$10)*$DH8, 0) -> 0 | FG8: 0 | FH8: 0 | FI8: 0 | FJ8: 0 | FK8: 0 | FM8: 0 | FN8: 0 | FO8: 0 | FP8: 0 | FQ8: 0
A9: Capacitor Bank | B9: 6211 | C9: Sydney North & East 330kV 2 x 200 MVAr Capacitor Banks | E9: PS Augmentation | F9: 2011 | G9: 14608241.4 | H9: 2013 | I9: C | J9: 13966135.86 | K9: 105206.4713 | L9: 554764.8041 | M9: -17865.73519 | N9: 0 | O9: 0 | P9: 0 | Q9: 0 | R9: 0 | S9: 0 | T9: 0 | U9: 0 | V9: 0 | W9: 0 | X9: 0 | Y9: 0 | Z9: 0 | AA9: 14462158.99 | AB9: 146082.414 | AC9: 0 | AD9: 0 | AE9: 0 | AF9: 0 | AG9: 0 | AH9: 0 | AI9: 0 | AJ9: 0 | AK9: 0 | AL9: 0 | AM9: 0 | AN9: 0 | AO9: 0 | AP9: 0 | AQ9: 0 | AR9: 0 | AS9: 0 | AT9: 0 | AU9: 0 | AV9: 0 | AW9: 0 | AX9: 0 | AY9: 14608241.4 | AZ9: 0 | BA9: 0 | BB9: 0 | BC9: 0 | BD9: 0 | BE9: 0 | BF9: 0 | BG9: 0 | BH9: 0 | BI9: 0 | BJ9: 0 | BK9: 0 | BL9: 0 | BM9: 0 | BN9: - | BO9: =IF(E9="", "", VLOOKUP(E9,Input_Fixed!$A$105:$C$116,3,FALSE)) -> Network | BP9: 0 | BQ9: 0 | BR9: 0 | BS9: 0 | BT9: 0.99 | BU9: 0.01 | BV9: 0 | BW9: 0 | BX9: 0 | BY9: 0 | BZ9: 0 | CA9: 0 | CB9: 0 | CC9: 0 | CD9: 0 | CE9: 0 | CF9: 0 | CG9: 0 | CH9: 0 | CI9: 0 | CJ9: 0 | CK9: 0 | CL9: 0 | CM9: 0 | CN9: 0 | CO9: 0 | CP9: 0 | CQ9: 0 | CR9: 1 | CS9: 0 | CT9: 0 | CU9: 0 | CV9: 0 | CW9: 0 | CX9: 0 | CY9: 0 | CZ9: 0 | DA9: 0 | DB9: 0 | DC9: 0 | DD9: 0 | DE9: 0 | DF9: 1.107051697 | DG9: 1.029296875 | DH9: 1.063176895 | DI9: =IF(Real_or_Nom="Nominal", Input_Fixed!F$10/$DF9, $DG9) -> 1.029296875 | DJ9: =IF(Real_or_Nom="Nominal", Input_Fixed!G$10/$DF9, $DG9) -> 1.029296875 | DK9: =IF(Real_or_Nom="Nominal", Input_Fixed!H$10/$DF9, $DG9) -> 1.029296875 | DL9: =IF(Real_or_Nom="Nominal", Input_Fixed!I$10/$DF9, $DG9) -> 1.029296875 | DM9: =IF(Real_or_Nom="Nominal", Input_Fixed!J$10/$DF9, $DG9) -> 1.029296875 | DN9: =IF(Real_or_Nom="Nominal", Input_Fixed!K$10/$DF9, $DG9) -> 1.029296875 | DO9: =IF(Real_or_Nom="Nominal", Input_Fixed!L$10/$DF9, $DG9) -> 1.029296875 | DP9: =IF(Real_or_Nom="Nominal", Input_Fixed!M$10/$DF9, $DG9) -> 1.029296875 | DQ9: =IF(Real_or_Nom="Nominal", Input_Fixed!N$10/$DF9, $DG9) -> 1.029296875 | DR9: =IF(Real_or_Nom="Nominal", Input_Fixed!O$10/$DF9, $DG9) -> 1.029296875 | DS9: =IF(Real_or_Nom="Nominal", Input_Fixed!P$10/$DF9, $DG9) -> 1.029296875 | DT9: =IF(Real_or_Nom="Nominal", Input_Fixed!Q$10/$DF9, $DG9) -> 1.029296875 | DU9: =IF(Real_or_Nom="Nominal", Input_Fixed!R$10/$DF9, $DG9) -> 1.029296875 | DV9: =IF(Real_or_Nom="Nominal", Input_Fixed!S$10/$DF9, $DG9) -> 1.029296875 | DW9: =IF(Real_or_Nom="Nominal", Input_Fixed!T$10/$DF9, $DG9) -> 1.029296875 | DX9: =IF(Real_or_Nom="Nominal", Input_Fixed!U$10/$DF9, $DG9) -> 1.029296875 | DY9: 1 | DZ9: 1 | EA9: 1 | EB9: 1 | EC9: 1 | ED9: 1 | EE9: 1 | EF9: 1 | EG9: 1 | EH9: 1 | EI9: 1 | EJ9: 1 | EK9: 1 | EL9: 1 | EM9: 1 | EN9: 1 | EP9: 14375300 | EQ9: 108288.6921 | ER9: 571017.6792 | ES9: -18389.1454 | ET9: 0 | EU9: 0 | EV9: 0 | EW9: 0 | EX9: 0 | EY9: 0 | EZ9: 0 | FB9: =IF(AND(FB$4=$F9, Real_or_Nom="Nominal"),SUMPRODUCT($EP9:$EZ9, 1/Input_Fixed!$F$10:$P$10)*$DH9, 0) -> 0 | FC9: =IF(AND(FC$4=$F9, Real_or_Nom="Nominal"),SUMPRODUCT($EQ9:$EZ9, 1/Input_Fixed!$G$10:$P$10)*$DH9, 0) -> 0 | FD9: =IF(AND(FD$4=$F9, Real_or_Nom="Nominal"),SUMPRODUCT($EQ9:$EZ9, 1/Input_Fixed!$G$10:$P$10)*$DH9, 0) -> 0 | FE9: =IF(AND(FE$4=$F9, Real_or_Nom="Nominal"),SUMPRODUCT($EQ9:$EZ9, 1/Input_Fixed!$G$10:$P$10)*$DH9, 0) -> 0 | FF9: =IF(AND(FF$4=$F9, Real_or_Nom="Nominal"),SUMPRODUCT($EQ9:$EZ9, 1/Input_Fixed!$G$10:$P$10)*$DH9, 0) -> 0 | FG9: 0 | FH9: 0 | FI9: 0 | FJ9: 0 | FK9: 0 | FM9: 0 | FN9: 0 | FO9: 0 | FP9: 0 | FQ9: 0
A10: Capacitor Bank | B10: 6241 | C10: Sydney North & East 330kV 2 x 200 MVAr Capacitor Banks | E10: PS Augmentation | F10: 2011 | G10: 27.71647823 | H10: 2013 | I10: C | J10: 518.9623813 | K10: 0 | L10: -491.245903 | M10: 0 | N10: 0 | O10: 0 | P10: 0 | Q10: 0 | R10: 0 | S10: 0 | T10: 0 | U10: 0 | V10: 0 | W10: 0 | X10: 0 | Y10: 0 | Z10: 0 | AA10: 0 | AB10: 0 | AC10: 0 | AD10: 0 | AE10: 0 | AF10: 0 | AG10: 0 | AH10: 0 | AI10: 0 | AJ10: 0 | AK10: 0 | AL10: 0 | AM10: 0 | AN10: 0 | AO10: 0 | AP10: 0 | AQ10: 0 | AR10: 0 | AS10: 0 | AT10: 0 | AU10: 0 | AV10: 0 | AW10: 0 | AX10: 0 | AY10: 27.71647823 | AZ10: 0 | BA10: 0 | BB10: 0 | BC10: 0 | BD10: 0 | BE10: 0 | BF10: 0 | BG10: 0 | BH10: 0 | BI10: 0 | BJ10: 0 | BK10: 0 | BL10: 0 | BM10: 1 | BN10: - | BO10: =IF(E10="", "", VLOOKUP(E10,Input_Fixed!$A$105:$C$116,3,FALSE)) -> Network | BP10: 4.263256415e-13 | BQ10: -27.71647823 | BR10: 0 | BS10: 0 | BT10: 0 | BU10: 0 | BV10: 0 | BW10: 0 | BX10: 0 | BY10: 0 | BZ10: 0 | CA10: 0 | CB10: 0 | CC10: 0 | CD10: 0 | CE10: 0 | CF10: 0 | CG10: 0 | CH10: 0 | CI10: 0 | CJ10: 0 | CK10: 0 | CL10: 0 | CM10: 0 | CN10: 0 | CO10: 0 | CP10: 0 | CQ10: 0 | CR10: 1 | CS10: 0 | CT10: 0 | CU10: 0 | CV10: 0 | CW10: 0 | CX10: 0 | CY10: 0 | CZ10: 0 | DA10: 0 | DB10: 0 | DC10: 0 | DD10: 0 | DE10: 0 | DF10: 1.107051697 | DG10: 1.029296875 | DH10: 1.063176895 | DI10: =IF(Real_or_Nom="Nominal", Input_Fixed!F$10/$DF10, $DG10) -> 1.029296875 | DJ10: =IF(Real_or_Nom="Nominal", Input_Fixed!G$10/$DF10, $DG10) -> 1.029296875 | DK10: =IF(Real_or_Nom="Nominal", Input_Fixed!H$10/$DF10, $DG10) -> 1.029296875 | DL10: =IF(Real_or_Nom="Nominal", Input_Fixed!I$10/$DF10, $DG10) -> 1.029296875 | DM10: =IF(Real_or_Nom="Nominal", Input_Fixed!J$10/$DF10, $DG10) -> 1.029296875 | DN10: =IF(Real_or_Nom="Nominal", Input_Fixed!K$10/$DF10, $DG10) -> 1.029296875 | DO10: =IF(Real_or_Nom="Nominal", Input_Fixed!L$10/$DF10, $DG10) -> 1.029296875 | DP10: =IF(Real_or_Nom="Nominal", Input_Fixed!M$10/$DF10, $DG10) -> 1.029296875 | DQ10: =IF(Real_or_Nom="Nominal", Input_Fixed!N$10/$DF10, $DG10) -> 1.029296875 | DR10: =IF(Real_or_Nom="Nominal", Input_Fixed!O$10/$DF10, $DG10) -> 1.029296875 | DS10: =IF(Real_or_Nom="Nominal", Input_Fixed!P$10/$DF10, $DG10) -> 1.029296875 | DT10: =IF(Real_or_Nom="Nominal", Input_Fixed!Q$10/$DF10, $DG10) -> 1.029296875 | DU10: =IF(Real_or_Nom="Nominal", Input_Fixed!R$10/$DF10, $DG10) -> 1.029296875 | DV10: =IF(Real_or_Nom="Nominal", Input_Fixed!S$10/$DF10, $DG10) -> 1.029296875 | DW10: =IF(Real_or_Nom="Nominal", Input_Fixed!T$10/$DF10, $DG10) -> 1.029296875 | DX10: =IF(Real_or_Nom="Nominal", Input_Fixed!U$10/$DF10, $DG10) -> 1.029296875 | DY10: 1 | DZ10: 1 | EA10: 1 | EB10: 1 | EC10: 1 | ED10: 1 | EE10: 1 | EF10: 1 | EG10: 1 | EH10: 1 | EI10: 1 | EJ10: 1 | EK10: 1 | EL10: 1 | EM10: 1 | EN10: 1 | EP10: 534.1663573 | EQ10: 0 | ER10: -505.6378728 | ES10: 0 | ET10: 0 | EU10: 0 | EV10: 0 | EW10: 0 | EX10: 0 | EY10: 0 | EZ10: 0 | FB10: =IF(AND(FB$4=$F10, Real_or_Nom="Nominal"),SUMPRODUCT($EP10:$EZ10, 1/Input_Fixed!$F$10:$P$10)*$DH10, 0) -> 0 | FC10: =IF(AND(FC$4=$F10, Real_or_Nom="Nominal"),SUMPRODUCT($EQ10:$EZ10, 1/Input_Fixed!$G$10:$P$10)*$DH10, 0) -> 0 | FD10: =IF(AND(FD$4=$F10, Real_or_Nom="Nominal"),SUMPRODUCT($EQ10:$EZ10, 1/Input_Fixed!$G$10:$P$10)*$DH10, 0) -> 0 | FE10: =IF(AND(FE$4=$F10, Real_or_Nom="Nominal"),SUMPRODUCT($EQ10:$EZ10, 1/Input_Fixed!$G$10:$P$10)*$DH10, 0) -> 0 | FF10: =IF(AND(FF$4=$F10, Real_or_Nom="Nominal"),SUMPRODUCT($EQ10:$EZ10, 1/Input_Fixed!$G$10:$P$10)*$DH10, 0) -> 0 | FG10: 0 | FH10: 0 | FI10: 0 | FJ10: 0 | FK10: 0 | FM10: 0 | FN10: 0 | FO10: 0 | FP10: 0 | FQ10: 0
A11: Capacitor Bank | B11: 6258 | C11: Regentville 330kV Capacitor Bank | E11: PS Augmentation | F11: 2011 | G11: 11.41242749 | H11: 2013 | I11: C | J11: 213.6858983 | K11: 0 | L11: -202.2734708 | M11: 0 | N11: 0 | O11: 0 | P11: 0 | Q11: 0 | R11: 0 | S11: 0 | T11: 0 | U11: 0 | V11: 0 | W11: 0 | X11: 0 | Y11: 0 | Z11: 0 | AA11: 11.29830322 | AB11: 0.1141242749 | AC11: 0 | AD11: 0 | AE11: 0 | AF11: 0 | AG11: 0 | AH11: 0 | AI11: 0 | AJ11: 0 | AK11: 0 | AL11: 0 | AM11: 0 | AN11: 0 | AO11: 0 | AP11: 0 | AQ11: 0 | AR11: 0 | AS11: 0 | AT11: 0 | AU11: 0 | AV11: 0 | AW11: 0 | AX11: 0 | AY11: 11.41242749 | AZ11: 0 | BA11: 0 | BB11: 0 | BC11: 0 | BD11: 0 | BE11: 0 | BF11: 0 | BG11: 0 | BH11: 0 | BI11: 0 | BJ11: 0 | BK11: 0 | BL11: 0 | BM11: 1 | BN11: - | BO11: =IF(E11="", "", VLOOKUP(E11,Input_Fixed!$A$105:$C$116,3,FALSE)) -> Network | BP11: 0 | BQ11: -4.085620731e-14 | BR11: 0 | BS11: 0 | BT11: 0.99 | BU11: 0.01 | BV11: 0 | BW11: 0 | BX11: 0 | BY11: 0 | BZ11: 0 | CA11: 0 | CB11: 0 | CC11: 0 | CD11: 0 | CE11: 0 | CF11: 0 | CG11: 0 | CH11: 0 | CI11: 0 | CJ11: 0 | CK11: 0 | CL11: 0 | CM11: 0 | CN11: 0 | CO11: 0 | CP11: 0 | CQ11: 0 | CR11: 1 | CS11: 0 | CT11: 0 | CU11: 0 | CV11: 0 | CW11: 0 | CX11: 0 | CY11: 0 | CZ11: 0 | DA11: 0 | DB11: 0 | DC11: 0 | DD11: 0 | DE11: 0 | DF11: 1.107051697 | DG11: 1.029296875 | DH11: 1.063176895 | DI11: =IF(Real_or_Nom="Nominal", Input_Fixed!F$10/$DF11, $DG11) -> 1.029296875 | DJ11: =IF(Real_or_Nom="Nominal", Input_Fixed!G$10/$DF11, $DG11) -> 1.029296875 | DK11: =IF(Real_or_Nom="Nominal", Input_Fixed!H$10/$DF11, $DG11) -> 1.029296875 | DL11: =IF(Real_or_Nom="Nominal", Input_Fixed!I$10/$DF11, $DG11) -> 1.029296875 | DM11: =IF(Real_or_Nom="Nominal", Input_Fixed!J$10/$DF11, $DG11) -> 1.029296875 | DN11: =IF(Real_or_Nom="Nominal", Input_Fixed!K$10/$DF11, $DG11) -> 1.029296875 | DO11: =IF(Real_or_Nom="Nominal", Input_Fixed!L$10/$DF11, $DG11) -> 1.029296875 | DP11: =IF(Real_or_Nom="Nominal", Input_Fixed!M$10/$DF11, $DG11) -> 1.029296875 | DQ11: =IF(Real_or_Nom="Nominal", Input_Fixed!N$10/$DF11, $DG11) -> 1.029296875 | DR11: =IF(Real_or_Nom="Nominal", Input_Fixed!O$10/$DF11, $DG11) -> 1.029296875 | DS11: =IF(Real_or_Nom="Nominal", Input_Fixed!P$10/$DF11, $DG11) -> 1.029296875 | DT11: =IF(Real_or_Nom="Nominal", Input_Fixed!Q$10/$DF11, $DG11) -> 1.029296875 | DU11: =IF(Real_or_Nom="Nominal", Input_Fixed!R$10/$DF11, $DG11) -> 1.029296875 | DV11: =IF(Real_or_Nom="Nominal", Input_Fixed!S$10/$DF11, $DG11) -> 1.029296875 | DW11: =IF(Real_or_Nom="Nominal", Input_Fixed!T$10/$DF11, $DG11) -> 1.029296875 | DX11: =IF(Real_or_Nom="Nominal", Input_Fixed!U$10/$DF11, $DG11) -> 1.029296875 | DY11: 1 | DZ11: 1 | EA11: 1 | EB11: 1 | EC11: 1 | ED11: 1 | EE11: 1 | EF11: 1 | EG11: 1 | EH11: 1 | EI11: 1 | EJ11: 1 | EK11: 1 | EL11: 1 | EM11: 1 | EN11: =IF(AND(EN$4>=$H11, $H11<>""), SUMPRODUCT((Year = EN$4) * ($CR11:$DE11) * (EscCum)) / SUMPRODUCT((Year = $H11) * ($CR11:$DE11) * (EscCum)), 100%) -> 1 | EP11: 219.9462273 | EQ11: 0 | ER11: -208.1994514 | ES11: 0 | ET11: 0 | EU11: 0 | EV11: 0 | EW11: 0 | EX11: 0 | EY11: 0 | EZ11: 0 | FB11: =IF(AND(FB$4=$F11, Real_or_Nom="Nominal"),SUMPRODUCT($EP11:$EZ11, 1/Input_Fixed!$F$10:$P$10)*$DH11, 0) -> 0 | FC11: =IF(AND(FC$4=$F11, Real_or_Nom="Nominal"),SUMPRODUCT($EQ11:$EZ11, 1/Input_Fixed!$G$10:$P$10)*$DH11, 0) -> 0 | FD11: =IF(AND(FD$4=$F11, Real_or_Nom="Nominal"),SUMPRODUCT($EQ11:$EZ11, 1/Input_Fixed!$G$10:$P$10)*$DH11, 0) -> 0 | FE11: =IF(AND(FE$4=$F11, Real_or_Nom="Nominal"),SUMPRODUCT($EQ11:$EZ11, 1/Input_Fixed!$G$10:$P$10)*$DH11, 0) -> 0 | FF11: =IF(AND(FF$4=$F11, Real_or_Nom="Nominal"),SUMPRODUCT($EQ11:$EZ11, 1/Input_Fixed!$G$10:$P$10)*$DH11, 0) -> 0 | FG11: 0 | FH11: 0 | FI11: 0 | FJ11: 0 | FK11: 0 | FM11: 0 | FN11: 0 | FO11: 0 | FP11: 0 | FQ11: 0
A12: Capacitor Bank | B12: 6384 | C12: Sydney Area 200MVAr Capacitor Bank | E12: PS Augmentation | F12: 2011 | G12: -1246.402566 | H12: 2013 | I12: C | J12: 334.908089 | K12: -0.2116959683 | L12: -1581.098959 | M12: 0 | N12: 0 | O12: 0 | P12: 0 | Q12: 0 | R12: 0 | S12: 0 | T12: 0 | U12: 0 | V12: 0 | W12: 0 | X12: 0 | Y12: 0 | Z12: 0 | AA12: -1233.93854 | AB12: -12.46402566 | AC12: 0 | AD12: 0 | AE12: 0 | AF12: 0 | AG12: 0 | AH12: 0 | AI12: 0 | AJ12: 0 | AK12: 0 | AL12: 0 | AM12: 0 | AN12: 0 | AO12: 0 | AP12: 0 | AQ12: 0 | AR12: 0 | AS12: 0 | AT12: 0 | AU12: 0 | AV12: 0 | AW12: 0 | AX12: 0 | AY12: -1246.402566 | AZ12: 0 | BA12: 0 | BB12: 0 | BC12: 0 | BD12: 0 | BE12: 0 | BF12: 0 | BG12: 0 | BH12: 0 | BI12: 0 | BJ12: 0 | BK12: 0 | BL12: 0 | BM12: 1 | BN12: - | BO12: =IF(E12="", "", VLOOKUP(E12,Input_Fixed!$A$105:$C$116,3,FALSE)) -> Network | BP12: -3.637978807e-12 | BQ12: 1.818989404e-12 | BR12: 0 | BS12: 0 | BT12: 0.99 | BU12: 0.01 | BV12: 0 | BW12: 0 | BX12: 0 | BY12: 0 | BZ12: 0 | CA12: 0 | CB12: 0 | CC12: 0 | CD12: 0 | CE12: 0 | CF12: 0 | CG12: 0 | CH12: 0 | CI12: 0 | CJ12: 0 | CK12: 0 | CL12: 0 | CM12: 0 | CN12: 0 | CO12: 0 | CP12: 0 | CQ12: 0 | CR12: 1 | CS12: 0 | CT12: 0 | CU12: 0 | CV12: 0 | CW12: 0 | CX12: 0 | CY12: 0 | CZ12: 0 | DA12: 0 | DB12: 0 | DC12: 0 | DD12: 0 | DE12: 0 | DF12: 1.107051697 | DG12: 1.029296875 | DH12: 1.063176895 | DI12: =IF(Real_or_Nom="Nominal", Input_Fixed!F$10/$DF12, $DG12) -> 1.029296875 | DJ12: =IF(Real_or_Nom="Nominal", Input_Fixed!G$10/$DF12, $DG12) -> 1.029296875 | DK12: =IF(Real_or_Nom="Nominal", Input_Fixed!H$10/$DF12, $DG12) -> 1.029296875 | DL12: =IF(Real_or_Nom="Nominal", Input_Fixed!I$10/$DF12, $DG12) -> 1.029296875 | DM12: =IF(Real_or_Nom="Nominal", Input_Fixed!J$10/$DF12, $DG12) -> 1.029296875 | DN12: =IF(Real_or_Nom="Nominal", Input_Fixed!K$10/$DF12, $DG12) -> 1.029296875 | DO12: =IF(Real_or_Nom="Nominal", Input_Fixed!L$10/$DF12, $DG12) -> 1.029296875 | DP12: =IF(Real_or_Nom="Nominal", Input_Fixed!M$10/$DF12, $DG12) -> 1.029296875 | DQ12: =IF(Real_or_Nom="Nominal", Input_Fixed!N$10/$DF12, $DG12) -> 1.029296875 | DR12: =IF(Real_or_Nom="Nominal", Input_Fixed!O$10/$DF12, $DG12) -> 1.029296875 | DS12: =IF(Real_or_Nom="Nominal", Input_Fixed!P$10/$DF12, $DG12) -> 1.029296875 | DT12: =IF(Real_or_Nom="Nominal", Input_Fixed!Q$10/$DF12, $DG12) -> 1.029296875 | DU12: =IF(Real_or_Nom="Nominal", Input_Fixed!R$10/$DF12, $DG12) -> 1.029296875 | DV12: =IF(Real_or_Nom="Nominal", Input_Fixed!S$10/$DF12, $DG12) -> 1.029296875 | DW12: =IF(Real_or_Nom="Nominal", Input_Fixed!T$10/$DF12, $DG12) -> 1.029296875 | DX12: =IF(Real_or_Nom="Nominal", Input_Fixed!U$10/$DF12, $DG12) -> 1.029296875 | DY12: 1 | DZ12: 1 | EA12: 1 | EB12: 1 | EC12: 1 | ED12: 1 | EE12: 1 | EF12: 1 | EG12: 1 | EH12: 1 | EI12: 1 | EJ12: 1 | EK12: 1 | EL12: 1 | EM12: 1 | EN12: 1 | EP12: 344.7198494 | EQ12: -0.2178979986 | ER12: -1627.420217 | ES12: 0 | ET12: 0 | EU12: 0 | EV12: 0 | EW12: 0 | EX12: 0 | EY12: 0 | EZ12: 0 | FB12: =IF(AND(FB$4=$F12, Real_or_Nom="Nominal"),SUMPRODUCT($EP12:$EZ12, 1/Input_Fixed!$F$10:$P$10)*$DH12, 0) -> 0 | FC12: =IF(AND(FC$4=$F12, Real_or_Nom="Nominal"),SUMPRODUCT($EQ12:$EZ12, 1/Input_Fixed!$G$10:$P$10)*$DH12, 0) -> 0 | FD12: =IF(AND(FD$4=$F12, Real_or_Nom="Nominal"),SUMPRODUCT($EQ12:$EZ12, 1/Input_Fixed!$G$10:$P$10)*$DH12, 0) -> 0 | FE12: =IF(AND(FE$4=$F12, Real_or_Nom="Nominal"),SUMPRODUCT($EQ12:$EZ12, 1/Input_Fixed!$G$10:$P$10)*$DH12, 0) -> 0 | FF12: =IF(AND(FF$4=$F12, Real_or_Nom="Nominal"),SUMPRODUCT($EQ12:$EZ12, 1/Input_Fixed!$G$10:$P$10)*$DH12, 0) -> 0 | FG12: 0 | FH12: 0 | FI12: 0 | FJ12: 0 | FK12: 0 | FM12: 0 | FN12: 0 | FO12: 0 | FP12: 0 | FQ12: 0
A13: Capacitor Bank | B13: 6579 | C13: Beryl No.2 66kV Capacitor Bank | E13: PS Augmentation | F13: 2011 | G13: 3808820.834 | H13: 2013 | I13: C | J13: 590738.3274 | K13: 1944723.748 | L13: 1049022.649 | M13: 224336.1094 | N13: 0 | O13: 0 | P13: 0 | Q13: 0 | R13: 0 | S13: 0 | T13: 0 | U13: 0 | V13: 0 | W13: 0 | X13: 0 | Y13: 0 | Z13: 0 | AA13: 3580291.584 | AB13: 228529.25 | AC13: 0 | AD13: 0 | AE13: 0 | AF13: 0 | AG13: 0 | AH13: 0 | AI13: 0 | AJ13: 0 | AK13: 0 | AL13: 0 | AM13: 0 | AN13: 0 | AO13: 0 | AP13: 0 | AQ13: 0 | AR13: 0 | AS13: 0 | AT13: 0 | AU13: 0 | AV13: 0 | AW13: 0 | AX13: 0 | AY13: 3808820.834 | AZ13: 0 | BA13: 0 | BB13: 0 | BC13: 0 | BD13: 0 | BE13: 0 | BF13: 0 | BG13: 0 | BH13: 0 | BI13: 0 | BJ13: 0 | BK13: 0 | BL13: 0 | BM13: 0 | BN13: - | BO13: =IF(E13="", "", VLOOKUP(E13,Input_Fixed!$A$105:$C$116,3,FALSE)) -> Network | BP13: 0 | BQ13: 6.053596735e-09 | BR13: 0 | BS13: 0 | BT13: 0.94 | BU13: 0.06 | BV13: 0 | BW13: 0 | BX13: 0 | BY13: 0 | BZ13: 0 | CA13: 0 | CB13: 0 | CC13: 0 | CD13: 0 | CE13: 0 | CF13: 0 | CG13: 0 | CH13: 0 | CI13: 0 | CJ13: 0 | CK13: 0 | CL13: 0 | CM13: 0 | CN13: 0 | CO13: 0 | CP13: 0 | CQ13: 0 | CR13: 1 | CS13: 0 | CT13: 0 | CU13: 0 | CV13: 0 | CW13: 0 | CX13: 0 | CY13: 0 | CZ13: 0 | DA13: 0 | DB13: 0 | DC13: 0 | DD13: 0 | DE13: 0 | DF13: 1.107051697 | DG13: 1.029296875 | DH13: 1.063176895 | DI13: =IF(Real_or_Nom="Nominal", Input_Fixed!F$10/$DF13, $DG13) -> 1.029296875 | DJ13: =IF(Real_or_Nom="Nominal", Input_Fixed!G$10/$DF13, $DG13) -> 1.029296875 | DK13: =IF(Real_or_Nom="Nominal", Input_Fixed!H$10/$DF13, $DG13) -> 1.029296875 | DL13: =IF(Real_or_Nom="Nominal", Input_Fixed!I$10/$DF13, $DG13) -> 1.029296875 | DM13: =IF(Real_or_Nom="Nominal", Input_Fixed!J$10/$DF13, $DG13) -> 1.029296875 | DN13: =IF(Real_or_Nom="Nominal", Input_Fixed!K$10/$DF13, $DG13) -> 1.029296875 | DO13: =IF(Real_or_Nom="Nominal", Input_Fixed!L$10/$DF13, $DG13) -> 1.029296875 | DP13: =IF(Real_or_Nom="Nominal", Input_Fixed!M$10/$DF13, $DG13) -> 1.029296875 | DQ13: =IF(Real_or_Nom="Nominal", Input_Fixed!N$10/$DF13, $DG13) -> 1.029296875 | DR13: =IF(Real_or_Nom="Nominal", Input_Fixed!O$10/$DF13, $DG13) -> 1.029296875 | DS13: =IF(Real_or_Nom="Nominal", Input_Fixed!P$10/$DF13, $DG13) -> 1.029296875 | DT13: =IF(Real_or_Nom="Nominal", Input_Fixed!Q$10/$DF13, $DG13) -> 1.029296875 | DU13: =IF(Real_or_Nom="Nominal", Input_Fixed!R$10/$DF13, $DG13) -> 1.029296875 | DV13: =IF(Real_or_Nom="Nominal", Input_Fixed!S$10/$DF13, $DG13) -> 1.029296875 | DW13: =IF(Real_or_Nom="Nominal", Input_Fixed!T$10/$DF13, $DG13) -> 1.029296875 | DX13: =IF(Real_or_Nom="Nominal", Input_Fixed!U$10/$DF13, $DG13) -> 1.029296875 | DY13: 1 | DZ13: 1 | EA13: 1 | EB13: 1 | EC13: 1 | ED13: 1 | EE13: 1 | EF13: 1 | EG13: 1 | EH13: 1 | EI13: 1 | EJ13: 1 | EK13: 1 | EL13: 1 | EM13: 1 | EN13: 1 | EP13: 608045.1144 | EQ13: 2001698.076 | ER13: 1079755.734 | ES13: 230908.4564 | ET13: 0 | EU13: 0 | EV13: 0 | EW13: 0 | EX13: 0 | EY13: 0 | EZ13: 0 | FB13: =IF(AND(FB$4=$F13, Real_or_Nom="Nominal"),SUMPRODUCT($EP13:$EZ13, 1/Input_Fixed!$F$10:$P$10)*$DH13, 0) -> 0 | FC13: =IF(AND(FC$4=$F13, Real_or_Nom="Nominal"),SUMPRODUCT($EQ13:$EZ13, 1/Input_Fixed!$G$10:$P$10)*$DH13, 0) -> 0 | FD13: =IF(AND(FD$4=$F13, Real_or_Nom="Nominal"),SUMPRODUCT($EQ13:$EZ13, 1/Input_Fixed!$G$10:$P$10)*$DH13, 0) -> 0 | FE13: =IF(AND(FE$4=$F13, Real_or_Nom="Nominal"),SUMPRODUCT($EQ13:$EZ13, 1/Input_Fixed!$G$10:$P$10)*$DH13, 0) -> 0 | FF13: =IF(AND(FF$4=$F13, Real_or_Nom="Nominal"),SUMPRODUCT($EQ13:$EZ13, 1/Input_Fixed!$G$10:$P$10)*$DH13, 0) -> 0 | FG13: 0 | FH13: 0 | FI13: 0 | FJ13: 0 | FK13: 0 | FM13: 0 | FN13: 0 | FO13: 0 | FP13: 0 | FQ13: 0
A14: Capacitor Bank | B14: 6936 | C14: Capacitor Banks | E14: PS Augmentation | F14: 2011 | G14: 9.391010007 | H14: 2013 | I14: C | J14: 0 | K14: 0 | L14: 9.391010007 | M14: 0 | N14: 0 | O14: 0 | P14: 0 | Q14: 0 | R14: 0 | S14: 0 | T14: 0 | U14: 0 | V14: 0 | W14: 0 | X14: 0 | Y14: 0 | Z14: 0 | AA14: 0 | AB14: 0 | AC14: 0 | AD14: 9.391010007 | AE14: 0 | AF14: 0 | AG14: 0 | AH14: 0 | AI14: 0 | AJ14: 0 | AK14: 0 | AL14: 0 | AM14: 0 | AN14: 0 | AO14: 0 | AP14: 0 | AQ14: 0 | AR14: 0 | AS14: 0 | AT14: 0 | AU14: 0 | AV14: 0 | AW14: 0 | AX14: 0 | AY14: 9.391010007 | AZ14: 0 | BA14: 0 | BB14: 0 | BC14: 0 | BD14: 0 | BE14: 0 | BF14: 0 | BG14: 0 | BH14: 0 | BI14: 0 | BJ14: 0 | BK14: 0 | BL14: 0 | BM14: 1 | BN14: - | BO14: =IF(E14="", "", VLOOKUP(E14,Input_Fixed!$A$105:$C$116,3,FALSE)) -> Network | BP14: 0 | BQ14: 0 | BR14: 0 | BS14: 0 | BT14: 0 | BU14: 0 | BV14: 0 | BW14: 1 | BX14: 0 | BY14: 0 | BZ14: 0 | CA14: 0 | CB14: 0 | CC14: 0 | CD14: 0 | CE14: 0 | CF14: 0 | CG14: 0 | CH14: 0 | CI14: 0 | CJ14: 0 | CK14: 0 | CL14: 0 | CM14: 0 | CN14: 0 | CO14: 0 | CP14: 0 | CQ14: 0 | CR14: 1 | CS14: 0 | CT14: 0 | CU14: 0 | CV14: 0 | CW14: 0 | CX14: 0 | CY14: 0 | CZ14: 0 | DA14: 0 | DB14: 0 | DC14: 0 | DD14: 0 | DE14: 0 | DF14: 1.107051697 | DG14: 1.029296875 | DH14: 1.063176895 | DI14: =IF(Real_or_Nom="Nominal", Input_Fixed!F$10/$DF14, $DG14) -> 1.029296875 | DJ14: =IF(Real_or_Nom="Nominal", Input_Fixed!G$10/$DF14, $DG14) -> 1.029296875 | DK14: =IF(Real_or_Nom="Nominal", Input_Fixed!H$10/$DF14, $DG14) -> 1.029296875 | DL14: =IF(Real_or_Nom="Nominal", Input_Fixed!I$10/$DF14, $DG14) -> 1.029296875 | DM14: =IF(Real_or_Nom="Nominal", Input_Fixed!J$10/$DF14, $DG14) -> 1.029296875 | DN14: =IF(Real_or_Nom="Nominal", Input_Fixed!K$10/$DF14, $DG14) -> 1.029296875 | DO14: =IF(Real_or_Nom="Nominal", Input_Fixed!L$10/$DF14, $DG14) -> 1.029296875 | DP14: =IF(Real_or_Nom="Nominal", Input_Fixed!M$10/$DF14, $DG14) -> 1.029296875 | DQ14: =IF(Real_or_Nom="Nominal", Input_Fixed!N$10/$DF14, $DG14) -> 1.029296875 | DR14: =IF(Real_or_Nom="Nominal", Input_Fixed!O$10/$DF14, $DG14) -> 1.029296875 | DS14: =IF(Real_or_Nom="Nominal", Input_Fixed!P$10/$DF14, $DG14) -> 1.029296875 | DT14: =IF(Real_or_Nom="Nominal", Input_Fixed!Q$10/$DF14, $DG14) -> 1.029296875 | DU14: =IF(Real_or_Nom="Nominal", Input_Fixed!R$10/$DF14, $DG14) -> 1.029296875 | DV14: =IF(Real_or_Nom="Nominal", Input_Fixed!S$10/$DF14, $DG14) -> 1.029296875 | DW14: =IF(Real_or_Nom="Nominal", Input_Fixed!T$10/$DF14, $DG14) -> 1.029296875 | DX14: =IF(Real_or_Nom="Nominal", Input_Fixed!U$10/$DF14, $DG14) -> 1.029296875 | DY14: 1 | DZ14: 1 | EA14: 1 | EB14: 1 | EC14: 1 | ED14: 1 | EE14: 1 | EF14: 1 | EG14: 1 | EH14: 1 | EI14: 1 | EJ14: 1 | EK14: 1 | EL14: 1 | EM14: 1 | EN14: 1 | EP14: 0 | EQ14: 0 | ER14: 9.666137254 | ES14: 0 | ET14: 0 | EU14: 0 | EV14: 0 | EW14: 0 | EX14: 0 | EY14: 0 | EZ14: 0 | FB14: =IF(AND(FB$4=$F14, Real_or_Nom="Nominal"),SUMPRODUCT($EP14:$EZ14, 1/Input_Fixed!$F$10:$P$10)*$DH14, 0) -> 0 | FC14: =IF(AND(FC$4=$F14, Real_or_Nom="Nominal"),SUMPRODUCT($EQ14:$EZ14, 1/Input_Fixed!$G$10:$P$10)*$DH14, 0) -> 0 | FD14: =IF(AND(FD$4=$F14, Real_or_Nom="Nominal"),SUMPRODUCT($EQ14:$EZ14, 1/Input_Fixed!$G$10:$P$10)*$DH14, 0) -> 0 | FE14: =IF(AND(FE$4=$F14, Real_or_Nom="Nominal"),SUMPRODUCT($EQ14:$EZ14, 1/Input_Fixed!$G$10:$P$10)*$DH14, 0) -> 0 | FF14: =IF(AND(FF$4=$F14, Real_or_Nom="Nominal"),SUMPRODUCT($EQ14:$EZ14, 1/Input_Fixed!$G$10:$P$10)*$DH14, 0) -> 0 | FG14: 0 | FH14: 0 | FI14: 0 | FJ14: 0 | FK14: 0 | FM14: 0 | FN14: 0 | FO14: 0 | FP14: 0 | FQ14: 0
A15: Capacitor Bank | B15: 7268 | C15: Regentville 132kV Capacitor Bank | E15: PS Augmentation | F15: 2011 | G15: 261.3772437 | H15: 2013 | I15: C | J15: 0 | K15: 0 | L15: 3829.176582 | M15: 3233.728139 | N15: -6801.527477 | O15: 0 | P15: 0 | Q15: 0 | R15: 0 | S15: 0 | T15: 0 | U15: 0 | V15: 0 | W15: 0 | X15: 0 | Y15: 0 | Z15: 0 | AA15: 248.3083815 | AB15: 13.06886219 | AC15: 0 | AD15: 0 | AE15: 0 | AF15: 0 | AG15: 0 | AH15: 0 | AI15: 0 | AJ15: 0 | AK15: 0 | AL15: 0 | AM15: 0 | AN15: 0 | AO15: 0 | AP15: 0 | AQ15: 0 | AR15: 0 | AS15: 0 | AT15: 0 | AU15: 0 | AV15: 0 | AW15: 0 | AX15: 0 | AY15: 261.3772437 | AZ15: 0 | BA15: 0 | BB15: 0 | BC15: 0 | BD15: 0 | BE15: 0 | BF15: 0 | BG15: 0 | BH15: 0 | BI15: 0 | BJ15: 0 | BK15: 0 | BL15: 0 | BM15: 1 | BN15: - | BO15: =IF(E15="", "", VLOOKUP(E15,Input_Fixed!$A$105:$C$116,3,FALSE)) -> Network | BP15: -1.045918907e-11 | BQ15: -5.684341886e-13 | BR15: 0 | BS15: 0 | BT15: 0.95 | BU15: 0.05 | BV15: 0 | BW15: 0 | BX15: 0 | BY15: 0 | BZ15: 0 | CA15: 0 | CB15: 0 | CC15: 0 | CD15: 0 | CE15: 0 | CF15: 0 | CG15: 0 | CH15: 0 | CI15: 0 | CJ15: 0 | CK15: 0 | CL15: 0 | CM15: 0 | CN15: 0 | CO15: 0 | CP15: 0 | CQ15: 0 | CR15: 1 | CS15: 0 | CT15: 0 | CU15: 0 | CV15: 0 | CW15: 0 | CX15: 0 | CY15: 0 | CZ15: 0 | DA15: 0 | DB15: 0 | DC15: 0 | DD15: 0 | DE15: 0 | DF15: 1.107051697 | DG15: 1.029296875 | DH15: 1.063176895 | DI15: =IF(Real_or_Nom="Nominal", Input_Fixed!F$10/$DF15, $DG15) -> 1.029296875 | DJ15: =IF(Real_or_Nom="Nominal", Input_Fixed!G$10/$DF15, $DG15) -> 1.029296875 | DK15: =IF(Real_or_Nom="Nominal", Input_Fixed!H$10/$DF15, $DG15) -> 1.029296875 | DL15: =IF(Real_or_Nom="Nominal", Input_Fixed!I$10/$DF15, $DG15) -> 1.029296875 | DM15: =IF(Real_or_Nom="Nominal", Input_Fixed!J$10/$DF15, $DG15) -> 1.029296875 | DN15: =IF(Real_or_Nom="Nominal", Input_Fixed!K$10/$DF15, $DG15) -> 1.029296875 | DO15: =IF(Real_or_Nom="Nominal", Input_Fixed!L$10/$DF15, $DG15) -> 1.029296875 | DP15: =IF(Real_or_Nom="Nominal", Input_Fixed!M$10/$DF15, $DG15) -> 1.029296875 | DQ15: =IF(Real_or_Nom="Nominal", Input_Fixed!N$10/$DF15, $DG15) -> 1.029296875 | DR15: =IF(Real_or_Nom="Nominal", Input_Fixed!O$10/$DF15, $DG15) -> 1.029296875 | DS15: =IF(Real_or_Nom="Nominal", Input_Fixed!P$10/$DF15, $DG15) -> 1.029296875 | DT15: =IF(Real_or_Nom="Nominal", Input_Fixed!Q$10/$DF15, $DG15) -> 1.029296875 | DU15: =IF(Real_or_Nom="Nominal", Input_Fixed!R$10/$DF15, $DG15) -> 1.029296875 | DV15: =IF(Real_or_Nom="Nominal", Input_Fixed!S$10/$DF15, $DG15) -> 1.029296875 | DW15: =IF(Real_or_Nom="Nominal", Input_Fixed!T$10/$DF15, $DG15) -> 1.029296875 | DX15: =IF(Real_or_Nom="Nominal", Input_Fixed!U$10/$DF15, $DG15) -> 1.029296875 | DY15: 1 | DZ15: 1 | EA15: 1 | EB15: 1 | EC15: 1 | ED15: 1 | EE15: 1 | EF15: 1 | EG15: 1 | EH15: 1 | EI15: 1 | EJ15: 1 | EK15: 1 | EL15: 1 | EM15: 1 | EN15: 1 | EP15: 0 | EQ15: 0 | ER15: 3941.35949 | ES15: 3328.466268 | ET15: -7000.790977 | EU15: 0 | EV15: 0 | EW15: 0 | EX15: 0 | EY15: 0 | EZ15: 0 | FB15: =IF(AND(FB$4=$F15, Real_or_Nom="Nominal"),SUMPRODUCT($EP15:$EZ15, 1/Input_Fixed!$F$10:$P$10)*$DH15, 0) -> 0 | FC15: =IF(AND(FC$4=$F15, Real_or_Nom="Nominal"),SUMPRODUCT($EQ15:$EZ15, 1/Input_Fixed!$G$10:$P$10)*$DH15, 0) -> 0 | FD15: =IF(AND(FD$4=$F15, Real_or_Nom="Nominal"),SUMPRODUCT($EQ15:$EZ15, 1/Input_Fixed!$G$10:$P$10)*$DH15, 0) -> 0 | FE15: =IF(AND(FE$4=$F15, Real_or_Nom="Nominal"),SUMPRODUCT($EQ15:$EZ15, 1/Input_Fixed!$G$10:$P$10)*$DH15, 0) -> 0 | FF15: =IF(AND(FF$4=$F15, Real_or_Nom="Nominal"),SUMPRODUCT($EQ15:$EZ15, 1/Input_Fixed!$G$10:$P$10)*$DH15, 0) -> 0 | FG15: 0 | FH15: 0 | FI15: 0 | FJ15: 0 | FK15: 0 | FM15: 0 | FN15: 0 | FO15: 0 | FP15: 0 | FQ15: 0
... 18 more rows

Sheet Input_Prog_Future
B1: Input_Future_Programs | BN1: =SUM(BN5:BN997) -> -2.287561074e-08 | BO1: =SUM(BO5:BO997) -> 0 | BP1: =SUM(BP5:BP997) -> 0 | ET1: =SUM(ET5:ET204) -> 24492866.91
I2: =SUM(I5:I600) -> 0 | J2: 0 | K2: 0 | L2: 0 | M2: 0 | N2: 23931328 | O2: 27014759.29 | P2: 29512697.66 | Q2: 29563187.88 | R2: 27859216.65 | BO2: Error Checking | DG2: Escalation to provide: | DJ2: =Input_Fixed!$A$8 -> Real $2014 | EO2: Annual Expenditure (Commodity Escalated and Risked) AER Template Output
F3: 1 | H3: Capex Expenditure by Year | X3: Capex by Regulatory Asset Class ($M) | AW3: Capex by Component ($M) | BN3: Cashflow | BO3: RAC | BP3: Component | BQ3: Capex by Regulatory Asset Class (%) - Calculated | CP3: Capex by Component (%) | DG3: =Input_Proj_Commit!$DI$3 -> Cumulative CPI % - for Real reporting CPI esc. from Estimate Year to Reporting Year; for Nominal reporting CPI esc. is from Estimate Year to Expenditure Year. | DW3: =Input_Proj_Commit!$DY$3 -> Cumulative Commodity Escalation % from Estimate Year to Expenditure Year (no CPI)
A4: Program Grouping | B4: Program No. | C4: Program Name | D4: Program Category | E4: Estimate ($M) | F4: Estimate Year | H4: 2009 | I4: 2010 | J4: 2011 | K4: 2012 | L4: 2013 | M4: 2014 | N4: 2015 | O4: 2016 | P4: 2017 | Q4: 2018 | R4: 2019 | S4: 2020 | T4: 2021 | U4: 2022 | V4: 2023 | W4: 2024 | X4: =Input_Proj_Future!S4 -> Reg Asset Class 1 TL | Y4: =Input_Proj_Future!T4 -> Reg Asset Class 2 Subs | Z4: =Input_Proj_Future!U4 -> Reg Asset Class 3 Sec Sys | AA4: =Input_Proj_Future!V4 -> Reg Asset Class 4 Comms | AB4: =Input_Proj_Future!W4 -> Reg Asset Class 5 Land | AC4: =Input_Proj_Future!X4 -> Reg Asset Class 6 Cables | AD4: =Input_Proj_Future!Y4 -> Reg Asset Class 7 TL Life Ext | AE4: =Input_Proj_Future!Z4 -> Reg Asset Class 8 MV & MP | AF4: =Input_Proj_Future!AA4 -> Reg Asset Class 9 Bus. IT | AG4: =Input_Proj_Future!AB4 -> Reg Asset Class 10 Not Used | AH4: =Input_Proj_Future!AC4 -> Reg Asset Class 11 Not Used | AI4: =Input_Proj_Future!AD4 -> Reg Asset Class 12 Not Used | AJ4: =Input_Proj_Future!AE4 -> Reg Asset Class 13 Not Used | AK4: =Input_Proj_Future!AF4 -> Reg Asset Class 14 Not Used | AL4: =Input_Proj_Future!AG4 -> Reg Asset Class 15 Not Used | AM4: =Input_Proj_Future!AH4 -> Reg Asset Class 16 Not Used | AN4: =Input_Proj_Future!AI4 -> Reg Asset Class 17 Not Used | AO4: =Input_Proj_Future!AJ4 -> Reg Asset Class 18 Not Used | AP4: =Input_Proj_Future!AK4 -> Reg Asset Class 19 Not Used | AQ4: =Input_Proj_Future!AL4 -> Reg Asset Class 20 Not Used | AR4: =Input_Proj_Future!AM4 -> Reg Asset Class 21 Not Used | AS4: =Input_Proj_Future!AN4 -> Reg Asset Class 22 Not Used | AT4: =Input_Proj_Future!AO4 -> Reg Asset Class 23 Not Used | AU4: =Input_Proj_Future!AP4 -> Reg Asset Class 24 Not Used | AV4: =Input_Proj_Future!AQ4 -> Reg Asset Class 25 Not Used | AW4: =Input_Proj_Future!AR4 -> CPI Only | AX4: =Input_Fixed!G14 -> EGW Wages | AY4: =Input_Fixed!H14 -> Wages General | AZ4: =Input_Fixed!I14 -> Not Used | BA4: =Input_Fixed!J14 -> Copper | BB4: =Input_Fixed!K14 -> Aluminium | BC4: =Input_Fixed!L14 -> Steel | BD4: =Input_Fixed!M14 -> Oil | BE4: =Input_Fixed!N14 -> Construction | BF4: =Input_Fixed!O14 -> Not Used | BG4: =Input_Fixed!P14 -> Property - Res. | BH4: =Input_Fixed!Q14 -> Property - Ind. | BI4: =Input_Fixed!R14 -> Property - Rural | BJ4: =Input_Fixed!S14 -> Property - Agr. | BK4: Network Growth | BM4: Network/ Non-Network | BN4: Variance from Estimate | BO4: Variance from Estimate | BP4: Variance from Estimate | BQ4: =X4 -> Reg Asset Class 1 TL | BR4: Reg Asset Class 2 Subs | BS4: Reg Asset Class 3 Sec Sys | BT4: Reg Asset Class 4 Comms | BU4: Reg Asset Class 5 Land | BV4: Reg Asset Class 6 Cables | BW4: Reg Asset Class 7 TL Life Ext | BX4: Reg Asset Class 8 MV & MP | BY4: Reg Asset Class 9 Bus. IT | BZ4: Reg Asset Class 10 Not Used | CA4: Reg Asset Class 11 Not Used | CB4: Reg Asset Class 12 Not Used | CC4: Reg Asset Class 13 Not Used | CD4: Reg Asset Class 14 Not Used | CE4: Reg Asset Class 15 Not Used | CF4: Reg Asset Class 16 Not Used | CG4: Reg Asset Class 17 Not Used | CH4: Reg Asset Class 18 Not Used | CI4: Reg Asset Class 19 Not Used | CJ4: Reg Asset Class 20 Not Used | CK4: Reg Asset Class 21 Not Used | CL4: Reg Asset Class 22 Not Used | CM4: Reg Asset Class 23 Not Used | CN4: Reg Asset Class 24 Not Used | CO4: Reg Asset Class 25 Not Used | CP4: =Input_Fixed!F14 -> CPI Only | CQ4: =Input_Fixed!G14 -> EGW Wages | CR4: =Input_Fixed!H14 -> Wages General | CS4: =Input_Fixed!I14 -> Not Used | CT4: =Input_Fixed!J14 -> Copper | CU4: =Input_Fixed!K14 -> Aluminium | CV4: =Input_Fixed!L14 -> Steel | CW4: =Input_Fixed!M14 -> Oil | CX4: =Input_Fixed!N14 -> Construction | CY4: =Input_Fixed!O14 -> Not Used | CZ4: =Input_Fixed!P14 -> Property - Res. | DA4: =Input_Fixed!Q14 -> Property - Ind. | DB4: =Input_Fixed!R14 -> Property - Rural | DC4: =Input_Fixed!S14 -> Property - Agr. | DD4: Cum CPI to Estimate Year | DE4: Cum CPI to Report Year 2014 | DG4: =Input_Proj_Future!FE4 -> 2009 | DH4: =Input_Proj_Future!FF4 -> 2010 | DI4: =Input_Proj_Future!FG4 -> 2011 | DJ4: =Input_Proj_Future!FH4 -> 2012 | DK4: =Input_Proj_Future!FI4 -> 2013 | DL4: =Input_Proj_Future!FJ4 -> 2014 | DM4: =Input_Proj_Future!FK4 -> 2015 | DN4: =Input_Proj_Future!FL4 -> 2016 | DO4: =Input_Proj_Future!FM4 -> 2017 | DP4: =Input_Proj_Future!FN4 -> 2018 | DQ4: =Input_Proj_Future!FO4 -> 2019 | DR4: =Input_Proj_Future!FP4 -> 2020 | DS4: =Input_Proj_Future!FQ4 -> 2021 | DT4: =Input_Proj_Future!FR4 -> 2022 | DU4: =Input_Proj_Future!FS4 -> 2023 | DV4: =Input_Proj_Future!FT4 -> 2024 | DW4: =Input_Proj_Future!FE4 -> 2009 | DX4: =Input_Proj_Future!FF4 -> 2010 | DY4: =Input_Proj_Future!FG4 -> 2011 | DZ4: =Input_Proj_Future!FH4 -> 2012 | EA4: =Input_Proj_Future!FI4 -> 2013 | EB4: =Input_Proj_Future!FJ4 -> 2014 | EC4: =Input_Proj_Future!FK4 -> 2015 | ED4: =Input_Proj_Future!FL4 -> 2016 | EE4: =Input_Proj_Future!FM4 -> 2017 | EF4: =Input_Proj_Future!FN4 -> 2018 | EG4: =Input_Proj_Future!FO4 -> 2019 | EH4: =Input_Proj_Future!FP4 -> 2020 | EI4: =Input_Proj_Future!FQ4 -> 2021 | EJ4: =Input_Proj_Future!FR4 -> 2022 | EK4: =Input_Proj_Future!FS4 -> 2023 | EL4: =Input_Proj_Future!FT4 -> 2024 | EM4: Risk/Exp Category | EN4: Risk Factor | EO4: 2010 | EP4: 2011 | EQ4: 2012 | ER4: 2013 | ES4: 2014 | ET4: 2015 | EU4: 2016 | EV4: 2017 | EW4: 2018 | EX4: 2019
A5: Information Technology | C5: ICT Applications | D5: PS Information Technology | E5: 53450000 | F5: 2013 | G5: F | N5: 11350000 | O5: 10650000 | P5: 10750000 | Q5: 9950000 | R5: 10750000 | AF5: 53450000 | AW5: 53450000 | BM5: =IF(D5="", "", VLOOKUP(D5,Input_Fixed!$A$105:$C$116,3,FALSE)) -> Non-Network | BN5: =SUM(H5:W5)-E5 -> 0 | BO5: =SUM(X5:AV5)-E5 -> 0 | BP5: =SUM(AW5:BJ5)-E5 -> 0 | BQ5: =IF(SUM($X5:$AV5)=0, 0, X5/SUM($X5:$AV5)) -> 0 | BR5: 0 | BS5: 0 | BT5: 0 | BU5: 0 | BV5: 0 | BW5: 0 | BX5: 0 | BY5: 1 | BZ5: 0 | CA5: 0 | CB5: 0 | CC5: 0 | CD5: 0 | CE5: 0 | CF5: 0 | CG5: 0 | CH5: 0 | CI5: 0 | CJ5: 0 | CK5: 0 | CL5: 0 | CM5: 0 | CN5: 0 | CO5: 0 | CP5: =IF(SUM($AW5:$BJ5)=0, 0, AW5/SUM($AW5:$BJ5)) -> 1 | CQ5: 0 | CR5: 0 | CS5: 0 | CT5: 0 | CU5: 0 | CV5: 0 | CW5: 0 | CX5: 0 | CY5: 0 | CZ5: 0 | DA5: 0 | DB5: 0 | DC5: 0 | DD5: =IF(F5<>"", HLOOKUP($F5,EscCPI,7), 100%) -> 1.107051697 | DE5: =IF(F5<>"", HLOOKUP($F5,EscCPI,8), 100%) -> 1.029296875 | DG5: =IF(Real_or_Nom="Nominal", Input_Fixed!F$10/$DD5, $DE5) -> 1.029296875 | DH5: =IF(Real_or_Nom="Nominal", Input_Fixed!G$10/$DD5, $DE5) -> 1.029296875 | DI5: =IF(Real_or_Nom="Nominal", Input_Fixed!H$10/$DD5, $DE5) -> 1.029296875 | DJ5: =IF(Real_or_Nom="Nominal", Input_Fixed!I$10/$DD5, $DE5) -> 1.029296875 | DK5: =IF(Real_or_Nom="Nominal", Input_Fixed!J$10/$DD5, $DE5) -> 1.029296875 | DL5: =IF(Real_or_Nom="Nominal", Input_Fixed!K$10/$DD5, $DE5) -> 1.029296875 | DM5: =IF(Real_or_Nom="Nominal", Input_Fixed!L$10/$DD5, $DE5) -> 1.029296875 | DN5: =IF(Real_or_Nom="Nominal", Input_Fixed!M$10/$DD5, $DE5) -> 1.029296875 | DO5: =IF(Real_or_Nom="Nominal", Input_Fixed!N$10/$DD5, $DE5) -> 1.029296875 | DP5: =IF(Real_or_Nom="Nominal", Input_Fixed!O$10/$DD5, $DE5) -> 1.029296875 | DQ5: =IF(Real_or_Nom="Nominal", Input_Fixed!P$10/$DD5, $DE5) -> 1.029296875 | DR5: =IF(Real_or_Nom="Nominal", Input_Fixed!Q$10/$DD5, $DE5) -> 1.029296875 | DS5: =IF(Real_or_Nom="Nominal", Input_Fixed!R$10/$DD5, $DE5) -> 1.029296875 | DT5: =IF(Real_or_Nom="Nominal", Input_Fixed!S$10/$DD5, $DE5) -> 1.029296875 | DU5: =IF(Real_or_Nom="Nominal", Input_Fixed!T$10/$DD5, $DE5) -> 1.029296875 | DV5: =IF(Real_or_Nom="Nominal", Input_Fixed!U$10/$DD5, $DE5) -> 1.029296875 | DW5: =IF(AND(DW$4>=$F5, $F5<>""), SUMPRODUCT((Year = DW$4) * ($CP5:$DC5) * (EscCum)) / SUMPRODUCT((Year = $F5) * ($CP5:$DC5) * (EscCum)), 100%) -> 1 | DX5: 1 | DY5: 1 | DZ5: 1 | EA5: 1 | EB5: 1 | EC5: 1 | ED5: 1 | EE5: 1 | EF5: 1 | EG5: 1 | EH5: 1 | EI5: 1 | EJ5: 1 | EK5: 1 | EL5: 1 | EM5: k | EN5: =IF($EM5="", 100%, VLOOKUP($EM5, Risk.Exp_Cat,11,FALSE)) -> 1 | EO5: =I5 * DH5 * DX5 * $EN5 -> 0 | EP5: 0 | EQ5: 0 | ER5: 0 | ES5: 0 | ET5: 11682519.53 | EU5: 10962011.72 | EV5: 11064941.41 | EW5: 10241503.91 | EX5: 11064941.41
A6: Information Technology | C6: ICT Corporate Data Network | D6: PS Information Technology | E6: 13500000 | F6: 2013 | G6: F | N6: 2750000 | O6: 3750000 | P6: 3000000 | Q6: 2000000 | R6: 2000000 | AF6: 13500000 | AW6: 13500000 | BM6: =IF(D6="", "", VLOOKUP(D6,Input_Fixed!$A$105:$C$116,3,FALSE)) -> Non-Network | BN6: =SUM(H6:W6)-E6 -> 0 | BO6: =SUM(X6:AV6)-E6 -> 0 | BP6: =SUM(AW6:BJ6)-E6 -> 0 | BQ6: =IF(SUM($X6:$AV6)=0, 0, X6/SUM($X6:$AV6)) -> 0 | BR6: =IF(SUM($X6:$AV6)=0, 0, Y6/SUM($X6:$AV6)) -> 0 | BS6: =IF(SUM($X6:$AV6)=0, 0, Z6/SUM($X6:$AV6)) -> 0 | BT6: =IF(SUM($X6:$AV6)=0, 0, AA6/SUM($X6:$AV6)) -> 0 | BU6: =IF(SUM($X6:$AV6)=0, 0, AB6/SUM($X6:$AV6)) -> 0 | BV6: =IF(SUM($X6:$AV6)=0, 0, AC6/SUM($X6:$AV6)) -> 0 | BW6: =IF(SUM($X6:$AV6)=0, 0, AD6/SUM($X6:$AV6)) -> 0 | BX6: =IF(SUM($X6:$AV6)=0, 0, AE6/SUM($X6:$AV6)) -> 0 | BY6: =IF(SUM($X6:$AV6)=0, 0, AF6/SUM($X6:$AV6)) -> 1 | BZ6: =IF(SUM($X6:$AV6)=0, 0, AG6/SUM($X6:$AV6)) -> 0 | CA6: =IF(SUM($X6:$AV6)=0, 0, AH6/SUM($X6:$AV6)) -> 0 | CB6: =IF(SUM($X6:$AV6)=0, 0, AI6/SUM($X6:$AV6)) -> 0 | CC6: =IF(SUM($X6:$AV6)=0, 0, AJ6/SUM($X6:$AV6)) -> 0 | CD6: =IF(SUM($X6:$AV6)=0, 0, AK6/SUM($X6:$AV6)) -> 0 | CE6: =IF(SUM($X6:$AV6)=0, 0, AL6/SUM($X6:$AV6)) -> 0 | CF6: =IF(SUM($X6:$AV6)=0, 0, AM6/SUM($X6:$AV6)) -> 0 | CG6: =IF(SUM($X6:$AV6)=0, 0, AN6/SUM($X6:$AV6)) -> 0 | CH6: =IF(SUM($X6:$AV6)=0, 0, AO6/SUM($X6:$AV6)) -> 0 | CI6: =IF(SUM($X6:$AV6)=0, 0, AP6/SUM($X6:$AV6)) -> 0 | CJ6: =IF(SUM($X6:$AV6)=0, 0, AQ6/SUM($X6:$AV6)) -> 0 | CK6: =IF(SUM($X6:$AV6)=0, 0, AR6/SUM($X6:$AV6)) -> 0 | CL6: =IF(SUM($X6:$AV6)=0, 0, AS6/SUM($X6:$AV6)) -> 0 | CM6: =IF(SUM($X6:$AV6)=0, 0, AT6/SUM($X6:$AV6)) -> 0 | CN6: =IF(SUM($X6:$AV6)=0, 0, AU6/SUM($X6:$AV6)) -> 0 | CO6: =IF(SUM($X6:$AV6)=0, 0, AV6/SUM($X6:$AV6)) -> 0 | CP6: =IF(SUM($AW6:$BJ6)=0, 0, AW6/SUM($AW6:$BJ6)) -> 1 | CQ6: =IF(SUM($AW6:$BJ6)=0, 0, AX6/SUM($AW6:$BJ6)) -> 0 | CR6: =IF(SUM($AW6:$BJ6)=0, 0, AY6/SUM($AW6:$BJ6)) -> 0 | CS6: =IF(SUM($AW6:$BJ6)=0, 0, AZ6/SUM($AW6:$BJ6)) -> 0 | CT6: =IF(SUM($AW6:$BJ6)=0, 0, BA6/SUM($AW6:$BJ6)) -> 0 | CU6: =IF(SUM($AW6:$BJ6)=0, 0, BB6/SUM($AW6:$BJ6)) -> 0 | CV6: =IF(SUM($AW6:$BJ6)=0, 0, BC6/SUM($AW6:$BJ6)) -> 0 | CW6: =IF(SUM($AW6:$BJ6)=0, 0, BD6/SUM($AW6:$BJ6)) -> 0 | CX6: =IF(SUM($AW6:$BJ6)=0, 0, BE6/SUM($AW6:$BJ6)) -> 0 | CY6: =IF(SUM($AW6:$BJ6)=0, 0, BF6/SUM($AW6:$BJ6)) -> 0 | CZ6: =IF(SUM($AW6:$BJ6)=0, 0, BG6/SUM($AW6:$BJ6)) -> 0 | DA6: =IF(SUM($AW6:$BJ6)=0, 0, BH6/SUM($AW6:$BJ6)) -> 0 | DB6: =IF(SUM($AW6:$BJ6)=0, 0, BI6/SUM($AW6:$BJ6)) -> 0 | DC6: =IF(SUM($AW6:$BJ6)=0, 0, BJ6/SUM($AW6:$BJ6)) -> 0 | DD6: 1.107051697 | DE6: 1.029296875 | DG6: =IF(Real_or_Nom="Nominal", Input_Fixed!F$10/$DD6, $DE6) -> 1.029296875 | DH6: =IF(Real_or_Nom="Nominal", Input_Fixed!G$10/$DD6, $DE6) -> 1.029296875 | DI6: =IF(Real_or_Nom="Nominal", Input_Fixed!H$10/$DD6, $DE6) -> 1.029296875 | DJ6: =IF(Real_or_Nom="Nominal", Input_Fixed!I$10/$DD6, $DE6) -> 1.029296875 | DK6: =IF(Real_or_Nom="Nominal", Input_Fixed!J$10/$DD6, $DE6) -> 1.029296875 | DL6: =IF(Real_or_Nom="Nominal", Input_Fixed!K$10/$DD6, $DE6) -> 1.029296875 | DM6: =IF(Real_or_Nom="Nominal", Input_Fixed!L$10/$DD6, $DE6) -> 1.029296875 | DN6: =IF(Real_or_Nom="Nominal", Input_Fixed!M$10/$DD6, $DE6) -> 1.029296875 | DO6: =IF(Real_or_Nom="Nominal", Input_Fixed!N$10/$DD6, $DE6) -> 1.029296875 | DP6: =IF(Real_or_Nom="Nominal", Input_Fixed!O$10/$DD6, $DE6) -> 1.029296875 | DQ6: =IF(Real_or_Nom="Nominal", Input_Fixed!P$10/$DD6, $DE6) -> 1.029296875 | DR6: =IF(Real_or_Nom="Nominal", Input_Fixed!Q$10/$DD6, $DE6) -> 1.029296875 | DS6: =IF(Real_or_Nom="Nominal", Input_Fixed!R$10/$DD6, $DE6) -> 1.029296875 | DT6: =IF(Real_or_Nom="Nominal", Input_Fixed!S$10/$DD6, $DE6) -> 1.029296875 | DU6: =IF(Real_or_Nom="Nominal", Input_Fixed!T$10/$DD6, $DE6) -> 1.029296875 | DV6: =IF(Real_or_Nom="Nominal", Input_Fixed!U$10/$DD6, $DE6) -> 1.029296875 | DW6: 1 | DX6: 1 | DY6: 1 | DZ6: 1 | EA6: 1 | EB6: 1 | EC6: 1 | ED6: 1 | EE6: 1 | EF6: 1 | EG6: 1 | EH6: 1 | EI6: 1 | EJ6: 1 | EK6: 1 | EL6: 1 | EM6: k | EN6: 1 | EO6: =I6 * DH6 * DX6 * $EN6 -> 0 | EP6: =J6 * DI6 * DY6 * $EN6 -> 0 | EQ6: =K6 * DJ6 * DZ6 * $EN6 -> 0 | ER6: =L6 * DK6 * EA6 * $EN6 -> 0 | ES6: =M6 * DL6 * EB6 * $EN6 -> 0 | ET6: =N6 * DM6 * EC6 * $EN6 -> 2830566.406 | EU6: =O6 * DN6 * ED6 * $EN6 -> 3859863.281 | EV6: =P6 * DO6 * EE6 * $EN6 -> 3087890.625 | EW6: =Q6 * DP6 * EF6 * $EN6 -> 2058593.75 | EX6: =R6 * DQ6 * EG6 * $EN6 -> 2058593.75
A7: Information Technology | C7: ICT Infrastructure | D7: PS Information Technology | E7: 27200000 | F7: 2013 | G7: F | N7: 4700000 | O7: 4700000 | P7: 3850000 | Q7: 8250000 | R7: 5700000 | AF7: 27200000 | AW7: 27200000 | BM7: =IF(D7="", "", VLOOKUP(D7,Input_Fixed!$A$105:$C$116,3,FALSE)) -> Non-Network | BN7: 0 | BO7: 0 | BP7: 0 | BQ7: 0 | BR7: 0 | BS7: 0 | BT7: 0 | BU7: 0 | BV7: 0 | BW7: 0 | BX7: 0 | BY7: 1 | BZ7: 0 | CA7: 0 | CB7: 0 | CC7: 0 | CD7: 0 | CE7: 0 | CF7: 0 | CG7: 0 | CH7: 0 | CI7: 0 | CJ7: 0 | CK7: 0 | CL7: 0 | CM7: 0 | CN7: 0 | CO7: 0 | CP7: 1 | CQ7: 0 | CR7: 0 | CS7: 0 | CT7: 0 | CU7: 0 | CV7: 0 | CW7: 0 | CX7: 0 | CY7: 0 | CZ7: 0 | DA7: 0 | DB7: 0 | DC7: 0 | DD7: 1.107051697 | DE7: 1.029296875 | DG7: =IF(Real_or_Nom="Nominal", Input_Fixed!F$10/$DD7, $DE7) -> 1.029296875 | DH7: =IF(Real_or_Nom="Nominal", Input_Fixed!G$10/$DD7, $DE7) -> 1.029296875 | DI7: =IF(Real_or_Nom="Nominal", Input_Fixed!H$10/$DD7, $DE7) -> 1.029296875 | DJ7: =IF(Real_or_Nom="Nominal", Input_Fixed!I$10/$DD7, $DE7) -> 1.029296875 | DK7: =IF(Real_or_Nom="Nominal", Input_Fixed!J$10/$DD7, $DE7) -> 1.029296875 | DL7: =IF(Real_or_Nom="Nominal", Input_Fixed!K$10/$DD7, $DE7) -> 1.029296875 | DM7: =IF(Real_or_Nom="Nominal", Input_Fixed!L$10/$DD7, $DE7) -> 1.029296875 | DN7: =IF(Real_or_Nom="Nominal", Input_Fixed!M$10/$DD7, $DE7) -> 1.029296875 | DO7: =IF(Real_or_Nom="Nominal", Input_Fixed!N$10/$DD7, $DE7) -> 1.029296875 | DP7: =IF(Real_or_Nom="Nominal", Input_Fixed!O$10/$DD7, $DE7) -> 1.029296875 | DQ7: =IF(Real_or_Nom="Nominal", Input_Fixed!P$10/$DD7, $DE7) -> 1.029296875 | DR7: =IF(Real_or_Nom="Nominal", Input_Fixed!Q$10/$DD7, $DE7) -> 1.029296875 | DS7: =IF(Real_or_Nom="Nominal", Input_Fixed!R$10/$DD7, $DE7) -> 1.029296875 | DT7: =IF(Real_or_Nom="Nominal", Input_Fixed!S$10/$DD7, $DE7) -> 1.029296875 | DU7: =IF(Real_or_Nom="Nominal", Input_Fixed!T$10/$DD7, $DE7) -> 1.029296875 | DV7: =IF(Real_or_Nom="Nominal", Input_Fixed!U$10/$DD7, $DE7) -> 1.029296875 | DW7: 1 | DX7: 1 | DY7: 1 | DZ7: 1 | EA7: 1 | EB7: 1 | EC7: 1 | ED7: 1 | EE7: 1 | EF7: 1 | EG7: 1 | EH7: 1 | EI7: 1 | EJ7: 1 | EK7: 1 | EL7: 1 | EM7: k | EN7: 1 | EO7: 0 | EP7: 0 | EQ7: 0 | ER7: 0 | ES7: 0 | ET7: 4837695.312 | EU7: 4837695.312 | EV7: 3962792.969 | EW7: 8491699.219 | EX7: 5866992.188
A8: Communications | B8: 4907 | C8: 50V Batteries | D8: PS Network Asset Replacement | E8: 1504705 | F8: 2013 | G8: F | N8: 289366 | O8: 347240 | P8: 231493 | Q8: 289366 | R8: 347240 | Y8: 1504705 | AW8: 1029600 | AX8: 475105 | BM8: =IF(D8="", "", VLOOKUP(D8,Input_Fixed!$A$105:$C$116,3,FALSE)) -> Network | BN8: 0 | BO8: 0 | BP8: 0 | BQ8: 0 | BR8: 1 | BS8: 0 | BT8: 0 | BU8: 0 | BV8: 0 | BW8: 0 | BX8: 0 | BY8: 0 | BZ8: 0 | CA8: 0 | CB8: 0 | CC8: 0 | CD8: 0 | CE8: 0 | CF8: 0 | CG8: 0 | CH8: 0 | CI8: 0 | CJ8: 0 | CK8: 0 | CL8: 0 | CM8: 0 | CN8: 0 | CO8: 0 | CP8: 0.6842537242 | CQ8: 0.3157462758 | CR8: 0 | CS8: 0 | CT8: 0 | CU8: 0 | CV8: 0 | CW8: 0 | CX8: 0 | CY8: 0 | CZ8: 0 | DA8: 0 | DB8: 0 | DC8: 0 | DD8: 1.107051697 | DE8: 1.029296875 | DG8: =IF(Real_or_Nom="Nominal", Input_Fixed!F$10/$DD8, $DE8) -> 1.029296875 | DH8: =IF(Real_or_Nom="Nominal", Input_Fixed!G$10/$DD8, $DE8) -> 1.029296875 | DI8: =IF(Real_or_Nom="Nominal", Input_Fixed!H$10/$DD8, $DE8) -> 1.029296875 | DJ8: =IF(Real_or_Nom="Nominal", Input_Fixed!I$10/$DD8, $DE8) -> 1.029296875 | DK8: =IF(Real_or_Nom="Nominal", Input_Fixed!J$10/$DD8, $DE8) -> 1.029296875 | DL8: =IF(Real_or_Nom="Nominal", Input_Fixed!K$10/$DD8, $DE8) -> 1.029296875 | DM8: =IF(Real_or_Nom="Nominal", Input_Fixed!L$10/$DD8, $DE8) -> 1.029296875 | DN8: =IF(Real_or_Nom="Nominal", Input_Fixed!M$10/$DD8, $DE8) -> 1.029296875 | DO8: =IF(Real_or_Nom="Nominal", Input_Fixed!N$10/$DD8, $DE8) -> 1.029296875 | DP8: =IF(Real_or_Nom="Nominal", Input_Fixed!O$10/$DD8, $DE8) -> 1.029296875 | DQ8: =IF(Real_or_Nom="Nominal", Input_Fixed!P$10/$DD8, $DE8) -> 1.029296875 | DR8: =IF(Real_or_Nom="Nominal", Input_Fixed!Q$10/$DD8, $DE8) -> 1.029296875 | DS8: =IF(Real_or_Nom="Nominal", Input_Fixed!R$10/$DD8, $DE8) -> 1.029296875 | DT8: =IF(Real_or_Nom="Nominal", Input_Fixed!S$10/$DD8, $DE8) -> 1.029296875 | DU8: =IF(Real_or_Nom="Nominal", Input_Fixed!T$10/$DD8, $DE8) -> 1.029296875 | DV8: =IF(Real_or_Nom="Nominal", Input_Fixed!U$10/$DD8, $DE8) -> 1.029296875 | DW8: 1 | DX8: 1 | DY8: 1 | DZ8: 1 | EA8: 1 | EB8: 0.9992209595 | EC8: 0.9995913589 | ED8: 1.002488363 | EE8: 1.007580117 | EF8: 1.014046645 | EG8: 1.020972297 | EH8: 1.024614227 | EI8: 1.028295548 | EJ8: 1.032016687 | EK8: 1.035778073 | EL8: 1.039580142 | EM8: k | EN8: 1 | EO8: 0 | EP8: 0 | EQ8: 0 | ER8: 0 | ES8: 0 | ET8: 297721.8084 | EU8: 358302.4203 | EV8: 240081.1741 | EW8: 302027.2218 | EX8: 364908.8193
A9: Communications | B9: 5068 | C9: 50V Battery Chargers | D9: PS Network Asset Replacement | E9: 784651 | F9: 2013 | G9: F | N9: 84070 | O9: 168139 | P9: 140116 | Q9: 196163 | R9: 196163 | Y9: 784651 | AW9: 356251 | AX9: 428400 | BM9: =IF(D9="", "", VLOOKUP(D9,Input_Fixed!$A$105:$C$116,3,FALSE)) -> Network | BN9: 0 | BO9: 0 | BP9: 0 | BQ9: 0 | BR9: 1 | BS9: 0 | BT9: 0 | BU9: 0 | BV9: 0 | BW9: 0 | BX9: 0 | BY9: 0 | BZ9: 0 | CA9: 0 | CB9: 0 | CC9: 0 | CD9: 0 | CE9: 0 | CF9: 0 | CG9: 0 | CH9: 0 | CI9: 0 | CJ9: 0 | CK9: 0 | CL9: 0 | CM9: 0 | CN9: 0 | CO9: 0 | CP9: 0.454024783 | CQ9: 0.545975217 | CR9: 0 | CS9: 0 | CT9: 0 | CU9: 0 | CV9: 0 | CW9: 0 | CX9: 0 | CY9: 0 | CZ9: 0 | DA9: 0 | DB9: 0 | DC9: 0 | DD9: 1.107051697 | DE9: 1.029296875 | DG9: =IF(Real_or_Nom="Nominal", Input_Fixed!F$10/$DD9, $DE9) -> 1.029296875 | DH9: =IF(Real_or_Nom="Nominal", Input_Fixed!G$10/$DD9, $DE9) -> 1.029296875 | DI9: =IF(Real_or_Nom="Nominal", Input_Fixed!H$10/$DD9, $DE9) -> 1.029296875 | DJ9: =IF(Real_or_Nom="Nominal", Input_Fixed!I$10/$DD9, $DE9) -> 1.029296875 | DK9: =IF(Real_or_Nom="Nominal", Input_Fixed!J$10/$DD9, $DE9) -> 1.029296875 | DL9: =IF(Real_or_Nom="Nominal", Input_Fixed!K$10/$DD9, $DE9) -> 1.029296875 | DM9: =IF(Real_or_Nom="Nominal", Input_Fixed!L$10/$DD9, $DE9) -> 1.029296875 | DN9: =IF(Real_or_Nom="Nominal", Input_Fixed!M$10/$DD9, $DE9) -> 1.029296875 | DO9: =IF(Real_or_Nom="Nominal", Input_Fixed!N$10/$DD9, $DE9) -> 1.029296875 | DP9: =IF(Real_or_Nom="Nominal", Input_Fixed!O$10/$DD9, $DE9) -> 1.029296875 | DQ9: =IF(Real_or_Nom="Nominal", Input_Fixed!P$10/$DD9, $DE9) -> 1.029296875 | DR9: =IF(Real_or_Nom="Nominal", Input_Fixed!Q$10/$DD9, $DE9) -> 1.029296875 | DS9: =IF(Real_or_Nom="Nominal", Input_Fixed!R$10/$DD9, $DE9) -> 1.029296875 | DT9: =IF(Real_or_Nom="Nominal", Input_Fixed!S$10/$DD9, $DE9) -> 1.029296875 | DU9: =IF(Real_or_Nom="Nominal", Input_Fixed!T$10/$DD9, $DE9) -> 1.029296875 | DV9: =IF(Real_or_Nom="Nominal", Input_Fixed!U$10/$DD9, $DE9) -> 1.029296875 | DW9: 1 | DX9: 1 | DY9: 1 | DZ9: 1 | EA9: 1 | EB9: 0.9986529158 | EC9: 0.9992933949 | ED9: 1.004302773 | EE9: 1.013107221 | EF9: 1.02428887 | EG9: 1.036264416 | EH9: 1.042561889 | EI9: 1.048927476 | EJ9: 1.055361912 | EK9: 1.061865943 | EL9: 1.068440321 | EM9: k | EN9: 1 | EO9: 0 | EP9: 0 | EQ9: 0 | ER9: 0 | ES9: 0 | ET9: 86471.84363 | EU9: 173809.6065 | EV9: 146111.297 | EW9: 206814.1277 | EX9: 209232.1097
A10: Communications | B10: 4972 | C10: 50V Power Systems | D10: PS Network Asset Replacement | E10: 974419.507 | F10: 2014 | G10: F | N10: 140271.04 | O10: 208537.1168 | P10: 208537.1168 | Q10: 139024.7445 | R10: 278049.489 | AA10: 974419.507 | AW10: 974419.507 | BM10: =IF(D10="", "", VLOOKUP(D10,Input_Fixed!$A$105:$C$116,3,FALSE)) -> Network | BN10: 0 | BO10: 0 | BP10: 0 | BQ10: 0 | BR10: 0 | BS10: 0 | BT10: 1 | BU10: 0 | BV10: 0 | BW10: 0 | BX10: 0 | BY10: 0 | BZ10: 0 | CA10: 0 | CB10: 0 | CC10: 0 | CD10: 0 | CE10: 0 | CF10: 0 | CG10: 0 | CH10: 0 | CI10: 0 | CJ10: 0 | CK10: 0 | CL10: 0 | CM10: 0 | CN10: 0 | CO10: 0 | CP10: 1 | CQ10: 0 | CR10: 0 | CS10: 0 | CT10: 0 | CU10: 0 | CV10: 0 | CW10: 0 | CX10: 0 | CY10: 0 | CZ10: 0 | DA10: 0 | DB10: 0 | DC10: 0 | DD10: 1.139484852 | DE10: 1 | DG10: =IF(Real_or_Nom="Nominal", Input_Fixed!F$10/$DD10, $DE10) -> 1 | DH10: =IF(Real_or_Nom="Nominal", Input_Fixed!G$10/$DD10, $DE10) -> 1 | DI10: =IF(Real_or_Nom="Nominal", Input_Fixed!H$10/$DD10, $DE10) -> 1 | DJ10: =IF(Real_or_Nom="Nominal", Input_Fixed!I$10/$DD10, $DE10) -> 1 | DK10: =IF(Real_or_Nom="Nominal", Input_Fixed!J$10/$DD10, $DE10) -> 1 | DL10: =IF(Real_or_Nom="Nominal", Input_Fixed!K$10/$DD10, $DE10) -> 1 | DM10: =IF(Real_or_Nom="Nominal", Input_Fixed!L$10/$DD10, $DE10) -> 1 | DN10: =IF(Real_or_Nom="Nominal", Input_Fixed!M$10/$DD10, $DE10) -> 1 | DO10: =IF(Real_or_Nom="Nominal", Input_Fixed!N$10/$DD10, $DE10) -> 1 | DP10: =IF(Real_or_Nom="Nominal", Input_Fixed!O$10/$DD10, $DE10) -> 1 | DQ10: =IF(Real_or_Nom="Nominal", Input_Fixed!P$10/$DD10, $DE10) -> 1 | DR10: =IF(Real_or_Nom="Nominal", Input_Fixed!Q$10/$DD10, $DE10) -> 1 | DS10: =IF(Real_or_Nom="Nominal", Input_Fixed!R$10/$DD10, $DE10) -> 1 | DT10: =IF(Real_or_Nom="Nominal", Input_Fixed!S$10/$DD10, $DE10) -> 1 | DU10: =IF(Real_or_Nom="Nominal", Input_Fixed!T$10/$DD10, $DE10) -> 1 | DV10: =IF(Real_or_Nom="Nominal", Input_Fixed!U$10/$DD10, $DE10) -> 1 | DW10: 1 | DX10: 1 | DY10: 1 | DZ10: 1 | EA10: 1 | EB10: 1 | EC10: 1 | ED10: 1 | EE10: 1 | EF10: 1 | EG10: 1 | EH10: 1 | EI10: 1 | EJ10: 1 | EK10: 1 | EL10: 1 | EM10: k | EN10: 1 | EO10: 0 | EP10: 0 | EQ10: 0 | ER10: 0 | ES10: 0 | ET10: 140271.04 | EU10: 208537.1168 | EV10: 208537.1168 | EW10: 139024.7445 | EX10: 278049.489
A11: Communications | B11: 8222 | C11: Hammonds Hill Radio Repeater Site Mains Power | D11: PS Network Asset Replacement | E11: 50000 | F11: 2014 | G11: F | N11: 50000 | AA11: 50000 | AW11: 50000 | BM11: =IF(D11="", "", VLOOKUP(D11,Input_Fixed!$A$105:$C$116,3,FALSE)) -> Network | BN11: 0 | BO11: 0 | BP11: 0 | BQ11: 0 | BR11: 0 | BS11: 0 | BT11: 1 | BU11: 0 | BV11: 0 | BW11: 0 | BX11: 0 | BY11: 0 | BZ11: 0 | CA11: 0 | CB11: 0 | CC11: 0 | CD11: 0 | CE11: 0 | CF11: 0 | CG11: 0 | CH11: 0 | CI11: 0 | CJ11: 0 | CK11: 0 | CL11: 0 | CM11: 0 | CN11: 0 | CO11: 0 | CP11: 1 | CQ11: 0 | CR11: 0 | CS11: 0 | CT11: 0 | CU11: 0 | CV11: 0 | CW11: 0 | CX11: 0 | CY11: 0 | CZ11: 0 | DA11: 0 | DB11: 0 | DC11: 0 | DD11: 1.139484852 | DE11: 1 | DG11: =IF(Real_or_Nom="Nominal", Input_Fixed!F$10/$DD11, $DE11) -> 1 | DH11: =IF(Real_or_Nom="Nominal", Input_Fixed!G$10/$DD11, $DE11) -> 1 | DI11: =IF(Real_or_Nom="Nominal", Input_Fixed!H$10/$DD11, $DE11) -> 1 | DJ11: =IF(Real_or_Nom="Nominal", Input_Fixed!I$10/$DD11, $DE11) -> 1 | DK11: =IF(Real_or_Nom="Nominal", Input_Fixed!J$10/$DD11, $DE11) -> 1 | DL11: =IF(Real_or_Nom="Nominal", Input_Fixed!K$10/$DD11, $DE11) -> 1 | DM11: =IF(Real_or_Nom="Nominal", Input_Fixed!L$10/$DD11, $DE11) -> 1 | DN11: =IF(Real_or_Nom="Nominal", Input_Fixed!M$10/$DD11, $DE11) -> 1 | DO11: =IF(Real_or_Nom="Nominal", Input_Fixed!N$10/$DD11, $DE11) -> 1 | DP11: =IF(Real_or_Nom="Nominal", Input_Fixed!O$10/$DD11, $DE11) -> 1 | DQ11: =IF(Real_or_Nom="Nominal", Input_Fixed!P$10/$DD11, $DE11) -> 1 | DR11: =IF(Real_or_Nom="Nominal", Input_Fixed!Q$10/$DD11, $DE11) -> 1 | DS11: =IF(Real_or_Nom="Nominal", Input_Fixed!R$10/$DD11, $DE11) -> 1 | DT11: =IF(Real_or_Nom="Nominal", Input_Fixed!S$10/$DD11, $DE11) -> 1 | DU11: =IF(Real_or_Nom="Nominal", Input_Fixed!T$10/$DD11, $DE11) -> 1 | DV11: =IF(Real_or_Nom="Nominal", Input_Fixed!U$10/$DD11, $DE11) -> 1 | DW11: 1 | DX11: 1 | DY11: 1 | DZ11: 1 | EA11: 1 | EB11: 1 | EC11: 1 | ED11: 1 | EE11: 1 | EF11: 1 | EG11: 1 | EH11: 1 | EI11: 1 | EJ11: 1 | EK11: 1 | EL11: 1 | EM11: k | EN11: 1 | EO11: 0 | EP11: 0 | EQ11: 0 | ER11: 0 | ES11: 0 | ET11: 50000 | EU11: 0 | EV11: 0 | EW11: 0 | EX11: 0
A12: Communications | B12: 8260 | C12: CAS and BAS Equipment | D12: PS Network Asset Replacement | E12: 1493000.828 | F12: 2014 | G12: F | N12: 288420.6144 | O12: 271454.6959 | P12: 288420.6144 | Q12: 288420.6144 | R12: 356284.2884 | AA12: 1493000.828 | AW12: 1493000.828 | BM12: =IF(D12="", "", VLOOKUP(D12,Input_Fixed!$A$105:$C$116,3,FALSE)) -> Network | BN12: -3.259629011e-09 | BO12: 0 | BP12: 0 | BQ12: 0 | BR12: 0 | BS12: 0 | BT12: 1 | BU12: 0 | BV12: 0 | BW12: 0 | BX12: 0 | BY12: 0 | BZ12: 0 | CA12: 0 | CB12: 0 | CC12: 0 | CD12: 0 | CE12: 0 | CF12: 0 | CG12: 0 | CH12: 0 | CI12: 0 | CJ12: 0 | CK12: 0 | CL12: 0 | CM12: 0 | CN12: 0 | CO12: 0 | CP12: 1 | CQ12: 0 | CR12: 0 | CS12: 0 | CT12: 0 | CU12: 0 | CV12: 0 | CW12: 0 | CX12: 0 | CY12: 0 | CZ12: 0 | DA12: 0 | DB12: 0 | DC12: 0 | DD12: 1.139484852 | DE12: 1 | DG12: =IF(Real_or_Nom="Nominal", Input_Fixed!F$10/$DD12, $DE12) -> 1 | DH12: =IF(Real_or_Nom="Nominal", Input_Fixed!G$10/$DD12, $DE12) -> 1 | DI12: =IF(Real_or_Nom="Nominal", Input_Fixed!H$10/$DD12, $DE12) -> 1 | DJ12: =IF(Real_or_Nom="Nominal", Input_Fixed!I$10/$DD12, $DE12) -> 1 | DK12: =IF(Real_or_Nom="Nominal", Input_Fixed!J$10/$DD12, $DE12) -> 1 | DL12: =IF(Real_or_Nom="Nominal", Input_Fixed!K$10/$DD12, $DE12) -> 1 | DM12: =IF(Real_or_Nom="Nominal", Input_Fixed!L$10/$DD12, $DE12) -> 1 | DN12: =IF(Real_or_Nom="Nominal", Input_Fixed!M$10/$DD12, $DE12) -> 1 | DO12: =IF(Real_or_Nom="Nominal", Input_Fixed!N$10/$DD12, $DE12) -> 1 | DP12: =IF(Real_or_Nom="Nominal", Input_Fixed!O$10/$DD12, $DE12) -> 1 | DQ12: =IF(Real_or_Nom="Nominal", Input_Fixed!P$10/$DD12, $DE12) -> 1 | DR12: =IF(Real_or_Nom="Nominal", Input_Fixed!Q$10/$DD12, $DE12) -> 1 | DS12: =IF(Real_or_Nom="Nominal", Input_Fixed!R$10/$DD12, $DE12) -> 1 | DT12: =IF(Real_or_Nom="Nominal", Input_Fixed!S$10/$DD12, $DE12) -> 1 | DU12: =IF(Real_or_Nom="Nominal", Input_Fixed!T$10/$DD12, $DE12) -> 1 | DV12: =IF(Real_or_Nom="Nominal", Input_Fixed!U$10/$DD12, $DE12) -> 1 | DW12: 1 | DX12: 1 | DY12: 1 | DZ12: 1 | EA12: 1 | EB12: 1 | EC12: 1 | ED12: 1 | EE12: 1 | EF12: 1 | EG12: 1 | EH12: 1 | EI12: 1 | EJ12: 1 | EK12: 1 | EL12: 1 | EM12: k | EN12: 1 | EO12: 0 | EP12: 0 | EQ12: 0 | ER12: 0 | ES12: 0 | ET12: 288420.6144 | EU12: 271454.6959 | EV12: 288420.6144 | EW12: 288420.6144 | EX12: 356284.2884
A13: Metering | B13: 7770 | C13: Replacement of E1 Meters | D13: PS Network Asset Replacement | E13: 322451.5533 | F13: 2014 | G13: F | O13: 322451.5533 | Z13: 322451.5533 | AW13: 322451.5533 | BM13: =IF(D13="", "", VLOOKUP(D13,Input_Fixed!$A$105:$C$116,3,FALSE)) -> Network | BN13: 0 | BO13: 0 | BP13: 0 | BQ13: 0 | BR13: 0 | BS13: 1 | BT13: 0 | BU13: 0 | BV13: 0 | BW13: 0 | BX13: 0 | BY13: 0 | BZ13: 0 | CA13: 0 | CB13: 0 | CC13: 0 | CD13: 0 | CE13: 0 | CF13: 0 | CG13: 0 | CH13: 0 | CI13: 0 | CJ13: 0 | CK13: 0 | CL13: 0 | CM13: 0 | CN13: 0 | CO13: 0 | CP13: 1 | CQ13: 0 | CR13: 0 | CS13: 0 | CT13: 0 | CU13: 0 | CV13: 0 | CW13: 0 | CX13: 0 | CY13: 0 | CZ13: 0 | DA13: 0 | DB13: 0 | DC13: 0 | DD13: 1.139484852 | DE13: 1 | DG13: =IF(Real_or_Nom="Nominal", Input_Fixed!F$10/$DD13, $DE13) -> 1 | DH13: =IF(Real_or_Nom="Nominal", Input_Fixed!G$10/$DD13, $DE13) -> 1 | DI13: =IF(Real_or_Nom="Nominal", Input_Fixed!H$10/$DD13, $DE13) -> 1 | DJ13: =IF(Real_or_Nom="Nominal", Input_Fixed!I$10/$DD13, $DE13) -> 1 | DK13: =IF(Real_or_Nom="Nominal", Input_Fixed!J$10/$DD13, $DE13) -> 1 | DL13: =IF(Real_or_Nom="Nominal", Input_Fixed!K$10/$DD13, $DE13) -> 1 | DM13: =IF(Real_or_Nom="Nominal", Input_Fixed!L$10/$DD13, $DE13) -> 1 | DN13: =IF(Real_or_Nom="Nominal", Input_Fixed!M$10/$DD13, $DE13) -> 1 | DO13: =IF(Real_or_Nom="Nominal", Input_Fixed!N$10/$DD13, $DE13) -> 1 | DP13: =IF(Real_or_Nom="Nominal", Input_Fixed!O$10/$DD13, $DE13) -> 1 | DQ13: =IF(Real_or_Nom="Nominal", Input_Fixed!P$10/$DD13, $DE13) -> 1 | DR13: =IF(Real_or_Nom="Nominal", Input_Fixed!Q$10/$DD13, $DE13) -> 1 | DS13: =IF(Real_or_Nom="Nominal", Input_Fixed!R$10/$DD13, $DE13) -> 1 | DT13: =IF(Real_or_Nom="Nominal", Input_Fixed!S$10/$DD13, $DE13) -> 1 | DU13: =IF(Real_or_Nom="Nominal", Input_Fixed!T$10/$DD13, $DE13) -> 1 | DV13: =IF(Real_or_Nom="Nominal", Input_Fixed!U$10/$DD13, $DE13) -> 1 | DW13: 1 | DX13: 1 | DY13: 1 | DZ13: 1 | EA13: 1 | EB13: 1 | EC13: 1 | ED13: 1 | EE13: 1 | EF13: 1 | EG13: 1 | EH13: 1 | EI13: 1 | EJ13: 1 | EK13: 1 | EL13: 1 | EM13: k | EN13: 1 | EO13: 0 | EP13: 0 | EQ13: 0 | ER13: 0 | ES13: 0 | ET13: 0 | EU13: 322451.5533 | EV13: 0 | EW13: 0 | EX13: 0
A14: Metering | B14: 8043 | C14: Replacement of EDMI MK III Energy Meters | D14: PS Network Asset Replacement | E14: 521487.1195 | F14: 2014 | G14: F | N14: 195864.0222 | O14: 12108.83344 | P14: 92671.49121 | Q14: 35499.79031 | R14: 185342.9824 | Z14: 521487.1195 | AW14: 521487.1195 | BM14: =IF(D14="", "", VLOOKUP(D14,Input_Fixed!$A$105:$C$116,3,FALSE)) -> Network | BN14: -1.105945557e-09 | BO14: 0 | BP14: 0 | BQ14: 0 | BR14: 0 | BS14: 1 | BT14: 0 | BU14: 0 | BV14: 0 | BW14: 0 | BX14: 0 | BY14: 0 | BZ14: 0 | CA14: 0 | CB14: 0 | CC14: 0 | CD14: 0 | CE14: 0 | CF14: 0 | CG14: 0 | CH14: 0 | CI14: 0 | CJ14: 0 | CK14: 0 | CL14: 0 | CM14: 0 | CN14: 0 | CO14: 0 | CP14: 1 | CQ14: 0 | CR14: 0 | CS14: 0 | CT14: 0 | CU14: 0 | CV14: 0 | CW14: 0 | CX14: 0 | CY14: 0 | CZ14: 0 | DA14: 0 | DB14: 0 | DC14: 0 | DD14: 1.139484852 | DE14: 1 | DG14: =IF(Real_or_Nom="Nominal", Input_Fixed!F$10/$DD14, $DE14) -> 1 | DH14: =IF(Real_or_Nom="Nominal", Input_Fixed!G$10/$DD14, $DE14) -> 1 | DI14: =IF(Real_or_Nom="Nominal", Input_Fixed!H$10/$DD14, $DE14) -> 1 | DJ14: =IF(Real_or_Nom="Nominal", Input_Fixed!I$10/$DD14, $DE14) -> 1 | DK14: =IF(Real_or_Nom="Nominal", Input_Fixed!J$10/$DD14, $DE14) -> 1 | DL14: =IF(Real_or_Nom="Nominal", Input_Fixed!K$10/$DD14, $DE14) -> 1 | DM14: =IF(Real_or_Nom="Nominal", Input_Fixed!L$10/$DD14, $DE14) -> 1 | DN14: =IF(Real_or_Nom="Nominal", Input_Fixed!M$10/$DD14, $DE14) -> 1 | DO14: =IF(Real_or_Nom="Nominal", Input_Fixed!N$10/$DD14, $DE14) -> 1 | DP14: =IF(Real_or_Nom="Nominal", Input_Fixed!O$10/$DD14, $DE14) -> 1 | DQ14: =IF(Real_or_Nom="Nominal", Input_Fixed!P$10/$DD14, $DE14) -> 1 | DR14: =IF(Real_or_Nom="Nominal", Input_Fixed!Q$10/$DD14, $DE14) -> 1 | DS14: =IF(Real_or_Nom="Nominal", Input_Fixed!R$10/$DD14, $DE14) -> 1 | DT14: =IF(Real_or_Nom="Nominal", Input_Fixed!S$10/$DD14, $DE14) -> 1 | DU14: =IF(Real_or_Nom="Nominal", Input_Fixed!T$10/$DD14, $DE14) -> 1 | DV14: =IF(Real_or_Nom="Nominal", Input_Fixed!U$10/$DD14, $DE14) -> 1 | DW14: 1 | DX14: 1 | DY14: 1 | DZ14: 1 | EA14: 1 | EB14: 1 | EC14: 1 | ED14: 1 | EE14: 1 | EF14: 1 | EG14: 1 | EH14: 1 | EI14: 1 | EJ14: 1 | EK14: 1 | EL14: 1 | EM14: k | EN14: 1 | EO14: 0 | EP14: 0 | EQ14: 0 | ER14: 0 | ES14: 0 | ET14: 195864.0222 | EU14: 12108.83344 | EV14: 92671.49121 | EW14: 35499.79031 | EX14: 185342.9824
A15: Protection | B15: 4949 | C15: Replacement of D202 Relays | D15: PS Network Asset Replacement | E15: 98477.80841 | F15: 2014 | G15: F | N15: 98477.80841 | Z15: 98477.80841 | AW15: 98477.80841 | BM15: =IF(D15="", "", VLOOKUP(D15,Input_Fixed!$A$105:$C$116,3,FALSE)) -> Network | BN15: 0 | BO15: 0 | BP15: 0 | BQ15: 0 | BR15: 0 | BS15: 1 | BT15: 0 | BU15: 0 | BV15: 0 | BW15: 0 | BX15: 0 | BY15: 0 | BZ15: 0 | CA15: 0 | CB15: 0 | CC15: 0 | CD15: 0 | CE15: 0 | CF15: 0 | CG15: 0 | CH15: 0 | CI15: 0 | CJ15: 0 | CK15: 0 | CL15: 0 | CM15: 0 | CN15: 0 | CO15: 0 | CP15: 1 | CQ15: 0 | CR15: 0 | CS15: 0 | CT15: 0 | CU15: 0 | CV15: 0 | CW15: 0 | CX15: 0 | CY15: 0 | CZ15: 0 | DA15: 0 | DB15: 0 | DC15: 0 | DD15: 1.139484852 | DE15: 1 | DG15: =IF(Real_or_Nom="Nominal", Input_Fixed!F$10/$DD15, $DE15) -> 1 | DH15: =IF(Real_or_Nom="Nominal", Input_Fixed!G$10/$DD15, $DE15) -> 1 | DI15: =IF(Real_or_Nom="Nominal", Input_Fixed!H$10/$DD15, $DE15) -> 1 | DJ15: =IF(Real_or_Nom="Nominal", Input_Fixed!I$10/$DD15, $DE15) -> 1 | DK15: =IF(Real_or_Nom="Nominal", Input_Fixed!J$10/$DD15, $DE15) -> 1 | DL15: =IF(Real_or_Nom="Nominal", Input_Fixed!K$10/$DD15, $DE15) -> 1 | DM15: =IF(Real_or_Nom="Nominal", Input_Fixed!L$10/$DD15, $DE15) -> 1 | DN15: =IF(Real_or_Nom="Nominal", Input_Fixed!M$10/$DD15, $DE15) -> 1 | DO15: =IF(Real_or_Nom="Nominal", Input_Fixed!N$10/$DD15, $DE15) -> 1 | DP15: =IF(Real_or_Nom="Nominal", Input_Fixed!O$10/$DD15, $DE15) -> 1 | DQ15: =IF(Real_or_Nom="Nominal", Input_Fixed!P$10/$DD15, $DE15) -> 1 | DR15: =IF(Real_or_Nom="Nominal", Input_Fixed!Q$10/$DD15, $DE15) -> 1 | DS15: =IF(Real_or_Nom="Nominal", Input_Fixed!R$10/$DD15, $DE15) -> 1 | DT15: =IF(Real_or_Nom="Nominal", Input_Fixed!S$10/$DD15, $DE15) -> 1 | DU15: =IF(Real_or_Nom="Nominal", Input_Fixed!T$10/$DD15, $DE15) -> 1 | DV15: =IF(Real_or_Nom="Nominal", Input_Fixed!U$10/$DD15, $DE15) -> 1 | DW15: =IF(AND(DW$4>=$F15, $F15<>""), SUMPRODUCT((Year = DW$4) * ($CP15:$DC15) * (EscCum)) / SUMPRODUCT((Year = $F15) * ($CP15:$DC15) * (EscCum)), 100%) -> 1 | DX15: 1 | DY15: 1 | DZ15: 1 | EA15: 1 | EB15: 1 | EC15: 1 | ED15: 1 | EE15: 1 | EF15: 1 | EG15: 1 | EH15: 1 | EI15: 1 | EJ15: 1 | EK15: 1 | EL15: 1 | EM15: k | EN15: 1 | EO15: 0 | EP15: 0 | EQ15: 0 | ER15: 0 | ES15: 0 | ET15: 98477.80841 | EU15: 0 | EV15: 0 | EW15: 0 | EX15: 0
... 18 more rows

Sheet Input_Proj_Future
A1: Input_Future_Projects | CU1: =SUM(CU5:CU997) -> 3 | CV1: =SUM(CV5:CV997) -> 0.5526460258 | CW1: =SUM(CW5:CW997) -> 0.5526460578 | CX1: =IF(SUM(BF5:CS5)>0,ROUND(SUMPRODUCT(BF5:CS5,ScenWgts)/SUMPRODUCT(--(BF5:CS5<>""),ScenWgts),0),0) -> 2018 | CY1: =SUMPRODUCT(--(BF5:CS5<>""),ScenWgts) -> 1 | CZ1: =SUMPRODUCT(BF5:CS5,ScenWgts) -> 2018 | FW1: Scenario Weighted Cost Calculations - These calculations are used for the AER template outputs. | GN1: =SUM(GN5:GN599) -> 0 | GO1: =SUM(GO5:GO599) -> 0 | GP1: 0 | GQ1: 1235592.672 | GR1: 17036134.31 | GS1: 76703517.51 | GT1: 193757297.5 | GU1: 224499899.7 | GV1: 235419007.7 | GW1: 133824816 | GY1: =SUM(GY5:GY215) -> 0 | GZ1: =SUM(GZ5:GZ215) -> 0 | HA1: 0 | HB1: 0 | HC1: 0 | HD1: 16768707.55 | HE1: 119571693.8 | HF1: 118066204.3 | HG1: 328019207.9 | HH1: 197373074.8 | IA1: Weighted Average Commissioning Date Calculations Provided for Information and Comparison Purposes Only - These calculations are not used to determine any AER template outputs.
K2: =SUM(K5:K997) -> 0 | L2: =SUM(L5:L997) -> 137274 | M2: 3497855 | N2: 24519257 | O2: 46576418 | P2: 110355310 | Q2: 346708849 | R2: 417318740 | BF2: Commissioning Dates & ROAM Weightings by Scenario | CV2: Error Checking | EO2: Escalation to provide: | ER2: =Input_Fixed!$A$8 -> Real $2014 | GE2: Annual Expenditure (CPI adjusted, Not escalated) | GN2: Annual Expenditure for Scenario Weighted Cost (Commodity Escalated and Risked) AER Template Output | GY2: As Commissioned - Expenditure based on Scenario Weighted Cost, Commissioning Date based on Weighted Average Commissioning Date | HQ2: Cumulative Capex for Relevant Regulatory Period Only - Based on Scenario Weighted Cost (Not Commodity Escalated) | IE2: Annual Expenditure based on Weighted Average Commissioning Date (CPI adjusted, Not escalated) | IR2: Annual Expenditure for Weighted Average Commissioning Date (Commodity Escalated and Risked) | JC2: As Commissioned Expenditure - Based on Weighted Average Commissioning Date (Escalated and Risked) | JU2: Cumulative Capex for Relevant Regulatory Period Only - Based on Weighted Average Commissioning Date (Not Commodity Escalated)
A3: 1 | J3: =SUM(J5:J997) -> 949113700 | K3: Capex by Year (SCurve) | S3: Capex by Regulatory Asset Class | AR3: Capex by Component ($) | BF3: =Scen01wgt -> 1 | BG3: =Scen02wgt -> 0 | BH3: =Scen03wgt -> 0 | BI3: =Scen04wgt -> 0 | BJ3: =Scen05wgt -> 0 | BK3: =Scen06wgt -> 0 | BL3: =Scen07wgt -> 0 | BM3: =Scen08wgt -> 0 | BN3: =Scen09wgt -> 0 | BO3: =Scen10wgt -> 0 | BP3: =Scen11wgt -> 0 | BQ3: =Scen12wgt -> 0 | BR3: =Scen13wgt -> 0 | BS3: =Scen14wgt -> 0 | BT3: =Scen15wgt -> 0 | BU3: =Scen16wgt -> 0 | BV3: =Scen17wgt -> 0 | BW3: =Scen18wgt -> 0 | BX3: =Scen19wgt -> 0 | BY3: =Scen20wgt -> 0 | BZ3: =Scen21wgt -> 0 | CA3: =Scen22wgt -> 0 | CB3: =Scen23wgt -> 0 | CC3: =Scen24wgt -> 0 | CD3: =Scen25wgt -> 0 | CE3: =Scen26wgt -> 0 | CF3: =Scen27wgt -> 0 | CG3: =Scen28wgt -> 0 | CH3: =Scen29wgt -> 0 | CI3: =Scen30wgt -> 0 | CJ3: =Scen31wgt -> 0 | CK3: =Scen32wgt -> 0 | CL3: =Scen33wgt -> 0 | CM3: =Scen34wgt -> 0 | CN3: =Scen35wgt -> 0 | CO3: =Scen36wgt -> 0 | CP3: =Scen37wgt -> 0 | CQ3: =Scen38wgt -> 0 | CR3: =Scen39wgt -> 0 | CS3: =Scen40wgt -> 0 | CU3: Cashflow | CV3: RAC | CW3: Component | CY3: Capex by Regulatory Asset Class (%) - Calculated | DX3: Capex by Component (%) | EO3: =Input_Proj_Commit!$DI$3 -> Cumulative CPI % - for Real reporting CPI esc. from Estimate Year to Reporting Year; for Nominal reporting CPI esc. is from Estimate Year to Expenditure Year. | FE3: =Input_Proj_Commit!DY3 -> Cumulative Commodity Escalation % from Estimate Year to Expenditure Year (no CPI) | FX3: =SUM(FX5:FX601) -> 0 | FY3: 0 | FZ3: 0 | GA3: 1235592.672 | GB3: 16990229.88 | GC3: 75766903.22 | GD3: 188504201.7 | GE3: 215509298.8 | GF3: 222254640.4 | GG3: 125132519.7 | GH3: 100273319.3 | GI3: 21900793.24 | GJ3: 6829624.592 | GK3: 2522645.041 | GL3: =SUM(GL5:GL601) -> 0 | HL3: 2010 - 2014 | HQ3: 2015-2019 | HV3: 2020-2025 | JP3: 2010 - 2014 | JU3: 2015-2019 | JZ3: 2020-2025 | KD3: Annual Expenditure for Scenario Weighted Cost (Commodity Escalated and Risked) AER Template Output
A4: Project No. | B4: Project Grouping | C4: Option | D4: Project Need Description | E4: Option Description | F4: Project Category | G4: Project Type | H4: Risk/Exp Category | I4: Estimate Year | J4: Estimate ($M) | K4: Comm Year 7 | L4: Comm Year 6 | M4: Comm Year 5 | N4: Comm Year 4 | O4: Comm Year 3 | P4: Comm Year 2 | Q4: Comm Year 1 | R4: Comm Year | S4: =CONCATENATE(Input_Fixed!$A60," ",Input_Fixed!$B60) -> Reg Asset Class 1 TL | T4: =CONCATENATE(Input_Fixed!$A61," ",Input_Fixed!$B61) -> Reg Asset Class 2 Subs | U4: =CONCATENATE(Input_Fixed!$A62," ",Input_Fixed!$B62) -> Reg Asset Class 3 Sec Sys | V4: =CONCATENATE(Input_Fixed!$A63," ",Input_Fixed!$B63) -> Reg Asset Class 4 Comms | W4: =CONCATENATE(Input_Fixed!$A64," ",Input_Fixed!$B64) -> Reg Asset Class 5 Land | X4: =CONCATENATE(Input_Fixed!$A65," ",Input_Fixed!$B65) -> Reg Asset Class 6 Cables | Y4: =CONCATENATE(Input_Fixed!$A66," ",Input_Fixed!$B66) -> Reg Asset Class 7 TL Life Ext | Z4: =CONCATENATE(Input_Fixed!$A67," ",Input_Fixed!$B67) -> Reg Asset Class 8 MV & MP | AA4: =CONCATENATE(Input_Fixed!$A68," ",Input_Fixed!$B68) -> Reg Asset Class 9 Bus. IT | AB4: =CONCATENATE(Input_Fixed!$A69," ",Input_Fixed!$B69) -> Reg Asset Class 10 Not Used | AC4: =CONCATENATE(Input_Fixed!$A70," ",Input_Fixed!$B70) -> Reg Asset Class 11 Not Used | AD4: =CONCATENATE(Input_Fixed!$A71," ",Input_Fixed!$B71) -> Reg Asset Class 12 Not Used | AE4: =CONCATENATE(Input_Fixed!$A72," ",Input_Fixed!$B72) -> Reg Asset Class 13 Not Used | AF4: =CONCATENATE(Input_Fixed!$A73," ",Input_Fixed!$B73) -> Reg Asset Class 14 Not Used | AG4: =CONCATENATE(Input_Fixed!$A74," ",Input_Fixed!$B74) -> Reg Asset Class 15 Not Used | AH4: =CONCATENATE(Input_Fixed!$A75," ",Input_Fixed!$B75) -> Reg Asset Class 16 Not Used | AI4: =CONCATENATE(Input_Fixed!$A76," ",Input_Fixed!$B76) -> Reg Asset Class 17 Not Used | AJ4: =CONCATENATE(Input_Fixed!$A77," ",Input_Fixed!$B77) -> Reg Asset Class 18 Not Used | AK4: =CONCATENATE(Input_Fixed!$A78," ",Input_Fixed!$B78) -> Reg Asset Class 19 Not Used | AL4: =CONCATENATE(Input_Fixed!$A79," ",Input_Fixed!$B79) -> Reg Asset Class 20 Not Used | AM4: =CONCATENATE(Input_Fixed!$A80," ",Input_Fixed!$B80) -> Reg Asset Class 21 Not Used | AN4: =CONCATENATE(Input_Fixed!$A81," ",Input_Fixed!$B81) -> Reg Asset Class 22 Not Used | AO4: =CONCATENATE(Input_Fixed!$A82," ",Input_Fixed!$B82) -> Reg Asset Class 23 Not Used | AP4: =CONCATENATE(Input_Fixed!$A83," ",Input_Fixed!$B83) -> Reg Asset Class 24 Not Used | AQ4: =CONCATENATE(Input_Fixed!$A84," ",Input_Fixed!$B84) -> Reg Asset Class 25 Not Used | AR4: =Input_Fixed!F14 -> CPI Only | AS4: =Input_Fixed!G14 -> EGW Wages | AT4: =Input_Fixed!H14 -> Wages General | AU4: =Input_Fixed!I14 -> Not Used | AV4: =Input_Fixed!J14 -> Copper | AW4: =Input_Fixed!K14 -> Aluminium | AX4: =Input_Fixed!L14 -> Steel | AY4: =Input_Fixed!M14 -> Oil | AZ4: =Input_Fixed!N14 -> Construction | BA4: =Input_Fixed!O14 -> Not Used | BB4: =Input_Fixed!P14 -> Property - Res. | BC4: =Input_Fixed!Q14 -> Property - Ind. | BD4: =Input_Fixed!R14 -> Property - Rural | BE4: =Input_Fixed!S14 -> Property - Agr. | BF4: 1 | BG4: =BF4+1 -> 2 | BH4: 3 | BI4: 4 | BJ4: 5 | BK4: 6 | BL4: 7 | BM4: 8 | BN4: 9 | BO4: 10 | BP4: 11 | BQ4: 12 | BR4: 13 | BS4: 14 | BT4: 15 | BU4: 16 | BV4: 17 | BW4: 18 | BX4: 19 | BY4: 20 | BZ4: 21 | CA4: 22 | CB4: 23 | CC4: 24 | CD4: 25 | CE4: 26 | CF4: 27 | CG4: 28 | CH4: 29 | CI4: 30 | CJ4: 31 | CK4: 32 | CL4: 33 | CM4: 34 | CN4: 35 | CO4: 36 | CP4: 37 | CQ4: 38 | CR4: 39 | CS4: 40 | CT4: Network Growth | CU4: Variance from Estimate | CV4: Variance from Estimate | CW4: Variance from Estimate | CX4: Weighted Avg Commissioning Date | CY4: =S4 -> Reg Asset Class 1 TL | CZ4: Reg Asset Class 2 Subs | DA4: Reg Asset Class 3 Sec Sys | DB4: Reg Asset Class 4 Comms | DC4: Reg Asset Class 5 Land | DD4: Reg Asset Class 6 Cables | DE4: Reg Asset Class 7 TL Life Ext | DF4: Reg Asset Class 8 MV & MP | DG4: Reg Asset Class 9 Bus. IT | DH4: Reg Asset Class 10 Not Used | DI4: Reg Asset Class 11 Not Used | DJ4: Reg Asset Class 12 Not Used | DK4: Reg Asset Class 13 Not Used | DL4: Reg Asset Class 14 Not Used | DM4: Reg Asset Class 15 Not Used | DN4: Reg Asset Class 16 Not Used | DO4: Reg Asset Class 17 Not Used | DP4: Reg Asset Class 18 Not Used | DQ4: Reg Asset Class 19 Not Used | DR4: Reg Asset Class 20 Not Used | DS4: Reg Asset Class 21 Not Used | DT4: Reg Asset Class 22 Not Used | DU4: Reg Asset Class 23 Not Used | DV4: Reg Asset Class 24 Not Used | DW4: Reg Asset Class 25 Not Used | DX4: =Input_Fixed!F14 -> CPI Only | DY4: =Input_Fixed!G14 -> EGW Wages | DZ4: =Input_Fixed!H14 -> Wages General | EA4: =Input_Fixed!I14 -> Not Used | EB4: =Input_Fixed!J14 -> Copper | EC4: =Input_Fixed!K14 -> Aluminium | ED4: =Input_Fixed!L14 -> Steel | EE4: =Input_Fixed!M14 -> Oil | EF4: =Input_Fixed!N14 -> Construction | EG4: =Input_Fixed!O14 -> Not Used | EH4: =Input_Fixed!P14 -> Property - Res. | EI4: =Input_Fixed!Q14 -> Property - Ind. | EJ4: =Input_Fixed!R14 -> Property - Rural | EK4: =Input_Fixed!S14 -> Property - Agr. | EL4: Cum CPI to Estimate Year | EM4: ="Cum CPI to Report Year " & Report_Year -> Cum CPI to Report Year 2014 | EN4: Cum CPI at Comm. Year | EO4: =FE4 -> 2009 | EP4: =FF4 -> 2010 | EQ4: 2011 | ER4: 2012 | ES4: 2013 | ET4: 2014 | EU4: 2015 | EV4: 2016 | EW4: 2017 | EX4: 2018 | EY4: 2019 | EZ4: 2020 | FA4: 2021 | FB4: 2022 | FC4: 2023 | FD4: 2024 | FE4: 2009 | FF4: 2010 | FG4: 2011 | FH4: 2012 | FI4: 2013 | FJ4: 2014 | FK4: 2015 | FL4: 2016 | FM4: 2017 | FN4: 2018 | FO4: 2019 | FP4: 2020 | FQ4: 2021 | FR4: 2022 | FS4: 2023 | FT4: 2024 | FU4: Risk Factor | FV4: Network/ Non-Network | FW4: 2009 | FX4: 2010 | FY4: 2011 | FZ4: 2012 | GA4: 2013 | GB4: 2014 | GC4: 2015 | GD4: 2016 | GE4: 2017 | GF4: 2018 | GG4: 2019 | GH4: 2020 | GI4: 2021 | GJ4: 2022 | GK4: 2023 | GL4: 2024 | GN4: 2010 | GO4: 2011 | GP4: 2012 | GQ4: 2013 | GR4: 2014 | GS4: 2015 | GT4: 2016 | GU4: 2017 | GV4: 2018 | GW4: 2019 | GY4: 2010 | GZ4: 2011 | HA4: 2012 | HB4: 2013 | HC4: 2014 | HD4: 2015 | HE4: 2016 | HF4: 2017 | HG4: 2018 | HH4: 2019 | HJ4: 2010 | HK4: 2011 | HL4: 2012 | HM4: 2013 | HN4: 2014 | HO4: 2015 | HP4: 2016 | HQ4: 2017 | HR4: 2018 | HS4: 2019 | HT4: 2020 | HU4: 2021 | HV4: 2022 | HW4: 2023 | HX4: 2024 | IA4: 2009 | IB4: 2010 | IC4: 2011 | ID4: 2012 | IE4: 2013 | IF4: 2014 | IG4: 2015 | IH4: 2016 | II4: 2017 | IJ4: 2018 | IK4: 2019 | IL4: 2020 | IM4: 2021 | IN4: 2022 | IO4: 2023 | IP4: 2024 | IR4: 2010 | IS4: 2011 | IT4: 2012 | IU4: 2013 | IV4: 2014 | IW4: 2015 | IX4: 2016 | IY4: 2017 | IZ4: 2018 | JA4: 2019 | JC4: 2010 | JD4: 2011 | JE4: 2012 | JF4: 2013 | JG4: 2014 | JH4: 2015 | JI4: 2016 | JJ4: 2017 | JK4: 2018 | JL4: 2019 | JN4: 2010 | JO4: 2011 | JP4: 2012 | JQ4: 2013 | JR4: 2014 | JS4: 2015 | JT4: 2016 | JU4: 2017 | JV4: 2018 | JW4: 2019 | JX4: 2020 | JY4: 2021 | JZ4: 2022 | KA4: 2023 | KB4: 2024 | KD4: 2020 | KE4: =KD4+1 -> 2021 | KF4: =KE4+1 -> 2022 | KG4: 2023 | KH4: 2024
A5: 6969 | B5: Supply to Gunnedah, Narrabri and Moree | C5: 4005F | D5: Installation of Phase Shifting Transformer on 969 Line | F5: PS Augmentation | I5: 2013 | J5: 15266136 | O5: 287829 | P5: 949979 | Q5: 2163912 | R5: 11864415 | S5: 229554 | T5: 14594129.84 | U5: 328852 | V5: 113600 | AR5: 8877975.22 | AS5: 2285255.287 | AV5: 1069547.05 | AW5: 48343.27 | AX5: 914755.3145 | AY5: 401711.9 | AZ5: 1668547.795 | BF5: 2018 | CT5: 1 | CU5: =SUM(K5:R5)-J5 -> -1 | CV5: =SUM(S5:AQ5)-J5 -> -0.1641700007 | CW5: =SUM(AR5:BE5)-J5 -> -0.164169997 | CX5: =IF(SUM(BF5:CS5)>0,ROUND(SUMPRODUCT(BF5:CS5,ScenWgts)/SUMPRODUCT(--(BF5:CS5<>""),ScenWgts),0),0) -> 2018 | CY5: =IF(SUM($S5:$AQ5)=0,0, S5/SUM($S5:$AQ5)) -> 0.01503681105 | CZ5: =IF(SUM($S5:$AQ5)=0,0, T5/SUM($S5:$AQ5)) -> 0.9559806092 | DA5: 0.02154127302 | DB5: 0.007441306773 | DC5: 0 | DD5: 0 | DE5: 0 | DF5: 0 | DG5: 0 | DH5: 0 | DI5: 0 | DJ5: 0 | DK5: 0 | DL5: 0 | DM5: 0 | DN5: 0 | DO5: 0 | DP5: 0 | DQ5: 0 | DR5: 0 | DS5: 0 | DT5: 0 | DU5: 0 | DV5: 0 | DW5: 0 | DX5: =IF(SUM($AR5:$BE5)=0, 0, AR5/SUM($AR5:$BE5)) -> 0.5815469819 | DY5: =IF(SUM($AR5:$BE5)=0, 0, AS5/SUM($AR5:$BE5)) -> 0.1496944159 | DZ5: 0 | EA5: 0 | EB5: 0.07006010306 | EC5: 0.003166699846 | ED5: 0.05992055385 | EE5: 0.0263139215 | EF5: 0.109297324 | EG5: 0 | EH5: 0 | EI5: 0 | EJ5: 0 | EK5: 0 | EL5: =IF(I5<>"", HLOOKUP($I5,EscCPI,7), 100%) -> 1.107051697 | EM5: =IF(I5<>"", HLOOKUP($I5,EscCPI,8), 100%) -> 1.029296875 | EN5: =IF(CX5>0, HLOOKUP($CX5,EscCPI,7), 0) -> 1.26084582 | EO5: =IF(Real_or_Nom="Nominal",Input_Fixed!F$10/$EL5, $EM5) -> 1.029296875 | EP5: =IF(Real_or_Nom="Nominal",Input_Fixed!G$10/$EL5, $EM5) -> 1.029296875 | EQ5: =IF(Real_or_Nom="Nominal",Input_Fixed!H$10/$EL5, $EM5) -> 1.029296875 | ER5: =IF(Real_or_Nom="Nominal",Input_Fixed!I$10/$EL5, $EM5) -> 1.029296875 | ES5: =IF(Real_or_Nom="Nominal",Input_Fixed!J$10/$EL5, $EM5) -> 1.029296875 | ET5: =IF(Real_or_Nom="Nominal",Input_Fixed!K$10/$EL5, $EM5) -> 1.029296875 | EU5: =IF(Real_or_Nom="Nominal",Input_Fixed!L$10/$EL5, $EM5) -> 1.029296875 | EV5: =IF(Real_or_Nom="Nominal",Input_Fixed!M$10/$EL5, $EM5) -> 1.029296875 | EW5: =IF(Real_or_Nom="Nominal",Input_Fixed!N$10/$EL5, $EM5) -> 1.029296875 | EX5: =IF(Real_or_Nom="Nominal",Input_Fixed!O$10/$EL5, $EM5) -> 1.029296875 | EY5: =IF(Real_or_Nom="Nominal",Input_Fixed!P$10/$EL5, $EM5) -> 1.029296875 | EZ5: =IF(Real_or_Nom="Nominal",Input_Fixed!Q$10/$EL5, $EM5) -> 1.029296875 | FA5: =IF(Real_or_Nom="Nominal",Input_Fixed!R$10/$EL5, $EM5) -> 1.029296875 | FB5: =IF(Real_or_Nom="Nominal",Input_Fixed!S$10/$EL5, $EM5) -> 1.029296875 | FC5: =IF(Real_or_Nom="Nominal",Input_Fixed!T$10/$EL5, $EM5) -> 1.029296875 | FD5: =IF(Real_or_Nom="Nominal",Input_Fixed!U$10/$EL5, $EM5) -> 1.029296875 | FE5: =IF(AND(FE$4>=$I5, $I5<>""), SUMPRODUCT((Year = FE$4) * ($DX5:$EK5) * (EscCum)) / SUMPRODUCT((Year = $I5) * ($DX5:$EK5) * (EscCum)), 100%) -> 1 | FF5: =IF(AND(FF$4>=$I5, $I5<>""), SUMPRODUCT((Year = FF$4) * ($DX5:$EK5) * (EscCum)) / SUMPRODUCT((Year = $I5) * ($DX5:$EK5) * (EscCum)), 100%) -> 1 | FG5: 1 | FH5: 1 | FI5: 1 | FJ5: 1.010693268 | FK5: 1.01360542 | FL5: 1.019281787 | FM5: 1.023619498 | FN5: 1.030152788 | FO5: 1.034596274 | FP5: 1.040878277 | FQ5: 1.047286553 | FR5: 1.053823687 | FS5: 1.06049232 | FT5: 1.067295153 | FU5: =IF($H5="", 100%, VLOOKUP($H5, Risk.Exp_Cat,11,FALSE)) -> 1 | FV5: =IF(F5="", "", VLOOKUP(F5,Input_Fixed!$A$105:$C$116,3,FALSE)) -> Network | FW5: =SUM(Scen01wgt*Scenario_Wgtd!E5, Scen02wgt* Scenario_Wgtd!U5, Scen03wgt*Scenario_Wgtd!AK5, Scen04wgt*Scenario_Wgtd!BA5, Scen05wgt*Scenario_Wgtd!BQ5, Scen06wgt*Scenario_Wgtd!CG5,Scen07wgt*Scenario_Wgtd!CW5, Scen08wgt*Scenario_Wgtd!DM5,Scen09wgt*Scenario_Wgtd!EC5, Scen10wgt*Scenario_Wgtd!ES5,Scen11wgt*Scenario_Wgtd!FI5, Scen12wgt*Scenario_Wgtd!FY5, Scen13wgt*Scenario_Wgtd!GO5, Scen14wgt*Scenario_Wgtd!HE5,Scen15wgt*Scenario_Wgtd!HU5, Scen16wgt*Scenario_Wgtd!IK5, Scen17wgt*Scenario_Wgtd!JA5,Scen18wgt*Scenario_Wgtd!JQ5, Scen19wgt*Scenario_Wgtd!KG5,Scen20wgt*Scenario_Wgtd!KW5, Scen21wgt*Scenario_Wgtd!LM5, Scen22wgt*Scenario_Wgtd!MC5, Scen23wgt*Scenario_Wgtd!MS5, Scen24wgt*Scenario_Wgtd!NI5, Scen25wgt*Scenario_Wgtd!NY5, Scen26wgt*Scenario_Wgtd!OO5, Scen27wgt*Scenario_Wgtd!PE5, Scen28wgt*Scenario_Wgtd!PU5, Scen29wgt*Scenario_Wgtd!QK5 +Scen30wgt*Scenario_Wgtd!RA5, Scen31wgt*Scenario_Wgtd!RQ5, Scen32wgt*Scenario_Wgtd!SG5, Scen33wgt*Scenario_Wgtd!SW5, Scen34wgt*Scenario_Wgtd!TM5, Scen35wgt*Scenario_Wgtd!UC5, Scen36wgt*Scenario_Wgtd!US5, Scen37wgt*Scenario_Wgtd!VI5, Scen38wgt*Scenario_Wgtd!VY5, Scen39wgt*Scenario_Wgtd!WO5, Scen40wgt*Scenario_Wgtd!XE5) -> 0 | FX5: =SUM(Scen01wgt*Scenario_Wgtd!F5, Scen02wgt* Scenario_Wgtd!V5, Scen03wgt*Scenario_Wgtd!AL5, Scen04wgt*Scenario_Wgtd!BB5, Scen05wgt*Scenario_Wgtd!BR5, Scen06wgt*Scenario_Wgtd!CH5,Scen07wgt*Scenario_Wgtd!CX5, Scen08wgt*Scenario_Wgtd!DN5,Scen09wgt*Scenario_Wgtd!ED5, Scen10wgt*Scenario_Wgtd!ET5,Scen11wgt*Scenario_Wgtd!FJ5, Scen12wgt*Scenario_Wgtd!FZ5, Scen13wgt*Scenario_Wgtd!GP5, Scen14wgt*Scenario_Wgtd!HF5,Scen15wgt*Scenario_Wgtd!HV5, Scen16wgt*Scenario_Wgtd!IL5, Scen17wgt*Scenario_Wgtd!JB5,Scen18wgt*Scenario_Wgtd!JR5, Scen19wgt*Scenario_Wgtd!KH5,Scen20wgt*Scenario_Wgtd!KX5, Scen21wgt*Scenario_Wgtd!LN5, Scen22wgt*Scenario_Wgtd!MD5, Scen23wgt*Scenario_Wgtd!MT5, Scen24wgt*Scenario_Wgtd!NJ5, Scen25wgt*Scenario_Wgtd!NZ5, Scen26wgt*Scenario_Wgtd!OP5, Scen27wgt*Scenario_Wgtd!PF5, Scen28wgt*Scenario_Wgtd!PV5, Scen29wgt*Scenario_Wgtd!QL5 +Scen30wgt*Scenario_Wgtd!RB5, Scen31wgt*Scenario_Wgtd!RR5, Scen32wgt*Scenario_Wgtd!SH5, Scen33wgt*Scenario_Wgtd!SX5, Scen34wgt*Scenario_Wgtd!TN5, Scen35wgt*Scenario_Wgtd!UD5, Scen36wgt*Scenario_Wgtd!UT5, Scen37wgt*Scenario_Wgtd!VJ5, Scen38wgt*Scenario_Wgtd!VZ5, Scen39wgt*Scenario_Wgtd!WP5, Scen40wgt*Scenario_Wgtd!XF5) -> 0 | FY5: =SUM(Scen01wgt*Scenario_Wgtd!G5, Scen02wgt* Scenario_Wgtd!W5, Scen03wgt*Scenario_Wgtd!AM5, Scen04wgt*Scenario_Wgtd!BC5, Scen05wgt*Scenario_Wgtd!BS5, Scen06wgt*Scenario_Wgtd!CI5,Scen07wgt*Scenario_Wgtd!CY5, Scen08wgt*Scenario_Wgtd!DO5,Scen09wgt*Scenario_Wgtd!EE5, Scen10wgt*Scenario_Wgtd!EU5,Scen11wgt*Scenario_Wgtd!FK5, Scen12wgt*Scenario_Wgtd!GA5, Scen13wgt*Scenario_Wgtd!GQ5, Scen14wgt*Scenario_Wgtd!HG5,Scen15wgt*Scenario_Wgtd!HW5, Scen16wgt*Scenario_Wgtd!IM5, Scen17wgt*Scenario_Wgtd!JC5,Scen18wgt*Scenario_Wgtd!JS5, Scen19wgt*Scenario_Wgtd!KI5,Scen20wgt*Scenario_Wgtd!KY5, Scen21wgt*Scenario_Wgtd!LO5, Scen22wgt*Scenario_Wgtd!ME5, Scen23wgt*Scenario_Wgtd!MU5, Scen24wgt*Scenario_Wgtd!NK5, Scen25wgt*Scenario_Wgtd!OA5, Scen26wgt*Scenario_Wgtd!OQ5, Scen27wgt*Scenario_Wgtd!PG5, Scen28wgt*Scenario_Wgtd!PW5, Scen29wgt*Scenario_Wgtd!QM5 +Scen30wgt*Scenario_Wgtd!RC5, Scen31wgt*Scenario_Wgtd!RS5, Scen32wgt*Scenario_Wgtd!SI5, Scen33wgt*Scenario_Wgtd!SY5, Scen34wgt*Scenario_Wgtd!TO5, Scen35wgt*Scenario_Wgtd!UE5, Scen36wgt*Scenario_Wgtd!UU5, Scen37wgt*Scenario_Wgtd!VK5, Scen38wgt*Scenario_Wgtd!WA5, Scen39wgt*Scenario_Wgtd!WQ5, Scen40wgt*Scenario_Wgtd!XG5) -> 0 | FZ5: =SUM(Scen01wgt*Scenario_Wgtd!H5, Scen02wgt* Scenario_Wgtd!X5, Scen03wgt*Scenario_Wgtd!AN5, Scen04wgt*Scenario_Wgtd!BD5, Scen05wgt*Scenario_Wgtd!BT5, Scen06wgt*Scenario_Wgtd!CJ5,Scen07wgt*Scenario_Wgtd!CZ5, Scen08wgt*Scenario_Wgtd!DP5,Scen09wgt*Scenario_Wgtd!EF5, Scen10wgt*Scenario_Wgtd!EV5,Scen11wgt*Scenario_Wgtd!FL5, Scen12wgt*Scenario_Wgtd!GB5, Scen13wgt*Scenario_Wgtd!GR5, Scen14wgt*Scenario_Wgtd!HH5,Scen15wgt*Scenario_Wgtd!HX5, Scen16wgt*Scenario_Wgtd!IN5, Scen17wgt*Scenario_Wgtd!JD5,Scen18wgt*Scenario_Wgtd!JT5, Scen19wgt*Scenario_Wgtd!KJ5,Scen20wgt*Scenario_Wgtd!KZ5, Scen21wgt*Scenario_Wgtd!LP5, Scen22wgt*Scenario_Wgtd!MF5, Scen23wgt*Scenario_Wgtd!MV5, Scen24wgt*Scenario_Wgtd!NL5, Scen25wgt*Scenario_Wgtd!OB5, Scen26wgt*Scenario_Wgtd!OR5, Scen27wgt*Scenario_Wgtd!PH5, Scen28wgt*Scenario_Wgtd!PX5, Scen29wgt*Scenario_Wgtd!QN5 +Scen30wgt*Scenario_Wgtd!RD5, Scen31wgt*Scenario_Wgtd!RT5, Scen32wgt*Scenario_Wgtd!SJ5, Scen33wgt*Scenario_Wgtd!SZ5, Scen34wgt*Scenario_Wgtd!TP5, Scen35wgt*Scenario_Wgtd!UF5, Scen36wgt*Scenario_Wgtd!UV5, Scen37wgt*Scenario_Wgtd!VL5, Scen38wgt*Scenario_Wgtd!WB5, Scen39wgt*Scenario_Wgtd!WR5, Scen40wgt*Scenario_Wgtd!XH5) -> 0 | GA5: =SUM(Scen01wgt*Scenario_Wgtd!I5, Scen02wgt* Scenario_Wgtd!Y5, Scen03wgt*Scenario_Wgtd!AO5, Scen04wgt*Scenario_Wgtd!BE5, Scen05wgt*Scenario_Wgtd!BU5, Scen06wgt*Scenario_Wgtd!CK5,Scen07wgt*Scenario_Wgtd!DA5, Scen08wgt*Scenario_Wgtd!DQ5,Scen09wgt*Scenario_Wgtd!EG5, Scen10wgt*Scenario_Wgtd!EW5,Scen11wgt*Scenario_Wgtd!FM5, Scen12wgt*Scenario_Wgtd!GC5, Scen13wgt*Scenario_Wgtd!GS5, Scen14wgt*Scenario_Wgtd!HI5,Scen15wgt*Scenario_Wgtd!HY5, Scen16wgt*Scenario_Wgtd!IO5, Scen17wgt*Scenario_Wgtd!JE5,Scen18wgt*Scenario_Wgtd!JU5, Scen19wgt*Scenario_Wgtd!KK5,Scen20wgt*Scenario_Wgtd!LA5, Scen21wgt*Scenario_Wgtd!LQ5, Scen22wgt*Scenario_Wgtd!MG5, Scen23wgt*Scenario_Wgtd!MW5, Scen24wgt*Scenario_Wgtd!NM5, Scen25wgt*Scenario_Wgtd!OC5, Scen26wgt*Scenario_Wgtd!OS5, Scen27wgt*Scenario_Wgtd!PI5, Scen28wgt*Scenario_Wgtd!PY5, Scen29wgt*Scenario_Wgtd!QO5 +Scen30wgt*Scenario_Wgtd!RE5, Scen31wgt*Scenario_Wgtd!RU5, Scen32wgt*Scenario_Wgtd!SK5, Scen33wgt*Scenario_Wgtd!TA5, Scen34wgt*Scenario_Wgtd!TQ5, Scen35wgt*Scenario_Wgtd!UG5, Scen36wgt*Scenario_Wgtd!UW5, Scen37wgt*Scenario_Wgtd!VM5, Scen38wgt*Scenario_Wgtd!WC5, Scen39wgt*Scenario_Wgtd!WS5, Scen40wgt*Scenario_Wgtd!XI5) -> 0 | GB5: =SUM(Scen01wgt*Scenario_Wgtd!J5, Scen02wgt* Scenario_Wgtd!Z5, Scen03wgt*Scenario_Wgtd!AP5, Scen04wgt*Scenario_Wgtd!BF5, Scen05wgt*Scenario_Wgtd!BV5, Scen06wgt*Scenario_Wgtd!CL5,Scen07wgt*Scenario_Wgtd!DB5, Scen08wgt*Scenario_Wgtd!DR5,Scen09wgt*Scenario_Wgtd!EH5, Scen10wgt*Scenario_Wgtd!EX5,Scen11wgt*Scenario_Wgtd!FN5, Scen12wgt*Scenario_Wgtd!GD5, Scen13wgt*Scenario_Wgtd!GT5, Scen14wgt*Scenario_Wgtd!HJ5,Scen15wgt*Scenario_Wgtd!HZ5, Scen16wgt*Scenario_Wgtd!IP5, Scen17wgt*Scenario_Wgtd!JF5,Scen18wgt*Scenario_Wgtd!JV5, Scen19wgt*Scenario_Wgtd!KL5,Scen20wgt*Scenario_Wgtd!LB5, Scen21wgt*Scenario_Wgtd!LR5, Scen22wgt*Scenario_Wgtd!MH5, Scen23wgt*Scenario_Wgtd!MX5, Scen24wgt*Scenario_Wgtd!NN5, Scen25wgt*Scenario_Wgtd!OD5, Scen26wgt*Scenario_Wgtd!OT5, Scen27wgt*Scenario_Wgtd!PJ5, Scen28wgt*Scenario_Wgtd!PZ5, Scen29wgt*Scenario_Wgtd!QP5 +Scen30wgt*Scenario_Wgtd!RF5, Scen31wgt*Scenario_Wgtd!RV5, Scen32wgt*Scenario_Wgtd!SL5, Scen33wgt*Scenario_Wgtd!TB5, Scen34wgt*Scenario_Wgtd!TR5, Scen35wgt*Scenario_Wgtd!UH5, Scen36wgt*Scenario_Wgtd!UX5, Scen37wgt*Scenario_Wgtd!VN5, Scen38wgt*Scenario_Wgtd!WD5, Scen39wgt*Scenario_Wgtd!WT5, Scen40wgt*Scenario_Wgtd!XJ5) -> 0 | GC5: =SUM(Scen01wgt*Scenario_Wgtd!K5, Scen02wgt* Scenario_Wgtd!AA5, Scen03wgt*Scenario_Wgtd!AQ5, Scen04wgt*Scenario_Wgtd!BG5, Scen05wgt*Scenario_Wgtd!BW5, Scen06wgt*Scenario_Wgtd!CM5,Scen07wgt*Scenario_Wgtd!DC5, Scen08wgt*Scenario_Wgtd!DS5,Scen09wgt*Scenario_Wgtd!EI5, Scen10wgt*Scenario_Wgtd!EY5,Scen11wgt*Scenario_Wgtd!FO5, Scen12wgt*Scenario_Wgtd!GE5, Scen13wgt*Scenario_Wgtd!GU5, Scen14wgt*Scenario_Wgtd!HK5,Scen15wgt*Scenario_Wgtd!IA5, Scen16wgt*Scenario_Wgtd!IQ5, Scen17wgt*Scenario_Wgtd!JG5,Scen18wgt*Scenario_Wgtd!JW5, Scen19wgt*Scenario_Wgtd!KM5,Scen20wgt*Scenario_Wgtd!LC5, Scen21wgt*Scenario_Wgtd!LS5, Scen22wgt*Scenario_Wgtd!MI5, Scen23wgt*Scenario_Wgtd!MY5, Scen24wgt*Scenario_Wgtd!NO5, Scen25wgt*Scenario_Wgtd!OE5, Scen26wgt*Scenario_Wgtd!OU5, Scen27wgt*Scenario_Wgtd!PK5, Scen28wgt*Scenario_Wgtd!QA5, Scen29wgt*Scenario_Wgtd!QQ5 +Scen30wgt*Scenario_Wgtd!RG5, Scen31wgt*Scenario_Wgtd!RW5, Scen32wgt*Scenario_Wgtd!SM5, Scen33wgt*Scenario_Wgtd!TC5, Scen34wgt*Scenario_Wgtd!TS5, Scen35wgt*Scenario_Wgtd!UI5, Scen36wgt*Scenario_Wgtd!UY5, Scen37wgt*Scenario_Wgtd!VO5, Scen38wgt*Scenario_Wgtd!WE5, Scen39wgt*Scenario_Wgtd!WU5, Scen40wgt*Scenario_Wgtd!XK5) -> 296261.4902 | GD5: =SUM(Scen01wgt*Scenario_Wgtd!L5, Scen02wgt* Scenario_Wgtd!AB5, Scen03wgt*Scenario_Wgtd!AR5, Scen04wgt*Scenario_Wgtd!BH5, Scen05wgt*Scenario_Wgtd!BX5, Scen06wgt*Scenario_Wgtd!CN5,Scen07wgt*Scenario_Wgtd!DD5, Scen08wgt*Scenario_Wgtd!DT5,Scen09wgt*Scenario_Wgtd!EJ5, Scen10wgt*Scenario_Wgtd!EZ5,Scen11wgt*Scenario_Wgtd!FP5, Scen12wgt*Scenario_Wgtd!GF5, Scen13wgt*Scenario_Wgtd!GV5, Scen14wgt*Scenario_Wgtd!HL5,Scen15wgt*Scenario_Wgtd!IB5, Scen16wgt*Scenario_Wgtd!IR5, Scen17wgt*Scenario_Wgtd!JH5,Scen18wgt*Scenario_Wgtd!JX5, Scen19wgt*Scenario_Wgtd!KN5,Scen20wgt*Scenario_Wgtd!LD5, Scen21wgt*Scenario_Wgtd!LT5, Scen22wgt*Scenario_Wgtd!MJ5, Scen23wgt*Scenario_Wgtd!MZ5, Scen24wgt*Scenario_Wgtd!NP5, Scen25wgt*Scenario_Wgtd!OF5, Scen26wgt*Scenario_Wgtd!OV5, Scen27wgt*Scenario_Wgtd!PL5, Scen28wgt*Scenario_Wgtd!QB5, Scen29wgt*Scenario_Wgtd!QR5 +Scen30wgt*Scenario_Wgtd!RH5, Scen31wgt*Scenario_Wgtd!RX5, Scen32wgt*Scenario_Wgtd!SN5, Scen33wgt*Scenario_Wgtd!TD5, Scen34wgt*Scenario_Wgtd!TT5, Scen35wgt*Scenario_Wgtd!UJ5, Scen36wgt*Scenario_Wgtd!UZ5, Scen37wgt*Scenario_Wgtd!VP5, Scen38wgt*Scenario_Wgtd!WF5, Scen39wgt*Scenario_Wgtd!WV5, Scen40wgt*Scenario_Wgtd!XL5) -> 977810.416 | GE5: =SUM(Scen01wgt*Scenario_Wgtd!M5, Scen02wgt* Scenario_Wgtd!AC5, Scen03wgt*Scenario_Wgtd!AS5, Scen04wgt*Scenario_Wgtd!BI5, Scen05wgt*Scenario_Wgtd!BY5, Scen06wgt*Scenario_Wgtd!CO5,Scen07wgt*Scenario_Wgtd!DE5, Scen08wgt*Scenario_Wgtd!DU5,Scen09wgt*Scenario_Wgtd!EK5, Scen10wgt*Scenario_Wgtd!FA5,Scen11wgt*Scenario_Wgtd!FQ5, Scen12wgt*Scenario_Wgtd!GG5, Scen13wgt*Scenario_Wgtd!GW5, Scen14wgt*Scenario_Wgtd!HM5,Scen15wgt*Scenario_Wgtd!IC5, Scen16wgt*Scenario_Wgtd!IS5, Scen17wgt*Scenario_Wgtd!JI5,Scen18wgt*Scenario_Wgtd!JY5, Scen19wgt*Scenario_Wgtd!KO5,Scen20wgt*Scenario_Wgtd!LE5, Scen21wgt*Scenario_Wgtd!LU5, Scen22wgt*Scenario_Wgtd!MK5, Scen23wgt*Scenario_Wgtd!NA5, Scen24wgt*Scenario_Wgtd!NQ5, Scen25wgt*Scenario_Wgtd!OG5, Scen26wgt*Scenario_Wgtd!OW5, Scen27wgt*Scenario_Wgtd!PM5, Scen28wgt*Scenario_Wgtd!QC5, Scen29wgt*Scenario_Wgtd!QS5 +Scen30wgt*Scenario_Wgtd!RI5, Scen31wgt*Scenario_Wgtd!RY5, Scen32wgt*Scenario_Wgtd!SO5, Scen33wgt*Scenario_Wgtd!TE5, Scen34wgt*Scenario_Wgtd!TU5, Scen35wgt*Scenario_Wgtd!UK5, Scen36wgt*Scenario_Wgtd!VA5, Scen37wgt*Scenario_Wgtd!VQ5, Scen38wgt*Scenario_Wgtd!WG5, Scen39wgt*Scenario_Wgtd!WW5, Scen40wgt*Scenario_Wgtd!XM5) -> 2227307.859 | GF5: =SUM(Scen01wgt*Scenario_Wgtd!N5, Scen02wgt* Scenario_Wgtd!AD5, Scen03wgt*Scenario_Wgtd!AT5, Scen04wgt*Scenario_Wgtd!BJ5, Scen05wgt*Scenario_Wgtd!BZ5, Scen06wgt*Scenario_Wgtd!CP5,Scen07wgt*Scenario_Wgtd!DF5, Scen08wgt*Scenario_Wgtd!DV5,Scen09wgt*Scenario_Wgtd!EL5, Scen10wgt*Scenario_Wgtd!FB5,Scen11wgt*Scenario_Wgtd!FR5, Scen12wgt*Scenario_Wgtd!GH5, Scen13wgt*Scenario_Wgtd!GX5, Scen14wgt*Scenario_Wgtd!HN5,Scen15wgt*Scenario_Wgtd!ID5, Scen16wgt*Scenario_Wgtd!IT5, Scen17wgt*Scenario_Wgtd!JJ5,Scen18wgt*Scenario_Wgtd!JZ5, Scen19wgt*Scenario_Wgtd!KP5,Scen20wgt*Scenario_Wgtd!LF5, Scen21wgt*Scenario_Wgtd!LV5, Scen22wgt*Scenario_Wgtd!ML5, Scen23wgt*Scenario_Wgtd!NB5, Scen24wgt*Scenario_Wgtd!NR5, Scen25wgt*Scenario_Wgtd!OH5, Scen26wgt*Scenario_Wgtd!OX5, Scen27wgt*Scenario_Wgtd!PN5, Scen28wgt*Scenario_Wgtd!QD5, Scen29wgt*Scenario_Wgtd!QT5 +Scen30wgt*Scenario_Wgtd!RJ5, Scen31wgt*Scenario_Wgtd!RZ5, Scen32wgt*Scenario_Wgtd!SP5, Scen33wgt*Scenario_Wgtd!TF5, Scen34wgt*Scenario_Wgtd!TV5, Scen35wgt*Scenario_Wgtd!UL5, Scen36wgt*Scenario_Wgtd!VB5, Scen37wgt*Scenario_Wgtd!VR5, Scen38wgt*Scenario_Wgtd!WH5, Scen39wgt*Scenario_Wgtd!WX5, Scen40wgt*Scenario_Wgtd!XN5) -> 12212005.28 | GG5: =SUM(Scen01wgt*Scenario_Wgtd!O5, Scen02wgt* Scenario_Wgtd!AE5, Scen03wgt*Scenario_Wgtd!AU5, Scen04wgt*Scenario_Wgtd!BK5, Scen05wgt*Scenario_Wgtd!CA5, Scen06wgt*Scenario_Wgtd!CQ5,Scen07wgt*Scenario_Wgtd!DG5, Scen08wgt*Scenario_Wgtd!DW5,Scen09wgt*Scenario_Wgtd!EM5, Scen10wgt*Scenario_Wgtd!FC5,Scen11wgt*Scenario_Wgtd!FS5, Scen12wgt*Scenario_Wgtd!GI5, Scen13wgt*Scenario_Wgtd!GY5, Scen14wgt*Scenario_Wgtd!HO5,Scen15wgt*Scenario_Wgtd!IE5, Scen16wgt*Scenario_Wgtd!IU5, Scen17wgt*Scenario_Wgtd!JK5,Scen18wgt*Scenario_Wgtd!KA5, Scen19wgt*Scenario_Wgtd!KQ5,Scen20wgt*Scenario_Wgtd!LG5, Scen21wgt*Scenario_Wgtd!LW5, Scen22wgt*Scenario_Wgtd!MM5, Scen23wgt*Scenario_Wgtd!NC5, Scen24wgt*Scenario_Wgtd!NS5, Scen25wgt*Scenario_Wgtd!OI5, Scen26wgt*Scenario_Wgtd!OY5, Scen27wgt*Scenario_Wgtd!PO5, Scen28wgt*Scenario_Wgtd!QE5, Scen29wgt*Scenario_Wgtd!QU5 +Scen30wgt*Scenario_Wgtd!RK5, Scen31wgt*Scenario_Wgtd!SA5, Scen32wgt*Scenario_Wgtd!SQ5, Scen33wgt*Scenario_Wgtd!TG5, Scen34wgt*Scenario_Wgtd!TW5, Scen35wgt*Scenario_Wgtd!UM5, Scen36wgt*Scenario_Wgtd!VC5, Scen37wgt*Scenario_Wgtd!VS5, Scen38wgt*Scenario_Wgtd!WI5, Scen39wgt*Scenario_Wgtd!WY5, Scen40wgt*Scenario_Wgtd!XO5) -> 0 | GH5: =SUM(Scen01wgt*Scenario_Wgtd!P5, Scen02wgt* Scenario_Wgtd!AF5, Scen03wgt*Scenario_Wgtd!AV5, Scen04wgt*Scenario_Wgtd!BL5, Scen05wgt*Scenario_Wgtd!CB5, Scen06wgt*Scenario_Wgtd!CR5,Scen07wgt*Scenario_Wgtd!DH5, Scen08wgt*Scenario_Wgtd!DX5,Scen09wgt*Scenario_Wgtd!EN5, Scen10wgt*Scenario_Wgtd!FD5,Scen11wgt*Scenario_Wgtd!FT5, Scen12wgt*Scenario_Wgtd!GJ5, Scen13wgt*Scenario_Wgtd!GZ5, Scen14wgt*Scenario_Wgtd!HP5,Scen15wgt*Scenario_Wgtd!IF5, Scen16wgt*Scenario_Wgtd!IV5, Scen17wgt*Scenario_Wgtd!JL5,Scen18wgt*Scenario_Wgtd!KB5, Scen19wgt*Scenario_Wgtd!KR5,Scen20wgt*Scenario_Wgtd!LH5, Scen21wgt*Scenario_Wgtd!LX5, Scen22wgt*Scenario_Wgtd!MN5, Scen23wgt*Scenario_Wgtd!ND5, Scen24wgt*Scenario_Wgtd!NT5, Scen25wgt*Scenario_Wgtd!OJ5, Scen26wgt*Scenario_Wgtd!OZ5, Scen27wgt*Scenario_Wgtd!PP5, Scen28wgt*Scenario_Wgtd!QF5, Scen29wgt*Scenario_Wgtd!QV5 +Scen30wgt*Scenario_Wgtd!RL5, Scen31wgt*Scenario_Wgtd!SB5, Scen32wgt*Scenario_Wgtd!SR5, Scen33wgt*Scenario_Wgtd!TH5, Scen34wgt*Scenario_Wgtd!TX5, Scen35wgt*Scenario_Wgtd!UN5, Scen36wgt*Scenario_Wgtd!VD5, Scen37wgt*Scenario_Wgtd!VT5, Scen38wgt*Scenario_Wgtd!WJ5, Scen39wgt*Scenario_Wgtd!WZ5, Scen40wgt*Scenario_Wgtd!XP5) -> 0 | GI5: =SUM(Scen01wgt*Scenario_Wgtd!Q5, Scen02wgt* Scenario_Wgtd!AG5, Scen03wgt*Scenario_Wgtd!AW5, Scen04wgt*Scenario_Wgtd!BM5, Scen05wgt*Scenario_Wgtd!CC5, Scen06wgt*Scenario_Wgtd!CS5,Scen07wgt*Scenario_Wgtd!DI5, Scen08wgt*Scenario_Wgtd!DY5,Scen09wgt*Scenario_Wgtd!EO5, Scen10wgt*Scenario_Wgtd!FE5,Scen11wgt*Scenario_Wgtd!FU5, Scen12wgt*Scenario_Wgtd!GK5, Scen13wgt*Scenario_Wgtd!HA5, Scen14wgt*Scenario_Wgtd!HQ5,Scen15wgt*Scenario_Wgtd!IG5, Scen16wgt*Scenario_Wgtd!IW5, Scen17wgt*Scenario_Wgtd!JM5,Scen18wgt*Scenario_Wgtd!KC5, Scen19wgt*Scenario_Wgtd!KS5,Scen20wgt*Scenario_Wgtd!LI5, Scen21wgt*Scenario_Wgtd!LY5, Scen22wgt*Scenario_Wgtd!MO5, Scen23wgt*Scenario_Wgtd!NE5, Scen24wgt*Scenario_Wgtd!NU5, Scen25wgt*Scenario_Wgtd!OK5, Scen26wgt*Scenario_Wgtd!PA5, Scen27wgt*Scenario_Wgtd!PQ5, Scen28wgt*Scenario_Wgtd!QG5, Scen29wgt*Scenario_Wgtd!QW5 +Scen30wgt*Scenario_Wgtd!RM5, Scen31wgt*Scenario_Wgtd!SC5, Scen32wgt*Scenario_Wgtd!SS5, Scen33wgt*Scenario_Wgtd!TI5, Scen34wgt*Scenario_Wgtd!TY5, Scen35wgt*Scenario_Wgtd!UO5, Scen36wgt*Scenario_Wgtd!VE5, Scen37wgt*Scenario_Wgtd!VU5, Scen38wgt*Scenario_Wgtd!WK5, Scen39wgt*Scenario_Wgtd!XA5, Scen40wgt*Scenario_Wgtd!XQ5) -> 0 | GJ5: =SUM(Scen01wgt*Scenario_Wgtd!R5, Scen02wgt* Scenario_Wgtd!AH5, Scen03wgt*Scenario_Wgtd!AX5, Scen04wgt*Scenario_Wgtd!BN5, Scen05wgt*Scenario_Wgtd!CD5, Scen06wgt*Scenario_Wgtd!CT5,Scen07wgt*Scenario_Wgtd!DJ5, Scen08wgt*Scenario_Wgtd!DZ5,Scen09wgt*Scenario_Wgtd!EP5, Scen10wgt*Scenario_Wgtd!FF5,Scen11wgt*Scenario_Wgtd!FV5, Scen12wgt*Scenario_Wgtd!GL5, Scen13wgt*Scenario_Wgtd!HB5, Scen14wgt*Scenario_Wgtd!HR5,Scen15wgt*Scenario_Wgtd!IH5, Scen16wgt*Scenario_Wgtd!IX5, Scen17wgt*Scenario_Wgtd!JN5,Scen18wgt*Scenario_Wgtd!KD5, Scen19wgt*Scenario_Wgtd!KT5,Scen20wgt*Scenario_Wgtd!LJ5, Scen21wgt*Scenario_Wgtd!LZ5, Scen22wgt*Scenario_Wgtd!MP5, Scen23wgt*Scenario_Wgtd!NF5, Scen24wgt*Scenario_Wgtd!NV5, Scen25wgt*Scenario_Wgtd!OL5, Scen26wgt*Scenario_Wgtd!PB5, Scen27wgt*Scenario_Wgtd!PR5, Scen28wgt*Scenario_Wgtd!QH5, Scen29wgt*Scenario_Wgtd!QX5 +Scen30wgt*Scenario_Wgtd!RN5, Scen31wgt*Scenario_Wgtd!SD5, Scen32wgt*Scenario_Wgtd!ST5, Scen33wgt*Scenario_Wgtd!TJ5, Scen34wgt*Scenario_Wgtd!TZ5, Scen35wgt*Scenario_Wgtd!UP5, Scen36wgt*Scenario_Wgtd!VF5, Scen37wgt*Scenario_Wgtd!VV5, Scen38wgt*Scenario_Wgtd!WL5, Scen39wgt*Scenario_Wgtd!XB5, Scen40wgt*Scenario_Wgtd!XR5) -> 0 | GK5: =SUM(Scen01wgt*Scenario_Wgtd!S5, Scen02wgt* Scenario_Wgtd!AI5, Scen03wgt*Scenario_Wgtd!AY5, Scen04wgt*Scenario_Wgtd!BO5, Scen05wgt*Scenario_Wgtd!CE5, Scen06wgt*Scenario_Wgtd!CU5,Scen07wgt*Scenario_Wgtd!DK5, Scen08wgt*Scenario_Wgtd!EA5,Scen09wgt*Scenario_Wgtd!EQ5, Scen10wgt*Scenario_Wgtd!FG5,Scen11wgt*Scenario_Wgtd!FW5, Scen12wgt*Scenario_Wgtd!GM5, Scen13wgt*Scenario_Wgtd!HC5, Scen14wgt*Scenario_Wgtd!HS5,Scen15wgt*Scenario_Wgtd!II5, Scen16wgt*Scenario_Wgtd!IY5, Scen17wgt*Scenario_Wgtd!JO5,Scen18wgt*Scenario_Wgtd!KE5, Scen19wgt*Scenario_Wgtd!KU5,Scen20wgt*Scenario_Wgtd!LK5, Scen21wgt*Scenario_Wgtd!MA5, Scen22wgt*Scenario_Wgtd!MQ5, Scen23wgt*Scenario_Wgtd!NG5, Scen24wgt*Scenario_Wgtd!NW5, Scen25wgt*Scenario_Wgtd!OM5, Scen26wgt*Scenario_Wgtd!PC5, Scen27wgt*Scenario_Wgtd!PS5, Scen28wgt*Scenario_Wgtd!QI5, Scen29wgt*Scenario_Wgtd!QY5 +Scen30wgt*Scenario_Wgtd!RO5, Scen31wgt*Scenario_Wgtd!SE5, Scen32wgt*Scenario_Wgtd!SU5, Scen33wgt*Scenario_Wgtd!TK5, Scen34wgt*Scenario_Wgtd!UA5, Scen35wgt*Scenario_Wgtd!UQ5, Scen36wgt*Scenario_Wgtd!VG5, Scen37wgt*Scenario_Wgtd!VW5, Scen38wgt*Scenario_Wgtd!WM5, Scen39wgt*Scenario_Wgtd!XC5, Scen40wgt*Scenario_Wgtd!XS5) -> 0 | GL5: =SUM(Scen01wgt*Scenario_Wgtd!T5, Scen02wgt* Scenario_Wgtd!AJ5, Scen03wgt*Scenario_Wgtd!AZ5, Scen04wgt*Scenario_Wgtd!BP5, Scen05wgt*Scenario_Wgtd!CF5, Scen06wgt*Scenario_Wgtd!CV5,Scen07wgt*Scenario_Wgtd!DL5, Scen08wgt*Scenario_Wgtd!EB5,Scen09wgt*Scenario_Wgtd!ER5, Scen10wgt*Scenario_Wgtd!FH5,Scen11wgt*Scenario_Wgtd!FX5, Scen12wgt*Scenario_Wgtd!GN5, Scen13wgt*Scenario_Wgtd!HD5, Scen14wgt*Scenario_Wgtd!HT5,Scen15wgt*Scenario_Wgtd!IJ5, Scen16wgt*Scenario_Wgtd!IZ5, Scen17wgt*Scenario_Wgtd!JP5,Scen18wgt*Scenario_Wgtd!KF5, Scen19wgt*Scenario_Wgtd!KV5,Scen20wgt*Scenario_Wgtd!LL5, Scen21wgt*Scenario_Wgtd!MB5, Scen22wgt*Scenario_Wgtd!MR5, Scen23wgt*Scenario_Wgtd!NH5, Scen24wgt*Scenario_Wgtd!NX5, Scen25wgt*Scenario_Wgtd!ON5, Scen26wgt*Scenario_Wgtd!PD5, Scen27wgt*Scenario_Wgtd!PT5, Scen28wgt*Scenario_Wgtd!QJ5, Scen29wgt*Scenario_Wgtd!QZ5 +Scen30wgt*Scenario_Wgtd!RP5, Scen31wgt*Scenario_Wgtd!SF5, Scen32wgt*Scenario_Wgtd!SV5, Scen33wgt*Scenario_Wgtd!TL5, Scen34wgt*Scenario_Wgtd!UB5, Scen35wgt*Scenario_Wgtd!UR5, Scen36wgt*Scenario_Wgtd!VH5, Scen37wgt*Scenario_Wgtd!VX5, Scen38wgt*Scenario_Wgtd!WN5, Scen39wgt*Scenario_Wgtd!XD5, Scen40wgt*Scenario_Wgtd!XT5) -> 0 | GN5: =FX5*FF5*$FU5 -> 0 | GO5: =FY5*FG5*$FU5 -> 0 | GP5: 0 | GQ5: 0 | GR5: 0 | GS5: 300292.2524 | GT5: 996664.3486 | GU5: 2279915.752 | GV5: 12580231.29 | GW5: 0 | GY5: =IF(AND(GY$4=$CX5, Real_or_Nom="Nominal"),SUMPRODUCT($GN5:$GW5, 1/Input_Fixed!$G$10:$P$10)*$EN5, 0) -> 0 | GZ5: =IF(AND(GZ$4=$CX5, Real_or_Nom="Nominal"),SUMPRODUCT($GN5:$GW5, 1/Input_Fixed!$G$10:$P$10)*$EN5, 0) -> 0 | HA5: =IF(AND(HA$4=$CX5, Real_or_Nom="Nominal"),SUMPRODUCT($GN5:$GW5, 1/Input_Fixed!$G$10:$P$10)*$EN5, 0) -> 0 | HB5: =IF(AND(HB$4=$CX5, Real_or_Nom="Nominal"),SUMPRODUCT($GN5:$GW5, 1/Input_Fixed!$G$10:$P$10)*$EN5, 0) -> 0 | HC5: =IF(AND(HC$4=$CX5, Real_or_Nom="Nominal"),SUMPRODUCT($GN5:$GW5, 1/Input_Fixed!$G$10:$P$10)*$EN5, 0) -> 0 | HD5: =IF(AND(HD$4=$CX5, Real_or_Nom="Real"),SUM($GN5:$GW5), 0) -> 0 | HE5: 0 | HF5: 0 | HG5: 16157103.64 | HH5: 0 | HJ5: =SUM(FX5:FX5) -> 0 | HK5: =SUM(FX5:FY5) -> 0 | HL5: =SUM(FX5:FZ5) -> 0 | HM5: =SUM(FX5:GA5) -> 0 | HN5: =SUM(FX5:GB5) -> 0 | HO5: =SUM(GC5:GC5) -> 296261.4902 | HP5: =SUM(GC5:GD5) -> 1274071.906 | HQ5: =SUM(GC5:GE5) -> 3501379.766 | HR5: =SUM(GC5:GF5) -> 15713385.05 | HS5: =SUM(GC5:GG5) -> 15713385.05 | HT5: =SUM(GH5:GH5) -> 0 | HU5: =SUM(GH5:GI5) -> 0 | HV5: =SUM(GH5:GJ5) -> 0 | HW5: =SUM(GH5:GK5) -> 0 | HX5: =SUM(GH5:GL5) -> 0 | IA5: =IF(AND($CX5-IA$4 >=0, $CX5-IA$4 <=7),CHOOSE($CX5-IA$4+1, $R5, $Q5, $P5, $O5, $N5,$M5, $L5, $K5,)*EO5, 0) -> 0 | IB5: 0 | IC5: 0 | ID5: 0 | IE5: 0 | IF5: 0 | IG5: 296261.4902 | IH5: 977810.416 | II5: 2227307.859 | IJ5: 12212005.28 | IK5: 0 | IL5: 0 | IM5: 0 | IN5: 0 | IO5: 0 | IP5: 0 | IR5: =IB5*FF5*$FU5 -> 0 | IS5: 0 | IT5: 0 | IU5: 0 | IV5: 0 | IW5: 300292.2524 | IX5: 996664.3486 | IY5: 2279915.752 | IZ5: 12580231.29 | JA5: 0 | JC5: =IF(AND(JC$4=$CX5, Real_or_Nom="Nominal"),SUMPRODUCT($IR5:$JA5, 1/Input_Fixed!$G$10:$P$10)*$EN5, 0) -> 0 | JD5: =IF(AND(JD$4=$CX5, Real_or_Nom="Nominal"),SUMPRODUCT($IR5:$JA5, 1/Input_Fixed!$G$10:$P$10)*$EN5, 0) -> 0 | JE5: =IF(AND(JE$4=$CX5, Real_or_Nom="Nominal"),SUMPRODUCT($IR5:$JA5, 1/Input_Fixed!$G$10:$P$10)*$EN5, 0) -> 0 | JF5: =IF(AND(JF$4=$CX5, Real_or_Nom="Nominal"),SUMPRODUCT($IR5:$JA5, 1/Input_Fixed!$G$10:$P$10)*$EN5, 0) -> 0 | JG5: =IF(AND(JG$4=$CX5, Real_or_Nom="Nominal"),SUMPRODUCT($IR5:$JA5, 1/Input_Fixed!$G$10:$P$10)*$EN5, 0) -> 0 | JH5: =IF(AND(JH$4=$CX5, Real_or_Nom="Real"),SUM($IR5:$JA5), 0) -> 0 | JI5: 0 | JJ5: 0 | JK5: 16157103.64 | JL5: 0 | JN5: =SUM(IB5:IB5) -> 0 | JO5: =SUM(IB5:IC5) -> 0 | JP5: =SUM(IB5:ID5) -> 0 | JQ5: =SUM(IB5:IE5) -> 0 | JR5: =SUM(IB5:IF5) -> 0 | JS5: =SUM(IG5:IG5) -> 296261.4902 | JT5: =SUM(IG5:IH5) -> 1274071.906 | JU5: =SUM(IG5:II5) -> 3501379.766 | JV5: =SUM(IG5:IJ5) -> 15713385.05 | JW5: =SUM(IG5:IK5) -> 15713385.05 | JX5: =SUM(IL5:IL5) -> 0 | JY5: =SUM(IL5:IM5) -> 0 | JZ5: =SUM(IL5:IN5) -> 0 | KA5: =SUM(IL5:IO5) -> 0 | KB5: =SUM(IL5:IP5) -> 0 | KD5: =GH5*FP5*$FU5 -> 0 | KE5: =GI5*FQ5*$FU5 -> 0 | KF5: 0 | KG5: 0 | KH5: 0
A6: 6704 | B6: Supply to the ACT | C6: 9031A | D6: Wallaroo 330kV Switching Station | E6: New switching station in Wallaroo area | F6: PS Augmentation | I6: 2013 | J6: 31400684 | N6: 218539 | O6: 1198254 | P6: 3597904 | Q6: 18931068 | R6: 7454919 | S6: 6994231.164 | T6: 21333968.82 | U6: 1482204 | V6: 590280 | W6: 1000000 | AR6: 6784396.985 | AS6: 5977991.769 | AT6: 108000 | AV6: 351218.3 | AW6: 390958.76 | AX6: 682407.8867 | AY6: 18375.4 | AZ6: 16087334.88 | BB6: 0 | BC6: 0 | BD6: 0 | BE6: 1000000 | BF6: 2018 | CT6: 1 | CU6: =SUM(K6:R6)-J6 -> 0 | CV6: =SUM(S6:AQ6)-J6 -> -0.01554999873 | CW6: =SUM(AR6:BE6)-J6 -> -0.01554998755 | CX6: 2018 | CY6: =IF(SUM($S6:$AQ6)=0,0, S6/SUM($S6:$AQ6)) -> 0.2227413635 | CZ6: =IF(SUM($S6:$AQ6)=0,0, T6/SUM($S6:$AQ6)) -> 0.679410959 | DA6: =IF(SUM($S6:$AQ6)=0,0, U6/SUM($S6:$AQ6)) -> 0.04720292083 | DB6: =IF(SUM($S6:$AQ6)=0,0, V6/SUM($S6:$AQ6)) -> 0.01879831663 | DC6: =IF(SUM($S6:$AQ6)=0,0, W6/SUM($S6:$AQ6)) -> 0.03184644005 | DD6: =IF(SUM($S6:$AQ6)=0,0, X6/SUM($S6:$AQ6)) -> 0 | DE6: =IF(SUM($S6:$AQ6)=0,0, Y6/SUM($S6:$AQ6)) -> 0 | DF6: =IF(SUM($S6:$AQ6)=0,0, Z6/SUM($S6:$AQ6)) -> 0 | DG6: =IF(SUM($S6:$AQ6)=0,0, AA6/SUM($S6:$AQ6)) -> 0 | DH6: =IF(SUM($S6:$AQ6)=0,0, AB6/SUM($S6:$AQ6)) -> 0 | DI6: =IF(SUM($S6:$AQ6)=0,0, AC6/SUM($S6:$AQ6)) -> 0 | DJ6: =IF(SUM($S6:$AQ6)=0,0, AD6/SUM($S6:$AQ6)) -> 0 | DK6: =IF(SUM($S6:$AQ6)=0,0, AE6/SUM($S6:$AQ6)) -> 0 | DL6: =IF(SUM($S6:$AQ6)=0,0, AF6/SUM($S6:$AQ6)) -> 0 | DM6: =IF(SUM($S6:$AQ6)=0,0, AG6/SUM($S6:$AQ6)) -> 0 | DN6: =IF(SUM($S6:$AQ6)=0,0, AH6/SUM($S6:$AQ6)) -> 0 | DO6: =IF(SUM($S6:$AQ6)=0,0, AI6/SUM($S6:$AQ6)) -> 0 | DP6: =IF(SUM($S6:$AQ6)=0,0, AJ6/SUM($S6:$AQ6)) -> 0 | DQ6: =IF(SUM($S6:$AQ6)=0,0, AK6/SUM($S6:$AQ6)) -> 0 | DR6: =IF(SUM($S6:$AQ6)=0,0, AL6/SUM($S6:$AQ6)) -> 0 | DS6: =IF(SUM($S6:$AQ6)=0,0, AM6/SUM($S6:$AQ6)) -> 0 | DT6: =IF(SUM($S6:$AQ6)=0,0, AN6/SUM($S6:$AQ6)) -> 0 | DU6: =IF(SUM($S6:$AQ6)=0,0, AO6/SUM($S6:$AQ6)) -> 0 | DV6: =IF(SUM($S6:$AQ6)=0,0, AP6/SUM($S6:$AQ6)) -> 0 | DW6: =IF(SUM($S6:$AQ6)=0,0, AQ6/SUM($S6:$AQ6)) -> 0 | DX6: =IF(SUM($AR6:$BE6)=0, 0, AR6/SUM($AR6:$BE6)) -> 0.2160588918 | DY6: =IF(SUM($AR6:$BE6)=0, 0, AS6/SUM($AR6:$BE6)) -> 0.1903777565 | DZ6: =IF(SUM($AR6:$BE6)=0, 0, AT6/SUM($AR6:$BE6)) -> 0.003439415525 | EA6: =IF(SUM($AR6:$BE6)=0, 0, AU6/SUM($AR6:$BE6)) -> 0 | EB6: =IF(SUM($AR6:$BE6)=0, 0, AV6/SUM($AR6:$BE6)) -> 0.01118505253 | EC6: =IF(SUM($AR6:$BE6)=0, 0, AW6/SUM($AR6:$BE6)) -> 0.01245064471 | ED6: =IF(SUM($AR6:$BE6)=0, 0, AX6/SUM($AR6:$BE6)) -> 0.02173226185 | EE6: =IF(SUM($AR6:$BE6)=0, 0, AY6/SUM($AR6:$BE6)) -> 0.0005851910745 | EF6: =IF(SUM($AR6:$BE6)=0, 0, AZ6/SUM($AR6:$BE6)) -> 0.5123243459 | EG6: =IF(SUM($AR6:$BE6)=0, 0, BA6/SUM($AR6:$BE6)) -> 0 | EH6: =IF(SUM($AR6:$BE6)=0, 0, BB6/SUM($AR6:$BE6)) -> 0 | EI6: =IF(SUM($AR6:$BE6)=0, 0, BC6/SUM($AR6:$BE6)) -> 0 | EJ6: =IF(SUM($AR6:$BE6)=0, 0, BD6/SUM($AR6:$BE6)) -> 0 | EK6: =IF(SUM($AR6:$BE6)=0, 0, BE6/SUM($AR6:$BE6)) -> 0.03184644005 | EL6: =IF(I6<>"", HLOOKUP($I6,EscCPI,7), 100%) -> 1.107051697 | EM6: 1.029296875 | EN6: 1.26084582 | EO6: =IF(Real_or_Nom="Nominal",Input_Fixed!F$10/$EL6, $EM6) -> 1.029296875 | EP6: =IF(Real_or_Nom="Nominal",Input_Fixed!G$10/$EL6, $EM6) -> 1.029296875 | EQ6: =IF(Real_or_Nom="Nominal",Input_Fixed!H$10/$EL6, $EM6) -> 1.029296875 | ER6: =IF(Real_or_Nom="Nominal",Input_Fixed!I$10/$EL6, $EM6) -> 1.029296875 | ES6: =IF(Real_or_Nom="Nominal",Input_Fixed!J$10/$EL6, $EM6) -> 1.029296875 | ET6: =IF(Real_or_Nom="Nominal",Input_Fixed!K$10/$EL6, $EM6) -> 1.029296875 | EU6: =IF(Real_or_Nom="Nominal",Input_Fixed!L$10/$EL6, $EM6) -> 1.029296875 | EV6: =IF(Real_or_Nom="Nominal",Input_Fixed!M$10/$EL6, $EM6) -> 1.029296875 | EW6: =IF(Real_or_Nom="Nominal",Input_Fixed!N$10/$EL6, $EM6) -> 1.029296875 | EX6: =IF(Real_or_Nom="Nominal",Input_Fixed!O$10/$EL6, $EM6) -> 1.029296875 | EY6: =IF(Real_or_Nom="Nominal",Input_Fixed!P$10/$EL6, $EM6) -> 1.029296875 | EZ6: =IF(Real_or_Nom="Nominal",Input_Fixed!Q$10/$EL6, $EM6) -> 1.029296875 | FA6: =IF(Real_or_Nom="Nominal",Input_Fixed!R$10/$EL6, $EM6) -> 1.029296875 | FB6: =IF(Real_or_Nom="Nominal",Input_Fixed!S$10/$EL6, $EM6) -> 1.029296875 | FC6: =IF(Real_or_Nom="Nominal",Input_Fixed!T$10/$EL6, $EM6) -> 1.029296875 | FD6: =IF(Real_or_Nom="Nominal",Input_Fixed!U$10/$EL6, $EM6) -> 1.029296875 | FE6: 1 | FF6: 1 | FG6: 1 | FH6: 1 | FI6: 1 | FJ6: 1.007772068 | FK6: 1.020161193 | FL6: 1.035128337 | FM6: 1.050250821 | FN6: 1.06738046 | FO6: 1.0840842 | FP6: 1.099095732 | FQ6: 1.114400731 | FR6: 1.130005257 | FS6: 1.145915503 | FT6: 1.1621378 | FU6: 1 | FV6: =IF(F6="", "", VLOOKUP(F6,Input_Fixed!$A$105:$C$116,3,FALSE)) -> Network | FW6: =SUM(Scen01wgt*Scenario_Wgtd!E6, Scen02wgt* Scenario_Wgtd!U6, Scen03wgt*Scenario_Wgtd!AK6, Scen04wgt*Scenario_Wgtd!BA6, Scen05wgt*Scenario_Wgtd!BQ6, Scen06wgt*Scenario_Wgtd!CG6,Scen07wgt*Scenario_Wgtd!CW6, Scen08wgt*Scenario_Wgtd!DM6,Scen09wgt*Scenario_Wgtd!EC6, Scen10wgt*Scenario_Wgtd!ES6,Scen11wgt*Scenario_Wgtd!FI6, Scen12wgt*Scenario_Wgtd!FY6, Scen13wgt*Scenario_Wgtd!GO6, Scen14wgt*Scenario_Wgtd!HE6,Scen15wgt*Scenario_Wgtd!HU6, Scen16wgt*Scenario_Wgtd!IK6, Scen17wgt*Scenario_Wgtd!JA6,Scen18wgt*Scenario_Wgtd!JQ6, Scen19wgt*Scenario_Wgtd!KG6,Scen20wgt*Scenario_Wgtd!KW6, Scen21wgt*Scenario_Wgtd!LM6, Scen22wgt*Scenario_Wgtd!MC6, Scen23wgt*Scenario_Wgtd!MS6, Scen24wgt*Scenario_Wgtd!NI6, Scen25wgt*Scenario_Wgtd!NY6, Scen26wgt*Scenario_Wgtd!OO6, Scen27wgt*Scenario_Wgtd!PE6, Scen28wgt*Scenario_Wgtd!PU6, Scen29wgt*Scenario_Wgtd!QK6 +Scen30wgt*Scenario_Wgtd!RA6, Scen31wgt*Scenario_Wgtd!RQ6, Scen32wgt*Scenario_Wgtd!SG6, Scen33wgt*Scenario_Wgtd!SW6, Scen34wgt*Scenario_Wgtd!TM6, Scen35wgt*Scenario_Wgtd!UC6, Scen36wgt*Scenario_Wgtd!US6, Scen37wgt*Scenario_Wgtd!VI6, Scen38wgt*Scenario_Wgtd!VY6, Scen39wgt*Scenario_Wgtd!WO6, Scen40wgt*Scenario_Wgtd!XE6) -> 0 | FX6: =SUM(Scen01wgt*Scenario_Wgtd!F6, Scen02wgt* Scenario_Wgtd!V6, Scen03wgt*Scenario_Wgtd!AL6, Scen04wgt*Scenario_Wgtd!BB6, Scen05wgt*Scenario_Wgtd!BR6, Scen06wgt*Scenario_Wgtd!CH6,Scen07wgt*Scenario_Wgtd!CX6, Scen08wgt*Scenario_Wgtd!DN6,Scen09wgt*Scenario_Wgtd!ED6, Scen10wgt*Scenario_Wgtd!ET6,Scen11wgt*Scenario_Wgtd!FJ6, Scen12wgt*Scenario_Wgtd!FZ6, Scen13wgt*Scenario_Wgtd!GP6, Scen14wgt*Scenario_Wgtd!HF6,Scen15wgt*Scenario_Wgtd!HV6, Scen16wgt*Scenario_Wgtd!IL6, Scen17wgt*Scenario_Wgtd!JB6,Scen18wgt*Scenario_Wgtd!JR6, Scen19wgt*Scenario_Wgtd!KH6,Scen20wgt*Scenario_Wgtd!KX6, Scen21wgt*Scenario_Wgtd!LN6, Scen22wgt*Scenario_Wgtd!MD6, Scen23wgt*Scenario_Wgtd!MT6, Scen24wgt*Scenario_Wgtd!NJ6, Scen25wgt*Scenario_Wgtd!NZ6, Scen26wgt*Scenario_Wgtd!OP6, Scen27wgt*Scenario_Wgtd!PF6, Scen28wgt*Scenario_Wgtd!PV6, Scen29wgt*Scenario_Wgtd!QL6 +Scen30wgt*Scenario_Wgtd!RB6, Scen31wgt*Scenario_Wgtd!RR6, Scen32wgt*Scenario_Wgtd!SH6, Scen33wgt*Scenario_Wgtd!SX6, Scen34wgt*Scenario_Wgtd!TN6, Scen35wgt*Scenario_Wgtd!UD6, Scen36wgt*Scenario_Wgtd!UT6, Scen37wgt*Scenario_Wgtd!VJ6, Scen38wgt*Scenario_Wgtd!VZ6, Scen39wgt*Scenario_Wgtd!WP6, Scen40wgt*Scenario_Wgtd!XF6) -> 0 | FY6: =SUM(Scen01wgt*Scenario_Wgtd!G6, Scen02wgt* Scenario_Wgtd!W6, Scen03wgt*Scenario_Wgtd!AM6, Scen04wgt*Scenario_Wgtd!BC6, Scen05wgt*Scenario_Wgtd!BS6, Scen06wgt*Scenario_Wgtd!CI6,Scen07wgt*Scenario_Wgtd!CY6, Scen08wgt*Scenario_Wgtd!DO6,Scen09wgt*Scenario_Wgtd!EE6, Scen10wgt*Scenario_Wgtd!EU6,Scen11wgt*Scenario_Wgtd!FK6, Scen12wgt*Scenario_Wgtd!GA6, Scen13wgt*Scenario_Wgtd!GQ6, Scen14wgt*Scenario_Wgtd!HG6,Scen15wgt*Scenario_Wgtd!HW6, Scen16wgt*Scenario_Wgtd!IM6, Scen17wgt*Scenario_Wgtd!JC6,Scen18wgt*Scenario_Wgtd!JS6, Scen19wgt*Scenario_Wgtd!KI6,Scen20wgt*Scenario_Wgtd!KY6, Scen21wgt*Scenario_Wgtd!LO6, Scen22wgt*Scenario_Wgtd!ME6, Scen23wgt*Scenario_Wgtd!MU6, Scen24wgt*Scenario_Wgtd!NK6, Scen25wgt*Scenario_Wgtd!OA6, Scen26wgt*Scenario_Wgtd!OQ6, Scen27wgt*Scenario_Wgtd!PG6, Scen28wgt*Scenario_Wgtd!PW6, Scen29wgt*Scenario_Wgtd!QM6 +Scen30wgt*Scenario_Wgtd!RC6, Scen31wgt*Scenario_Wgtd!RS6, Scen32wgt*Scenario_Wgtd!SI6, Scen33wgt*Scenario_Wgtd!SY6, Scen34wgt*Scenario_Wgtd!TO6, Scen35wgt*Scenario_Wgtd!UE6, Scen36wgt*Scenario_Wgtd!UU6, Scen37wgt*Scenario_Wgtd!VK6, Scen38wgt*Scenario_Wgtd!WA6, Scen39wgt*Scenario_Wgtd!WQ6, Scen40wgt*Scenario_Wgtd!XG6) -> 0 | FZ6: =SUM(Scen01wgt*Scenario_Wgtd!H6, Scen02wgt* Scenario_Wgtd!X6, Scen03wgt*Scenario_Wgtd!AN6, Scen04wgt*Scenario_Wgtd!BD6, Scen05wgt*Scenario_Wgtd!BT6, Scen06wgt*Scenario_Wgtd!CJ6,Scen07wgt*Scenario_Wgtd!CZ6, Scen08wgt*Scenario_Wgtd!DP6,Scen09wgt*Scenario_Wgtd!EF6, Scen10wgt*Scenario_Wgtd!EV6,Scen11wgt*Scenario_Wgtd!FL6, Scen12wgt*Scenario_Wgtd!GB6, Scen13wgt*Scenario_Wgtd!GR6, Scen14wgt*Scenario_Wgtd!HH6,Scen15wgt*Scenario_Wgtd!HX6, Scen16wgt*Scenario_Wgtd!IN6, Scen17wgt*Scenario_Wgtd!JD6,Scen18wgt*Scenario_Wgtd!JT6, Scen19wgt*Scenario_Wgtd!KJ6,Scen20wgt*Scenario_Wgtd!KZ6, Scen21wgt*Scenario_Wgtd!LP6, Scen22wgt*Scenario_Wgtd!MF6, Scen23wgt*Scenario_Wgtd!MV6, Scen24wgt*Scenario_Wgtd!NL6, Scen25wgt*Scenario_Wgtd!OB6, Scen26wgt*Scenario_Wgtd!OR6, Scen27wgt*Scenario_Wgtd!PH6, Scen28wgt*Scenario_Wgtd!PX6, Scen29wgt*Scenario_Wgtd!QN6 +Scen30wgt*Scenario_Wgtd!RD6, Scen31wgt*Scenario_Wgtd!RT6, Scen32wgt*Scenario_Wgtd!SJ6, Scen33wgt*Scenario_Wgtd!SZ6, Scen34wgt*Scenario_Wgtd!TP6, Scen35wgt*Scenario_Wgtd!UF6, Scen36wgt*Scenario_Wgtd!UV6, Scen37wgt*Scenario_Wgtd!VL6, Scen38wgt*Scenario_Wgtd!WB6, Scen39wgt*Scenario_Wgtd!WR6, Scen40wgt*Scenario_Wgtd!XH6) -> 0 | GA6: =SUM(Scen01wgt*Scenario_Wgtd!I6, Scen02wgt* Scenario_Wgtd!Y6, Scen03wgt*Scenario_Wgtd!AO6, Scen04wgt*Scenario_Wgtd!BE6, Scen05wgt*Scenario_Wgtd!BU6, Scen06wgt*Scenario_Wgtd!CK6,Scen07wgt*Scenario_Wgtd!DA6, Scen08wgt*Scenario_Wgtd!DQ6,Scen09wgt*Scenario_Wgtd!EG6, Scen10wgt*Scenario_Wgtd!EW6,Scen11wgt*Scenario_Wgtd!FM6, Scen12wgt*Scenario_Wgtd!GC6, Scen13wgt*Scenario_Wgtd!GS6, Scen14wgt*Scenario_Wgtd!HI6,Scen15wgt*Scenario_Wgtd!HY6, Scen16wgt*Scenario_Wgtd!IO6, Scen17wgt*Scenario_Wgtd!JE6,Scen18wgt*Scenario_Wgtd!JU6, Scen19wgt*Scenario_Wgtd!KK6,Scen20wgt*Scenario_Wgtd!LA6, Scen21wgt*Scenario_Wgtd!LQ6, Scen22wgt*Scenario_Wgtd!MG6, Scen23wgt*Scenario_Wgtd!MW6, Scen24wgt*Scenario_Wgtd!NM6, Scen25wgt*Scenario_Wgtd!OC6, Scen26wgt*Scenario_Wgtd!OS6, Scen27wgt*Scenario_Wgtd!PI6, Scen28wgt*Scenario_Wgtd!PY6, Scen29wgt*Scenario_Wgtd!QO6 +Scen30wgt*Scenario_Wgtd!RE6, Scen31wgt*Scenario_Wgtd!RU6, Scen32wgt*Scenario_Wgtd!SK6, Scen33wgt*Scenario_Wgtd!TA6, Scen34wgt*Scenario_Wgtd!TQ6, Scen35wgt*Scenario_Wgtd!UG6, Scen36wgt*Scenario_Wgtd!UW6, Scen37wgt*Scenario_Wgtd!VM6, Scen38wgt*Scenario_Wgtd!WC6, Scen39wgt*Scenario_Wgtd!WS6, Scen40wgt*Scenario_Wgtd!XI6) -> 0 | GB6: =SUM(Scen01wgt*Scenario_Wgtd!J6, Scen02wgt* Scenario_Wgtd!Z6, Scen03wgt*Scenario_Wgtd!AP6, Scen04wgt*Scenario_Wgtd!BF6, Scen05wgt*Scenario_Wgtd!BV6, Scen06wgt*Scenario_Wgtd!CL6,Scen07wgt*Scenario_Wgtd!DB6, Scen08wgt*Scenario_Wgtd!DR6,Scen09wgt*Scenario_Wgtd!EH6, Scen10wgt*Scenario_Wgtd!EX6,Scen11wgt*Scenario_Wgtd!FN6, Scen12wgt*Scenario_Wgtd!GD6, Scen13wgt*Scenario_Wgtd!GT6, Scen14wgt*Scenario_Wgtd!HJ6,Scen15wgt*Scenario_Wgtd!HZ6, Scen16wgt*Scenario_Wgtd!IP6, Scen17wgt*Scenario_Wgtd!JF6,Scen18wgt*Scenario_Wgtd!JV6, Scen19wgt*Scenario_Wgtd!KL6,Scen20wgt*Scenario_Wgtd!LB6, Scen21wgt*Scenario_Wgtd!LR6, Scen22wgt*Scenario_Wgtd!MH6, Scen23wgt*Scenario_Wgtd!MX6, Scen24wgt*Scenario_Wgtd!NN6, Scen25wgt*Scenario_Wgtd!OD6, Scen26wgt*Scenario_Wgtd!OT6, Scen27wgt*Scenario_Wgtd!PJ6, Scen28wgt*Scenario_Wgtd!PZ6, Scen29wgt*Scenario_Wgtd!QP6 +Scen30wgt*Scenario_Wgtd!RF6, Scen31wgt*Scenario_Wgtd!RV6, Scen32wgt*Scenario_Wgtd!SL6, Scen33wgt*Scenario_Wgtd!TB6, Scen34wgt*Scenario_Wgtd!TR6, Scen35wgt*Scenario_Wgtd!UH6, Scen36wgt*Scenario_Wgtd!UX6, Scen37wgt*Scenario_Wgtd!VN6, Scen38wgt*Scenario_Wgtd!WD6, Scen39wgt*Scenario_Wgtd!WT6, Scen40wgt*Scenario_Wgtd!XJ6) -> 224941.5098 | GC6: =SUM(Scen01wgt*Scenario_Wgtd!K6, Scen02wgt* Scenario_Wgtd!AA6, Scen03wgt*Scenario_Wgtd!AQ6, Scen04wgt*Scenario_Wgtd!BG6, Scen05wgt*Scenario_Wgtd!BW6, Scen06wgt*Scenario_Wgtd!CM6,Scen07wgt*Scenario_Wgtd!DC6, Scen08wgt*Scenario_Wgtd!DS6,Scen09wgt*Scenario_Wgtd!EI6, Scen10wgt*Scenario_Wgtd!EY6,Scen11wgt*Scenario_Wgtd!FO6, Scen12wgt*Scenario_Wgtd!GE6, Scen13wgt*Scenario_Wgtd!GU6, Scen14wgt*Scenario_Wgtd!HK6,Scen15wgt*Scenario_Wgtd!IA6, Scen16wgt*Scenario_Wgtd!IQ6, Scen17wgt*Scenario_Wgtd!JG6,Scen18wgt*Scenario_Wgtd!JW6, Scen19wgt*Scenario_Wgtd!KM6,Scen20wgt*Scenario_Wgtd!LC6, Scen21wgt*Scenario_Wgtd!LS6, Scen22wgt*Scenario_Wgtd!MI6, Scen23wgt*Scenario_Wgtd!MY6, Scen24wgt*Scenario_Wgtd!NO6, Scen25wgt*Scenario_Wgtd!OE6, Scen26wgt*Scenario_Wgtd!OU6, Scen27wgt*Scenario_Wgtd!PK6, Scen28wgt*Scenario_Wgtd!QA6, Scen29wgt*Scenario_Wgtd!QQ6 +Scen30wgt*Scenario_Wgtd!RG6, Scen31wgt*Scenario_Wgtd!RW6, Scen32wgt*Scenario_Wgtd!SM6, Scen33wgt*Scenario_Wgtd!TC6, Scen34wgt*Scenario_Wgtd!TS6, Scen35wgt*Scenario_Wgtd!UI6, Scen36wgt*Scenario_Wgtd!UY6, Scen37wgt*Scenario_Wgtd!VO6, Scen38wgt*Scenario_Wgtd!WE6, Scen39wgt*Scenario_Wgtd!WU6, Scen40wgt*Scenario_Wgtd!XK6) -> 1233359.098 | GD6: =SUM(Scen01wgt*Scenario_Wgtd!L6, Scen02wgt* Scenario_Wgtd!AB6, Scen03wgt*Scenario_Wgtd!AR6, Scen04wgt*Scenario_Wgtd!BH6, Scen05wgt*Scenario_Wgtd!BX6, Scen06wgt*Scenario_Wgtd!CN6,Scen07wgt*Scenario_Wgtd!DD6, Scen08wgt*Scenario_Wgtd!DT6,Scen09wgt*Scenario_Wgtd!EJ6, Scen10wgt*Scenario_Wgtd!EZ6,Scen11wgt*Scenario_Wgtd!FP6, Scen12wgt*Scenario_Wgtd!GF6, Scen13wgt*Scenario_Wgtd!GV6, Scen14wgt*Scenario_Wgtd!HL6,Scen15wgt*Scenario_Wgtd!IB6, Scen16wgt*Scenario_Wgtd!IR6, Scen17wgt*Scenario_Wgtd!JH6,Scen18wgt*Scenario_Wgtd!JX6, Scen19wgt*Scenario_Wgtd!KN6,Scen20wgt*Scenario_Wgtd!LD6, Scen21wgt*Scenario_Wgtd!LT6, Scen22wgt*Scenario_Wgtd!MJ6, Scen23wgt*Scenario_Wgtd!MZ6, Scen24wgt*Scenario_Wgtd!NP6, Scen25wgt*Scenario_Wgtd!OF6, Scen26wgt*Scenario_Wgtd!OV6, Scen27wgt*Scenario_Wgtd!PL6, Scen28wgt*Scenario_Wgtd!QB6, Scen29wgt*Scenario_Wgtd!QR6 +Scen30wgt*Scenario_Wgtd!RH6, Scen31wgt*Scenario_Wgtd!RX6, Scen32wgt*Scenario_Wgtd!SN6, Scen33wgt*Scenario_Wgtd!TD6, Scen34wgt*Scenario_Wgtd!TT6, Scen35wgt*Scenario_Wgtd!UJ6, Scen36wgt*Scenario_Wgtd!UZ6, Scen37wgt*Scenario_Wgtd!VP6, Scen38wgt*Scenario_Wgtd!WF6, Scen39wgt*Scenario_Wgtd!WV6, Scen40wgt*Scenario_Wgtd!XL6) -> 3703311.344 | GE6: =SUM(Scen01wgt*Scenario_Wgtd!M6, Scen02wgt* Scenario_Wgtd!AC6, Scen03wgt*Scenario_Wgtd!AS6, Scen04wgt*Scenario_Wgtd!BI6, Scen05wgt*Scenario_Wgtd!BY6, Scen06wgt*Scenario_Wgtd!CO6,Scen07wgt*Scenario_Wgtd!DE6, Scen08wgt*Scenario_Wgtd!DU6,Scen09wgt*Scenario_Wgtd!EK6, Scen10wgt*Scenario_Wgtd!FA6,Scen11wgt*Scenario_Wgtd!FQ6, Scen12wgt*Scenario_Wgtd!GG6, Scen13wgt*Scenario_Wgtd!GW6, Scen14wgt*Scenario_Wgtd!HM6,Scen15wgt*Scenario_Wgtd!IC6, Scen16wgt*Scenario_Wgtd!IS6, Scen17wgt*Scenario_Wgtd!JI6,Scen18wgt*Scenario_Wgtd!JY6, Scen19wgt*Scenario_Wgtd!KO6,Scen20wgt*Scenario_Wgtd!LE6, Scen21wgt*Scenario_Wgtd!LU6, Scen22wgt*Scenario_Wgtd!MK6, Scen23wgt*Scenario_Wgtd!NA6, Scen24wgt*Scenario_Wgtd!NQ6, Scen25wgt*Scenario_Wgtd!OG6, Scen26wgt*Scenario_Wgtd!OW6, Scen27wgt*Scenario_Wgtd!PM6, Scen28wgt*Scenario_Wgtd!QC6, Scen29wgt*Scenario_Wgtd!QS6 +Scen30wgt*Scenario_Wgtd!RI6, Scen31wgt*Scenario_Wgtd!RY6, Scen32wgt*Scenario_Wgtd!SO6, Scen33wgt*Scenario_Wgtd!TE6, Scen34wgt*Scenario_Wgtd!TU6, Scen35wgt*Scenario_Wgtd!UK6, Scen36wgt*Scenario_Wgtd!VA6, Scen37wgt*Scenario_Wgtd!VQ6, Scen38wgt*Scenario_Wgtd!WG6, Scen39wgt*Scenario_Wgtd!WW6, Scen40wgt*Scenario_Wgtd!XM6) -> 19485689.13 | GF6: =SUM(Scen01wgt*Scenario_Wgtd!N6, Scen02wgt* Scenario_Wgtd!AD6, Scen03wgt*Scenario_Wgtd!AT6, Scen04wgt*Scenario_Wgtd!BJ6, Scen05wgt*Scenario_Wgtd!BZ6, Scen06wgt*Scenario_Wgtd!CP6,Scen07wgt*Scenario_Wgtd!DF6, Scen08wgt*Scenario_Wgtd!DV6,Scen09wgt*Scenario_Wgtd!EL6, Scen10wgt*Scenario_Wgtd!FB6,Scen11wgt*Scenario_Wgtd!FR6, Scen12wgt*Scenario_Wgtd!GH6, Scen13wgt*Scenario_Wgtd!GX6, Scen14wgt*Scenario_Wgtd!HN6,Scen15wgt*Scenario_Wgtd!ID6, Scen16wgt*Scenario_Wgtd!IT6, Scen17wgt*Scenario_Wgtd!JJ6,Scen18wgt*Scenario_Wgtd!JZ6, Scen19wgt*Scenario_Wgtd!KP6,Scen20wgt*Scenario_Wgtd!LF6, Scen21wgt*Scenario_Wgtd!LV6, Scen22wgt*Scenario_Wgtd!ML6, Scen23wgt*Scenario_Wgtd!NB6, Scen24wgt*Scenario_Wgtd!NR6, Scen25wgt*Scenario_Wgtd!OH6, Scen26wgt*Scenario_Wgtd!OX6, Scen27wgt*Scenario_Wgtd!PN6, Scen28wgt*Scenario_Wgtd!QD6, Scen29wgt*Scenario_Wgtd!QT6 +Scen30wgt*Scenario_Wgtd!RJ6, Scen31wgt*Scenario_Wgtd!RZ6, Scen32wgt*Scenario_Wgtd!SP6, Scen33wgt*Scenario_Wgtd!TF6, Scen34wgt*Scenario_Wgtd!TV6, Scen35wgt*Scenario_Wgtd!UL6, Scen36wgt*Scenario_Wgtd!VB6, Scen37wgt*Scenario_Wgtd!VR6, Scen38wgt*Scenario_Wgtd!WH6, Scen39wgt*Scenario_Wgtd!WX6, Scen40wgt*Scenario_Wgtd!XN6) -> 7673324.83 | GG6: =SUM(Scen01wgt*Scenario_Wgtd!O6, Scen02wgt* Scenario_Wgtd!AE6, Scen03wgt*Scenario_Wgtd!AU6, Scen04wgt*Scenario_Wgtd!BK6, Scen05wgt*Scenario_Wgtd!CA6, Scen06wgt*Scenario_Wgtd!CQ6,Scen07wgt*Scenario_Wgtd!DG6, Scen08wgt*Scenario_Wgtd!DW6,Scen09wgt*Scenario_Wgtd!EM6, Scen10wgt*Scenario_Wgtd!FC6,Scen11wgt*Scenario_Wgtd!FS6, Scen12wgt*Scenario_Wgtd!GI6, Scen13wgt*Scenario_Wgtd!GY6, Scen14wgt*Scenario_Wgtd!HO6,Scen15wgt*Scenario_Wgtd!IE6, Scen16wgt*Scenario_Wgtd!IU6, Scen17wgt*Scenario_Wgtd!JK6,Scen18wgt*Scenario_Wgtd!KA6, Scen19wgt*Scenario_Wgtd!KQ6,Scen20wgt*Scenario_Wgtd!LG6, Scen21wgt*Scenario_Wgtd!LW6, Scen22wgt*Scenario_Wgtd!MM6, Scen23wgt*Scenario_Wgtd!NC6, Scen24wgt*Scenario_Wgtd!NS6, Scen25wgt*Scenario_Wgtd!OI6, Scen26wgt*Scenario_Wgtd!OY6, Scen27wgt*Scenario_Wgtd!PO6, Scen28wgt*Scenario_Wgtd!QE6, Scen29wgt*Scenario_Wgtd!QU6 +Scen30wgt*Scenario_Wgtd!RK6, Scen31wgt*Scenario_Wgtd!SA6, Scen32wgt*Scenario_Wgtd!SQ6, Scen33wgt*Scenario_Wgtd!TG6, Scen34wgt*Scenario_Wgtd!TW6, Scen35wgt*Scenario_Wgtd!UM6, Scen36wgt*Scenario_Wgtd!VC6, Scen37wgt*Scenario_Wgtd!VS6, Scen38wgt*Scenario_Wgtd!WI6, Scen39wgt*Scenario_Wgtd!WY6, Scen40wgt*Scenario_Wgtd!XO6) -> 0 | GH6: =SUM(Scen01wgt*Scenario_Wgtd!P6, Scen02wgt* Scenario_Wgtd!AF6, Scen03wgt*Scenario_Wgtd!AV6, Scen04wgt*Scenario_Wgtd!BL6, Scen05wgt*Scenario_Wgtd!CB6, Scen06wgt*Scenario_Wgtd!CR6,Scen07wgt*Scenario_Wgtd!DH6, Scen08wgt*Scenario_Wgtd!DX6,Scen09wgt*Scenario_Wgtd!EN6, Scen10wgt*Scenario_Wgtd!FD6,Scen11wgt*Scenario_Wgtd!FT6, Scen12wgt*Scenario_Wgtd!GJ6, Scen13wgt*Scenario_Wgtd!GZ6, Scen14wgt*Scenario_Wgtd!HP6,Scen15wgt*Scenario_Wgtd!IF6, Scen16wgt*Scenario_Wgtd!IV6, Scen17wgt*Scenario_Wgtd!JL6,Scen18wgt*Scenario_Wgtd!KB6, Scen19wgt*Scenario_Wgtd!KR6,Scen20wgt*Scenario_Wgtd!LH6, Scen21wgt*Scenario_Wgtd!LX6, Scen22wgt*Scenario_Wgtd!MN6, Scen23wgt*Scenario_Wgtd!ND6, Scen24wgt*Scenario_Wgtd!NT6, Scen25wgt*Scenario_Wgtd!OJ6, Scen26wgt*Scenario_Wgtd!OZ6, Scen27wgt*Scenario_Wgtd!PP6, Scen28wgt*Scenario_Wgtd!QF6, Scen29wgt*Scenario_Wgtd!QV6 +Scen30wgt*Scenario_Wgtd!RL6, Scen31wgt*Scenario_Wgtd!SB6, Scen32wgt*Scenario_Wgtd!SR6, Scen33wgt*Scenario_Wgtd!TH6, Scen34wgt*Scenario_Wgtd!TX6, Scen35wgt*Scenario_Wgtd!UN6, Scen36wgt*Scenario_Wgtd!VD6, Scen37wgt*Scenario_Wgtd!VT6, Scen38wgt*Scenario_Wgtd!WJ6, Scen39wgt*Scenario_Wgtd!WZ6, Scen40wgt*Scenario_Wgtd!XP6) -> 0 | GI6: =SUM(Scen01wgt*Scenario_Wgtd!Q6, Scen02wgt* Scenario_Wgtd!AG6, Scen03wgt*Scenario_Wgtd!AW6, Scen04wgt*Scenario_Wgtd!BM6, Scen05wgt*Scenario_Wgtd!CC6, Scen06wgt*Scenario_Wgtd!CS6,Scen07wgt*Scenario_Wgtd!DI6, Scen08wgt*Scenario_Wgtd!DY6,Scen09wgt*Scenario_Wgtd!EO6, Scen10wgt*Scenario_Wgtd!FE6,Scen11wgt*Scenario_Wgtd!FU6, Scen12wgt*Scenario_Wgtd!GK6, Scen13wgt*Scenario_Wgtd!HA6, Scen14wgt*Scenario_Wgtd!HQ6,Scen15wgt*Scenario_Wgtd!IG6, Scen16wgt*Scenario_Wgtd!IW6, Scen17wgt*Scenario_Wgtd!JM6,Scen18wgt*Scenario_Wgtd!KC6, Scen19wgt*Scenario_Wgtd!KS6,Scen20wgt*Scenario_Wgtd!LI6, Scen21wgt*Scenario_Wgtd!LY6, Scen22wgt*Scenario_Wgtd!MO6, Scen23wgt*Scenario_Wgtd!NE6, Scen24wgt*Scenario_Wgtd!NU6, Scen25wgt*Scenario_Wgtd!OK6, Scen26wgt*Scenario_Wgtd!PA6, Scen27wgt*Scenario_Wgtd!PQ6, Scen28wgt*Scenario_Wgtd!QG6, Scen29wgt*Scenario_Wgtd!QW6 +Scen30wgt*Scenario_Wgtd!RM6, Scen31wgt*Scenario_Wgtd!SC6, Scen32wgt*Scenario_Wgtd!SS6, Scen33wgt*Scenario_Wgtd!TI6, Scen34wgt*Scenario_Wgtd!TY6, Scen35wgt*Scenario_Wgtd!UO6, Scen36wgt*Scenario_Wgtd!VE6, Scen37wgt*Scenario_Wgtd!VU6, Scen38wgt*Scenario_Wgtd!WK6, Scen39wgt*Scenario_Wgtd!XA6, Scen40wgt*Scenario_Wgtd!XQ6) -> 0 | GJ6: =SUM(Scen01wgt*Scenario_Wgtd!R6, Scen02wgt* Scenario_Wgtd!AH6, Scen03wgt*Scenario_Wgtd!AX6, Scen04wgt*Scenario_Wgtd!BN6, Scen05wgt*Scenario_Wgtd!CD6, Scen06wgt*Scenario_Wgtd!CT6,Scen07wgt*Scenario_Wgtd!DJ6, Scen08wgt*Scenario_Wgtd!DZ6,Scen09wgt*Scenario_Wgtd!EP6, Scen10wgt*Scenario_Wgtd!FF6,Scen11wgt*Scenario_Wgtd!FV6, Scen12wgt*Scenario_Wgtd!GL6, Scen13wgt*Scenario_Wgtd!HB6, Scen14wgt*Scenario_Wgtd!HR6,Scen15wgt*Scenario_Wgtd!IH6, Scen16wgt*Scenario_Wgtd!IX6, Scen17wgt*Scenario_Wgtd!JN6,Scen18wgt*Scenario_Wgtd!KD6, Scen19wgt*Scenario_Wgtd!KT6,Scen20wgt*Scenario_Wgtd!LJ6, Scen21wgt*Scenario_Wgtd!LZ6, Scen22wgt*Scenario_Wgtd!MP6, Scen23wgt*Scenario_Wgtd!NF6, Scen24wgt*Scenario_Wgtd!NV6, Scen25wgt*Scenario_Wgtd!OL6, Scen26wgt*Scenario_Wgtd!PB6, Scen27wgt*Scenario_Wgtd!PR6, Scen28wgt*Scenario_Wgtd!QH6, Scen29wgt*Scenario_Wgtd!QX6 +Scen30wgt*Scenario_Wgtd!RN6, Scen31wgt*Scenario_Wgtd!SD6, Scen32wgt*Scenario_Wgtd!ST6, Scen33wgt*Scenario_Wgtd!TJ6, Scen34wgt*Scenario_Wgtd!TZ6, Scen35wgt*Scenario_Wgtd!UP6, Scen36wgt*Scenario_Wgtd!VF6, Scen37wgt*Scenario_Wgtd!VV6, Scen38wgt*Scenario_Wgtd!WL6, Scen39wgt*Scenario_Wgtd!XB6, Scen40wgt*Scenario_Wgtd!XR6) -> 0 | GK6: =SUM(Scen01wgt*Scenario_Wgtd!S6, Scen02wgt* Scenario_Wgtd!AI6, Scen03wgt*Scenario_Wgtd!AY6, Scen04wgt*Scenario_Wgtd!BO6, Scen05wgt*Scenario_Wgtd!CE6, Scen06wgt*Scenario_Wgtd!CU6,Scen07wgt*Scenario_Wgtd!DK6, Scen08wgt*Scenario_Wgtd!EA6,Scen09wgt*Scenario_Wgtd!EQ6, Scen10wgt*Scenario_Wgtd!FG6,Scen11wgt*Scenario_Wgtd!FW6, Scen12wgt*Scenario_Wgtd!GM6, Scen13wgt*Scenario_Wgtd!HC6, Scen14wgt*Scenario_Wgtd!HS6,Scen15wgt*Scenario_Wgtd!II6, Scen16wgt*Scenario_Wgtd!IY6, Scen17wgt*Scenario_Wgtd!JO6,Scen18wgt*Scenario_Wgtd!KE6, Scen19wgt*Scenario_Wgtd!KU6,Scen20wgt*Scenario_Wgtd!LK6, Scen21wgt*Scenario_Wgtd!MA6, Scen22wgt*Scenario_Wgtd!MQ6, Scen23wgt*Scenario_Wgtd!NG6, Scen24wgt*Scenario_Wgtd!NW6, Scen25wgt*Scenario_Wgtd!OM6, Scen26wgt*Scenario_Wgtd!PC6, Scen27wgt*Scenario_Wgtd!PS6, Scen28wgt*Scenario_Wgtd!QI6, Scen29wgt*Scenario_Wgtd!QY6 +Scen30wgt*Scenario_Wgtd!RO6, Scen31wgt*Scenario_Wgtd!SE6, Scen32wgt*Scenario_Wgtd!SU6, Scen33wgt*Scenario_Wgtd!TK6, Scen34wgt*Scenario_Wgtd!UA6, Scen35wgt*Scenario_Wgtd!UQ6, Scen36wgt*Scenario_Wgtd!VG6, Scen37wgt*Scenario_Wgtd!VW6, Scen38wgt*Scenario_Wgtd!WM6, Scen39wgt*Scenario_Wgtd!XC6, Scen40wgt*Scenario_Wgtd!XS6) -> 0 | GL6: =SUM(Scen01wgt*Scenario_Wgtd!T6, Scen02wgt* Scenario_Wgtd!AJ6, Scen03wgt*Scenario_Wgtd!AZ6, Scen04wgt*Scenario_Wgtd!BP6, Scen05wgt*Scenario_Wgtd!CF6, Scen06wgt*Scenario_Wgtd!CV6,Scen07wgt*Scenario_Wgtd!DL6, Scen08wgt*Scenario_Wgtd!EB6,Scen09wgt*Scenario_Wgtd!ER6, Scen10wgt*Scenario_Wgtd!FH6,Scen11wgt*Scenario_Wgtd!FX6, Scen12wgt*Scenario_Wgtd!GN6, Scen13wgt*Scenario_Wgtd!HD6, Scen14wgt*Scenario_Wgtd!HT6,Scen15wgt*Scenario_Wgtd!IJ6, Scen16wgt*Scenario_Wgtd!IZ6, Scen17wgt*Scenario_Wgtd!JP6,Scen18wgt*Scenario_Wgtd!KF6, Scen19wgt*Scenario_Wgtd!KV6,Scen20wgt*Scenario_Wgtd!LL6, Scen21wgt*Scenario_Wgtd!MB6, Scen22wgt*Scenario_Wgtd!MR6, Scen23wgt*Scenario_Wgtd!NH6, Scen24wgt*Scenario_Wgtd!NX6, Scen25wgt*Scenario_Wgtd!ON6, Scen26wgt*Scenario_Wgtd!PD6, Scen27wgt*Scenario_Wgtd!PT6, Scen28wgt*Scenario_Wgtd!QJ6, Scen29wgt*Scenario_Wgtd!QZ6 +Scen30wgt*Scenario_Wgtd!RP6, Scen31wgt*Scenario_Wgtd!SF6, Scen32wgt*Scenario_Wgtd!SV6, Scen33wgt*Scenario_Wgtd!TL6, Scen34wgt*Scenario_Wgtd!UB6, Scen35wgt*Scenario_Wgtd!UR6, Scen36wgt*Scenario_Wgtd!VH6, Scen37wgt*Scenario_Wgtd!VX6, Scen38wgt*Scenario_Wgtd!WN6, Scen39wgt*Scenario_Wgtd!XD6, Scen40wgt*Scenario_Wgtd!XT6) -> 0 | GN6: =FX6*FF6*$FU6 -> 0 | GO6: =FY6*FG6*$FU6 -> 0 | GP6: =FZ6*FH6*$FU6 -> 0 | GQ6: =GA6*FI6*$FU6 -> 0 | GR6: =GB6*FJ6*$FU6 -> 226689.7705 | GS6: =GC6*FK6*$FU6 -> 1258225.088 | GT6: =GD6*FL6*$FU6 -> 3833402.514 | GU6: =GE6*FM6*$FU6 -> 20464861.02 | GV6: =GF6*FN6*$FU6 -> 8190356.99 | GW6: =GG6*FO6*$FU6 -> 0 | GY6: =IF(AND(GY$4=$CX6, Real_or_Nom="Nominal"),SUMPRODUCT($GN6:$GW6, 1/Input_Fixed!$G$10:$P$10)*$EN6, 0) -> 0 | GZ6: =IF(AND(GZ$4=$CX6, Real_or_Nom="Nominal"),SUMPRODUCT($GN6:$GW6, 1/Input_Fixed!$G$10:$P$10)*$EN6, 0) -> 0 | HA6: =IF(AND(HA$4=$CX6, Real_or_Nom="Nominal"),SUMPRODUCT($GN6:$GW6, 1/Input_Fixed!$G$10:$P$10)*$EN6, 0) -> 0 | HB6: =IF(AND(HB$4=$CX6, Real_or_Nom="Nominal"),SUMPRODUCT($GN6:$GW6, 1/Input_Fixed!$G$10:$P$10)*$EN6, 0) -> 0 | HC6: =IF(AND(HC$4=$CX6, Real_or_Nom="Nominal"),SUMPRODUCT($GN6:$GW6, 1/Input_Fixed!$G$10:$P$10)*$EN6, 0) -> 0 | HD6: 0 | HE6: 0 | HF6: 0 | HG6: 33973535.38 | HH6: 0 | HJ6: 0 | HK6: 0 | HL6: 0 | HM6: 0 | HN6: 224941.5098 | HO6: 1233359.098 | HP6: 4936670.441 | HQ6: 24422359.57 | HR6: 32095684.4 | HS6: =SUM(GC6:GG6) -> 32095684.4 | HT6: =SUM(GH6:GH6) -> 0 | HU6: 0 | HV6: 0 | HW6: 0 | HX6: 0 | IA6: =IF(AND($CX6-IA$4 >=0, $CX6-IA$4 <=7),CHOOSE($CX6-IA$4+1, $R6, $Q6, $P6, $O6, $N6,$M6, $L6, $K6,)*EO6, 0) -> 0 | IB6: =IF(AND($CX6-IB$4 >=0, $CX6-IB$4 <=7),CHOOSE($CX6-IB$4+1, $R6, $Q6, $P6, $O6, $N6,$M6, $L6, $K6,)*EP6, 0) -> 0 | IC6: =IF(AND($CX6-IC$4 >=0, $CX6-IC$4 <=7),CHOOSE($CX6-IC$4+1, $R6, $Q6, $P6, $O6, $N6,$M6, $L6, $K6,)*EQ6, 0) -> 0 | ID6: =IF(AND($CX6-ID$4 >=0, $CX6-ID$4 <=7),CHOOSE($CX6-ID$4+1, $R6, $Q6, $P6, $O6, $N6,$M6, $L6, $K6,)*ER6, 0) -> 0 | IE6: =IF(AND($CX6-IE$4 >=0, $CX6-IE$4 <=7),CHOOSE($CX6-IE$4+1, $R6, $Q6, $P6, $O6, $N6,$M6, $L6, $K6,)*ES6, 0) -> 0 | IF6: =IF(AND($CX6-IF$4 >=0, $CX6-IF$4 <=7),CHOOSE($CX6-IF$4+1, $R6, $Q6, $P6, $O6, $N6,$M6, $L6, $K6,)*ET6, 0) -> 224941.5098 | IG6: =IF(AND($CX6-IG$4 >=0, $CX6-IG$4 <=7),CHOOSE($CX6-IG$4+1, $R6, $Q6, $P6, $O6, $N6,$M6, $L6, $K6,)*EU6, 0) -> 1233359.098 | IH6: =IF(AND($CX6-IH$4 >=0, $CX6-IH$4 <=7),CHOOSE($CX6-IH$4+1, $R6, $Q6, $P6, $O6, $N6,$M6, $L6, $K6,)*EV6, 0) -> 3703311.344 | II6: =IF(AND($CX6-II$4 >=0, $CX6-II$4 <=7),CHOOSE($CX6-II$4+1, $R6, $Q6, $P6, $O6, $N6,$M6, $L6, $K6,)*EW6, 0) -> 19485689.13 | IJ6: =IF(AND($CX6-IJ$4 >=0, $CX6-IJ$4 <=7),CHOOSE($CX6-IJ$4+1, $R6, $Q6, $P6, $O6, $N6,$M6, $L6, $K6,)*EX6, 0) -> 7673324.83 | IK6: =IF(AND($CX6-IK$4 >=0, $CX6-IK$4 <=7),CHOOSE($CX6-IK$4+1, $R6, $Q6, $P6, $O6, $N6,$M6, $L6, $K6,)*EY6, 0) -> 0 | IL6: =IF(AND($CX6-IL$4 >=0, $CX6-IL$4 <=7),CHOOSE($CX6-IL$4+1, $R6, $Q6, $P6, $O6, $N6,$M6, $L6, $K6,)*EZ6, 0) -> 0 | IM6: =IF(AND($CX6-IM$4 >=0, $CX6-IM$4 <=7),CHOOSE($CX6-IM$4+1, $R6, $Q6, $P6, $O6, $N6,$M6, $L6, $K6,)*FA6, 0) -> 0 | IN6: =IF(AND($CX6-IN$4 >=0, $CX6-IN$4 <=7),CHOOSE($CX6-IN$4+1, $R6, $Q6, $P6, $O6, $N6,$M6, $L6, $K6,)*FB6, 0) -> 0 | IO6: =IF(AND($CX6-IO$4 >=0, $CX6-IO$4 <=7),CHOOSE($CX6-IO$4+1, $R6, $Q6, $P6, $O6, $N6,$M6, $L6, $K6,)*FC6, 0) -> 0 | IP6: =IF(AND($CX6-IP$4 >=0, $CX6-IP$4 <=7),CHOOSE($CX6-IP$4+1, $R6, $Q6, $P6, $O6, $N6,$M6, $L6, $K6,)*FD6, 0) -> 0 | IR6: =IB6*FF6*$FU6 -> 0 | IS6: =IC6*FG6*$FU6 -> 0 | IT6: =ID6*FH6*$FU6 -> 0 | IU6: =IE6*FI6*$FU6 -> 0 | IV6: =IF6*FJ6*$FU6 -> 226689.7705 | IW6: =IG6*FK6*$FU6 -> 1258225.088 | IX6: =IH6*FL6*$FU6 -> 3833402.514 | IY6: =II6*FM6*$FU6 -> 20464861.02 | IZ6: =IJ6*FN6*$FU6 -> 8190356.99 | JA6: =IK6*FO6*$FU6 -> 0 | JC6: =IF(AND(JC$4=$CX6, Real_or_Nom="Nominal"),SUMPRODUCT($IR6:$JA6, 1/Input_Fixed!$G$10:$P$10)*$EN6, 0) -> 0 | JD6: =IF(AND(JD$4=$CX6, Real_or_Nom="Nominal"),SUMPRODUCT($IR6:$JA6, 1/Input_Fixed!$G$10:$P$10)*$EN6, 0) -> 0 | JE6: =IF(AND(JE$4=$CX6, Real_or_Nom="Nominal"),SUMPRODUCT($IR6:$JA6, 1/Input_Fixed!$G$10:$P$10)*$EN6, 0) -> 0 | JF6: =IF(AND(JF$4=$CX6, Real_or_Nom="Nominal"),SUMPRODUCT($IR6:$JA6, 1/Input_Fixed!$G$10:$P$10)*$EN6, 0) -> 0 | JG6: =IF(AND(JG$4=$CX6, Real_or_Nom="Nominal"),SUMPRODUCT($IR6:$JA6, 1/Input_Fixed!$G$10:$P$10)*$EN6, 0) -> 0 | JH6: 0 | JI6: 0 | JJ6: 0 | JK6: 33973535.38 | JL6: 0 | JN6: 0 | JO6: 0 | JP6: 0 | JQ6: 0 | JR6: 224941.5098 | JS6: 1233359.098 | JT6: 4936670.441 | JU6: 24422359.57 | JV6: 32095684.4 | JW6: 32095684.4 | JX6: 0 | JY6: 0 | JZ6: 0 | KA6: 0 | KB6: 0 | KD6: =GH6*FP6*$FU6 -> 0 | KE6: =GI6*FQ6*$FU6 -> 0 | KF6: =GJ6*FR6*$FU6 -> 0 | KG6: =GK6*FS6*$FU6 -> 0 | KH6: =GL6*FT6*$FU6 -> 0
A7: 7661 | B7: Substation Minor Projects | C7: 5009A | D7: Supply to Temora | E7: Switchbay to Temora at Wagga North | F7: PS Connections | I7: 2013 | J7: 2255057 | Q7: 1968263 | R7: 286794 | S7: 55100 | T7: 2019821.317 | U7: 158776 | V7: 21360 | AR7: 1820670.95 | AS7: 60303.3 | AV7: 40748.3 | AW7: 12610.1 | AX7: 6596.3932 | AY7: 2475.4 | AZ7: 311652.8738 | BF7: 2015 | CT7: 1 | CU7: =SUM(K7:R7)-J7 -> 0 | CV7: 0.3169999998 | CW7: 0.3170000003 | CX7: 2015 | CY7: 0.02443396874 | CZ7: 0.8956851348 | DA7: 0.07040885338 | DB7: 0.009472043056 | DC7: 0 | DD7: 0 | DE7: 0 | DF7: 0 | DG7: 0 | DH7: 0 | DI7: 0 | DJ7: 0 | DK7: 0 | DL7: 0 | DM7: 0 | DN7: 0 | DO7: 0 | DP7: 0 | DQ7: 0 | DR7: 0 | DS7: 0 | DT7: 0 | DU7: 0 | DV7: 0 | DW7: 0 | DX7: 0.8073723609 | DY7: 0.02674136021 | DZ7: 0 | EA7: 0 | EB7: 0.01806974026 | EC7: 0.00559191995 | ED7: 0.00292515545 | EE7: 0.001097710458 | EF7: 0.1382017528 | EG7: 0 | EH7: 0 | EI7: 0 | EJ7: 0 | EK7: 0 | EL7: 1.107051697 | EM7: 1.029296875 | EN7: 1.170820685 | EO7: =IF(Real_or_Nom="Nominal",Input_Fixed!F$10/$EL7, $EM7) -> 1.029296875 | EP7: =IF(Real_or_Nom="Nominal",Input_Fixed!G$10/$EL7, $EM7) -> 1.029296875 | EQ7: =IF(Real_or_Nom="Nominal",Input_Fixed!H$10/$EL7, $EM7) -> 1.029296875 | ER7: =IF(Real_or_Nom="Nominal",Input_Fixed!I$10/$EL7, $EM7) -> 1.029296875 | ES7: =IF(Real_or_Nom="Nominal",Input_Fixed!J$10/$EL7, $EM7) -> 1.029296875 | ET7: =IF(Real_or_Nom="Nominal",Input_Fixed!K$10/$EL7, $EM7) -> 1.029296875 | EU7: =IF(Real_or_Nom="Nominal",Input_Fixed!L$10/$EL7, $EM7) -> 1.029296875 | EV7: =IF(Real_or_Nom="Nominal",Input_Fixed!M$10/$EL7, $EM7) -> 1.029296875 | EW7: =IF(Real_or_Nom="Nominal",Input_Fixed!N$10/$EL7, $EM7) -> 1.029296875 | EX7: =IF(Real_or_Nom="Nominal",Input_Fixed!O$10/$EL7, $EM7) -> 1.029296875 | EY7: =IF(Real_or_Nom="Nominal",Input_Fixed!P$10/$EL7, $EM7) -> 1.029296875 | EZ7: =IF(Real_or_Nom="Nominal",Input_Fixed!Q$10/$EL7, $EM7) -> 1.029296875 | FA7: =IF(Real_or_Nom="Nominal",Input_Fixed!R$10/$EL7, $EM7) -> 1.029296875 | FB7: =IF(Real_or_Nom="Nominal",Input_Fixed!S$10/$EL7, $EM7) -> 1.029296875 | FC7: =IF(Real_or_Nom="Nominal",Input_Fixed!T$10/$EL7, $EM7) -> 1.029296875 | FD7: =IF(Real_or_Nom="Nominal",Input_Fixed!U$10/$EL7, $EM7) -> 1.029296875 | FE7: 1 | FF7: 1 | FG7: 1 | FH7: 1 | FI7: 1 | FJ7: 1.00222328 | FK7: 1.005564576 | FL7: 1.009436181 | FM7: 1.013088812 | FN7: 1.017120548 | FO7: 1.020849522 | FP7: 1.02459287 | FQ7: 1.028415394 | FR7: 1.032318818 | FS7: 1.036304905 | FT7: 1.040375463 | FU7: 1 | FV7: =IF(F7="", "", VLOOKUP(F7,Input_Fixed!$A$105:$C$116,3,FALSE)) -> Network | FW7: =SUM(Scen01wgt*Scenario_Wgtd!E7, Scen02wgt* Scenario_Wgtd!U7, Scen03wgt*Scenario_Wgtd!AK7, Scen04wgt*Scenario_Wgtd!BA7, Scen05wgt*Scenario_Wgtd!BQ7, Scen06wgt*Scenario_Wgtd!CG7,Scen07wgt*Scenario_Wgtd!CW7, Scen08wgt*Scenario_Wgtd!DM7,Scen09wgt*Scenario_Wgtd!EC7, Scen10wgt*Scenario_Wgtd!ES7,Scen11wgt*Scenario_Wgtd!FI7, Scen12wgt*Scenario_Wgtd!FY7, Scen13wgt*Scenario_Wgtd!GO7, Scen14wgt*Scenario_Wgtd!HE7,Scen15wgt*Scenario_Wgtd!HU7, Scen16wgt*Scenario_Wgtd!IK7, Scen17wgt*Scenario_Wgtd!JA7,Scen18wgt*Scenario_Wgtd!JQ7, Scen19wgt*Scenario_Wgtd!KG7,Scen20wgt*Scenario_Wgtd!KW7, Scen21wgt*Scenario_Wgtd!LM7, Scen22wgt*Scenario_Wgtd!MC7, Scen23wgt*Scenario_Wgtd!MS7, Scen24wgt*Scenario_Wgtd!NI7, Scen25wgt*Scenario_Wgtd!NY7, Scen26wgt*Scenario_Wgtd!OO7, Scen27wgt*Scenario_Wgtd!PE7, Scen28wgt*Scenario_Wgtd!PU7, Scen29wgt*Scenario_Wgtd!QK7 +Scen30wgt*Scenario_Wgtd!RA7, Scen31wgt*Scenario_Wgtd!RQ7, Scen32wgt*Scenario_Wgtd!SG7, Scen33wgt*Scenario_Wgtd!SW7, Scen34wgt*Scenario_Wgtd!TM7, Scen35wgt*Scenario_Wgtd!UC7, Scen36wgt*Scenario_Wgtd!US7, Scen37wgt*Scenario_Wgtd!VI7, Scen38wgt*Scenario_Wgtd!VY7, Scen39wgt*Scenario_Wgtd!WO7, Scen40wgt*Scenario_Wgtd!XE7) -> 0 | FX7: =SUM(Scen01wgt*Scenario_Wgtd!F7, Scen02wgt* Scenario_Wgtd!V7, Scen03wgt*Scenario_Wgtd!AL7, Scen04wgt*Scenario_Wgtd!BB7, Scen05wgt*Scenario_Wgtd!BR7, Scen06wgt*Scenario_Wgtd!CH7,Scen07wgt*Scenario_Wgtd!CX7, Scen08wgt*Scenario_Wgtd!DN7,Scen09wgt*Scenario_Wgtd!ED7, Scen10wgt*Scenario_Wgtd!ET7,Scen11wgt*Scenario_Wgtd!FJ7, Scen12wgt*Scenario_Wgtd!FZ7, Scen13wgt*Scenario_Wgtd!GP7, Scen14wgt*Scenario_Wgtd!HF7,Scen15wgt*Scenario_Wgtd!HV7, Scen16wgt*Scenario_Wgtd!IL7, Scen17wgt*Scenario_Wgtd!JB7,Scen18wgt*Scenario_Wgtd!JR7, Scen19wgt*Scenario_Wgtd!KH7,Scen20wgt*Scenario_Wgtd!KX7, Scen21wgt*Scenario_Wgtd!LN7, Scen22wgt*Scenario_Wgtd!MD7, Scen23wgt*Scenario_Wgtd!MT7, Scen24wgt*Scenario_Wgtd!NJ7, Scen25wgt*Scenario_Wgtd!NZ7, Scen26wgt*Scenario_Wgtd!OP7, Scen27wgt*Scenario_Wgtd!PF7, Scen28wgt*Scenario_Wgtd!PV7, Scen29wgt*Scenario_Wgtd!QL7 +Scen30wgt*Scenario_Wgtd!RB7, Scen31wgt*Scenario_Wgtd!RR7, Scen32wgt*Scenario_Wgtd!SH7, Scen33wgt*Scenario_Wgtd!SX7, Scen34wgt*Scenario_Wgtd!TN7, Scen35wgt*Scenario_Wgtd!UD7, Scen36wgt*Scenario_Wgtd!UT7, Scen37wgt*Scenario_Wgtd!VJ7, Scen38wgt*Scenario_Wgtd!VZ7, Scen39wgt*Scenario_Wgtd!WP7, Scen40wgt*Scenario_Wgtd!XF7) -> 0 | FY7: =SUM(Scen01wgt*Scenario_Wgtd!G7, Scen02wgt* Scenario_Wgtd!W7, Scen03wgt*Scenario_Wgtd!AM7, Scen04wgt*Scenario_Wgtd!BC7, Scen05wgt*Scenario_Wgtd!BS7, Scen06wgt*Scenario_Wgtd!CI7,Scen07wgt*Scenario_Wgtd!CY7, Scen08wgt*Scenario_Wgtd!DO7,Scen09wgt*Scenario_Wgtd!EE7, Scen10wgt*Scenario_Wgtd!EU7,Scen11wgt*Scenario_Wgtd!FK7, Scen12wgt*Scenario_Wgtd!GA7, Scen13wgt*Scenario_Wgtd!GQ7, Scen14wgt*Scenario_Wgtd!HG7,Scen15wgt*Scenario_Wgtd!HW7, Scen16wgt*Scenario_Wgtd!IM7, Scen17wgt*Scenario_Wgtd!JC7,Scen18wgt*Scenario_Wgtd!JS7, Scen19wgt*Scenario_Wgtd!KI7,Scen20wgt*Scenario_Wgtd!KY7, Scen21wgt*Scenario_Wgtd!LO7, Scen22wgt*Scenario_Wgtd!ME7, Scen23wgt*Scenario_Wgtd!MU7, Scen24wgt*Scenario_Wgtd!NK7, Scen25wgt*Scenario_Wgtd!OA7, Scen26wgt*Scenario_Wgtd!OQ7, Scen27wgt*Scenario_Wgtd!PG7, Scen28wgt*Scenario_Wgtd!PW7, Scen29wgt*Scenario_Wgtd!QM7 +Scen30wgt*Scenario_Wgtd!RC7, Scen31wgt*Scenario_Wgtd!RS7, Scen32wgt*Scenario_Wgtd!SI7, Scen33wgt*Scenario_Wgtd!SY7, Scen34wgt*Scenario_Wgtd!TO7, Scen35wgt*Scenario_Wgtd!UE7, Scen36wgt*Scenario_Wgtd!UU7, Scen37wgt*Scenario_Wgtd!VK7, Scen38wgt*Scenario_Wgtd!WA7, Scen39wgt*Scenario_Wgtd!WQ7, Scen40wgt*Scenario_Wgtd!XG7) -> 0 | FZ7: =SUM(Scen01wgt*Scenario_Wgtd!H7, Scen02wgt* Scenario_Wgtd!X7, Scen03wgt*Scenario_Wgtd!AN7, Scen04wgt*Scenario_Wgtd!BD7, Scen05wgt*Scenario_Wgtd!BT7, Scen06wgt*Scenario_Wgtd!CJ7,Scen07wgt*Scenario_Wgtd!CZ7, Scen08wgt*Scenario_Wgtd!DP7,Scen09wgt*Scenario_Wgtd!EF7, Scen10wgt*Scenario_Wgtd!EV7,Scen11wgt*Scenario_Wgtd!FL7, Scen12wgt*Scenario_Wgtd!GB7, Scen13wgt*Scenario_Wgtd!GR7, Scen14wgt*Scenario_Wgtd!HH7,Scen15wgt*Scenario_Wgtd!HX7, Scen16wgt*Scenario_Wgtd!IN7, Scen17wgt*Scenario_Wgtd!JD7,Scen18wgt*Scenario_Wgtd!JT7, Scen19wgt*Scenario_Wgtd!KJ7,Scen20wgt*Scenario_Wgtd!KZ7, Scen21wgt*Scenario_Wgtd!LP7, Scen22wgt*Scenario_Wgtd!MF7, Scen23wgt*Scenario_Wgtd!MV7, Scen24wgt*Scenario_Wgtd!NL7, Scen25wgt*Scenario_Wgtd!OB7, Scen26wgt*Scenario_Wgtd!OR7, Scen27wgt*Scenario_Wgtd!PH7, Scen28wgt*Scenario_Wgtd!PX7, Scen29wgt*Scenario_Wgtd!QN7 +Scen30wgt*Scenario_Wgtd!RD7, Scen31wgt*Scenario_Wgtd!RT7, Scen32wgt*Scenario_Wgtd!SJ7, Scen33wgt*Scenario_Wgtd!SZ7, Scen34wgt*Scenario_Wgtd!TP7, Scen35wgt*Scenario_Wgtd!UF7, Scen36wgt*Scenario_Wgtd!UV7, Scen37wgt*Scenario_Wgtd!VL7, Scen38wgt*Scenario_Wgtd!WB7, Scen39wgt*Scenario_Wgtd!WR7, Scen40wgt*Scenario_Wgtd!XH7) -> 0 | GA7: =SUM(Scen01wgt*Scenario_Wgtd!I7, Scen02wgt* Scenario_Wgtd!Y7, Scen03wgt*Scenario_Wgtd!AO7, Scen04wgt*Scenario_Wgtd!BE7, Scen05wgt*Scenario_Wgtd!BU7, Scen06wgt*Scenario_Wgtd!CK7,Scen07wgt*Scenario_Wgtd!DA7, Scen08wgt*Scenario_Wgtd!DQ7,Scen09wgt*Scenario_Wgtd!EG7, Scen10wgt*Scenario_Wgtd!EW7,Scen11wgt*Scenario_Wgtd!FM7, Scen12wgt*Scenario_Wgtd!GC7, Scen13wgt*Scenario_Wgtd!GS7, Scen14wgt*Scenario_Wgtd!HI7,Scen15wgt*Scenario_Wgtd!HY7, Scen16wgt*Scenario_Wgtd!IO7, Scen17wgt*Scenario_Wgtd!JE7,Scen18wgt*Scenario_Wgtd!JU7, Scen19wgt*Scenario_Wgtd!KK7,Scen20wgt*Scenario_Wgtd!LA7, Scen21wgt*Scenario_Wgtd!LQ7, Scen22wgt*Scenario_Wgtd!MG7, Scen23wgt*Scenario_Wgtd!MW7, Scen24wgt*Scenario_Wgtd!NM7, Scen25wgt*Scenario_Wgtd!OC7, Scen26wgt*Scenario_Wgtd!OS7, Scen27wgt*Scenario_Wgtd!PI7, Scen28wgt*Scenario_Wgtd!PY7, Scen29wgt*Scenario_Wgtd!QO7 +Scen30wgt*Scenario_Wgtd!RE7, Scen31wgt*Scenario_Wgtd!RU7, Scen32wgt*Scenario_Wgtd!SK7, Scen33wgt*Scenario_Wgtd!TA7, Scen34wgt*Scenario_Wgtd!TQ7, Scen35wgt*Scenario_Wgtd!UG7, Scen36wgt*Scenario_Wgtd!UW7, Scen37wgt*Scenario_Wgtd!VM7, Scen38wgt*Scenario_Wgtd!WC7, Scen39wgt*Scenario_Wgtd!WS7, Scen40wgt*Scenario_Wgtd!XI7) -> 0 | GB7: =SUM(Scen01wgt*Scenario_Wgtd!J7, Scen02wgt* Scenario_Wgtd!Z7, Scen03wgt*Scenario_Wgtd!AP7, Scen04wgt*Scenario_Wgtd!BF7, Scen05wgt*Scenario_Wgtd!BV7, Scen06wgt*Scenario_Wgtd!CL7,Scen07wgt*Scenario_Wgtd!DB7, Scen08wgt*Scenario_Wgtd!DR7,Scen09wgt*Scenario_Wgtd!EH7, Scen10wgt*Scenario_Wgtd!EX7,Scen11wgt*Scenario_Wgtd!FN7, Scen12wgt*Scenario_Wgtd!GD7, Scen13wgt*Scenario_Wgtd!GT7, Scen14wgt*Scenario_Wgtd!HJ7,Scen15wgt*Scenario_Wgtd!HZ7, Scen16wgt*Scenario_Wgtd!IP7, Scen17wgt*Scenario_Wgtd!JF7,Scen18wgt*Scenario_Wgtd!JV7, Scen19wgt*Scenario_Wgtd!KL7,Scen20wgt*Scenario_Wgtd!LB7, Scen21wgt*Scenario_Wgtd!LR7, Scen22wgt*Scenario_Wgtd!MH7, Scen23wgt*Scenario_Wgtd!MX7, Scen24wgt*Scenario_Wgtd!NN7, Scen25wgt*Scenario_Wgtd!OD7, Scen26wgt*Scenario_Wgtd!OT7, Scen27wgt*Scenario_Wgtd!PJ7, Scen28wgt*Scenario_Wgtd!PZ7, Scen29wgt*Scenario_Wgtd!QP7 +Scen30wgt*Scenario_Wgtd!RF7, Scen31wgt*Scenario_Wgtd!RV7, Scen32wgt*Scenario_Wgtd!SL7, Scen33wgt*Scenario_Wgtd!TB7, Scen34wgt*Scenario_Wgtd!TR7, Scen35wgt*Scenario_Wgtd!UH7, Scen36wgt*Scenario_Wgtd!UX7, Scen37wgt*Scenario_Wgtd!VN7, Scen38wgt*Scenario_Wgtd!WD7, Scen39wgt*Scenario_Wgtd!WT7, Scen40wgt*Scenario_Wgtd!XJ7) -> 2025926.955 | GC7: =SUM(Scen01wgt*Scenario_Wgtd!K7, Scen02wgt* Scenario_Wgtd!AA7, Scen03wgt*Scenario_Wgtd!AQ7, Scen04wgt*Scenario_Wgtd!BG7, Scen05wgt*Scenario_Wgtd!BW7, Scen06wgt*Scenario_Wgtd!CM7,Scen07wgt*Scenario_Wgtd!DC7, Scen08wgt*Scenario_Wgtd!DS7,Scen09wgt*Scenario_Wgtd!EI7, Scen10wgt*Scenario_Wgtd!EY7,Scen11wgt*Scenario_Wgtd!FO7, Scen12wgt*Scenario_Wgtd!GE7, Scen13wgt*Scenario_Wgtd!GU7, Scen14wgt*Scenario_Wgtd!HK7,Scen15wgt*Scenario_Wgtd!IA7, Scen16wgt*Scenario_Wgtd!IQ7, Scen17wgt*Scenario_Wgtd!JG7,Scen18wgt*Scenario_Wgtd!JW7, Scen19wgt*Scenario_Wgtd!KM7,Scen20wgt*Scenario_Wgtd!LC7, Scen21wgt*Scenario_Wgtd!LS7, Scen22wgt*Scenario_Wgtd!MI7, Scen23wgt*Scenario_Wgtd!MY7, Scen24wgt*Scenario_Wgtd!NO7, Scen25wgt*Scenario_Wgtd!OE7, Scen26wgt*Scenario_Wgtd!OU7, Scen27wgt*Scenario_Wgtd!PK7, Scen28wgt*Scenario_Wgtd!QA7, Scen29wgt*Scenario_Wgtd!QQ7 +Scen30wgt*Scenario_Wgtd!RG7, Scen31wgt*Scenario_Wgtd!RW7, Scen32wgt*Scenario_Wgtd!SM7, Scen33wgt*Scenario_Wgtd!TC7, Scen34wgt*Scenario_Wgtd!TS7, Scen35wgt*Scenario_Wgtd!UI7, Scen36wgt*Scenario_Wgtd!UY7, Scen37wgt*Scenario_Wgtd!VO7, Scen38wgt*Scenario_Wgtd!WE7, Scen39wgt*Scenario_Wgtd!WU7, Scen40wgt*Scenario_Wgtd!XK7) -> 295196.168 | GD7: =SUM(Scen01wgt*Scenario_Wgtd!L7, Scen02wgt* Scenario_Wgtd!AB7, Scen03wgt*Scenario_Wgtd!AR7, Scen04wgt*Scenario_Wgtd!BH7, Scen05wgt*Scenario_Wgtd!BX7, Scen06wgt*Scenario_Wgtd!CN7,Scen07wgt*Scenario_Wgtd!DD7, Scen08wgt*Scenario_Wgtd!DT7,Scen09wgt*Scenario_Wgtd!EJ7, Scen10wgt*Scenario_Wgtd!EZ7,Scen11wgt*Scenario_Wgtd!FP7, Scen12wgt*Scenario_Wgtd!GF7, Scen13wgt*Scenario_Wgtd!GV7, Scen14wgt*Scenario_Wgtd!HL7,Scen15wgt*Scenario_Wgtd!IB7, Scen16wgt*Scenario_Wgtd!IR7, Scen17wgt*Scenario_Wgtd!JH7,Scen18wgt*Scenario_Wgtd!JX7, Scen19wgt*Scenario_Wgtd!KN7,Scen20wgt*Scenario_Wgtd!LD7, Scen21wgt*Scenario_Wgtd!LT7, Scen22wgt*Scenario_Wgtd!MJ7, Scen23wgt*Scenario_Wgtd!MZ7, Scen24wgt*Scenario_Wgtd!NP7, Scen25wgt*Scenario_Wgtd!OF7, Scen26wgt*Scenario_Wgtd!OV7, Scen27wgt*Scenario_Wgtd!PL7, Scen28wgt*Scenario_Wgtd!QB7, Scen29wgt*Scenario_Wgtd!QR7 +Scen30wgt*Scenario_Wgtd!RH7, Scen31wgt*Scenario_Wgtd!RX7, Scen32wgt*Scenario_Wgtd!SN7, Scen33wgt*Scenario_Wgtd!TD7, Scen34wgt*Scenario_Wgtd!TT7, Scen35wgt*Scenario_Wgtd!UJ7, Scen36wgt*Scenario_Wgtd!UZ7, Scen37wgt*Scenario_Wgtd!VP7, Scen38wgt*Scenario_Wgtd!WF7, Scen39wgt*Scenario_Wgtd!WV7, Scen40wgt*Scenario_Wgtd!XL7) -> 0 | GE7: =SUM(Scen01wgt*Scenario_Wgtd!M7, Scen02wgt* Scenario_Wgtd!AC7, Scen03wgt*Scenario_Wgtd!AS7, Scen04wgt*Scenario_Wgtd!BI7, Scen05wgt*Scenario_Wgtd!BY7, Scen06wgt*Scenario_Wgtd!CO7,Scen07wgt*Scenario_Wgtd!DE7, Scen08wgt*Scenario_Wgtd!DU7,Scen09wgt*Scenario_Wgtd!EK7, Scen10wgt*Scenario_Wgtd!FA7,Scen11wgt*Scenario_Wgtd!FQ7, Scen12wgt*Scenario_Wgtd!GG7, Scen13wgt*Scenario_Wgtd!GW7, Scen14wgt*Scenario_Wgtd!HM7,Scen15wgt*Scenario_Wgtd!IC7, Scen16wgt*Scenario_Wgtd!IS7, Scen17wgt*Scenario_Wgtd!JI7,Scen18wgt*Scenario_Wgtd!JY7, Scen19wgt*Scenario_Wgtd!KO7,Scen20wgt*Scenario_Wgtd!LE7, Scen21wgt*Scenario_Wgtd!LU7, Scen22wgt*Scenario_Wgtd!MK7, Scen23wgt*Scenario_Wgtd!NA7, Scen24wgt*Scenario_Wgtd!NQ7, Scen25wgt*Scenario_Wgtd!OG7, Scen26wgt*Scenario_Wgtd!OW7, Scen27wgt*Scenario_Wgtd!PM7, Scen28wgt*Scenario_Wgtd!QC7, Scen29wgt*Scenario_Wgtd!QS7 +Scen30wgt*Scenario_Wgtd!RI7, Scen31wgt*Scenario_Wgtd!RY7, Scen32wgt*Scenario_Wgtd!SO7, Scen33wgt*Scenario_Wgtd!TE7, Scen34wgt*Scenario_Wgtd!TU7, Scen35wgt*Scenario_Wgtd!UK7, Scen36wgt*Scenario_Wgtd!VA7, Scen37wgt*Scenario_Wgtd!VQ7, Scen38wgt*Scenario_Wgtd!WG7, Scen39wgt*Scenario_Wgtd!WW7, Scen40wgt*Scenario_Wgtd!XM7) -> 0 | GF7: =SUM(Scen01wgt*Scenario_Wgtd!N7, Scen02wgt* Scenario_Wgtd!AD7, Scen03wgt*Scenario_Wgtd!AT7, Scen04wgt*Scenario_Wgtd!BJ7, Scen05wgt*Scenario_Wgtd!BZ7, Scen06wgt*Scenario_Wgtd!CP7,Scen07wgt*Scenario_Wgtd!DF7, Scen08wgt*Scenario_Wgtd!DV7,Scen09wgt*Scenario_Wgtd!EL7, Scen10wgt*Scenario_Wgtd!FB7,Scen11wgt*Scenario_Wgtd!FR7, Scen12wgt*Scenario_Wgtd!GH7, Scen13wgt*Scenario_Wgtd!GX7, Scen14wgt*Scenario_Wgtd!HN7,Scen15wgt*Scenario_Wgtd!ID7, Scen16wgt*Scenario_Wgtd!IT7, Scen17wgt*Scenario_Wgtd!JJ7,Scen18wgt*Scenario_Wgtd!JZ7, Scen19wgt*Scenario_Wgtd!KP7,Scen20wgt*Scenario_Wgtd!LF7, Scen21wgt*Scenario_Wgtd!LV7, Scen22wgt*Scenario_Wgtd!ML7, Scen23wgt*Scenario_Wgtd!NB7, Scen24wgt*Scenario_Wgtd!NR7, Scen25wgt*Scenario_Wgtd!OH7, Scen26wgt*Scenario_Wgtd!OX7, Scen27wgt*Scenario_Wgtd!PN7, Scen28wgt*Scenario_Wgtd!QD7, Scen29wgt*Scenario_Wgtd!QT7 +Scen30wgt*Scenario_Wgtd!RJ7, Scen31wgt*Scenario_Wgtd!RZ7, Scen32wgt*Scenario_Wgtd!SP7, Scen33wgt*Scenario_Wgtd!TF7, Scen34wgt*Scenario_Wgtd!TV7, Scen35wgt*Scenario_Wgtd!UL7, Scen36wgt*Scenario_Wgtd!VB7, Scen37wgt*Scenario_Wgtd!VR7, Scen38wgt*Scenario_Wgtd!WH7, Scen39wgt*Scenario_Wgtd!WX7, Scen40wgt*Scenario_Wgtd!XN7) -> 0 | GG7: =SUM(Scen01wgt*Scenario_Wgtd!O7, Scen02wgt* Scenario_Wgtd!AE7, Scen03wgt*Scenario_Wgtd!AU7, Scen04wgt*Scenario_Wgtd!BK7, Scen05wgt*Scenario_Wgtd!CA7, Scen06wgt*Scenario_Wgtd!CQ7,Scen07wgt*Scenario_Wgtd!DG7, Scen08wgt*Scenario_Wgtd!DW7,Scen09wgt*Scenario_Wgtd!EM7, Scen10wgt*Scenario_Wgtd!FC7,Scen11wgt*Scenario_Wgtd!FS7, Scen12wgt*Scenario_Wgtd!GI7, Scen13wgt*Scenario_Wgtd!GY7, Scen14wgt*Scenario_Wgtd!HO7,Scen15wgt*Scenario_Wgtd!IE7, Scen16wgt*Scenario_Wgtd!IU7, Scen17wgt*Scenario_Wgtd!JK7,Scen18wgt*Scenario_Wgtd!KA7, Scen19wgt*Scenario_Wgtd!KQ7,Scen20wgt*Scenario_Wgtd!LG7, Scen21wgt*Scenario_Wgtd!LW7, Scen22wgt*Scenario_Wgtd!MM7, Scen23wgt*Scenario_Wgtd!NC7, Scen24wgt*Scenario_Wgtd!NS7, Scen25wgt*Scenario_Wgtd!OI7, Scen26wgt*Scenario_Wgtd!OY7, Scen27wgt*Scenario_Wgtd!PO7, Scen28wgt*Scenario_Wgtd!QE7, Scen29wgt*Scenario_Wgtd!QU7 +Scen30wgt*Scenario_Wgtd!RK7, Scen31wgt*Scenario_Wgtd!SA7, Scen32wgt*Scenario_Wgtd!SQ7, Scen33wgt*Scenario_Wgtd!TG7, Scen34wgt*Scenario_Wgtd!TW7, Scen35wgt*Scenario_Wgtd!UM7, Scen36wgt*Scenario_Wgtd!VC7, Scen37wgt*Scenario_Wgtd!VS7, Scen38wgt*Scenario_Wgtd!WI7, Scen39wgt*Scenario_Wgtd!WY7, Scen40wgt*Scenario_Wgtd!XO7) -> 0 | GH7: =SUM(Scen01wgt*Scenario_Wgtd!P7, Scen02wgt* Scenario_Wgtd!AF7, Scen03wgt*Scenario_Wgtd!AV7, Scen04wgt*Scenario_Wgtd!BL7, Scen05wgt*Scenario_Wgtd!CB7, Scen06wgt*Scenario_Wgtd!CR7,Scen07wgt*Scenario_Wgtd!DH7, Scen08wgt*Scenario_Wgtd!DX7,Scen09wgt*Scenario_Wgtd!EN7, Scen10wgt*Scenario_Wgtd!FD7,Scen11wgt*Scenario_Wgtd!FT7, Scen12wgt*Scenario_Wgtd!GJ7, Scen13wgt*Scenario_Wgtd!GZ7, Scen14wgt*Scenario_Wgtd!HP7,Scen15wgt*Scenario_Wgtd!IF7, Scen16wgt*Scenario_Wgtd!IV7, Scen17wgt*Scenario_Wgtd!JL7,Scen18wgt*Scenario_Wgtd!KB7, Scen19wgt*Scenario_Wgtd!KR7,Scen20wgt*Scenario_Wgtd!LH7, Scen21wgt*Scenario_Wgtd!LX7, Scen22wgt*Scenario_Wgtd!MN7, Scen23wgt*Scenario_Wgtd!ND7, Scen24wgt*Scenario_Wgtd!NT7, Scen25wgt*Scenario_Wgtd!OJ7, Scen26wgt*Scenario_Wgtd!OZ7, Scen27wgt*Scenario_Wgtd!PP7, Scen28wgt*Scenario_Wgtd!QF7, Scen29wgt*Scenario_Wgtd!QV7 +Scen30wgt*Scenario_Wgtd!RL7, Scen31wgt*Scenario_Wgtd!SB7, Scen32wgt*Scenario_Wgtd!SR7, Scen33wgt*Scenario_Wgtd!TH7, Scen34wgt*Scenario_Wgtd!TX7, Scen35wgt*Scenario_Wgtd!UN7, Scen36wgt*Scenario_Wgtd!VD7, Scen37wgt*Scenario_Wgtd!VT7, Scen38wgt*Scenario_Wgtd!WJ7, Scen39wgt*Scenario_Wgtd!WZ7, Scen40wgt*Scenario_Wgtd!XP7) -> 0 | GI7: =SUM(Scen01wgt*Scenario_Wgtd!Q7, Scen02wgt* Scenario_Wgtd!AG7, Scen03wgt*Scenario_Wgtd!AW7, Scen04wgt*Scenario_Wgtd!BM7, Scen05wgt*Scenario_Wgtd!CC7, Scen06wgt*Scenario_Wgtd!CS7,Scen07wgt*Scenario_Wgtd!DI7, Scen08wgt*Scenario_Wgtd!DY7,Scen09wgt*Scenario_Wgtd!EO7, Scen10wgt*Scenario_Wgtd!FE7,Scen11wgt*Scenario_Wgtd!FU7, Scen12wgt*Scenario_Wgtd!GK7, Scen13wgt*Scenario_Wgtd!HA7, Scen14wgt*Scenario_Wgtd!HQ7,Scen15wgt*Scenario_Wgtd!IG7, Scen16wgt*Scenario_Wgtd!IW7, Scen17wgt*Scenario_Wgtd!JM7,Scen18wgt*Scenario_Wgtd!KC7, Scen19wgt*Scenario_Wgtd!KS7,Scen20wgt*Scenario_Wgtd!LI7, Scen21wgt*Scenario_Wgtd!LY7, Scen22wgt*Scenario_Wgtd!MO7, Scen23wgt*Scenario_Wgtd!NE7, Scen24wgt*Scenario_Wgtd!NU7, Scen25wgt*Scenario_Wgtd!OK7, Scen26wgt*Scenario_Wgtd!PA7, Scen27wgt*Scenario_Wgtd!PQ7, Scen28wgt*Scenario_Wgtd!QG7, Scen29wgt*Scenario_Wgtd!QW7 +Scen30wgt*Scenario_Wgtd!RM7, Scen31wgt*Scenario_Wgtd!SC7, Scen32wgt*Scenario_Wgtd!SS7, Scen33wgt*Scenario_Wgtd!TI7, Scen34wgt*Scenario_Wgtd!TY7, Scen35wgt*Scenario_Wgtd!UO7, Scen36wgt*Scenario_Wgtd!VE7, Scen37wgt*Scenario_Wgtd!VU7, Scen38wgt*Scenario_Wgtd!WK7, Scen39wgt*Scenario_Wgtd!XA7, Scen40wgt*Scenario_Wgtd!XQ7) -> 0 | GJ7: =SUM(Scen01wgt*Scenario_Wgtd!R7, Scen02wgt* Scenario_Wgtd!AH7, Scen03wgt*Scenario_Wgtd!AX7, Scen04wgt*Scenario_Wgtd!BN7, Scen05wgt*Scenario_Wgtd!CD7, Scen06wgt*Scenario_Wgtd!CT7,Scen07wgt*Scenario_Wgtd!DJ7, Scen08wgt*Scenario_Wgtd!DZ7,Scen09wgt*Scenario_Wgtd!EP7, Scen10wgt*Scenario_Wgtd!FF7,Scen11wgt*Scenario_Wgtd!FV7, Scen12wgt*Scenario_Wgtd!GL7, Scen13wgt*Scenario_Wgtd!HB7, Scen14wgt*Scenario_Wgtd!HR7,Scen15wgt*Scenario_Wgtd!IH7, Scen16wgt*Scenario_Wgtd!IX7, Scen17wgt*Scenario_Wgtd!JN7,Scen18wgt*Scenario_Wgtd!KD7, Scen19wgt*Scenario_Wgtd!KT7,Scen20wgt*Scenario_Wgtd!LJ7, Scen21wgt*Scenario_Wgtd!LZ7, Scen22wgt*Scenario_Wgtd!MP7, Scen23wgt*Scenario_Wgtd!NF7, Scen24wgt*Scenario_Wgtd!NV7, Scen25wgt*Scenario_Wgtd!OL7, Scen26wgt*Scenario_Wgtd!PB7, Scen27wgt*Scenario_Wgtd!PR7, Scen28wgt*Scenario_Wgtd!QH7, Scen29wgt*Scenario_Wgtd!QX7 +Scen30wgt*Scenario_Wgtd!RN7, Scen31wgt*Scenario_Wgtd!SD7, Scen32wgt*Scenario_Wgtd!ST7, Scen33wgt*Scenario_Wgtd!TJ7, Scen34wgt*Scenario_Wgtd!TZ7, Scen35wgt*Scenario_Wgtd!UP7, Scen36wgt*Scenario_Wgtd!VF7, Scen37wgt*Scenario_Wgtd!VV7, Scen38wgt*Scenario_Wgtd!WL7, Scen39wgt*Scenario_Wgtd!XB7, Scen40wgt*Scenario_Wgtd!XR7) -> 0 | GK7: =SUM(Scen01wgt*Scenario_Wgtd!S7, Scen02wgt* Scenario_Wgtd!AI7, Scen03wgt*Scenario_Wgtd!AY7, Scen04wgt*Scenario_Wgtd!BO7, Scen05wgt*Scenario_Wgtd!CE7, Scen06wgt*Scenario_Wgtd!CU7,Scen07wgt*Scenario_Wgtd!DK7, Scen08wgt*Scenario_Wgtd!EA7,Scen09wgt*Scenario_Wgtd!EQ7, Scen10wgt*Scenario_Wgtd!FG7,Scen11wgt*Scenario_Wgtd!FW7, Scen12wgt*Scenario_Wgtd!GM7, Scen13wgt*Scenario_Wgtd!HC7, Scen14wgt*Scenario_Wgtd!HS7,Scen15wgt*Scenario_Wgtd!II7, Scen16wgt*Scenario_Wgtd!IY7, Scen17wgt*Scenario_Wgtd!JO7,Scen18wgt*Scenario_Wgtd!KE7, Scen19wgt*Scenario_Wgtd!KU7,Scen20wgt*Scenario_Wgtd!LK7, Scen21wgt*Scenario_Wgtd!MA7, Scen22wgt*Scenario_Wgtd!MQ7, Scen23wgt*Scenario_Wgtd!NG7, Scen24wgt*Scenario_Wgtd!NW7, Scen25wgt*Scenario_Wgtd!OM7, Scen26wgt*Scenario_Wgtd!PC7, Scen27wgt*Scenario_Wgtd!PS7, Scen28wgt*Scenario_Wgtd!QI7, Scen29wgt*Scenario_Wgtd!QY7 +Scen30wgt*Scenario_Wgtd!RO7, Scen31wgt*Scenario_Wgtd!SE7, Scen32wgt*Scenario_Wgtd!SU7, Scen33wgt*Scenario_Wgtd!TK7, Scen34wgt*Scenario_Wgtd!UA7, Scen35wgt*Scenario_Wgtd!UQ7, Scen36wgt*Scenario_Wgtd!VG7, Scen37wgt*Scenario_Wgtd!VW7, Scen38wgt*Scenario_Wgtd!WM7, Scen39wgt*Scenario_Wgtd!XC7, Scen40wgt*Scenario_Wgtd!XS7) -> 0 | GL7: =SUM(Scen01wgt*Scenario_Wgtd!T7, Scen02wgt* Scenario_Wgtd!AJ7, Scen03wgt*Scenario_Wgtd!AZ7, Scen04wgt*Scenario_Wgtd!BP7, Scen05wgt*Scenario_Wgtd!CF7, Scen06wgt*Scenario_Wgtd!CV7,Scen07wgt*Scenario_Wgtd!DL7, Scen08wgt*Scenario_Wgtd!EB7,Scen09wgt*Scenario_Wgtd!ER7, Scen10wgt*Scenario_Wgtd!FH7,Scen11wgt*Scenario_Wgtd!FX7, Scen12wgt*Scenario_Wgtd!GN7, Scen13wgt*Scenario_Wgtd!HD7, Scen14wgt*Scenario_Wgtd!HT7,Scen15wgt*Scenario_Wgtd!IJ7, Scen16wgt*Scenario_Wgtd!IZ7, Scen17wgt*Scenario_Wgtd!JP7,Scen18wgt*Scenario_Wgtd!KF7, Scen19wgt*Scenario_Wgtd!KV7,Scen20wgt*Scenario_Wgtd!LL7, Scen21wgt*Scenario_Wgtd!MB7, Scen22wgt*Scenario_Wgtd!MR7, Scen23wgt*Scenario_Wgtd!NH7, Scen24wgt*Scenario_Wgtd!NX7, Scen25wgt*Scenario_Wgtd!ON7, Scen26wgt*Scenario_Wgtd!PD7, Scen27wgt*Scenario_Wgtd!PT7, Scen28wgt*Scenario_Wgtd!QJ7, Scen29wgt*Scenario_Wgtd!QZ7 +Scen30wgt*Scenario_Wgtd!RP7, Scen31wgt*Scenario_Wgtd!SF7, Scen32wgt*Scenario_Wgtd!SV7, Scen33wgt*Scenario_Wgtd!TL7, Scen34wgt*Scenario_Wgtd!UB7, Scen35wgt*Scenario_Wgtd!UR7, Scen36wgt*Scenario_Wgtd!VH7, Scen37wgt*Scenario_Wgtd!VX7, Scen38wgt*Scenario_Wgtd!WN7, Scen39wgt*Scenario_Wgtd!XD7, Scen40wgt*Scenario_Wgtd!XT7) -> 0 | GN7: 0 | GO7: 0 | GP7: 0 | GQ7: 0 | GR7: 2030431.159 | GS7: 296838.8096 | GT7: 0 | GU7: 0 | GV7: 0 | GW7: 0 | GY7: =IF(AND(GY$4=$CX7, Real_or_Nom="Nominal"),SUMPRODUCT($GN7:$GW7, 1/Input_Fixed!$G$10:$P$10)*$EN7, 0) -> 0 | GZ7: =IF(AND(GZ$4=$CX7, Real_or_Nom="Nominal"),SUMPRODUCT($GN7:$GW7, 1/Input_Fixed!$G$10:$P$10)*$EN7, 0) -> 0 | HA7: =IF(AND(HA$4=$CX7, Real_or_Nom="Nominal"),SUMPRODUCT($GN7:$GW7, 1/Input_Fixed!$G$10:$P$10)*$EN7, 0) -> 0 | HB7: =IF(AND(HB$4=$CX7, Real_or_Nom="Nominal"),SUMPRODUCT($GN7:$GW7, 1/Input_Fixed!$G$10:$P$10)*$EN7, 0) -> 0 | HC7: =IF(AND(HC$4=$CX7, Real_or_Nom="Nominal"),SUMPRODUCT($GN7:$GW7, 1/Input_Fixed!$G$10:$P$10)*$EN7, 0) -> 0 | HD7: 2327269.968 | HE7: 0 | HF7: 0 | HG7: 0 | HH7: 0 | HJ7: 0 | HK7: 0 | HL7: 0 | HM7: 0 | HN7: 2025926.955 | HO7: 295196.168 | HP7: 295196.168 | HQ7: 295196.168 | HR7: 295196.168 | HS7: 295196.168 | HT7: 0 | HU7: 0 | HV7: 0 | HW7: 0 | HX7: 0 | IA7: 0 | IB7: 0 | IC7: 0 | ID7: 0 | IE7: 0 | IF7: 2025926.955 | IG7: 295196.168 | IH7: 0 | II7: 0 | IJ7: 0 | IK7: 0 | IL7: 0 | IM7: 0 | IN7: 0 | IO7: 0 | IP7: 0 | IR7: 0 | IS7: 0 | IT7: 0 | IU7: 0 | IV7: 2030431.159 | IW7: 296838.8096 | IX7: 0 | IY7: 0 | IZ7: 0 | JA7: 0 | JC7: =IF(AND(JC$4=$CX7, Real_or_Nom="Nominal"),SUMPRODUCT($IR7:$JA7, 1/Input_Fixed!$G$10:$P$10)*$EN7, 0) -> 0 | JD7: =IF(AND(JD$4=$CX7, Real_or_Nom="Nominal"),SUMPRODUCT($IR7:$JA7, 1/Input_Fixed!$G$10:$P$10)*$EN7, 0) -> 0 | JE7: =IF(AND(JE$4=$CX7, Real_or_Nom="Nominal"),SUMPRODUCT($IR7:$JA7, 1/Input_Fixed!$G$10:$P$10)*$EN7, 0) -> 0 | JF7: =IF(AND(JF$4=$CX7, Real_or_Nom="Nominal"),SUMPRODUCT($IR7:$JA7, 1/Input_Fixed!$G$10:$P$10)*$EN7, 0) -> 0 | JG7: =IF(AND(JG$4=$CX7, Real_or_Nom="Nominal"),SUMPRODUCT($IR7:$JA7, 1/Input_Fixed!$G$10:$P$10)*$EN7, 0) -> 0 | JH7: 2327269.968 | JI7: 0 | JJ7: 0 | JK7: 0 | JL7: 0 | JN7: 0 | JO7: 0 | JP7: 0 | JQ7: 0 | JR7: 2025926.955 | JS7: 295196.168 | JT7: 295196.168 | JU7: 295196.168 | JV7: 295196.168 | JW7: 295196.168 | JX7: 0 | JY7: 0 | JZ7: 0 | KA7: 0 | KB7: 0 | KD7: 0 | KE7: 0 | KF7: 0 | KG7: 0 | KH7: 0
A8: P0000851 | B8: Substation Minor Projects | C8: 0457A | D8: Supply to Gulgong West | E8: Switchbay to Gulgong West at Beryl | F8: PS Connections | I8: 2013 | J8: 1451053 | Q8: 114993 | R8: 1336060 | T8: 1212700.737 | U8: 238352 | AR8: 462170.445 | AS8: 693990.9031 | AV8: 21954.325 | AW8: 3520.495 | AX8: 3374.3722 | AY8: 1254.35 | AZ8: 264787.8468 | BF8: 2015 | CT8: 1 | CU8: =SUM(K8:R8)-J8 -> 0 | CV8: =SUM(S8:AQ8)-J8 -> -0.2629 | CW8: =SUM(AR8:BE8)-J8 -> -0.2628999997 | CX8: =IF(SUM(BF8:CS8)>0,ROUND(SUMPRODUCT(BF8:CS8,ScenWgts)/SUMPRODUCT(--(BF8:CS8<>""),ScenWgts),0),0) -> 2015 | CY8: =IF(SUM($S8:$AQ8)=0,0, S8/SUM($S8:$AQ8)) -> 0 | CZ8: =IF(SUM($S8:$AQ8)=0,0, T8/SUM($S8:$AQ8)) -> 0.8357385683 | DA8: =IF(SUM($S8:$AQ8)=0,0, U8/SUM($S8:$AQ8)) -> 0.1642614317 | DB8: =IF(SUM($S8:$AQ8)=0,0, V8/SUM($S8:$AQ8)) -> 0 | DC8: =IF(SUM($S8:$AQ8)=0,0, W8/SUM($S8:$AQ8)) -> 0 | DD8: =IF(SUM($S8:$AQ8)=0,0, X8/SUM($S8:$AQ8)) -> 0 | DE8: =IF(SUM($S8:$AQ8)=0,0, Y8/SUM($S8:$AQ8)) -> 0 | DF8: =IF(SUM($S8:$AQ8)=0,0, Z8/SUM($S8:$AQ8)) -> 0 | DG8: =IF(SUM($S8:$AQ8)=0,0, AA8/SUM($S8:$AQ8)) -> 0 | DH8: =IF(SUM($S8:$AQ8)=0,0, AB8/SUM($S8:$AQ8)) -> 0 | DI8: =IF(SUM($S8:$AQ8)=0,0, AC8/SUM($S8:$AQ8)) -> 0 | DJ8: =IF(SUM($S8:$AQ8)=0,0, AD8/SUM($S8:$AQ8)) -> 0 | DK8: =IF(SUM($S8:$AQ8)=0,0, AE8/SUM($S8:$AQ8)) -> 0 | DL8: =IF(SUM($S8:$AQ8)=0,0, AF8/SUM($S8:$AQ8)) -> 0 | DM8: =IF(SUM($S8:$AQ8)=0,0, AG8/SUM($S8:$AQ8)) -> 0 | DN8: =IF(SUM($S8:$AQ8)=0,0, AH8/SUM($S8:$AQ8)) -> 0 | DO8: =IF(SUM($S8:$AQ8)=0,0, AI8/SUM($S8:$AQ8)) -> 0 | DP8: =IF(SUM($S8:$AQ8)=0,0, AJ8/SUM($S8:$AQ8)) -> 0 | DQ8: =IF(SUM($S8:$AQ8)=0,0, AK8/SUM($S8:$AQ8)) -> 0 | DR8: =IF(SUM($S8:$AQ8)=0,0, AL8/SUM($S8:$AQ8)) -> 0 | DS8: =IF(SUM($S8:$AQ8)=0,0, AM8/SUM($S8:$AQ8)) -> 0 | DT8: =IF(SUM($S8:$AQ8)=0,0, AN8/SUM($S8:$AQ8)) -> 0 | DU8: =IF(SUM($S8:$AQ8)=0,0, AO8/SUM($S8:$AQ8)) -> 0 | DV8: =IF(SUM($S8:$AQ8)=0,0, AP8/SUM($S8:$AQ8)) -> 0 | DW8: =IF(SUM($S8:$AQ8)=0,0, AQ8/SUM($S8:$AQ8)) -> 0 | DX8: =IF(SUM($AR8:$BE8)=0, 0, AR8/SUM($AR8:$BE8)) -> 0.3185069937 | DY8: =IF(SUM($AR8:$BE8)=0, 0, AS8/SUM($AR8:$BE8)) -> 0.4782671817 | DZ8: =IF(SUM($AR8:$BE8)=0, 0, AT8/SUM($AR8:$BE8)) -> 0 | EA8: =IF(SUM($AR8:$BE8)=0, 0, AU8/SUM($AR8:$BE8)) -> 0 | EB8: =IF(SUM($AR8:$BE8)=0, 0, AV8/SUM($AR8:$BE8)) -> 0.01512992908 | EC8: =IF(SUM($AR8:$BE8)=0, 0, AW8/SUM($AR8:$BE8)) -> 0.002426166128 | ED8: =IF(SUM($AR8:$BE8)=0, 0, AX8/SUM($AR8:$BE8)) -> 0.002325464894 | EE8: =IF(SUM($AR8:$BE8)=0, 0, AY8/SUM($AR8:$BE8)) -> 0.000864441359 | EF8: =IF(SUM($AR8:$BE8)=0, 0, AZ8/SUM($AR8:$BE8)) -> 0.1824798231 | EG8: =IF(SUM($AR8:$BE8)=0, 0, BA8/SUM($AR8:$BE8)) -> 0 | EH8: =IF(SUM($AR8:$BE8)=0, 0, BB8/SUM($AR8:$BE8)) -> 0 | EI8: =IF(SUM($AR8:$BE8)=0, 0, BC8/SUM($AR8:$BE8)) -> 0 | EJ8: =IF(SUM($AR8:$BE8)=0, 0, BD8/SUM($AR8:$BE8)) -> 0 | EK8: =IF(SUM($AR8:$BE8)=0, 0, BE8/SUM($AR8:$BE8)) -> 0 | EL8: 1.107051697 | EM8: 1.029296875 | EN8: 1.170820685 | EO8: =IF(Real_or_Nom="Nominal",Input_Fixed!F$10/$EL8, $EM8) -> 1.029296875 | EP8: =IF(Real_or_Nom="Nominal",Input_Fixed!G$10/$EL8, $EM8) -> 1.029296875 | EQ8: =IF(Real_or_Nom="Nominal",Input_Fixed!H$10/$EL8, $EM8) -> 1.029296875 | ER8: =IF(Real_or_Nom="Nominal",Input_Fixed!I$10/$EL8, $EM8) -> 1.029296875 | ES8: =IF(Real_or_Nom="Nominal",Input_Fixed!J$10/$EL8, $EM8) -> 1.029296875 | ET8: =IF(Real_or_Nom="Nominal",Input_Fixed!K$10/$EL8, $EM8) -> 1.029296875 | EU8: =IF(Real_or_Nom="Nominal",Input_Fixed!L$10/$EL8, $EM8) -> 1.029296875 | EV8: =IF(Real_or_Nom="Nominal",Input_Fixed!M$10/$EL8, $EM8) -> 1.029296875 | EW8: =IF(Real_or_Nom="Nominal",Input_Fixed!N$10/$EL8, $EM8) -> 1.029296875 | EX8: =IF(Real_or_Nom="Nominal",Input_Fixed!O$10/$EL8, $EM8) -> 1.029296875 | EY8: =IF(Real_or_Nom="Nominal",Input_Fixed!P$10/$EL8, $EM8) -> 1.029296875 | EZ8: =IF(Real_or_Nom="Nominal",Input_Fixed!Q$10/$EL8, $EM8) -> 1.029296875 | FA8: =IF(Real_or_Nom="Nominal",Input_Fixed!R$10/$EL8, $EM8) -> 1.029296875 | FB8: =IF(Real_or_Nom="Nominal",Input_Fixed!S$10/$EL8, $EM8) -> 1.029296875 | FC8: =IF(Real_or_Nom="Nominal",Input_Fixed!T$10/$EL8, $EM8) -> 1.029296875 | FD8: =IF(Real_or_Nom="Nominal",Input_Fixed!U$10/$EL8, $EM8) -> 1.029296875 | FE8: 1 | FF8: 1 | FG8: 1 | FH8: 1 | FI8: 1 | FJ8: 1.001568697 | FK8: 1.006257061 | FL8: 1.01511116 | FM8: 1.026991092 | FN8: 1.041110274 | FO8: 1.055692733 | FP8: 1.065501023 | FQ8: 1.075459407 | FR8: 1.085570427 | FS8: 1.095836671 | FT8: 1.106260777 | FU8: 1 | FV8: =IF(F8="", "", VLOOKUP(F8,Input_Fixed!$A$105:$C$116,3,FALSE)) -> Network | FW8: =SUM(Scen01wgt*Scenario_Wgtd!E8, Scen02wgt* Scenario_Wgtd!U8, Scen03wgt*Scenario_Wgtd!AK8, Scen04wgt*Scenario_Wgtd!BA8, Scen05wgt*Scenario_Wgtd!BQ8, Scen06wgt*Scenario_Wgtd!CG8,Scen07wgt*Scenario_Wgtd!CW8, Scen08wgt*Scenario_Wgtd!DM8,Scen09wgt*Scenario_Wgtd!EC8, Scen10wgt*Scenario_Wgtd!ES8,Scen11wgt*Scenario_Wgtd!FI8, Scen12wgt*Scenario_Wgtd!FY8, Scen13wgt*Scenario_Wgtd!GO8, Scen14wgt*Scenario_Wgtd!HE8,Scen15wgt*Scenario_Wgtd!HU8, Scen16wgt*Scenario_Wgtd!IK8, Scen17wgt*Scenario_Wgtd!JA8,Scen18wgt*Scenario_Wgtd!JQ8, Scen19wgt*Scenario_Wgtd!KG8,Scen20wgt*Scenario_Wgtd!KW8, Scen21wgt*Scenario_Wgtd!LM8, Scen22wgt*Scenario_Wgtd!MC8, Scen23wgt*Scenario_Wgtd!MS8, Scen24wgt*Scenario_Wgtd!NI8, Scen25wgt*Scenario_Wgtd!NY8, Scen26wgt*Scenario_Wgtd!OO8, Scen27wgt*Scenario_Wgtd!PE8, Scen28wgt*Scenario_Wgtd!PU8, Scen29wgt*Scenario_Wgtd!QK8 +Scen30wgt*Scenario_Wgtd!RA8, Scen31wgt*Scenario_Wgtd!RQ8, Scen32wgt*Scenario_Wgtd!SG8, Scen33wgt*Scenario_Wgtd!SW8, Scen34wgt*Scenario_Wgtd!TM8, Scen35wgt*Scenario_Wgtd!UC8, Scen36wgt*Scenario_Wgtd!US8, Scen37wgt*Scenario_Wgtd!VI8, Scen38wgt*Scenario_Wgtd!VY8, Scen39wgt*Scenario_Wgtd!WO8, Scen40wgt*Scenario_Wgtd!XE8) -> 0 | FX8: =SUM(Scen01wgt*Scenario_Wgtd!F8, Scen02wgt* Scenario_Wgtd!V8, Scen03wgt*Scenario_Wgtd!AL8, Scen04wgt*Scenario_Wgtd!BB8, Scen05wgt*Scenario_Wgtd!BR8, Scen06wgt*Scenario_Wgtd!CH8,Scen07wgt*Scenario_Wgtd!CX8, Scen08wgt*Scenario_Wgtd!DN8,Scen09wgt*Scenario_Wgtd!ED8, Scen10wgt*Scenario_Wgtd!ET8,Scen11wgt*Scenario_Wgtd!FJ8, Scen12wgt*Scenario_Wgtd!FZ8, Scen13wgt*Scenario_Wgtd!GP8, Scen14wgt*Scenario_Wgtd!HF8,Scen15wgt*Scenario_Wgtd!HV8, Scen16wgt*Scenario_Wgtd!IL8, Scen17wgt*Scenario_Wgtd!JB8,Scen18wgt*Scenario_Wgtd!JR8, Scen19wgt*Scenario_Wgtd!KH8,Scen20wgt*Scenario_Wgtd!KX8, Scen21wgt*Scenario_Wgtd!LN8, Scen22wgt*Scenario_Wgtd!MD8, Scen23wgt*Scenario_Wgtd!MT8, Scen24wgt*Scenario_Wgtd!NJ8, Scen25wgt*Scenario_Wgtd!NZ8, Scen26wgt*Scenario_Wgtd!OP8, Scen27wgt*Scenario_Wgtd!PF8, Scen28wgt*Scenario_Wgtd!PV8, Scen29wgt*Scenario_Wgtd!QL8 +Scen30wgt*Scenario_Wgtd!RB8, Scen31wgt*Scenario_Wgtd!RR8, Scen32wgt*Scenario_Wgtd!SH8, Scen33wgt*Scenario_Wgtd!SX8, Scen34wgt*Scenario_Wgtd!TN8, Scen35wgt*Scenario_Wgtd!UD8, Scen36wgt*Scenario_Wgtd!UT8, Scen37wgt*Scenario_Wgtd!VJ8, Scen38wgt*Scenario_Wgtd!VZ8, Scen39wgt*Scenario_Wgtd!WP8, Scen40wgt*Scenario_Wgtd!XF8) -> 0 | FY8: =SUM(Scen01wgt*Scenario_Wgtd!G8, Scen02wgt* Scenario_Wgtd!W8, Scen03wgt*Scenario_Wgtd!AM8, Scen04wgt*Scenario_Wgtd!BC8, Scen05wgt*Scenario_Wgtd!BS8, Scen06wgt*Scenario_Wgtd!CI8,Scen07wgt*Scenario_Wgtd!CY8, Scen08wgt*Scenario_Wgtd!DO8,Scen09wgt*Scenario_Wgtd!EE8, Scen10wgt*Scenario_Wgtd!EU8,Scen11wgt*Scenario_Wgtd!FK8, Scen12wgt*Scenario_Wgtd!GA8, Scen13wgt*Scenario_Wgtd!GQ8, Scen14wgt*Scenario_Wgtd!HG8,Scen15wgt*Scenario_Wgtd!HW8, Scen16wgt*Scenario_Wgtd!IM8, Scen17wgt*Scenario_Wgtd!JC8,Scen18wgt*Scenario_Wgtd!JS8, Scen19wgt*Scenario_Wgtd!KI8,Scen20wgt*Scenario_Wgtd!KY8, Scen21wgt*Scenario_Wgtd!LO8, Scen22wgt*Scenario_Wgtd!ME8, Scen23wgt*Scenario_Wgtd!MU8, Scen24wgt*Scenario_Wgtd!NK8, Scen25wgt*Scenario_Wgtd!OA8, Scen26wgt*Scenario_Wgtd!OQ8, Scen27wgt*Scenario_Wgtd!PG8, Scen28wgt*Scenario_Wgtd!PW8, Scen29wgt*Scenario_Wgtd!QM8 +Scen30wgt*Scenario_Wgtd!RC8, Scen31wgt*Scenario_Wgtd!RS8, Scen32wgt*Scenario_Wgtd!SI8, Scen33wgt*Scenario_Wgtd!SY8, Scen34wgt*Scenario_Wgtd!TO8, Scen35wgt*Scenario_Wgtd!UE8, Scen36wgt*Scenario_Wgtd!UU8, Scen37wgt*Scenario_Wgtd!VK8, Scen38wgt*Scenario_Wgtd!WA8, Scen39wgt*Scenario_Wgtd!WQ8, Scen40wgt*Scenario_Wgtd!XG8) -> 0 | FZ8: =SUM(Scen01wgt*Scenario_Wgtd!H8, Scen02wgt* Scenario_Wgtd!X8, Scen03wgt*Scenario_Wgtd!AN8, Scen04wgt*Scenario_Wgtd!BD8, Scen05wgt*Scenario_Wgtd!BT8, Scen06wgt*Scenario_Wgtd!CJ8,Scen07wgt*Scenario_Wgtd!CZ8, Scen08wgt*Scenario_Wgtd!DP8,Scen09wgt*Scenario_Wgtd!EF8, Scen10wgt*Scenario_Wgtd!EV8,Scen11wgt*Scenario_Wgtd!FL8, Scen12wgt*Scenario_Wgtd!GB8, Scen13wgt*Scenario_Wgtd!GR8, Scen14wgt*Scenario_Wgtd!HH8,Scen15wgt*Scenario_Wgtd!HX8, Scen16wgt*Scenario_Wgtd!IN8, Scen17wgt*Scenario_Wgtd!JD8,Scen18wgt*Scenario_Wgtd!JT8, Scen19wgt*Scenario_Wgtd!KJ8,Scen20wgt*Scenario_Wgtd!KZ8, Scen21wgt*Scenario_Wgtd!LP8, Scen22wgt*Scenario_Wgtd!MF8, Scen23wgt*Scenario_Wgtd!MV8, Scen24wgt*Scenario_Wgtd!NL8, Scen25wgt*Scenario_Wgtd!OB8, Scen26wgt*Scenario_Wgtd!OR8, Scen27wgt*Scenario_Wgtd!PH8, Scen28wgt*Scenario_Wgtd!PX8, Scen29wgt*Scenario_Wgtd!QN8 +Scen30wgt*Scenario_Wgtd!RD8, Scen31wgt*Scenario_Wgtd!RT8, Scen32wgt*Scenario_Wgtd!SJ8, Scen33wgt*Scenario_Wgtd!SZ8, Scen34wgt*Scenario_Wgtd!TP8, Scen35wgt*Scenario_Wgtd!UF8, Scen36wgt*Scenario_Wgtd!UV8, Scen37wgt*Scenario_Wgtd!VL8, Scen38wgt*Scenario_Wgtd!WB8, Scen39wgt*Scenario_Wgtd!WR8, Scen40wgt*Scenario_Wgtd!XH8) -> 0 | GA8: =SUM(Scen01wgt*Scenario_Wgtd!I8, Scen02wgt* Scenario_Wgtd!Y8, Scen03wgt*Scenario_Wgtd!AO8, Scen04wgt*Scenario_Wgtd!BE8, Scen05wgt*Scenario_Wgtd!BU8, Scen06wgt*Scenario_Wgtd!CK8,Scen07wgt*Scenario_Wgtd!DA8, Scen08wgt*Scenario_Wgtd!DQ8,Scen09wgt*Scenario_Wgtd!EG8, Scen10wgt*Scenario_Wgtd!EW8,Scen11wgt*Scenario_Wgtd!FM8, Scen12wgt*Scenario_Wgtd!GC8, Scen13wgt*Scenario_Wgtd!GS8, Scen14wgt*Scenario_Wgtd!HI8,Scen15wgt*Scenario_Wgtd!HY8, Scen16wgt*Scenario_Wgtd!IO8, Scen17wgt*Scenario_Wgtd!JE8,Scen18wgt*Scenario_Wgtd!JU8, Scen19wgt*Scenario_Wgtd!KK8,Scen20wgt*Scenario_Wgtd!LA8, Scen21wgt*Scenario_Wgtd!LQ8, Scen22wgt*Scenario_Wgtd!MG8, Scen23wgt*Scenario_Wgtd!MW8, Scen24wgt*Scenario_Wgtd!NM8, Scen25wgt*Scenario_Wgtd!OC8, Scen26wgt*Scenario_Wgtd!OS8, Scen27wgt*Scenario_Wgtd!PI8, Scen28wgt*Scenario_Wgtd!PY8, Scen29wgt*Scenario_Wgtd!QO8 +Scen30wgt*Scenario_Wgtd!RE8, Scen31wgt*Scenario_Wgtd!RU8, Scen32wgt*Scenario_Wgtd!SK8, Scen33wgt*Scenario_Wgtd!TA8, Scen34wgt*Scenario_Wgtd!TQ8, Scen35wgt*Scenario_Wgtd!UG8, Scen36wgt*Scenario_Wgtd!UW8, Scen37wgt*Scenario_Wgtd!VM8, Scen38wgt*Scenario_Wgtd!WC8, Scen39wgt*Scenario_Wgtd!WS8, Scen40wgt*Scenario_Wgtd!XI8) -> 0 | GB8: =SUM(Scen01wgt*Scenario_Wgtd!J8, Scen02wgt* Scenario_Wgtd!Z8, Scen03wgt*Scenario_Wgtd!AP8, Scen04wgt*Scenario_Wgtd!BF8, Scen05wgt*Scenario_Wgtd!BV8, Scen06wgt*Scenario_Wgtd!CL8,Scen07wgt*Scenario_Wgtd!DB8, Scen08wgt*Scenario_Wgtd!DR8,Scen09wgt*Scenario_Wgtd!EH8, Scen10wgt*Scenario_Wgtd!EX8,Scen11wgt*Scenario_Wgtd!FN8, Scen12wgt*Scenario_Wgtd!GD8, Scen13wgt*Scenario_Wgtd!GT8, Scen14wgt*Scenario_Wgtd!HJ8,Scen15wgt*Scenario_Wgtd!HZ8, Scen16wgt*Scenario_Wgtd!IP8, Scen17wgt*Scenario_Wgtd!JF8,Scen18wgt*Scenario_Wgtd!JV8, Scen19wgt*Scenario_Wgtd!KL8,Scen20wgt*Scenario_Wgtd!LB8, Scen21wgt*Scenario_Wgtd!LR8, Scen22wgt*Scenario_Wgtd!MH8, Scen23wgt*Scenario_Wgtd!MX8, Scen24wgt*Scenario_Wgtd!NN8, Scen25wgt*Scenario_Wgtd!OD8, Scen26wgt*Scenario_Wgtd!OT8, Scen27wgt*Scenario_Wgtd!PJ8, Scen28wgt*Scenario_Wgtd!PZ8, Scen29wgt*Scenario_Wgtd!QP8 +Scen30wgt*Scenario_Wgtd!RF8, Scen31wgt*Scenario_Wgtd!RV8, Scen32wgt*Scenario_Wgtd!SL8, Scen33wgt*Scenario_Wgtd!TB8, Scen34wgt*Scenario_Wgtd!TR8, Scen35wgt*Scenario_Wgtd!UH8, Scen36wgt*Scenario_Wgtd!UX8, Scen37wgt*Scenario_Wgtd!VN8, Scen38wgt*Scenario_Wgtd!WD8, Scen39wgt*Scenario_Wgtd!WT8, Scen40wgt*Scenario_Wgtd!XJ8) -> 118361.9355 | GC8: =SUM(Scen01wgt*Scenario_Wgtd!K8, Scen02wgt* Scenario_Wgtd!AA8, Scen03wgt*Scenario_Wgtd!AQ8, Scen04wgt*Scenario_Wgtd!BG8, Scen05wgt*Scenario_Wgtd!BW8, Scen06wgt*Scenario_Wgtd!CM8,Scen07wgt*Scenario_Wgtd!DC8, Scen08wgt*Scenario_Wgtd!DS8,Scen09wgt*Scenario_Wgtd!EI8, Scen10wgt*Scenario_Wgtd!EY8,Scen11wgt*Scenario_Wgtd!FO8, Scen12wgt*Scenario_Wgtd!GE8, Scen13wgt*Scenario_Wgtd!GU8, Scen14wgt*Scenario_Wgtd!HK8,Scen15wgt*Scenario_Wgtd!IA8, Scen16wgt*Scenario_Wgtd!IQ8, Scen17wgt*Scenario_Wgtd!JG8,Scen18wgt*Scenario_Wgtd!JW8, Scen19wgt*Scenario_Wgtd!KM8,Scen20wgt*Scenario_Wgtd!LC8, Scen21wgt*Scenario_Wgtd!LS8, Scen22wgt*Scenario_Wgtd!MI8, Scen23wgt*Scenario_Wgtd!MY8, Scen24wgt*Scenario_Wgtd!NO8, Scen25wgt*Scenario_Wgtd!OE8, Scen26wgt*Scenario_Wgtd!OU8, Scen27wgt*Scenario_Wgtd!PK8, Scen28wgt*Scenario_Wgtd!QA8, Scen29wgt*Scenario_Wgtd!QQ8 +Scen30wgt*Scenario_Wgtd!RG8, Scen31wgt*Scenario_Wgtd!RW8, Scen32wgt*Scenario_Wgtd!SM8, Scen33wgt*Scenario_Wgtd!TC8, Scen34wgt*Scenario_Wgtd!TS8, Scen35wgt*Scenario_Wgtd!UI8, Scen36wgt*Scenario_Wgtd!UY8, Scen37wgt*Scenario_Wgtd!VO8, Scen38wgt*Scenario_Wgtd!WE8, Scen39wgt*Scenario_Wgtd!WU8, Scen40wgt*Scenario_Wgtd!XK8) -> 1375202.383 | GD8: =SUM(Scen01wgt*Scenario_Wgtd!L8, Scen02wgt* Scenario_Wgtd!AB8, Scen03wgt*Scenario_Wgtd!AR8, Scen04wgt*Scenario_Wgtd!BH8, Scen05wgt*Scenario_Wgtd!BX8, Scen06wgt*Scenario_Wgtd!CN8,Scen07wgt*Scenario_Wgtd!DD8, Scen08wgt*Scenario_Wgtd!DT8,Scen09wgt*Scenario_Wgtd!EJ8, Scen10wgt*Scenario_Wgtd!EZ8,Scen11wgt*Scenario_Wgtd!FP8, Scen12wgt*Scenario_Wgtd!GF8, Scen13wgt*Scenario_Wgtd!GV8, Scen14wgt*Scenario_Wgtd!HL8,Scen15wgt*Scenario_Wgtd!IB8, Scen16wgt*Scenario_Wgtd!IR8, Scen17wgt*Scenario_Wgtd!JH8,Scen18wgt*Scenario_Wgtd!JX8, Scen19wgt*Scenario_Wgtd!KN8,Scen20wgt*Scenario_Wgtd!LD8, Scen21wgt*Scenario_Wgtd!LT8, Scen22wgt*Scenario_Wgtd!MJ8, Scen23wgt*Scenario_Wgtd!MZ8, Scen24wgt*Scenario_Wgtd!NP8, Scen25wgt*Scenario_Wgtd!OF8, Scen26wgt*Scenario_Wgtd!OV8, Scen27wgt*Scenario_Wgtd!PL8, Scen28wgt*Scenario_Wgtd!QB8, Scen29wgt*Scenario_Wgtd!QR8 +Scen30wgt*Scenario_Wgtd!RH8, Scen31wgt*Scenario_Wgtd!RX8, Scen32wgt*Scenario_Wgtd!SN8, Scen33wgt*Scenario_Wgtd!TD8, Scen34wgt*Scenario_Wgtd!TT8, Scen35wgt*Scenario_Wgtd!UJ8, Scen36wgt*Scenario_Wgtd!UZ8, Scen37wgt*Scenario_Wgtd!VP8, Scen38wgt*Scenario_Wgtd!WF8, Scen39wgt*Scenario_Wgtd!WV8, Scen40wgt*Scenario_Wgtd!XL8) -> 0 | GE8: =SUM(Scen01wgt*Scenario_Wgtd!M8, Scen02wgt* Scenario_Wgtd!AC8, Scen03wgt*Scenario_Wgtd!AS8, Scen04wgt*Scenario_Wgtd!BI8, Scen05wgt*Scenario_Wgtd!BY8, Scen06wgt*Scenario_Wgtd!CO8,Scen07wgt*Scenario_Wgtd!DE8, Scen08wgt*Scenario_Wgtd!DU8,Scen09wgt*Scenario_Wgtd!EK8, Scen10wgt*Scenario_Wgtd!FA8,Scen11wgt*Scenario_Wgtd!FQ8, Scen12wgt*Scenario_Wgtd!GG8, Scen13wgt*Scenario_Wgtd!GW8, Scen14wgt*Scenario_Wgtd!HM8,Scen15wgt*Scenario_Wgtd!IC8, Scen16wgt*Scenario_Wgtd!IS8, Scen17wgt*Scenario_Wgtd!JI8,Scen18wgt*Scenario_Wgtd!JY8, Scen19wgt*Scenario_Wgtd!KO8,Scen20wgt*Scenario_Wgtd!LE8, Scen21wgt*Scenario_Wgtd!LU8, Scen22wgt*Scenario_Wgtd!MK8, Scen23wgt*Scenario_Wgtd!NA8, Scen24wgt*Scenario_Wgtd!NQ8, Scen25wgt*Scenario_Wgtd!OG8, Scen26wgt*Scenario_Wgtd!OW8, Scen27wgt*Scenario_Wgtd!PM8, Scen28wgt*Scenario_Wgtd!QC8, Scen29wgt*Scenario_Wgtd!QS8 +Scen30wgt*Scenario_Wgtd!RI8, Scen31wgt*Scenario_Wgtd!RY8, Scen32wgt*Scenario_Wgtd!SO8, Scen33wgt*Scenario_Wgtd!TE8, Scen34wgt*Scenario_Wgtd!TU8, Scen35wgt*Scenario_Wgtd!UK8, Scen36wgt*Scenario_Wgtd!VA8, Scen37wgt*Scenario_Wgtd!VQ8, Scen38wgt*Scenario_Wgtd!WG8, Scen39wgt*Scenario_Wgtd!WW8, Scen40wgt*Scenario_Wgtd!XM8) -> 0 | GF8: =SUM(Scen01wgt*Scenario_Wgtd!N8, Scen02wgt* Scenario_Wgtd!AD8, Scen03wgt*Scenario_Wgtd!AT8, Scen04wgt*Scenario_Wgtd!BJ8, Scen05wgt*Scenario_Wgtd!BZ8, Scen06wgt*Scenario_Wgtd!CP8,Scen07wgt*Scenario_Wgtd!DF8, Scen08wgt*Scenario_Wgtd!DV8,Scen09wgt*Scenario_Wgtd!EL8, Scen10wgt*Scenario_Wgtd!FB8,Scen11wgt*Scenario_Wgtd!FR8, Scen12wgt*Scenario_Wgtd!GH8, Scen13wgt*Scenario_Wgtd!GX8, Scen14wgt*Scenario_Wgtd!HN8,Scen15wgt*Scenario_Wgtd!ID8, Scen16wgt*Scenario_Wgtd!IT8, Scen17wgt*Scenario_Wgtd!JJ8,Scen18wgt*Scenario_Wgtd!JZ8, Scen19wgt*Scenario_Wgtd!KP8,Scen20wgt*Scenario_Wgtd!LF8, Scen21wgt*Scenario_Wgtd!LV8, Scen22wgt*Scenario_Wgtd!ML8, Scen23wgt*Scenario_Wgtd!NB8, Scen24wgt*Scenario_Wgtd!NR8, Scen25wgt*Scenario_Wgtd!OH8, Scen26wgt*Scenario_Wgtd!OX8, Scen27wgt*Scenario_Wgtd!PN8, Scen28wgt*Scenario_Wgtd!QD8, Scen29wgt*Scenario_Wgtd!QT8 +Scen30wgt*Scenario_Wgtd!RJ8, Scen31wgt*Scenario_Wgtd!RZ8, Scen32wgt*Scenario_Wgtd!SP8, Scen33wgt*Scenario_Wgtd!TF8, Scen34wgt*Scenario_Wgtd!TV8, Scen35wgt*Scenario_Wgtd!UL8, Scen36wgt*Scenario_Wgtd!VB8, Scen37wgt*Scenario_Wgtd!VR8, Scen38wgt*Scenario_Wgtd!WH8, Scen39wgt*Scenario_Wgtd!WX8, Scen40wgt*Scenario_Wgtd!XN8) -> 0 | GG8: =SUM(Scen01wgt*Scenario_Wgtd!O8, Scen02wgt* Scenario_Wgtd!AE8, Scen03wgt*Scenario_Wgtd!AU8, Scen04wgt*Scenario_Wgtd!BK8, Scen05wgt*Scenario_Wgtd!CA8, Scen06wgt*Scenario_Wgtd!CQ8,Scen07wgt*Scenario_Wgtd!DG8, Scen08wgt*Scenario_Wgtd!DW8,Scen09wgt*Scenario_Wgtd!EM8, Scen10wgt*Scenario_Wgtd!FC8,Scen11wgt*Scenario_Wgtd!FS8, Scen12wgt*Scenario_Wgtd!GI8, Scen13wgt*Scenario_Wgtd!GY8, Scen14wgt*Scenario_Wgtd!HO8,Scen15wgt*Scenario_Wgtd!IE8, Scen16wgt*Scenario_Wgtd!IU8, Scen17wgt*Scenario_Wgtd!JK8,Scen18wgt*Scenario_Wgtd!KA8, Scen19wgt*Scenario_Wgtd!KQ8,Scen20wgt*Scenario_Wgtd!LG8, Scen21wgt*Scenario_Wgtd!LW8, Scen22wgt*Scenario_Wgtd!MM8, Scen23wgt*Scenario_Wgtd!NC8, Scen24wgt*Scenario_Wgtd!NS8, Scen25wgt*Scenario_Wgtd!OI8, Scen26wgt*Scenario_Wgtd!OY8, Scen27wgt*Scenario_Wgtd!PO8, Scen28wgt*Scenario_Wgtd!QE8, Scen29wgt*Scenario_Wgtd!QU8 +Scen30wgt*Scenario_Wgtd!RK8, Scen31wgt*Scenario_Wgtd!SA8, Scen32wgt*Scenario_Wgtd!SQ8, Scen33wgt*Scenario_Wgtd!TG8, Scen34wgt*Scenario_Wgtd!TW8, Scen35wgt*Scenario_Wgtd!UM8, Scen36wgt*Scenario_Wgtd!VC8, Scen37wgt*Scenario_Wgtd!VS8, Scen38wgt*Scenario_Wgtd!WI8, Scen39wgt*Scenario_Wgtd!WY8, Scen40wgt*Scenario_Wgtd!XO8) -> 0 | GH8: =SUM(Scen01wgt*Scenario_Wgtd!P8, Scen02wgt* Scenario_Wgtd!AF8, Scen03wgt*Scenario_Wgtd!AV8, Scen04wgt*Scenario_Wgtd!BL8, Scen05wgt*Scenario_Wgtd!CB8, Scen06wgt*Scenario_Wgtd!CR8,Scen07wgt*Scenario_Wgtd!DH8, Scen08wgt*Scenario_Wgtd!DX8,Scen09wgt*Scenario_Wgtd!EN8, Scen10wgt*Scenario_Wgtd!FD8,Scen11wgt*Scenario_Wgtd!FT8, Scen12wgt*Scenario_Wgtd!GJ8, Scen13wgt*Scenario_Wgtd!GZ8, Scen14wgt*Scenario_Wgtd!HP8,Scen15wgt*Scenario_Wgtd!IF8, Scen16wgt*Scenario_Wgtd!IV8, Scen17wgt*Scenario_Wgtd!JL8,Scen18wgt*Scenario_Wgtd!KB8, Scen19wgt*Scenario_Wgtd!KR8,Scen20wgt*Scenario_Wgtd!LH8, Scen21wgt*Scenario_Wgtd!LX8, Scen22wgt*Scenario_Wgtd!MN8, Scen23wgt*Scenario_Wgtd!ND8, Scen24wgt*Scenario_Wgtd!NT8, Scen25wgt*Scenario_Wgtd!OJ8, Scen26wgt*Scenario_Wgtd!OZ8, Scen27wgt*Scenario_Wgtd!PP8, Scen28wgt*Scenario_Wgtd!QF8, Scen29wgt*Scenario_Wgtd!QV8 +Scen30wgt*Scenario_Wgtd!RL8, Scen31wgt*Scenario_Wgtd!SB8, Scen32wgt*Scenario_Wgtd!SR8, Scen33wgt*Scenario_Wgtd!TH8, Scen34wgt*Scenario_Wgtd!TX8, Scen35wgt*Scenario_Wgtd!UN8, Scen36wgt*Scenario_Wgtd!VD8, Scen37wgt*Scenario_Wgtd!VT8, Scen38wgt*Scenario_Wgtd!WJ8, Scen39wgt*Scenario_Wgtd!WZ8, Scen40wgt*Scenario_Wgtd!XP8) -> 0 | GI8: =SUM(Scen01wgt*Scenario_Wgtd!Q8, Scen02wgt* Scenario_Wgtd!AG8, Scen03wgt*Scenario_Wgtd!AW8, Scen04wgt*Scenario_Wgtd!BM8, Scen05wgt*Scenario_Wgtd!CC8, Scen06wgt*Scenario_Wgtd!CS8,Scen07wgt*Scenario_Wgtd!DI8, Scen08wgt*Scenario_Wgtd!DY8,Scen09wgt*Scenario_Wgtd!EO8, Scen10wgt*Scenario_Wgtd!FE8,Scen11wgt*Scenario_Wgtd!FU8, Scen12wgt*Scenario_Wgtd!GK8, Scen13wgt*Scenario_Wgtd!HA8, Scen14wgt*Scenario_Wgtd!HQ8,Scen15wgt*Scenario_Wgtd!IG8, Scen16wgt*Scenario_Wgtd!IW8, Scen17wgt*Scenario_Wgtd!JM8,Scen18wgt*Scenario_Wgtd!KC8, Scen19wgt*Scenario_Wgtd!KS8,Scen20wgt*Scenario_Wgtd!LI8, Scen21wgt*Scenario_Wgtd!LY8, Scen22wgt*Scenario_Wgtd!MO8, Scen23wgt*Scenario_Wgtd!NE8, Scen24wgt*Scenario_Wgtd!NU8, Scen25wgt*Scenario_Wgtd!OK8, Scen26wgt*Scenario_Wgtd!PA8, Scen27wgt*Scenario_Wgtd!PQ8, Scen28wgt*Scenario_Wgtd!QG8, Scen29wgt*Scenario_Wgtd!QW8 +Scen30wgt*Scenario_Wgtd!RM8, Scen31wgt*Scenario_Wgtd!SC8, Scen32wgt*Scenario_Wgtd!SS8, Scen33wgt*Scenario_Wgtd!TI8, Scen34wgt*Scenario_Wgtd!TY8, Scen35wgt*Scenario_Wgtd!UO8, Scen36wgt*Scenario_Wgtd!VE8, Scen37wgt*Scenario_Wgtd!VU8, Scen38wgt*Scenario_Wgtd!WK8, Scen39wgt*Scenario_Wgtd!XA8, Scen40wgt*Scenario_Wgtd!XQ8) -> 0 | GJ8: =SUM(Scen01wgt*Scenario_Wgtd!R8, Scen02wgt* Scenario_Wgtd!AH8, Scen03wgt*Scenario_Wgtd!AX8, Scen04wgt*Scenario_Wgtd!BN8, Scen05wgt*Scenario_Wgtd!CD8, Scen06wgt*Scenario_Wgtd!CT8,Scen07wgt*Scenario_Wgtd!DJ8, Scen08wgt*Scenario_Wgtd!DZ8,Scen09wgt*Scenario_Wgtd!EP8, Scen10wgt*Scenario_Wgtd!FF8,Scen11wgt*Scenario_Wgtd!FV8, Scen12wgt*Scenario_Wgtd!GL8, Scen13wgt*Scenario_Wgtd!HB8, Scen14wgt*Scenario_Wgtd!HR8,Scen15wgt*Scenario_Wgtd!IH8, Scen16wgt*Scenario_Wgtd!IX8, Scen17wgt*Scenario_Wgtd!JN8,Scen18wgt*Scenario_Wgtd!KD8, Scen19wgt*Scenario_Wgtd!KT8,Scen20wgt*Scenario_Wgtd!LJ8, Scen21wgt*Scenario_Wgtd!LZ8, Scen22wgt*Scenario_Wgtd!MP8, Scen23wgt*Scenario_Wgtd!NF8, Scen24wgt*Scenario_Wgtd!NV8, Scen25wgt*Scenario_Wgtd!OL8, Scen26wgt*Scenario_Wgtd!PB8, Scen27wgt*Scenario_Wgtd!PR8, Scen28wgt*Scenario_Wgtd!QH8, Scen29wgt*Scenario_Wgtd!QX8 +Scen30wgt*Scenario_Wgtd!RN8, Scen31wgt*Scenario_Wgtd!SD8, Scen32wgt*Scenario_Wgtd!ST8, Scen33wgt*Scenario_Wgtd!TJ8, Scen34wgt*Scenario_Wgtd!TZ8, Scen35wgt*Scenario_Wgtd!UP8, Scen36wgt*Scenario_Wgtd!VF8, Scen37wgt*Scenario_Wgtd!VV8, Scen38wgt*Scenario_Wgtd!WL8, Scen39wgt*Scenario_Wgtd!XB8, Scen40wgt*Scenario_Wgtd!XR8) -> 0 | GK8: =SUM(Scen01wgt*Scenario_Wgtd!S8, Scen02wgt* Scenario_Wgtd!AI8, Scen03wgt*Scenario_Wgtd!AY8, Scen04wgt*Scenario_Wgtd!BO8, Scen05wgt*Scenario_Wgtd!CE8, Scen06wgt*Scenario_Wgtd!CU8,Scen07wgt*Scenario_Wgtd!DK8, Scen08wgt*Scenario_Wgtd!EA8,Scen09wgt*Scenario_Wgtd!EQ8, Scen10wgt*Scenario_Wgtd!FG8,Scen11wgt*Scenario_Wgtd!FW8, Scen12wgt*Scenario_Wgtd!GM8, Scen13wgt*Scenario_Wgtd!HC8, Scen14wgt*Scenario_Wgtd!HS8,Scen15wgt*Scenario_Wgtd!II8, Scen16wgt*Scenario_Wgtd!IY8, Scen17wgt*Scenario_Wgtd!JO8,Scen18wgt*Scenario_Wgtd!KE8, Scen19wgt*Scenario_Wgtd!KU8,Scen20wgt*Scenario_Wgtd!LK8, Scen21wgt*Scenario_Wgtd!MA8, Scen22wgt*Scenario_Wgtd!MQ8, Scen23wgt*Scenario_Wgtd!NG8, Scen24wgt*Scenario_Wgtd!NW8, Scen25wgt*Scenario_Wgtd!OM8, Scen26wgt*Scenario_Wgtd!PC8, Scen27wgt*Scenario_Wgtd!PS8, Scen28wgt*Scenario_Wgtd!QI8, Scen29wgt*Scenario_Wgtd!QY8 +Scen30wgt*Scenario_Wgtd!RO8, Scen31wgt*Scenario_Wgtd!SE8, Scen32wgt*Scenario_Wgtd!SU8, Scen33wgt*Scenario_Wgtd!TK8, Scen34wgt*Scenario_Wgtd!UA8, Scen35wgt*Scenario_Wgtd!UQ8, Scen36wgt*Scenario_Wgtd!VG8, Scen37wgt*Scenario_Wgtd!VW8, Scen38wgt*Scenario_Wgtd!WM8, Scen39wgt*Scenario_Wgtd!XC8, Scen40wgt*Scenario_Wgtd!XS8) -> 0 | GL8: =SUM(Scen01wgt*Scenario_Wgtd!T8, Scen02wgt* Scenario_Wgtd!AJ8, Scen03wgt*Scenario_Wgtd!AZ8, Scen04wgt*Scenario_Wgtd!BP8, Scen05wgt*Scenario_Wgtd!CF8, Scen06wgt*Scenario_Wgtd!CV8,Scen07wgt*Scenario_Wgtd!DL8, Scen08wgt*Scenario_Wgtd!EB8,Scen09wgt*Scenario_Wgtd!ER8, Scen10wgt*Scenario_Wgtd!FH8,Scen11wgt*Scenario_Wgtd!FX8, Scen12wgt*Scenario_Wgtd!GN8, Scen13wgt*Scenario_Wgtd!HD8, Scen14wgt*Scenario_Wgtd!HT8,Scen15wgt*Scenario_Wgtd!IJ8, Scen16wgt*Scenario_Wgtd!IZ8, Scen17wgt*Scenario_Wgtd!JP8,Scen18wgt*Scenario_Wgtd!KF8, Scen19wgt*Scenario_Wgtd!KV8,Scen20wgt*Scenario_Wgtd!LL8, Scen21wgt*Scenario_Wgtd!MB8, Scen22wgt*Scenario_Wgtd!MR8, Scen23wgt*Scenario_Wgtd!NH8, Scen24wgt*Scenario_Wgtd!NX8, Scen25wgt*Scenario_Wgtd!ON8, Scen26wgt*Scenario_Wgtd!PD8, Scen27wgt*Scenario_Wgtd!PT8, Scen28wgt*Scenario_Wgtd!QJ8, Scen29wgt*Scenario_Wgtd!QZ8 +Scen30wgt*Scenario_Wgtd!RP8, Scen31wgt*Scenario_Wgtd!SF8, Scen32wgt*Scenario_Wgtd!SV8, Scen33wgt*Scenario_Wgtd!TL8, Scen34wgt*Scenario_Wgtd!UB8, Scen35wgt*Scenario_Wgtd!UR8, Scen36wgt*Scenario_Wgtd!VH8, Scen37wgt*Scenario_Wgtd!VX8, Scen38wgt*Scenario_Wgtd!WN8, Scen39wgt*Scenario_Wgtd!XD8, Scen40wgt*Scenario_Wgtd!XT8) -> 0 | GN8: 0 | GO8: 0 | GP8: 0 | GQ8: 0 | GR8: 118547.6096 | GS8: 1383807.108 | GT8: 0 | GU8: 0 | GV8: 0 | GW8: 0 | GY8: =IF(AND(GY$4=$CX8, Real_or_Nom="Nominal"),SUMPRODUCT($GN8:$GW8, 1/Input_Fixed!$G$10:$P$10)*$EN8, 0) -> 0 | GZ8: =IF(AND(GZ$4=$CX8, Real_or_Nom="Nominal"),SUMPRODUCT($GN8:$GW8, 1/Input_Fixed!$G$10:$P$10)*$EN8, 0) -> 0 | HA8: =IF(AND(HA$4=$CX8, Real_or_Nom="Nominal"),SUMPRODUCT($GN8:$GW8, 1/Input_Fixed!$G$10:$P$10)*$EN8, 0) -> 0 | HB8: =IF(AND(HB$4=$CX8, Real_or_Nom="Nominal"),SUMPRODUCT($GN8:$GW8, 1/Input_Fixed!$G$10:$P$10)*$EN8, 0) -> 0 | HC8: =IF(AND(HC$4=$CX8, Real_or_Nom="Nominal"),SUMPRODUCT($GN8:$GW8, 1/Input_Fixed!$G$10:$P$10)*$EN8, 0) -> 0 | HD8: 1502354.718 | HE8: 0 | HF8: 0 | HG8: 0 | HH8: 0 | HJ8: =SUM(FX8:FX8) -> 0 | HK8: =SUM(FX8:FY8) -> 0 | HL8: =SUM(FX8:FZ8) -> 0 | HM8: =SUM(FX8:GA8) -> 0 | HN8: =SUM(FX8:GB8) -> 118361.9355 | HO8: =SUM(GC8:GC8) -> 1375202.383 | HP8: =SUM(GC8:GD8) -> 1375202.383 | HQ8: =SUM(GC8:GE8) -> 1375202.383 | HR8: =SUM(GC8:GF8) -> 1375202.383 | HS8: =SUM(GC8:GG8) -> 1375202.383 | HT8: =SUM(GH8:GH8) -> 0 | HU8: =SUM(GH8:GI8) -> 0 | HV8: =SUM(GH8:GJ8) -> 0 | HW8: =SUM(GH8:GK8) -> 0 | HX8: =SUM(GH8:GL8) -> 0 | IA8: 0 | IB8: 0 | IC8: 0 | ID8: 0 | IE8: 0 | IF8: 118361.9355 | IG8: 1375202.383 | IH8: 0 | II8: 0 | IJ8: 0 | IK8: 0 | IL8: 0 | IM8: 0 | IN8: 0 | IO8: 0 | IP8: 0 | IR8: 0 | IS8: 0 | IT8: 0 | IU8: 0 | IV8: 118547.6096 | IW8: 1383807.108 | IX8: 0 | IY8: 0 | IZ8: 0 | JA8: 0 | JC8: =IF(AND(JC$4=$CX8, Real_or_Nom="Nominal"),SUMPRODUCT($IR8:$JA8, 1/Input_Fixed!$G$10:$P$10)*$EN8, 0) -> 0 | JD8: =IF(AND(JD$4=$CX8, Real_or_Nom="Nominal"),SUMPRODUCT($IR8:$JA8, 1/Input_Fixed!$G$10:$P$10)*$EN8, 0) -> 0 | JE8: =IF(AND(JE$4=$CX8, Real_or_Nom="Nominal"),SUMPRODUCT($IR8:$JA8, 1/Input_Fixed!$G$10:$P$10)*$EN8, 0) -> 0 | JF8: =IF(AND(JF$4=$CX8, Real_or_Nom="Nominal"),SUMPRODUCT($IR8:$JA8, 1/Input_Fixed!$G$10:$P$10)*$EN8, 0) -> 0 | JG8: =IF(AND(JG$4=$CX8, Real_or_Nom="Nominal"),SUMPRODUCT($IR8:$JA8, 1/Input_Fixed!$G$10:$P$10)*$EN8, 0) -> 0 | JH8: 1502354.718 | JI8: 0 | JJ8: 0 | JK8: 0 | JL8: 0 | JN8: 0 | JO8: 0 | JP8: 0 | JQ8: 0 | JR8: 118361.9355 | JS8: 1375202.383 | JT8: 1375202.383 | JU8: 1375202.383 | JV8: 1375202.383 | JW8: 1375202.383 | JX8: 0 | JY8: 0 | JZ8: 0 | KA8: 0 | KB8: 0 | KD8: 0 | KE8: 0 | KF8: 0 | KG8: 0 | KH8: 0
A9: 7094 | B9: Substation Minor Projects | C9: 3006A | D9: Supply to Marsden Park | E9: Switchbay to Marsden Park at Vineyard | F9: PS Connections | I9: 2013 | J9: 1588596 | P9: 71269 | Q9: 1130374 | R9: 386953 | T9: 1366229.766 | U9: 130356 | V9: 92010 | AR9: 547989.7 | AS9: 682831.5285 | AV9: 32082.2 | AW9: 9282.2 | AX9: 10315.2167 | AY9: 1867.6 | AZ9: 304227.3213 | BF9: 2016 | CT9: 1 | CU9: 0 | CV9: -0.2335000001 | CW9: -0.2335000001 | CX9: 2016 | CY9: 0 | CZ9: 0.8600235474 | DA9: 0.08205737592 | DB9: 0.05791907667 | DC9: 0 | DD9: 0 | DE9: 0 | DF9: 0 | DG9: 0 | DH9: 0 | DI9: 0 | DJ9: 0 | DK9: 0 | DL9: 0 | DM9: 0 | DN9: 0 | DO9: 0 | DP9: 0 | DQ9: 0 | DR9: 0 | DS9: 0 | DT9: 0 | DU9: 0 | DV9: 0 | DW9: 0 | DX9: 0.3449522601 | DY9: 0.4298334056 | DZ9: 0 | EA9: 0 | EB9: 0.02019532009 | EC9: 0.005843021992 | ED9: 0.006493292326 | EE9: 0.001175629471 | EF9: 0.1915070704 | EG9: 0 | EH9: 0 | EI9: 0 | EJ9: 0 | EK9: 0 | EL9: 1.107051697 | EM9: 1.029296875 | EN9: 1.200091202 | EO9: =IF(Real_or_Nom="Nominal",Input_Fixed!F$10/$EL9, $EM9) -> 1.029296875 | EP9: =IF(Real_or_Nom="Nominal",Input_Fixed!G$10/$EL9, $EM9) -> 1.029296875 | EQ9: =IF(Real_or_Nom="Nominal",Input_Fixed!H$10/$EL9, $EM9) -> 1.029296875 | ER9: =IF(Real_or_Nom="Nominal",Input_Fixed!I$10/$EL9, $EM9) -> 1.029296875 | ES9: =IF(Real_or_Nom="Nominal",Input_Fixed!J$10/$EL9, $EM9) -> 1.029296875 | ET9: =IF(Real_or_Nom="Nominal",Input_Fixed!K$10/$EL9, $EM9) -> 1.029296875 | EU9: =IF(Real_or_Nom="Nominal",Input_Fixed!L$10/$EL9, $EM9) -> 1.029296875 | EV9: =IF(Real_or_Nom="Nominal",Input_Fixed!M$10/$EL9, $EM9) -> 1.029296875 | EW9: =IF(Real_or_Nom="Nominal",Input_Fixed!N$10/$EL9, $EM9) -> 1.029296875 | EX9: =IF(Real_or_Nom="Nominal",Input_Fixed!O$10/$EL9, $EM9) -> 1.029296875 | EY9: =IF(Real_or_Nom="Nominal",Input_Fixed!P$10/$EL9, $EM9) -> 1.029296875 | EZ9: =IF(Real_or_Nom="Nominal",Input_Fixed!Q$10/$EL9, $EM9) -> 1.029296875 | FA9: =IF(Real_or_Nom="Nominal",Input_Fixed!R$10/$EL9, $EM9) -> 1.029296875 | FB9: =IF(Real_or_Nom="Nominal",Input_Fixed!S$10/$EL9, $EM9) -> 1.029296875 | FC9: =IF(Real_or_Nom="Nominal",Input_Fixed!T$10/$EL9, $EM9) -> 1.029296875 | FD9: =IF(Real_or_Nom="Nominal",Input_Fixed!U$10/$EL9, $EM9) -> 1.029296875 | FE9: 1 | FF9: 1 | FG9: 1 | FH9: 1 | FI9: 1 | FJ9: 1.002216734 | FK9: 1.00731915 | FL9: 1.016248098 | FM9: 1.027618496 | FN9: 1.041160531 | FO9: 1.054908393 | FP9: 1.064606439 | FQ9: 1.074460837 | FR9: 1.084474407 | FS9: 1.094650025 | FT9: 1.104990629 | FU9: 1 | FV9: =IF(F9="", "", VLOOKUP(F9,Input_Fixed!$A$105:$C$116,3,FALSE)) -> Network | FW9: =SUM(Scen01wgt*Scenario_Wgtd!E9, Scen02wgt* Scenario_Wgtd!U9, Scen03wgt*Scenario_Wgtd!AK9, Scen04wgt*Scenario_Wgtd!BA9, Scen05wgt*Scenario_Wgtd!BQ9, Scen06wgt*Scenario_Wgtd!CG9,Scen07wgt*Scenario_Wgtd!CW9, Scen08wgt*Scenario_Wgtd!DM9,Scen09wgt*Scenario_Wgtd!EC9, Scen10wgt*Scenario_Wgtd!ES9,Scen11wgt*Scenario_Wgtd!FI9, Scen12wgt*Scenario_Wgtd!FY9, Scen13wgt*Scenario_Wgtd!GO9, Scen14wgt*Scenario_Wgtd!HE9,Scen15wgt*Scenario_Wgtd!HU9, Scen16wgt*Scenario_Wgtd!IK9, Scen17wgt*Scenario_Wgtd!JA9,Scen18wgt*Scenario_Wgtd!JQ9, Scen19wgt*Scenario_Wgtd!KG9,Scen20wgt*Scenario_Wgtd!KW9, Scen21wgt*Scenario_Wgtd!LM9, Scen22wgt*Scenario_Wgtd!MC9, Scen23wgt*Scenario_Wgtd!MS9, Scen24wgt*Scenario_Wgtd!NI9, Scen25wgt*Scenario_Wgtd!NY9, Scen26wgt*Scenario_Wgtd!OO9, Scen27wgt*Scenario_Wgtd!PE9, Scen28wgt*Scenario_Wgtd!PU9, Scen29wgt*Scenario_Wgtd!QK9 +Scen30wgt*Scenario_Wgtd!RA9, Scen31wgt*Scenario_Wgtd!RQ9, Scen32wgt*Scenario_Wgtd!SG9, Scen33wgt*Scenario_Wgtd!SW9, Scen34wgt*Scenario_Wgtd!TM9, Scen35wgt*Scenario_Wgtd!UC9, Scen36wgt*Scenario_Wgtd!US9, Scen37wgt*Scenario_Wgtd!VI9, Scen38wgt*Scenario_Wgtd!VY9, Scen39wgt*Scenario_Wgtd!WO9, Scen40wgt*Scenario_Wgtd!XE9) -> 0 | FX9: =SUM(Scen01wgt*Scenario_Wgtd!F9, Scen02wgt* Scenario_Wgtd!V9, Scen03wgt*Scenario_Wgtd!AL9, Scen04wgt*Scenario_Wgtd!BB9, Scen05wgt*Scenario_Wgtd!BR9, Scen06wgt*Scenario_Wgtd!CH9,Scen07wgt*Scenario_Wgtd!CX9, Scen08wgt*Scenario_Wgtd!DN9,Scen09wgt*Scenario_Wgtd!ED9, Scen10wgt*Scenario_Wgtd!ET9,Scen11wgt*Scenario_Wgtd!FJ9, Scen12wgt*Scenario_Wgtd!FZ9, Scen13wgt*Scenario_Wgtd!GP9, Scen14wgt*Scenario_Wgtd!HF9,Scen15wgt*Scenario_Wgtd!HV9, Scen16wgt*Scenario_Wgtd!IL9, Scen17wgt*Scenario_Wgtd!JB9,Scen18wgt*Scenario_Wgtd!JR9, Scen19wgt*Scenario_Wgtd!KH9,Scen20wgt*Scenario_Wgtd!KX9, Scen21wgt*Scenario_Wgtd!LN9, Scen22wgt*Scenario_Wgtd!MD9, Scen23wgt*Scenario_Wgtd!MT9, Scen24wgt*Scenario_Wgtd!NJ9, Scen25wgt*Scenario_Wgtd!NZ9, Scen26wgt*Scenario_Wgtd!OP9, Scen27wgt*Scenario_Wgtd!PF9, Scen28wgt*Scenario_Wgtd!PV9, Scen29wgt*Scenario_Wgtd!QL9 +Scen30wgt*Scenario_Wgtd!RB9, Scen31wgt*Scenario_Wgtd!RR9, Scen32wgt*Scenario_Wgtd!SH9, Scen33wgt*Scenario_Wgtd!SX9, Scen34wgt*Scenario_Wgtd!TN9, Scen35wgt*Scenario_Wgtd!UD9, Scen36wgt*Scenario_Wgtd!UT9, Scen37wgt*Scenario_Wgtd!VJ9, Scen38wgt*Scenario_Wgtd!VZ9, Scen39wgt*Scenario_Wgtd!WP9, Scen40wgt*Scenario_Wgtd!XF9) -> 0 | FY9: =SUM(Scen01wgt*Scenario_Wgtd!G9, Scen02wgt* Scenario_Wgtd!W9, Scen03wgt*Scenario_Wgtd!AM9, Scen04wgt*Scenario_Wgtd!BC9, Scen05wgt*Scenario_Wgtd!BS9, Scen06wgt*Scenario_Wgtd!CI9,Scen07wgt*Scenario_Wgtd!CY9, Scen08wgt*Scenario_Wgtd!DO9,Scen09wgt*Scenario_Wgtd!EE9, Scen10wgt*Scenario_Wgtd!EU9,Scen11wgt*Scenario_Wgtd!FK9, Scen12wgt*Scenario_Wgtd!GA9, Scen13wgt*Scenario_Wgtd!GQ9, Scen14wgt*Scenario_Wgtd!HG9,Scen15wgt*Scenario_Wgtd!HW9, Scen16wgt*Scenario_Wgtd!IM9, Scen17wgt*Scenario_Wgtd!JC9,Scen18wgt*Scenario_Wgtd!JS9, Scen19wgt*Scenario_Wgtd!KI9,Scen20wgt*Scenario_Wgtd!KY9, Scen21wgt*Scenario_Wgtd!LO9, Scen22wgt*Scenario_Wgtd!ME9, Scen23wgt*Scenario_Wgtd!MU9, Scen24wgt*Scenario_Wgtd!NK9, Scen25wgt*Scenario_Wgtd!OA9, Scen26wgt*Scenario_Wgtd!OQ9, Scen27wgt*Scenario_Wgtd!PG9, Scen28wgt*Scenario_Wgtd!PW9, Scen29wgt*Scenario_Wgtd!QM9 +Scen30wgt*Scenario_Wgtd!RC9, Scen31wgt*Scenario_Wgtd!RS9, Scen32wgt*Scenario_Wgtd!SI9, Scen33wgt*Scenario_Wgtd!SY9, Scen34wgt*Scenario_Wgtd!TO9, Scen35wgt*Scenario_Wgtd!UE9, Scen36wgt*Scenario_Wgtd!UU9, Scen37wgt*Scenario_Wgtd!VK9, Scen38wgt*Scenario_Wgtd!WA9, Scen39wgt*Scenario_Wgtd!WQ9, Scen40wgt*Scenario_Wgtd!XG9) -> 0 | FZ9: =SUM(Scen01wgt*Scenario_Wgtd!H9, Scen02wgt* Scenario_Wgtd!X9, Scen03wgt*Scenario_Wgtd!AN9, Scen04wgt*Scenario_Wgtd!BD9, Scen05wgt*Scenario_Wgtd!BT9, Scen06wgt*Scenario_Wgtd!CJ9,Scen07wgt*Scenario_Wgtd!CZ9, Scen08wgt*Scenario_Wgtd!DP9,Scen09wgt*Scenario_Wgtd!EF9, Scen10wgt*Scenario_Wgtd!EV9,Scen11wgt*Scenario_Wgtd!FL9, Scen12wgt*Scenario_Wgtd!GB9, Scen13wgt*Scenario_Wgtd!GR9, Scen14wgt*Scenario_Wgtd!HH9,Scen15wgt*Scenario_Wgtd!HX9, Scen16wgt*Scenario_Wgtd!IN9, Scen17wgt*Scenario_Wgtd!JD9,Scen18wgt*Scenario_Wgtd!JT9, Scen19wgt*Scenario_Wgtd!KJ9,Scen20wgt*Scenario_Wgtd!KZ9, Scen21wgt*Scenario_Wgtd!LP9, Scen22wgt*Scenario_Wgtd!MF9, Scen23wgt*Scenario_Wgtd!MV9, Scen24wgt*Scenario_Wgtd!NL9, Scen25wgt*Scenario_Wgtd!OB9, Scen26wgt*Scenario_Wgtd!OR9, Scen27wgt*Scenario_Wgtd!PH9, Scen28wgt*Scenario_Wgtd!PX9, Scen29wgt*Scenario_Wgtd!QN9 +Scen30wgt*Scenario_Wgtd!RD9, Scen31wgt*Scenario_Wgtd!RT9, Scen32wgt*Scenario_Wgtd!SJ9, Scen33wgt*Scenario_Wgtd!SZ9, Scen34wgt*Scenario_Wgtd!TP9, Scen35wgt*Scenario_Wgtd!UF9, Scen36wgt*Scenario_Wgtd!UV9, Scen37wgt*Scenario_Wgtd!VL9, Scen38wgt*Scenario_Wgtd!WB9, Scen39wgt*Scenario_Wgtd!WR9, Scen40wgt*Scenario_Wgtd!XH9) -> 0 | GA9: =SUM(Scen01wgt*Scenario_Wgtd!I9, Scen02wgt* Scenario_Wgtd!Y9, Scen03wgt*Scenario_Wgtd!AO9, Scen04wgt*Scenario_Wgtd!BE9, Scen05wgt*Scenario_Wgtd!BU9, Scen06wgt*Scenario_Wgtd!CK9,Scen07wgt*Scenario_Wgtd!DA9, Scen08wgt*Scenario_Wgtd!DQ9,Scen09wgt*Scenario_Wgtd!EG9, Scen10wgt*Scenario_Wgtd!EW9,Scen11wgt*Scenario_Wgtd!FM9, Scen12wgt*Scenario_Wgtd!GC9, Scen13wgt*Scenario_Wgtd!GS9, Scen14wgt*Scenario_Wgtd!HI9,Scen15wgt*Scenario_Wgtd!HY9, Scen16wgt*Scenario_Wgtd!IO9, Scen17wgt*Scenario_Wgtd!JE9,Scen18wgt*Scenario_Wgtd!JU9, Scen19wgt*Scenario_Wgtd!KK9,Scen20wgt*Scenario_Wgtd!LA9, Scen21wgt*Scenario_Wgtd!LQ9, Scen22wgt*Scenario_Wgtd!MG9, Scen23wgt*Scenario_Wgtd!MW9, Scen24wgt*Scenario_Wgtd!NM9, Scen25wgt*Scenario_Wgtd!OC9, Scen26wgt*Scenario_Wgtd!OS9, Scen27wgt*Scenario_Wgtd!PI9, Scen28wgt*Scenario_Wgtd!PY9, Scen29wgt*Scenario_Wgtd!QO9 +Scen30wgt*Scenario_Wgtd!RE9, Scen31wgt*Scenario_Wgtd!RU9, Scen32wgt*Scenario_Wgtd!SK9, Scen33wgt*Scenario_Wgtd!TA9, Scen34wgt*Scenario_Wgtd!TQ9, Scen35wgt*Scenario_Wgtd!UG9, Scen36wgt*Scenario_Wgtd!UW9, Scen37wgt*Scenario_Wgtd!VM9, Scen38wgt*Scenario_Wgtd!WC9, Scen39wgt*Scenario_Wgtd!WS9, Scen40wgt*Scenario_Wgtd!XI9) -> 0 | GB9: =SUM(Scen01wgt*Scenario_Wgtd!J9, Scen02wgt* Scenario_Wgtd!Z9, Scen03wgt*Scenario_Wgtd!AP9, Scen04wgt*Scenario_Wgtd!BF9, Scen05wgt*Scenario_Wgtd!BV9, Scen06wgt*Scenario_Wgtd!CL9,Scen07wgt*Scenario_Wgtd!DB9, Scen08wgt*Scenario_Wgtd!DR9,Scen09wgt*Scenario_Wgtd!EH9, Scen10wgt*Scenario_Wgtd!EX9,Scen11wgt*Scenario_Wgtd!FN9, Scen12wgt*Scenario_Wgtd!GD9, Scen13wgt*Scenario_Wgtd!GT9, Scen14wgt*Scenario_Wgtd!HJ9,Scen15wgt*Scenario_Wgtd!HZ9, Scen16wgt*Scenario_Wgtd!IP9, Scen17wgt*Scenario_Wgtd!JF9,Scen18wgt*Scenario_Wgtd!JV9, Scen19wgt*Scenario_Wgtd!KL9,Scen20wgt*Scenario_Wgtd!LB9, Scen21wgt*Scenario_Wgtd!LR9, Scen22wgt*Scenario_Wgtd!MH9, Scen23wgt*Scenario_Wgtd!MX9, Scen24wgt*Scenario_Wgtd!NN9, Scen25wgt*Scenario_Wgtd!OD9, Scen26wgt*Scenario_Wgtd!OT9, Scen27wgt*Scenario_Wgtd!PJ9, Scen28wgt*Scenario_Wgtd!PZ9, Scen29wgt*Scenario_Wgtd!QP9 +Scen30wgt*Scenario_Wgtd!RF9, Scen31wgt*Scenario_Wgtd!RV9, Scen32wgt*Scenario_Wgtd!SL9, Scen33wgt*Scenario_Wgtd!TB9, Scen34wgt*Scenario_Wgtd!TR9, Scen35wgt*Scenario_Wgtd!UH9, Scen36wgt*Scenario_Wgtd!UX9, Scen37wgt*Scenario_Wgtd!VN9, Scen38wgt*Scenario_Wgtd!WD9, Scen39wgt*Scenario_Wgtd!WT9, Scen40wgt*Scenario_Wgtd!XJ9) -> 73356.95898 | GC9: =SUM(Scen01wgt*Scenario_Wgtd!K9, Scen02wgt* Scenario_Wgtd!AA9, Scen03wgt*Scenario_Wgtd!AQ9, Scen04wgt*Scenario_Wgtd!BG9, Scen05wgt*Scenario_Wgtd!BW9, Scen06wgt*Scenario_Wgtd!CM9,Scen07wgt*Scenario_Wgtd!DC9, Scen08wgt*Scenario_Wgtd!DS9,Scen09wgt*Scenario_Wgtd!EI9, Scen10wgt*Scenario_Wgtd!EY9,Scen11wgt*Scenario_Wgtd!FO9, Scen12wgt*Scenario_Wgtd!GE9, Scen13wgt*Scenario_Wgtd!GU9, Scen14wgt*Scenario_Wgtd!HK9,Scen15wgt*Scenario_Wgtd!IA9, Scen16wgt*Scenario_Wgtd!IQ9, Scen17wgt*Scenario_Wgtd!JG9,Scen18wgt*Scenario_Wgtd!JW9, Scen19wgt*Scenario_Wgtd!KM9,Scen20wgt*Scenario_Wgtd!LC9, Scen21wgt*Scenario_Wgtd!LS9, Scen22wgt*Scenario_Wgtd!MI9, Scen23wgt*Scenario_Wgtd!MY9, Scen24wgt*Scenario_Wgtd!NO9, Scen25wgt*Scenario_Wgtd!OE9, Scen26wgt*Scenario_Wgtd!OU9, Scen27wgt*Scenario_Wgtd!PK9, Scen28wgt*Scenario_Wgtd!QA9, Scen29wgt*Scenario_Wgtd!QQ9 +Scen30wgt*Scenario_Wgtd!RG9, Scen31wgt*Scenario_Wgtd!RW9, Scen32wgt*Scenario_Wgtd!SM9, Scen33wgt*Scenario_Wgtd!TC9, Scen34wgt*Scenario_Wgtd!TS9, Scen35wgt*Scenario_Wgtd!UI9, Scen36wgt*Scenario_Wgtd!UY9, Scen37wgt*Scenario_Wgtd!VO9, Scen38wgt*Scenario_Wgtd!WE9, Scen39wgt*Scenario_Wgtd!WU9, Scen40wgt*Scenario_Wgtd!XK9) -> 1163490.426 | GD9: =SUM(Scen01wgt*Scenario_Wgtd!L9, Scen02wgt* Scenario_Wgtd!AB9, Scen03wgt*Scenario_Wgtd!AR9, Scen04wgt*Scenario_Wgtd!BH9, Scen05wgt*Scenario_Wgtd!BX9, Scen06wgt*Scenario_Wgtd!CN9,Scen07wgt*Scenario_Wgtd!DD9, Scen08wgt*Scenario_Wgtd!DT9,Scen09wgt*Scenario_Wgtd!EJ9, Scen10wgt*Scenario_Wgtd!EZ9,Scen11wgt*Scenario_Wgtd!FP9, Scen12wgt*Scenario_Wgtd!GF9, Scen13wgt*Scenario_Wgtd!GV9, Scen14wgt*Scenario_Wgtd!HL9,Scen15wgt*Scenario_Wgtd!IB9, Scen16wgt*Scenario_Wgtd!IR9, Scen17wgt*Scenario_Wgtd!JH9,Scen18wgt*Scenario_Wgtd!JX9, Scen19wgt*Scenario_Wgtd!KN9,Scen20wgt*Scenario_Wgtd!LD9, Scen21wgt*Scenario_Wgtd!LT9, Scen22wgt*Scenario_Wgtd!MJ9, Scen23wgt*Scenario_Wgtd!MZ9, Scen24wgt*Scenario_Wgtd!NP9, Scen25wgt*Scenario_Wgtd!OF9, Scen26wgt*Scenario_Wgtd!OV9, Scen27wgt*Scenario_Wgtd!PL9, Scen28wgt*Scenario_Wgtd!QB9, Scen29wgt*Scenario_Wgtd!QR9 +Scen30wgt*Scenario_Wgtd!RH9, Scen31wgt*Scenario_Wgtd!RX9, Scen32wgt*Scenario_Wgtd!SN9, Scen33wgt*Scenario_Wgtd!TD9, Scen34wgt*Scenario_Wgtd!TT9, Scen35wgt*Scenario_Wgtd!UJ9, Scen36wgt*Scenario_Wgtd!UZ9, Scen37wgt*Scenario_Wgtd!VP9, Scen38wgt*Scenario_Wgtd!WF9, Scen39wgt*Scenario_Wgtd!WV9, Scen40wgt*Scenario_Wgtd!XL9) -> 398289.5137 | GE9: =SUM(Scen01wgt*Scenario_Wgtd!M9, Scen02wgt* Scenario_Wgtd!AC9, Scen03wgt*Scenario_Wgtd!AS9, Scen04wgt*Scenario_Wgtd!BI9, Scen05wgt*Scenario_Wgtd!BY9, Scen06wgt*Scenario_Wgtd!CO9,Scen07wgt*Scenario_Wgtd!DE9, Scen08wgt*Scenario_Wgtd!DU9,Scen09wgt*Scenario_Wgtd!EK9, Scen10wgt*Scenario_Wgtd!FA9,Scen11wgt*Scenario_Wgtd!FQ9, Scen12wgt*Scenario_Wgtd!GG9, Scen13wgt*Scenario_Wgtd!GW9, Scen14wgt*Scenario_Wgtd!HM9,Scen15wgt*Scenario_Wgtd!IC9, Scen16wgt*Scenario_Wgtd!IS9, Scen17wgt*Scenario_Wgtd!JI9,Scen18wgt*Scenario_Wgtd!JY9, Scen19wgt*Scenario_Wgtd!KO9,Scen20wgt*Scenario_Wgtd!LE9, Scen21wgt*Scenario_Wgtd!LU9, Scen22wgt*Scenario_Wgtd!MK9, Scen23wgt*Scenario_Wgtd!NA9, Scen24wgt*Scenario_Wgtd!NQ9, Scen25wgt*Scenario_Wgtd!OG9, Scen26wgt*Scenario_Wgtd!OW9, Scen27wgt*Scenario_Wgtd!PM9, Scen28wgt*Scenario_Wgtd!QC9, Scen29wgt*Scenario_Wgtd!QS9 +Scen30wgt*Scenario_Wgtd!RI9, Scen31wgt*Scenario_Wgtd!RY9, Scen32wgt*Scenario_Wgtd!SO9, Scen33wgt*Scenario_Wgtd!TE9, Scen34wgt*Scenario_Wgtd!TU9, Scen35wgt*Scenario_Wgtd!UK9, Scen36wgt*Scenario_Wgtd!VA9, Scen37wgt*Scenario_Wgtd!VQ9, Scen38wgt*Scenario_Wgtd!WG9, Scen39wgt*Scenario_Wgtd!WW9, Scen40wgt*Scenario_Wgtd!XM9) -> 0 | GF9: =SUM(Scen01wgt*Scenario_Wgtd!N9, Scen02wgt* Scenario_Wgtd!AD9, Scen03wgt*Scenario_Wgtd!AT9, Scen04wgt*Scenario_Wgtd!BJ9, Scen05wgt*Scenario_Wgtd!BZ9, Scen06wgt*Scenario_Wgtd!CP9,Scen07wgt*Scenario_Wgtd!DF9, Scen08wgt*Scenario_Wgtd!DV9,Scen09wgt*Scenario_Wgtd!EL9, Scen10wgt*Scenario_Wgtd!FB9,Scen11wgt*Scenario_Wgtd!FR9, Scen12wgt*Scenario_Wgtd!GH9, Scen13wgt*Scenario_Wgtd!GX9, Scen14wgt*Scenario_Wgtd!HN9,Scen15wgt*Scenario_Wgtd!ID9, Scen16wgt*Scenario_Wgtd!IT9, Scen17wgt*Scenario_Wgtd!JJ9,Scen18wgt*Scenario_Wgtd!JZ9, Scen19wgt*Scenario_Wgtd!KP9,Scen20wgt*Scenario_Wgtd!LF9, Scen21wgt*Scenario_Wgtd!LV9, Scen22wgt*Scenario_Wgtd!ML9, Scen23wgt*Scenario_Wgtd!NB9, Scen24wgt*Scenario_Wgtd!NR9, Scen25wgt*Scenario_Wgtd!OH9, Scen26wgt*Scenario_Wgtd!OX9, Scen27wgt*Scenario_Wgtd!PN9, Scen28wgt*Scenario_Wgtd!QD9, Scen29wgt*Scenario_Wgtd!QT9 +Scen30wgt*Scenario_Wgtd!RJ9, Scen31wgt*Scenario_Wgtd!RZ9, Scen32wgt*Scenario_Wgtd!SP9, Scen33wgt*Scenario_Wgtd!TF9, Scen34wgt*Scenario_Wgtd!TV9, Scen35wgt*Scenario_Wgtd!UL9, Scen36wgt*Scenario_Wgtd!VB9, Scen37wgt*Scenario_Wgtd!VR9, Scen38wgt*Scenario_Wgtd!WH9, Scen39wgt*Scenario_Wgtd!WX9, Scen40wgt*Scenario_Wgtd!XN9) -> 0 | GG9: =SUM(Scen01wgt*Scenario_Wgtd!O9, Scen02wgt* Scenario_Wgtd!AE9, Scen03wgt*Scenario_Wgtd!AU9, Scen04wgt*Scenario_Wgtd!BK9, Scen05wgt*Scenario_Wgtd!CA9, Scen06wgt*Scenario_Wgtd!CQ9,Scen07wgt*Scenario_Wgtd!DG9, Scen08wgt*Scenario_Wgtd!DW9,Scen09wgt*Scenario_Wgtd!EM9, Scen10wgt*Scenario_Wgtd!FC9,Scen11wgt*Scenario_Wgtd!FS9, Scen12wgt*Scenario_Wgtd!GI9, Scen13wgt*Scenario_Wgtd!GY9, Scen14wgt*Scenario_Wgtd!HO9,Scen15wgt*Scenario_Wgtd!IE9, Scen16wgt*Scenario_Wgtd!IU9, Scen17wgt*Scenario_Wgtd!JK9,Scen18wgt*Scenario_Wgtd!KA9, Scen19wgt*Scenario_Wgtd!KQ9,Scen20wgt*Scenario_Wgtd!LG9, Scen21wgt*Scenario_Wgtd!LW9, Scen22wgt*Scenario_Wgtd!MM9, Scen23wgt*Scenario_Wgtd!NC9, Scen24wgt*Scenario_Wgtd!NS9, Scen25wgt*Scenario_Wgtd!OI9, Scen26wgt*Scenario_Wgtd!OY9, Scen27wgt*Scenario_Wgtd!PO9, Scen28wgt*Scenario_Wgtd!QE9, Scen29wgt*Scenario_Wgtd!QU9 +Scen30wgt*Scenario_Wgtd!RK9, Scen31wgt*Scenario_Wgtd!SA9, Scen32wgt*Scenario_Wgtd!SQ9, Scen33wgt*Scenario_Wgtd!TG9, Scen34wgt*Scenario_Wgtd!TW9, Scen35wgt*Scenario_Wgtd!UM9, Scen36wgt*Scenario_Wgtd!VC9, Scen37wgt*Scenario_Wgtd!VS9, Scen38wgt*Scenario_Wgtd!WI9, Scen39wgt*Scenario_Wgtd!WY9, Scen40wgt*Scenario_Wgtd!XO9) -> 0 | GH9: =SUM(Scen01wgt*Scenario_Wgtd!P9, Scen02wgt* Scenario_Wgtd!AF9, Scen03wgt*Scenario_Wgtd!AV9, Scen04wgt*Scenario_Wgtd!BL9, Scen05wgt*Scenario_Wgtd!CB9, Scen06wgt*Scenario_Wgtd!CR9,Scen07wgt*Scenario_Wgtd!DH9, Scen08wgt*Scenario_Wgtd!DX9,Scen09wgt*Scenario_Wgtd!EN9, Scen10wgt*Scenario_Wgtd!FD9,Scen11wgt*Scenario_Wgtd!FT9, Scen12wgt*Scenario_Wgtd!GJ9, Scen13wgt*Scenario_Wgtd!GZ9, Scen14wgt*Scenario_Wgtd!HP9,Scen15wgt*Scenario_Wgtd!IF9, Scen16wgt*Scenario_Wgtd!IV9, Scen17wgt*Scenario_Wgtd!JL9,Scen18wgt*Scenario_Wgtd!KB9, Scen19wgt*Scenario_Wgtd!KR9,Scen20wgt*Scenario_Wgtd!LH9, Scen21wgt*Scenario_Wgtd!LX9, Scen22wgt*Scenario_Wgtd!MN9, Scen23wgt*Scenario_Wgtd!ND9, Scen24wgt*Scenario_Wgtd!NT9, Scen25wgt*Scenario_Wgtd!OJ9, Scen26wgt*Scenario_Wgtd!OZ9, Scen27wgt*Scenario_Wgtd!PP9, Scen28wgt*Scenario_Wgtd!QF9, Scen29wgt*Scenario_Wgtd!QV9 +Scen30wgt*Scenario_Wgtd!RL9, Scen31wgt*Scenario_Wgtd!SB9, Scen32wgt*Scenario_Wgtd!SR9, Scen33wgt*Scenario_Wgtd!TH9, Scen34wgt*Scenario_Wgtd!TX9, Scen35wgt*Scenario_Wgtd!UN9, Scen36wgt*Scenario_Wgtd!VD9, Scen37wgt*Scenario_Wgtd!VT9, Scen38wgt*Scenario_Wgtd!WJ9, Scen39wgt*Scenario_Wgtd!WZ9, Scen40wgt*Scenario_Wgtd!XP9) -> 0 | GI9: =SUM(Scen01wgt*Scenario_Wgtd!Q9, Scen02wgt* Scenario_Wgtd!AG9, Scen03wgt*Scenario_Wgtd!AW9, Scen04wgt*Scenario_Wgtd!BM9, Scen05wgt*Scenario_Wgtd!CC9, Scen06wgt*Scenario_Wgtd!CS9,Scen07wgt*Scenario_Wgtd!DI9, Scen08wgt*Scenario_Wgtd!DY9,Scen09wgt*Scenario_Wgtd!EO9, Scen10wgt*Scenario_Wgtd!FE9,Scen11wgt*Scenario_Wgtd!FU9, Scen12wgt*Scenario_Wgtd!GK9, Scen13wgt*Scenario_Wgtd!HA9, Scen14wgt*Scenario_Wgtd!HQ9,Scen15wgt*Scenario_Wgtd!IG9, Scen16wgt*Scenario_Wgtd!IW9, Scen17wgt*Scenario_Wgtd!JM9,Scen18wgt*Scenario_Wgtd!KC9, Scen19wgt*Scenario_Wgtd!KS9,Scen20wgt*Scenario_Wgtd!LI9, Scen21wgt*Scenario_Wgtd!LY9, Scen22wgt*Scenario_Wgtd!MO9, Scen23wgt*Scenario_Wgtd!NE9, Scen24wgt*Scenario_Wgtd!NU9, Scen25wgt*Scenario_Wgtd!OK9, Scen26wgt*Scenario_Wgtd!PA9, Scen27wgt*Scenario_Wgtd!PQ9, Scen28wgt*Scenario_Wgtd!QG9, Scen29wgt*Scenario_Wgtd!QW9 +Scen30wgt*Scenario_Wgtd!RM9, Scen31wgt*Scenario_Wgtd!SC9, Scen32wgt*Scenario_Wgtd!SS9, Scen33wgt*Scenario_Wgtd!TI9, Scen34wgt*Scenario_Wgtd!TY9, Scen35wgt*Scenario_Wgtd!UO9, Scen36wgt*Scenario_Wgtd!VE9, Scen37wgt*Scenario_Wgtd!VU9, Scen38wgt*Scenario_Wgtd!WK9, Scen39wgt*Scenario_Wgtd!XA9, Scen40wgt*Scenario_Wgtd!XQ9) -> 0 | GJ9: =SUM(Scen01wgt*Scenario_Wgtd!R9, Scen02wgt* Scenario_Wgtd!AH9, Scen03wgt*Scenario_Wgtd!AX9, Scen04wgt*Scenario_Wgtd!BN9, Scen05wgt*Scenario_Wgtd!CD9, Scen06wgt*Scenario_Wgtd!CT9,Scen07wgt*Scenario_Wgtd!DJ9, Scen08wgt*Scenario_Wgtd!DZ9,Scen09wgt*Scenario_Wgtd!EP9, Scen10wgt*Scenario_Wgtd!FF9,Scen11wgt*Scenario_Wgtd!FV9, Scen12wgt*Scenario_Wgtd!GL9, Scen13wgt*Scenario_Wgtd!HB9, Scen14wgt*Scenario_Wgtd!HR9,Scen15wgt*Scenario_Wgtd!IH9, Scen16wgt*Scenario_Wgtd!IX9, Scen17wgt*Scenario_Wgtd!JN9,Scen18wgt*Scenario_Wgtd!KD9, Scen19wgt*Scenario_Wgtd!KT9,Scen20wgt*Scenario_Wgtd!LJ9, Scen21wgt*Scenario_Wgtd!LZ9, Scen22wgt*Scenario_Wgtd!MP9, Scen23wgt*Scenario_Wgtd!NF9, Scen24wgt*Scenario_Wgtd!NV9, Scen25wgt*Scenario_Wgtd!OL9, Scen26wgt*Scenario_Wgtd!PB9, Scen27wgt*Scenario_Wgtd!PR9, Scen28wgt*Scenario_Wgtd!QH9, Scen29wgt*Scenario_Wgtd!QX9 +Scen30wgt*Scenario_Wgtd!RN9, Scen31wgt*Scenario_Wgtd!SD9, Scen32wgt*Scenario_Wgtd!ST9, Scen33wgt*Scenario_Wgtd!TJ9, Scen34wgt*Scenario_Wgtd!TZ9, Scen35wgt*Scenario_Wgtd!UP9, Scen36wgt*Scenario_Wgtd!VF9, Scen37wgt*Scenario_Wgtd!VV9, Scen38wgt*Scenario_Wgtd!WL9, Scen39wgt*Scenario_Wgtd!XB9, Scen40wgt*Scenario_Wgtd!XR9) -> 0 | GK9: =SUM(Scen01wgt*Scenario_Wgtd!S9, Scen02wgt* Scenario_Wgtd!AI9, Scen03wgt*Scenario_Wgtd!AY9, Scen04wgt*Scenario_Wgtd!BO9, Scen05wgt*Scenario_Wgtd!CE9, Scen06wgt*Scenario_Wgtd!CU9,Scen07wgt*Scenario_Wgtd!DK9, Scen08wgt*Scenario_Wgtd!EA9,Scen09wgt*Scenario_Wgtd!EQ9, Scen10wgt*Scenario_Wgtd!FG9,Scen11wgt*Scenario_Wgtd!FW9, Scen12wgt*Scenario_Wgtd!GM9, Scen13wgt*Scenario_Wgtd!HC9, Scen14wgt*Scenario_Wgtd!HS9,Scen15wgt*Scenario_Wgtd!II9, Scen16wgt*Scenario_Wgtd!IY9, Scen17wgt*Scenario_Wgtd!JO9,Scen18wgt*Scenario_Wgtd!KE9, Scen19wgt*Scenario_Wgtd!KU9,Scen20wgt*Scenario_Wgtd!LK9, Scen21wgt*Scenario_Wgtd!MA9, Scen22wgt*Scenario_Wgtd!MQ9, Scen23wgt*Scenario_Wgtd!NG9, Scen24wgt*Scenario_Wgtd!NW9, Scen25wgt*Scenario_Wgtd!OM9, Scen26wgt*Scenario_Wgtd!PC9, Scen27wgt*Scenario_Wgtd!PS9, Scen28wgt*Scenario_Wgtd!QI9, Scen29wgt*Scenario_Wgtd!QY9 +Scen30wgt*Scenario_Wgtd!RO9, Scen31wgt*Scenario_Wgtd!SE9, Scen32wgt*Scenario_Wgtd!SU9, Scen33wgt*Scenario_Wgtd!TK9, Scen34wgt*Scenario_Wgtd!UA9, Scen35wgt*Scenario_Wgtd!UQ9, Scen36wgt*Scenario_Wgtd!VG9, Scen37wgt*Scenario_Wgtd!VW9, Scen38wgt*Scenario_Wgtd!WM9, Scen39wgt*Scenario_Wgtd!XC9, Scen40wgt*Scenario_Wgtd!XS9) -> 0 | GL9: =SUM(Scen01wgt*Scenario_Wgtd!T9, Scen02wgt* Scenario_Wgtd!AJ9, Scen03wgt*Scenario_Wgtd!AZ9, Scen04wgt*Scenario_Wgtd!BP9, Scen05wgt*Scenario_Wgtd!CF9, Scen06wgt*Scenario_Wgtd!CV9,Scen07wgt*Scenario_Wgtd!DL9, Scen08wgt*Scenario_Wgtd!EB9,Scen09wgt*Scenario_Wgtd!ER9, Scen10wgt*Scenario_Wgtd!FH9,Scen11wgt*Scenario_Wgtd!FX9, Scen12wgt*Scenario_Wgtd!GN9, Scen13wgt*Scenario_Wgtd!HD9, Scen14wgt*Scenario_Wgtd!HT9,Scen15wgt*Scenario_Wgtd!IJ9, Scen16wgt*Scenario_Wgtd!IZ9, Scen17wgt*Scenario_Wgtd!JP9,Scen18wgt*Scenario_Wgtd!KF9, Scen19wgt*Scenario_Wgtd!KV9,Scen20wgt*Scenario_Wgtd!LL9, Scen21wgt*Scenario_Wgtd!MB9, Scen22wgt*Scenario_Wgtd!MR9, Scen23wgt*Scenario_Wgtd!NH9, Scen24wgt*Scenario_Wgtd!NX9, Scen25wgt*Scenario_Wgtd!ON9, Scen26wgt*Scenario_Wgtd!PD9, Scen27wgt*Scenario_Wgtd!PT9, Scen28wgt*Scenario_Wgtd!QJ9, Scen29wgt*Scenario_Wgtd!QZ9 +Scen30wgt*Scenario_Wgtd!RP9, Scen31wgt*Scenario_Wgtd!SF9, Scen32wgt*Scenario_Wgtd!SV9, Scen33wgt*Scenario_Wgtd!TL9, Scen34wgt*Scenario_Wgtd!UB9, Scen35wgt*Scenario_Wgtd!UR9, Scen36wgt*Scenario_Wgtd!VH9, Scen37wgt*Scenario_Wgtd!VX9, Scen38wgt*Scenario_Wgtd!WN9, Scen39wgt*Scenario_Wgtd!XD9, Scen40wgt*Scenario_Wgtd!XT9) -> 0 | GN9: 0 | GO9: 0 | GP9: 0 | GQ9: 0 | GR9: 73519.57184 | GS9: 1172006.187 | GT9: 404760.9609 | GU9: 0 | GV9: 0 | GW9: 0 | GY9: =IF(AND(GY$4=$CX9, Real_or_Nom="Nominal"),SUMPRODUCT($GN9:$GW9, 1/Input_Fixed!$G$10:$P$10)*$EN9, 0) -> 0 | GZ9: =IF(AND(GZ$4=$CX9, Real_or_Nom="Nominal"),SUMPRODUCT($GN9:$GW9, 1/Input_Fixed!$G$10:$P$10)*$EN9, 0) -> 0 | HA9: =IF(AND(HA$4=$CX9, Real_or_Nom="Nominal"),SUMPRODUCT($GN9:$GW9, 1/Input_Fixed!$G$10:$P$10)*$EN9, 0) -> 0 | HB9: =IF(AND(HB$4=$CX9, Real_or_Nom="Nominal"),SUMPRODUCT($GN9:$GW9, 1/Input_Fixed!$G$10:$P$10)*$EN9, 0) -> 0 | HC9: =IF(AND(HC$4=$CX9, Real_or_Nom="Nominal"),SUMPRODUCT($GN9:$GW9, 1/Input_Fixed!$G$10:$P$10)*$EN9, 0) -> 0 | HD9: 0 | HE9: 1650286.72 | HF9: 0 | HG9: 0 | HH9: 0 | HJ9: 0 | HK9: 0 | HL9: 0 | HM9: 0 | HN9: 73356.95898 | HO9: 1163490.426 | HP9: 1561779.939 | HQ9: 1561779.939 | HR9: 1561779.939 | HS9: 1561779.939 | HT9: 0 | HU9: 0 | HV9: 0 | HW9: 0 | HX9: 0 | IA9: 0 | IB9: 0 | IC9: 0 | ID9: 0 | IE9: 0 | IF9: 73356.95898 | IG9: 1163490.426 | IH9: 398289.5137 | II9: 0 | IJ9: 0 | IK9: 0 | IL9: 0 | IM9: 0 | IN9: 0 | IO9: 0 | IP9: 0 | IR9: 0 | IS9: 0 | IT9: 0 | IU9: 0 | IV9: 73519.57184 | IW9: 1172006.187 | IX9: 404760.9609 | IY9: 0 | IZ9: 0 | JA9: 0 | JC9: =IF(AND(JC$4=$CX9, Real_or_Nom="Nominal"),SUMPRODUCT($IR9:$JA9, 1/Input_Fixed!$G$10:$P$10)*$EN9, 0) -> 0 | JD9: =IF(AND(JD$4=$CX9, Real_or_Nom="Nominal"),SUMPRODUCT($IR9:$JA9, 1/Input_Fixed!$G$10:$P$10)*$EN9, 0) -> 0 | JE9: =IF(AND(JE$4=$CX9, Real_or_Nom="Nominal"),SUMPRODUCT($IR9:$JA9, 1/Input_Fixed!$G$10:$P$10)*$EN9, 0) -> 0 | JF9: =IF(AND(JF$4=$CX9, Real_or_Nom="Nominal"),SUMPRODUCT($IR9:$JA9, 1/Input_Fixed!$G$10:$P$10)*$EN9, 0) -> 0 | JG9: =IF(AND(JG$4=$CX9, Real_or_Nom="Nominal"),SUMPRODUCT($IR9:$JA9, 1/Input_Fixed!$G$10:$P$10)*$EN9, 0) -> 0 | JH9: 0 | JI9: 1650286.72 | JJ9: 0 | JK9: 0 | JL9: 0 | JN9: 0 | JO9: 0 | JP9: 0 | JQ9: 0 | JR9: 73356.95898 | JS9: 1163490.426 | JT9: 1561779.939 | JU9: 1561779.939 | JV9: 1561779.939 | JW9: 1561779.939 | JX9: 0 | JY9: 0 | JZ9: 0 | KA9: 0 | KB9: 0 | KD9: 0 | KE9: 0 | KF9: 0 | KG9: 0 | KH9: 0
A10: 8093 | B10: Substation Minor Projects | C10: 0459B | D10: Supply to Molong | E10: Switchbay and busbar extension for connection of second Essential Energy transformer at Molong | F10: PS Connections | I10: 2013 | J10: 1214720 | P10: 32923 | Q10: 807608 | R10: 374190 | T10: 1169284.344 | U10: 45436 | AR10: 495388.365 | AS10: 433140.9259 | AV10: 14272.7 | AW10: 20438.84 | AX10: 7175.8457 | AY10: 1006.6 | AZ10: 243297.067 | BF10: 2016 | CT10: 1 | CU10: 1 | CV10: 0.34363 | CW10: 0.3436299998 | CX10: 2016 | CY10: 0 | CZ10: 0.9625955058 | DA10: 0.03740449416 | DB10: 0 | DC10: 0 | DD10: 0 | DE10: 0 | DF10: 0 | DG10: 0 | DH10: 0 | DI10: 0 | DJ10: 0 | DK10: 0 | DL10: 0 | DM10: 0 | DN10: 0 | DO10: 0 | DP10: 0 | DQ10: 0 | DR10: 0 | DS10: 0 | DT10: 0 | DU10: 0 | DV10: 0 | DW10: 0 | DX10: 0.4078209175 | DY10: 0.3565766624 | DZ10: 0 | EA10: 0 | EB10: 0.01174978264 | EC10: 0.01682596336 | ED10: 0.00590740555 | EE10: 0.0008286681007 | EF10: 0.2002906004 | EG10: 0 | EH10: 0 | EI10: 0 | EJ10: 0 | EK10: 0 | EL10: 1.107051697 | EM10: 1.029296875 | EN10: 1.200091202 | EO10: =IF(Real_or_Nom="Nominal",Input_Fixed!F$10/$EL10, $EM10) -> 1.029296875 | EP10: =IF(Real_or_Nom="Nominal",Input_Fixed!G$10/$EL10, $EM10) -> 1.029296875 | EQ10: =IF(Real_or_Nom="Nominal",Input_Fixed!H$10/$EL10, $EM10) -> 1.029296875 | ER10: =IF(Real_or_Nom="Nominal",Input_Fixed!I$10/$EL10, $EM10) -> 1.029296875 | ES10: =IF(Real_or_Nom="Nominal",Input_Fixed!J$10/$EL10, $EM10) -> 1.029296875 | ET10: =IF(Real_or_Nom="Nominal",Input_Fixed!K$10/$EL10, $EM10) -> 1.029296875 | EU10: =IF(Real_or_Nom="Nominal",Input_Fixed!L$10/$EL10, $EM10) -> 1.029296875 | EV10: =IF(Real_or_Nom="Nominal",Input_Fixed!M$10/$EL10, $EM10) -> 1.029296875 | EW10: =IF(Real_or_Nom="Nominal",Input_Fixed!N$10/$EL10, $EM10) -> 1.029296875 | EX10: =IF(Real_or_Nom="Nominal",Input_Fixed!O$10/$EL10, $EM10) -> 1.029296875 | EY10: =IF(Real_or_Nom="Nominal",Input_Fixed!P$10/$EL10, $EM10) -> 1.029296875 | EZ10: =IF(Real_or_Nom="Nominal",Input_Fixed!Q$10/$EL10, $EM10) -> 1.029296875 | FA10: =IF(Real_or_Nom="Nominal",Input_Fixed!R$10/$EL10, $EM10) -> 1.029296875 | FB10: =IF(Real_or_Nom="Nominal",Input_Fixed!S$10/$EL10, $EM10) -> 1.029296875 | FC10: =IF(Real_or_Nom="Nominal",Input_Fixed!T$10/$EL10, $EM10) -> 1.029296875 | FD10: =IF(Real_or_Nom="Nominal",Input_Fixed!U$10/$EL10, $EM10) -> 1.029296875 | FE10: 1 | FF10: 1 | FG10: 1 | FH10: 1 | FI10: 1 | FJ10: 1.002470691 | FK10: 1.00823731 | FL10: 1.017264057 | FM10: 1.028162506 | FN10: 1.041001342 | FO10: 1.053902364 | FP10: 1.063468465 | FQ10: 1.073203558 | FR10: 1.083111113 | FS10: 1.093194681 | FT10: 1.1034579 | FU10: 1 | FV10: =IF(F10="", "", VLOOKUP(F10,Input_Fixed!$A$105:$C$116,3,FALSE)) -> Network | FW10: =SUM(Scen01wgt*Scenario_Wgtd!E10, Scen02wgt* Scenario_Wgtd!U10, Scen03wgt*Scenario_Wgtd!AK10, Scen04wgt*Scenario_Wgtd!BA10, Scen05wgt*Scenario_Wgtd!BQ10, Scen06wgt*Scenario_Wgtd!CG10,Scen07wgt*Scenario_Wgtd!CW10, Scen08wgt*Scenario_Wgtd!DM10,Scen09wgt*Scenario_Wgtd!EC10, Scen10wgt*Scenario_Wgtd!ES10,Scen11wgt*Scenario_Wgtd!FI10, Scen12wgt*Scenario_Wgtd!FY10, Scen13wgt*Scenario_Wgtd!GO10, Scen14wgt*Scenario_Wgtd!HE10,Scen15wgt*Scenario_Wgtd!HU10, Scen16wgt*Scenario_Wgtd!IK10, Scen17wgt*Scenario_Wgtd!JA10,Scen18wgt*Scenario_Wgtd!JQ10, Scen19wgt*Scenario_Wgtd!KG10,Scen20wgt*Scenario_Wgtd!KW10, Scen21wgt*Scenario_Wgtd!LM10, Scen22wgt*Scenario_Wgtd!MC10, Scen23wgt*Scenario_Wgtd!MS10, Scen24wgt*Scenario_Wgtd!NI10, Scen25wgt*Scenario_Wgtd!NY10, Scen26wgt*Scenario_Wgtd!OO10, Scen27wgt*Scenario_Wgtd!PE10, Scen28wgt*Scenario_Wgtd!PU10, Scen29wgt*Scenario_Wgtd!QK10 +Scen30wgt*Scenario_Wgtd!RA10, Scen31wgt*Scenario_Wgtd!RQ10, Scen32wgt*Scenario_Wgtd!SG10, Scen33wgt*Scenario_Wgtd!SW10, Scen34wgt*Scenario_Wgtd!TM10, Scen35wgt*Scenario_Wgtd!UC10, Scen36wgt*Scenario_Wgtd!US10, Scen37wgt*Scenario_Wgtd!VI10, Scen38wgt*Scenario_Wgtd!VY10, Scen39wgt*Scenario_Wgtd!WO10, Scen40wgt*Scenario_Wgtd!XE10) -> 0 | FX10: =SUM(Scen01wgt*Scenario_Wgtd!F10, Scen02wgt* Scenario_Wgtd!V10, Scen03wgt*Scenario_Wgtd!AL10, Scen04wgt*Scenario_Wgtd!BB10, Scen05wgt*Scenario_Wgtd!BR10, Scen06wgt*Scenario_Wgtd!CH10,Scen07wgt*Scenario_Wgtd!CX10, Scen08wgt*Scenario_Wgtd!DN10,Scen09wgt*Scenario_Wgtd!ED10, Scen10wgt*Scenario_Wgtd!ET10,Scen11wgt*Scenario_Wgtd!FJ10, Scen12wgt*Scenario_Wgtd!FZ10, Scen13wgt*Scenario_Wgtd!GP10, Scen14wgt*Scenario_Wgtd!HF10,Scen15wgt*Scenario_Wgtd!HV10, Scen16wgt*Scenario_Wgtd!IL10, Scen17wgt*Scenario_Wgtd!JB10,Scen18wgt*Scenario_Wgtd!JR10, Scen19wgt*Scenario_Wgtd!KH10,Scen20wgt*Scenario_Wgtd!KX10, Scen21wgt*Scenario_Wgtd!LN10, Scen22wgt*Scenario_Wgtd!MD10, Scen23wgt*Scenario_Wgtd!MT10, Scen24wgt*Scenario_Wgtd!NJ10, Scen25wgt*Scenario_Wgtd!NZ10, Scen26wgt*Scenario_Wgtd!OP10, Scen27wgt*Scenario_Wgtd!PF10, Scen28wgt*Scenario_Wgtd!PV10, Scen29wgt*Scenario_Wgtd!QL10 +Scen30wgt*Scenario_Wgtd!RB10, Scen31wgt*Scenario_Wgtd!RR10, Scen32wgt*Scenario_Wgtd!SH10, Scen33wgt*Scenario_Wgtd!SX10, Scen34wgt*Scenario_Wgtd!TN10, Scen35wgt*Scenario_Wgtd!UD10, Scen36wgt*Scenario_Wgtd!UT10, Scen37wgt*Scenario_Wgtd!VJ10, Scen38wgt*Scenario_Wgtd!VZ10, Scen39wgt*Scenario_Wgtd!WP10, Scen40wgt*Scenario_Wgtd!XF10) -> 0 | FY10: =SUM(Scen01wgt*Scenario_Wgtd!G10, Scen02wgt* Scenario_Wgtd!W10, Scen03wgt*Scenario_Wgtd!AM10, Scen04wgt*Scenario_Wgtd!BC10, Scen05wgt*Scenario_Wgtd!BS10, Scen06wgt*Scenario_Wgtd!CI10,Scen07wgt*Scenario_Wgtd!CY10, Scen08wgt*Scenario_Wgtd!DO10,Scen09wgt*Scenario_Wgtd!EE10, Scen10wgt*Scenario_Wgtd!EU10,Scen11wgt*Scenario_Wgtd!FK10, Scen12wgt*Scenario_Wgtd!GA10, Scen13wgt*Scenario_Wgtd!GQ10, Scen14wgt*Scenario_Wgtd!HG10,Scen15wgt*Scenario_Wgtd!HW10, Scen16wgt*Scenario_Wgtd!IM10, Scen17wgt*Scenario_Wgtd!JC10,Scen18wgt*Scenario_Wgtd!JS10, Scen19wgt*Scenario_Wgtd!KI10,Scen20wgt*Scenario_Wgtd!KY10, Scen21wgt*Scenario_Wgtd!LO10, Scen22wgt*Scenario_Wgtd!ME10, Scen23wgt*Scenario_Wgtd!MU10, Scen24wgt*Scenario_Wgtd!NK10, Scen25wgt*Scenario_Wgtd!OA10, Scen26wgt*Scenario_Wgtd!OQ10, Scen27wgt*Scenario_Wgtd!PG10, Scen28wgt*Scenario_Wgtd!PW10, Scen29wgt*Scenario_Wgtd!QM10 +Scen30wgt*Scenario_Wgtd!RC10, Scen31wgt*Scenario_Wgtd!RS10, Scen32wgt*Scenario_Wgtd!SI10, Scen33wgt*Scenario_Wgtd!SY10, Scen34wgt*Scenario_Wgtd!TO10, Scen35wgt*Scenario_Wgtd!UE10, Scen36wgt*Scenario_Wgtd!UU10, Scen37wgt*Scenario_Wgtd!VK10, Scen38wgt*Scenario_Wgtd!WA10, Scen39wgt*Scenario_Wgtd!WQ10, Scen40wgt*Scenario_Wgtd!XG10) -> 0 | FZ10: =SUM(Scen01wgt*Scenario_Wgtd!H10, Scen02wgt* Scenario_Wgtd!X10, Scen03wgt*Scenario_Wgtd!AN10, Scen04wgt*Scenario_Wgtd!BD10, Scen05wgt*Scenario_Wgtd!BT10, Scen06wgt*Scenario_Wgtd!CJ10,Scen07wgt*Scenario_Wgtd!CZ10, Scen08wgt*Scenario_Wgtd!DP10,Scen09wgt*Scenario_Wgtd!EF10, Scen10wgt*Scenario_Wgtd!EV10,Scen11wgt*Scenario_Wgtd!FL10, Scen12wgt*Scenario_Wgtd!GB10, Scen13wgt*Scenario_Wgtd!GR10, Scen14wgt*Scenario_Wgtd!HH10,Scen15wgt*Scenario_Wgtd!HX10, Scen16wgt*Scenario_Wgtd!IN10, Scen17wgt*Scenario_Wgtd!JD10,Scen18wgt*Scenario_Wgtd!JT10, Scen19wgt*Scenario_Wgtd!KJ10,Scen20wgt*Scenario_Wgtd!KZ10, Scen21wgt*Scenario_Wgtd!LP10, Scen22wgt*Scenario_Wgtd!MF10, Scen23wgt*Scenario_Wgtd!MV10, Scen24wgt*Scenario_Wgtd!NL10, Scen25wgt*Scenario_Wgtd!OB10, Scen26wgt*Scenario_Wgtd!OR10, Scen27wgt*Scenario_Wgtd!PH10, Scen28wgt*Scenario_Wgtd!PX10, Scen29wgt*Scenario_Wgtd!QN10 +Scen30wgt*Scenario_Wgtd!RD10, Scen31wgt*Scenario_Wgtd!RT10, Scen32wgt*Scenario_Wgtd!SJ10, Scen33wgt*Scenario_Wgtd!SZ10, Scen34wgt*Scenario_Wgtd!TP10, Scen35wgt*Scenario_Wgtd!UF10, Scen36wgt*Scenario_Wgtd!UV10, Scen37wgt*Scenario_Wgtd!VL10, Scen38wgt*Scenario_Wgtd!WB10, Scen39wgt*Scenario_Wgtd!WR10, Scen40wgt*Scenario_Wgtd!XH10) -> 0 | GA10: =SUM(Scen01wgt*Scenario_Wgtd!I10, Scen02wgt* Scenario_Wgtd!Y10, Scen03wgt*Scenario_Wgtd!AO10, Scen04wgt*Scenario_Wgtd!BE10, Scen05wgt*Scenario_Wgtd!BU10, Scen06wgt*Scenario_Wgtd!CK10,Scen07wgt*Scenario_Wgtd!DA10, Scen08wgt*Scenario_Wgtd!DQ10,Scen09wgt*Scenario_Wgtd!EG10, Scen10wgt*Scenario_Wgtd!EW10,Scen11wgt*Scenario_Wgtd!FM10, Scen12wgt*Scenario_Wgtd!GC10, Scen13wgt*Scenario_Wgtd!GS10, Scen14wgt*Scenario_Wgtd!HI10,Scen15wgt*Scenario_Wgtd!HY10, Scen16wgt*Scenario_Wgtd!IO10, Scen17wgt*Scenario_Wgtd!JE10,Scen18wgt*Scenario_Wgtd!JU10, Scen19wgt*Scenario_Wgtd!KK10,Scen20wgt*Scenario_Wgtd!LA10, Scen21wgt*Scenario_Wgtd!LQ10, Scen22wgt*Scenario_Wgtd!MG10, Scen23wgt*Scenario_Wgtd!MW10, Scen24wgt*Scenario_Wgtd!NM10, Scen25wgt*Scenario_Wgtd!OC10, Scen26wgt*Scenario_Wgtd!OS10, Scen27wgt*Scenario_Wgtd!PI10, Scen28wgt*Scenario_Wgtd!PY10, Scen29wgt*Scenario_Wgtd!QO10 +Scen30wgt*Scenario_Wgtd!RE10, Scen31wgt*Scenario_Wgtd!RU10, Scen32wgt*Scenario_Wgtd!SK10, Scen33wgt*Scenario_Wgtd!TA10, Scen34wgt*Scenario_Wgtd!TQ10, Scen35wgt*Scenario_Wgtd!UG10, Scen36wgt*Scenario_Wgtd!UW10, Scen37wgt*Scenario_Wgtd!VM10, Scen38wgt*Scenario_Wgtd!WC10, Scen39wgt*Scenario_Wgtd!WS10, Scen40wgt*Scenario_Wgtd!XI10) -> 0 | GB10: =SUM(Scen01wgt*Scenario_Wgtd!J10, Scen02wgt* Scenario_Wgtd!Z10, Scen03wgt*Scenario_Wgtd!AP10, Scen04wgt*Scenario_Wgtd!BF10, Scen05wgt*Scenario_Wgtd!BV10, Scen06wgt*Scenario_Wgtd!CL10,Scen07wgt*Scenario_Wgtd!DB10, Scen08wgt*Scenario_Wgtd!DR10,Scen09wgt*Scenario_Wgtd!EH10, Scen10wgt*Scenario_Wgtd!EX10,Scen11wgt*Scenario_Wgtd!FN10, Scen12wgt*Scenario_Wgtd!GD10, Scen13wgt*Scenario_Wgtd!GT10, Scen14wgt*Scenario_Wgtd!HJ10,Scen15wgt*Scenario_Wgtd!HZ10, Scen16wgt*Scenario_Wgtd!IP10, Scen17wgt*Scenario_Wgtd!JF10,Scen18wgt*Scenario_Wgtd!JV10, Scen19wgt*Scenario_Wgtd!KL10,Scen20wgt*Scenario_Wgtd!LB10, Scen21wgt*Scenario_Wgtd!LR10, Scen22wgt*Scenario_Wgtd!MH10, Scen23wgt*Scenario_Wgtd!MX10, Scen24wgt*Scenario_Wgtd!NN10, Scen25wgt*Scenario_Wgtd!OD10, Scen26wgt*Scenario_Wgtd!OT10, Scen27wgt*Scenario_Wgtd!PJ10, Scen28wgt*Scenario_Wgtd!PZ10, Scen29wgt*Scenario_Wgtd!QP10 +Scen30wgt*Scenario_Wgtd!RF10, Scen31wgt*Scenario_Wgtd!RV10, Scen32wgt*Scenario_Wgtd!SL10, Scen33wgt*Scenario_Wgtd!TB10, Scen34wgt*Scenario_Wgtd!TR10, Scen35wgt*Scenario_Wgtd!UH10, Scen36wgt*Scenario_Wgtd!UX10, Scen37wgt*Scenario_Wgtd!VN10, Scen38wgt*Scenario_Wgtd!WD10, Scen39wgt*Scenario_Wgtd!WT10, Scen40wgt*Scenario_Wgtd!XJ10) -> 33887.54102 | GC10: =SUM(Scen01wgt*Scenario_Wgtd!K10, Scen02wgt* Scenario_Wgtd!AA10, Scen03wgt*Scenario_Wgtd!AQ10, Scen04wgt*Scenario_Wgtd!BG10, Scen05wgt*Scenario_Wgtd!BW10, Scen06wgt*Scenario_Wgtd!CM10,Scen07wgt*Scenario_Wgtd!DC10, Scen08wgt*Scenario_Wgtd!DS10,Scen09wgt*Scenario_Wgtd!EI10, Scen10wgt*Scenario_Wgtd!EY10,Scen11wgt*Scenario_Wgtd!FO10, Scen12wgt*Scenario_Wgtd!GE10, Scen13wgt*Scenario_Wgtd!GU10, Scen14wgt*Scenario_Wgtd!HK10,Scen15wgt*Scenario_Wgtd!IA10, Scen16wgt*Scenario_Wgtd!IQ10, Scen17wgt*Scenario_Wgtd!JG10,Scen18wgt*Scenario_Wgtd!JW10, Scen19wgt*Scenario_Wgtd!KM10,Scen20wgt*Scenario_Wgtd!LC10, Scen21wgt*Scenario_Wgtd!LS10, Scen22wgt*Scenario_Wgtd!MI10, Scen23wgt*Scenario_Wgtd!MY10, Scen24wgt*Scenario_Wgtd!NO10, Scen25wgt*Scenario_Wgtd!OE10, Scen26wgt*Scenario_Wgtd!OU10, Scen27wgt*Scenario_Wgtd!PK10, Scen28wgt*Scenario_Wgtd!QA10, Scen29wgt*Scenario_Wgtd!QQ10 +Scen30wgt*Scenario_Wgtd!RG10, Scen31wgt*Scenario_Wgtd!RW10, Scen32wgt*Scenario_Wgtd!SM10, Scen33wgt*Scenario_Wgtd!TC10, Scen34wgt*Scenario_Wgtd!TS10, Scen35wgt*Scenario_Wgtd!UI10, Scen36wgt*Scenario_Wgtd!UY10, Scen37wgt*Scenario_Wgtd!VO10, Scen38wgt*Scenario_Wgtd!WE10, Scen39wgt*Scenario_Wgtd!WU10, Scen40wgt*Scenario_Wgtd!XK10) -> 831268.3906 | GD10: =SUM(Scen01wgt*Scenario_Wgtd!L10, Scen02wgt* Scenario_Wgtd!AB10, Scen03wgt*Scenario_Wgtd!AR10, Scen04wgt*Scenario_Wgtd!BH10, Scen05wgt*Scenario_Wgtd!BX10, Scen06wgt*Scenario_Wgtd!CN10,Scen07wgt*Scenario_Wgtd!DD10, Scen08wgt*Scenario_Wgtd!DT10,Scen09wgt*Scenario_Wgtd!EJ10, Scen10wgt*Scenario_Wgtd!EZ10,Scen11wgt*Scenario_Wgtd!FP10, Scen12wgt*Scenario_Wgtd!GF10, Scen13wgt*Scenario_Wgtd!GV10, Scen14wgt*Scenario_Wgtd!HL10,Scen15wgt*Scenario_Wgtd!IB10, Scen16wgt*Scenario_Wgtd!IR10, Scen17wgt*Scenario_Wgtd!JH10,Scen18wgt*Scenario_Wgtd!JX10, Scen19wgt*Scenario_Wgtd!KN10,Scen20wgt*Scenario_Wgtd!LD10, Scen21wgt*Scenario_Wgtd!LT10, Scen22wgt*Scenario_Wgtd!MJ10, Scen23wgt*Scenario_Wgtd!MZ10, Scen24wgt*Scenario_Wgtd!NP10, Scen25wgt*Scenario_Wgtd!OF10, Scen26wgt*Scenario_Wgtd!OV10, Scen27wgt*Scenario_Wgtd!PL10, Scen28wgt*Scenario_Wgtd!QB10, Scen29wgt*Scenario_Wgtd!QR10 +Scen30wgt*Scenario_Wgtd!RH10, Scen31wgt*Scenario_Wgtd!RX10, Scen32wgt*Scenario_Wgtd!SN10, Scen33wgt*Scenario_Wgtd!TD10, Scen34wgt*Scenario_Wgtd!TT10, Scen35wgt*Scenario_Wgtd!UJ10, Scen36wgt*Scenario_Wgtd!UZ10, Scen37wgt*Scenario_Wgtd!VP10, Scen38wgt*Scenario_Wgtd!WF10, Scen39wgt*Scenario_Wgtd!WV10, Scen40wgt*Scenario_Wgtd!XL10) -> 385152.5977 | GE10: =SUM(Scen01wgt*Scenario_Wgtd!M10, Scen02wgt* Scenario_Wgtd!AC10, Scen03wgt*Scenario_Wgtd!AS10, Scen04wgt*Scenario_Wgtd!BI10, Scen05wgt*Scenario_Wgtd!BY10, Scen06wgt*Scenario_Wgtd!CO10,Scen07wgt*Scenario_Wgtd!DE10, Scen08wgt*Scenario_Wgtd!DU10,Scen09wgt*Scenario_Wgtd!EK10, Scen10wgt*Scenario_Wgtd!FA10,Scen11wgt*Scenario_Wgtd!FQ10, Scen12wgt*Scenario_Wgtd!GG10, Scen13wgt*Scenario_Wgtd!GW10, Scen14wgt*Scenario_Wgtd!HM10,Scen15wgt*Scenario_Wgtd!IC10, Scen16wgt*Scenario_Wgtd!IS10, Scen17wgt*Scenario_Wgtd!JI10,Scen18wgt*Scenario_Wgtd!JY10, Scen19wgt*Scenario_Wgtd!KO10,Scen20wgt*Scenario_Wgtd!LE10, Scen21wgt*Scenario_Wgtd!LU10, Scen22wgt*Scenario_Wgtd!MK10, Scen23wgt*Scenario_Wgtd!NA10, Scen24wgt*Scenario_Wgtd!NQ10, Scen25wgt*Scenario_Wgtd!OG10, Scen26wgt*Scenario_Wgtd!OW10, Scen27wgt*Scenario_Wgtd!PM10, Scen28wgt*Scenario_Wgtd!QC10, Scen29wgt*Scenario_Wgtd!QS10 +Scen30wgt*Scenario_Wgtd!RI10, Scen31wgt*Scenario_Wgtd!RY10, Scen32wgt*Scenario_Wgtd!SO10, Scen33wgt*Scenario_Wgtd!TE10, Scen34wgt*Scenario_Wgtd!TU10, Scen35wgt*Scenario_Wgtd!UK10, Scen36wgt*Scenario_Wgtd!VA10, Scen37wgt*Scenario_Wgtd!VQ10, Scen38wgt*Scenario_Wgtd!WG10, Scen39wgt*Scenario_Wgtd!WW10, Scen40wgt*Scenario_Wgtd!XM10) -> 0 | GF10: =SUM(Scen01wgt*Scenario_Wgtd!N10, Scen02wgt* Scenario_Wgtd!AD10, Scen03wgt*Scenario_Wgtd!AT10, Scen04wgt*Scenario_Wgtd!BJ10, Scen05wgt*Scenario_Wgtd!BZ10, Scen06wgt*Scenario_Wgtd!CP10,Scen07wgt*Scenario_Wgtd!DF10, Scen08wgt*Scenario_Wgtd!DV10,Scen09wgt*Scenario_Wgtd!EL10, Scen10wgt*Scenario_Wgtd!FB10,Scen11wgt*Scenario_Wgtd!FR10, Scen12wgt*Scenario_Wgtd!GH10, Scen13wgt*Scenario_Wgtd!GX10, Scen14wgt*Scenario_Wgtd!HN10,Scen15wgt*Scenario_Wgtd!ID10, Scen16wgt*Scenario_Wgtd!IT10, Scen17wgt*Scenario_Wgtd!JJ10,Scen18wgt*Scenario_Wgtd!JZ10, Scen19wgt*Scenario_Wgtd!KP10,Scen20wgt*Scenario_Wgtd!LF10, Scen21wgt*Scenario_Wgtd!LV10, Scen22wgt*Scenario_Wgtd!ML10, Scen23wgt*Scenario_Wgtd!NB10, Scen24wgt*Scenario_Wgtd!NR10, Scen25wgt*Scenario_Wgtd!OH10, Scen26wgt*Scenario_Wgtd!OX10, Scen27wgt*Scenario_Wgtd!PN10, Scen28wgt*Scenario_Wgtd!QD10, Scen29wgt*Scenario_Wgtd!QT10 +Scen30wgt*Scenario_Wgtd!RJ10, Scen31wgt*Scenario_Wgtd!RZ10, Scen32wgt*Scenario_Wgtd!SP10, Scen33wgt*Scenario_Wgtd!TF10, Scen34wgt*Scenario_Wgtd!TV10, Scen35wgt*Scenario_Wgtd!UL10, Scen36wgt*Scenario_Wgtd!VB10, Scen37wgt*Scenario_Wgtd!VR10, Scen38wgt*Scenario_Wgtd!WH10, Scen39wgt*Scenario_Wgtd!WX10, Scen40wgt*Scenario_Wgtd!XN10) -> 0 | GG10: =SUM(Scen01wgt*Scenario_Wgtd!O10, Scen02wgt* Scenario_Wgtd!AE10, Scen03wgt*Scenario_Wgtd!AU10, Scen04wgt*Scenario_Wgtd!BK10, Scen05wgt*Scenario_Wgtd!CA10, Scen06wgt*Scenario_Wgtd!CQ10,Scen07wgt*Scenario_Wgtd!DG10, Scen08wgt*Scenario_Wgtd!DW10,Scen09wgt*Scenario_Wgtd!EM10, Scen10wgt*Scenario_Wgtd!FC10,Scen11wgt*Scenario_Wgtd!FS10, Scen12wgt*Scenario_Wgtd!GI10, Scen13wgt*Scenario_Wgtd!GY10, Scen14wgt*Scenario_Wgtd!HO10,Scen15wgt*Scenario_Wgtd!IE10, Scen16wgt*Scenario_Wgtd!IU10, Scen17wgt*Scenario_Wgtd!JK10,Scen18wgt*Scenario_Wgtd!KA10, Scen19wgt*Scenario_Wgtd!KQ10,Scen20wgt*Scenario_Wgtd!LG10, Scen21wgt*Scenario_Wgtd!LW10, Scen22wgt*Scenario_Wgtd!MM10, Scen23wgt*Scenario_Wgtd!NC10, Scen24wgt*Scenario_Wgtd!NS10, Scen25wgt*Scenario_Wgtd!OI10, Scen26wgt*Scenario_Wgtd!OY10, Scen27wgt*Scenario_Wgtd!PO10, Scen28wgt*Scenario_Wgtd!QE10, Scen29wgt*Scenario_Wgtd!QU10 +Scen30wgt*Scenario_Wgtd!RK10, Scen31wgt*Scenario_Wgtd!SA10, Scen32wgt*Scenario_Wgtd!SQ10, Scen33wgt*Scenario_Wgtd!TG10, Scen34wgt*Scenario_Wgtd!TW10, Scen35wgt*Scenario_Wgtd!UM10, Scen36wgt*Scenario_Wgtd!VC10, Scen37wgt*Scenario_Wgtd!VS10, Scen38wgt*Scenario_Wgtd!WI10, Scen39wgt*Scenario_Wgtd!WY10, Scen40wgt*Scenario_Wgtd!XO10) -> 0 | GH10: =SUM(Scen01wgt*Scenario_Wgtd!P10, Scen02wgt* Scenario_Wgtd!AF10, Scen03wgt*Scenario_Wgtd!AV10, Scen04wgt*Scenario_Wgtd!BL10, Scen05wgt*Scenario_Wgtd!CB10, Scen06wgt*Scenario_Wgtd!CR10,Scen07wgt*Scenario_Wgtd!DH10, Scen08wgt*Scenario_Wgtd!DX10,Scen09wgt*Scenario_Wgtd!EN10, Scen10wgt*Scenario_Wgtd!FD10,Scen11wgt*Scenario_Wgtd!FT10, Scen12wgt*Scenario_Wgtd!GJ10, Scen13wgt*Scenario_Wgtd!GZ10, Scen14wgt*Scenario_Wgtd!HP10,Scen15wgt*Scenario_Wgtd!IF10, Scen16wgt*Scenario_Wgtd!IV10, Scen17wgt*Scenario_Wgtd!JL10,Scen18wgt*Scenario_Wgtd!KB10, Scen19wgt*Scenario_Wgtd!KR10,Scen20wgt*Scenario_Wgtd!LH10, Scen21wgt*Scenario_Wgtd!LX10, Scen22wgt*Scenario_Wgtd!MN10, Scen23wgt*Scenario_Wgtd!ND10, Scen24wgt*Scenario_Wgtd!NT10, Scen25wgt*Scenario_Wgtd!OJ10, Scen26wgt*Scenario_Wgtd!OZ10, Scen27wgt*Scenario_Wgtd!PP10, Scen28wgt*Scenario_Wgtd!QF10, Scen29wgt*Scenario_Wgtd!QV10 +Scen30wgt*Scenario_Wgtd!RL10, Scen31wgt*Scenario_Wgtd!SB10, Scen32wgt*Scenario_Wgtd!SR10, Scen33wgt*Scenario_Wgtd!TH10, Scen34wgt*Scenario_Wgtd!TX10, Scen35wgt*Scenario_Wgtd!UN10, Scen36wgt*Scenario_Wgtd!VD10, Scen37wgt*Scenario_Wgtd!VT10, Scen38wgt*Scenario_Wgtd!WJ10, Scen39wgt*Scenario_Wgtd!WZ10, Scen40wgt*Scenario_Wgtd!XP10) -> 0 | GI10: =SUM(Scen01wgt*Scenario_Wgtd!Q10, Scen02wgt* Scenario_Wgtd!AG10, Scen03wgt*Scenario_Wgtd!AW10, Scen04wgt*Scenario_Wgtd!BM10, Scen05wgt*Scenario_Wgtd!CC10, Scen06wgt*Scenario_Wgtd!CS10,Scen07wgt*Scenario_Wgtd!DI10, Scen08wgt*Scenario_Wgtd!DY10,Scen09wgt*Scenario_Wgtd!EO10, Scen10wgt*Scenario_Wgtd!FE10,Scen11wgt*Scenario_Wgtd!FU10, Scen12wgt*Scenario_Wgtd!GK10, Scen13wgt*Scenario_Wgtd!HA10, Scen14wgt*Scenario_Wgtd!HQ10,Scen15wgt*Scenario_Wgtd!IG10, Scen16wgt*Scenario_Wgtd!IW10, Scen17wgt*Scenario_Wgtd!JM10,Scen18wgt*Scenario_Wgtd!KC10, Scen19wgt*Scenario_Wgtd!KS10,Scen20wgt*Scenario_Wgtd!LI10, Scen21wgt*Scenario_Wgtd!LY10, Scen22wgt*Scenario_Wgtd!MO10, Scen23wgt*Scenario_Wgtd!NE10, Scen24wgt*Scenario_Wgtd!NU10, Scen25wgt*Scenario_Wgtd!OK10, Scen26wgt*Scenario_Wgtd!PA10, Scen27wgt*Scenario_Wgtd!PQ10, Scen28wgt*Scenario_Wgtd!QG10, Scen29wgt*Scenario_Wgtd!QW10 +Scen30wgt*Scenario_Wgtd!RM10, Scen31wgt*Scenario_Wgtd!SC10, Scen32wgt*Scenario_Wgtd!SS10, Scen33wgt*Scenario_Wgtd!TI10, Scen34wgt*Scenario_Wgtd!TY10, Scen35wgt*Scenario_Wgtd!UO10, Scen36wgt*Scenario_Wgtd!VE10, Scen37wgt*Scenario_Wgtd!VU10, Scen38wgt*Scenario_Wgtd!WK10, Scen39wgt*Scenario_Wgtd!XA10, Scen40wgt*Scenario_Wgtd!XQ10) -> 0 | GJ10: =SUM(Scen01wgt*Scenario_Wgtd!R10, Scen02wgt* Scenario_Wgtd!AH10, Scen03wgt*Scenario_Wgtd!AX10, Scen04wgt*Scenario_Wgtd!BN10, Scen05wgt*Scenario_Wgtd!CD10, Scen06wgt*Scenario_Wgtd!CT10,Scen07wgt*Scenario_Wgtd!DJ10, Scen08wgt*Scenario_Wgtd!DZ10,Scen09wgt*Scenario_Wgtd!EP10, Scen10wgt*Scenario_Wgtd!FF10,Scen11wgt*Scenario_Wgtd!FV10, Scen12wgt*Scenario_Wgtd!GL10, Scen13wgt*Scenario_Wgtd!HB10, Scen14wgt*Scenario_Wgtd!HR10,Scen15wgt*Scenario_Wgtd!IH10, Scen16wgt*Scenario_Wgtd!IX10, Scen17wgt*Scenario_Wgtd!JN10,Scen18wgt*Scenario_Wgtd!KD10, Scen19wgt*Scenario_Wgtd!KT10,Scen20wgt*Scenario_Wgtd!LJ10, Scen21wgt*Scenario_Wgtd!LZ10, Scen22wgt*Scenario_Wgtd!MP10, Scen23wgt*Scenario_Wgtd!NF10, Scen24wgt*Scenario_Wgtd!NV10, Scen25wgt*Scenario_Wgtd!OL10, Scen26wgt*Scenario_Wgtd!PB10, Scen27wgt*Scenario_Wgtd!PR10, Scen28wgt*Scenario_Wgtd!QH10, Scen29wgt*Scenario_Wgtd!QX10 +Scen30wgt*Scenario_Wgtd!RN10, Scen31wgt*Scenario_Wgtd!SD10, Scen32wgt*Scenario_Wgtd!ST10, Scen33wgt*Scenario_Wgtd!TJ10, Scen34wgt*Scenario_Wgtd!TZ10, Scen35wgt*Scenario_Wgtd!UP10, Scen36wgt*Scenario_Wgtd!VF10, Scen37wgt*Scenario_Wgtd!VV10, Scen38wgt*Scenario_Wgtd!WL10, Scen39wgt*Scenario_Wgtd!XB10, Scen40wgt*Scenario_Wgtd!XR10) -> 0 | GK10: =SUM(Scen01wgt*Scenario_Wgtd!S10, Scen02wgt* Scenario_Wgtd!AI10, Scen03wgt*Scenario_Wgtd!AY10, Scen04wgt*Scenario_Wgtd!BO10, Scen05wgt*Scenario_Wgtd!CE10, Scen06wgt*Scenario_Wgtd!CU10,Scen07wgt*Scenario_Wgtd!DK10, Scen08wgt*Scenario_Wgtd!EA10,Scen09wgt*Scenario_Wgtd!EQ10, Scen10wgt*Scenario_Wgtd!FG10,Scen11wgt*Scenario_Wgtd!FW10, Scen12wgt*Scenario_Wgtd!GM10, Scen13wgt*Scenario_Wgtd!HC10, Scen14wgt*Scenario_Wgtd!HS10,Scen15wgt*Scenario_Wgtd!II10, Scen16wgt*Scenario_Wgtd!IY10, Scen17wgt*Scenario_Wgtd!JO10,Scen18wgt*Scenario_Wgtd!KE10, Scen19wgt*Scenario_Wgtd!KU10,Scen20wgt*Scenario_Wgtd!LK10, Scen21wgt*Scenario_Wgtd!MA10, Scen22wgt*Scenario_Wgtd!MQ10, Scen23wgt*Scenario_Wgtd!NG10, Scen24wgt*Scenario_Wgtd!NW10, Scen25wgt*Scenario_Wgtd!OM10, Scen26wgt*Scenario_Wgtd!PC10, Scen27wgt*Scenario_Wgtd!PS10, Scen28wgt*Scenario_Wgtd!QI10, Scen29wgt*Scenario_Wgtd!QY10 +Scen30wgt*Scenario_Wgtd!RO10, Scen31wgt*Scenario_Wgtd!SE10, Scen32wgt*Scenario_Wgtd!SU10, Scen33wgt*Scenario_Wgtd!TK10, Scen34wgt*Scenario_Wgtd!UA10, Scen35wgt*Scenario_Wgtd!UQ10, Scen36wgt*Scenario_Wgtd!VG10, Scen37wgt*Scenario_Wgtd!VW10, Scen38wgt*Scenario_Wgtd!WM10, Scen39wgt*Scenario_Wgtd!XC10, Scen40wgt*Scenario_Wgtd!XS10) -> 0 | GL10: =SUM(Scen01wgt*Scenario_Wgtd!T10, Scen02wgt* Scenario_Wgtd!AJ10, Scen03wgt*Scenario_Wgtd!AZ10, Scen04wgt*Scenario_Wgtd!BP10, Scen05wgt*Scenario_Wgtd!CF10, Scen06wgt*Scenario_Wgtd!CV10,Scen07wgt*Scenario_Wgtd!DL10, Scen08wgt*Scenario_Wgtd!EB10,Scen09wgt*Scenario_Wgtd!ER10, Scen10wgt*Scenario_Wgtd!FH10,Scen11wgt*Scenario_Wgtd!FX10, Scen12wgt*Scenario_Wgtd!GN10, Scen13wgt*Scenario_Wgtd!HD10, Scen14wgt*Scenario_Wgtd!HT10,Scen15wgt*Scenario_Wgtd!IJ10, Scen16wgt*Scenario_Wgtd!IZ10, Scen17wgt*Scenario_Wgtd!JP10,Scen18wgt*Scenario_Wgtd!KF10, Scen19wgt*Scenario_Wgtd!KV10,Scen20wgt*Scenario_Wgtd!LL10, Scen21wgt*Scenario_Wgtd!MB10, Scen22wgt*Scenario_Wgtd!MR10, Scen23wgt*Scenario_Wgtd!NH10, Scen24wgt*Scenario_Wgtd!NX10, Scen25wgt*Scenario_Wgtd!ON10, Scen26wgt*Scenario_Wgtd!PD10, Scen27wgt*Scenario_Wgtd!PT10, Scen28wgt*Scenario_Wgtd!QJ10, Scen29wgt*Scenario_Wgtd!QZ10 +Scen30wgt*Scenario_Wgtd!RP10, Scen31wgt*Scenario_Wgtd!SF10, Scen32wgt*Scenario_Wgtd!SV10, Scen33wgt*Scenario_Wgtd!TL10, Scen34wgt*Scenario_Wgtd!UB10, Scen35wgt*Scenario_Wgtd!UR10, Scen36wgt*Scenario_Wgtd!VH10, Scen37wgt*Scenario_Wgtd!VX10, Scen38wgt*Scenario_Wgtd!WN10, Scen39wgt*Scenario_Wgtd!XD10, Scen40wgt*Scenario_Wgtd!XT10) -> 0 | GN10: 0 | GO10: 0 | GP10: 0 | GQ10: 0 | GR10: 33971.26668 | GS10: 838115.8063 | GT10: 391801.894 | GU10: 0 | GV10: 0 | GW10: 0 | GY10: =IF(AND(GY$4=$CX10, Real_or_Nom="Nominal"),SUMPRODUCT($GN10:$GW10, 1/Input_Fixed!$G$10:$P$10)*$EN10, 0) -> 0 | GZ10: =IF(AND(GZ$4=$CX10, Real_or_Nom="Nominal"),SUMPRODUCT($GN10:$GW10, 1/Input_Fixed!$G$10:$P$10)*$EN10, 0) -> 0 | HA10: =IF(AND(HA$4=$CX10, Real_or_Nom="Nominal"),SUMPRODUCT($GN10:$GW10, 1/Input_Fixed!$G$10:$P$10)*$EN10, 0) -> 0 | HB10: =IF(AND(HB$4=$CX10, Real_or_Nom="Nominal"),SUMPRODUCT($GN10:$GW10, 1/Input_Fixed!$G$10:$P$10)*$EN10, 0) -> 0 | HC10: =IF(AND(HC$4=$CX10, Real_or_Nom="Nominal"),SUMPRODUCT($GN10:$GW10, 1/Input_Fixed!$G$10:$P$10)*$EN10, 0) -> 0 | HD10: 0 | HE10: 1263888.967 | HF10: 0 | HG10: 0 | HH10: 0 | HJ10: 0 | HK10: 0 | HL10: 0 | HM10: 0 | HN10: 33887.54102 | HO10: 831268.3906 | HP10: 1216420.988 | HQ10: 1216420.988 | HR10: 1216420.988 | HS10: 1216420.988 | HT10: 0 | HU10: 0 | HV10: 0 | HW10: 0 | HX10: 0 | IA10: 0 | IB10: 0 | IC10: 0 | ID10: 0 | IE10: 0 | IF10: 33887.54102 | IG10: 831268.3906 | IH10: 385152.5977 | II10: 0 | IJ10: 0 | IK10: 0 | IL10: 0 | IM10: 0 | IN10: 0 | IO10: 0 | IP10: 0 | IR10: 0 | IS10: 0 | IT10: 0 | IU10: 0 | IV10: 33971.26668 | IW10: 838115.8063 | IX10: 391801.894 | IY10: 0 | IZ10: 0 | JA10: 0 | JC10: =IF(AND(JC$4=$CX10, Real_or_Nom="Nominal"),SUMPRODUCT($IR10:$JA10, 1/Input_Fixed!$G$10:$P$10)*$EN10, 0) -> 0 | JD10: =IF(AND(JD$4=$CX10, Real_or_Nom="Nominal"),SUMPRODUCT($IR10:$JA10, 1/Input_Fixed!$G$10:$P$10)*$EN10, 0) -> 0 | JE10: =IF(AND(JE$4=$CX10, Real_or_Nom="Nominal"),SUMPRODUCT($IR10:$JA10, 1/Input_Fixed!$G$10:$P$10)*$EN10, 0) -> 0 | JF10: =IF(AND(JF$4=$CX10, Real_or_Nom="Nominal"),SUMPRODUCT($IR10:$JA10, 1/Input_Fixed!$G$10:$P$10)*$EN10, 0) -> 0 | JG10: =IF(AND(JG$4=$CX10, Real_or_Nom="Nominal"),SUMPRODUCT($IR10:$JA10, 1/Input_Fixed!$G$10:$P$10)*$EN10, 0) -> 0 | JH10: 0 | JI10: 1263888.967 | JJ10: 0 | JK10: 0 | JL10: 0 | JN10: 0 | JO10: 0 | JP10: 0 | JQ10: 0 | JR10: 33887.54102 | JS10: 831268.3906 | JT10: 1216420.988 | JU10: 1216420.988 | JV10: 1216420.988 | JW10: 1216420.988 | JX10: 0 | JY10: 0 | JZ10: 0 | KA10: 0 | KB10: 0 | KD10: 0 | KE10: 0 | KF10: 0 | KG10: 0 | KH10: 0
